Workbook

Sheet LOGIKA AN-1
A2: N | B2: 0.01
A3: ANCHO EXC | B3: =0.5+N23 -> 0.5958371906 | C3: m
A4: DS | B4: 0.5 | C4: m | F4: BODEGA TIPO | H4: 158
A5: RECUBRIMIENTO | B5: 1.2 | C5: m | F5: SERV. ELECTRICOS | H5: =10+4+2+1 -> 17 | AO5: =0.5/5 -> 0.1
A6: C0 | B6: 1 | F6: PORTERIA 2 INLCUYE OF ADMON | H6: =10+3*4+4*1 -> 26 | AL6: 0.5
A7: ANCHO COMPACTADOR | B7: 0.25 | C7: m | F7: SERVICIOS BOMBAS | H7: =1+30+3+(145) -> 179 | AK7: 80 | AL7: =+AL6/100 -> 0.005 | AM7: =+AK7*AL7 -> 0.4 | AN7: =+AK7-AM7 -> 79.6
F8: PORTERIA 1 | H8: =1+10 -> 11
A9: EXCAVACIÓN $/m3 | C9: 18000
A10: POZO $/m | C10: 697981 | F10: BASURAS Y CONDUCTORES | H10: =5+70+7+20 -> 102
F11: MANTENIMIENTO | H11: 3
A12: VEL MIN | B12: 0.4 | F12: BLOQUE 1 CROS DOCKING | H12: =150+16+3+80 -> 249
A13: Q/Qo MIN | B13: 0.85 | F13: BLOQUE 2 CROS DOCKING | H13: =40+4+1+20 -> 65
A14: T | B14: 0.15
A16: CUADRO 1. PROGRAMACIÓN DINAMICA PARA EL CÁLCULO LA RED DE ALCANTARILLADO AGUAS RESIDUALES ITERACIÓN 1
A18: 1 | B18: 2 | C18: 3 | D18: 4 | E18: 5 | F18: 6 | G18: 7 | H18: 8 | I18: 9 | J18: 10 | K18: 11 | L18: 12 | M18: 13 | N18: 14 | O18: 15 | P18: 16 | Q18: 17 | R18: 18 | S18: 19 | T18: 16 | U18: 17 | V18: 18 | W18: 19 | X18: 20 | Y18: 21 | Z18: 22 | AA18: 23 | AB18: 24 | AC18: 25 | AD18: 26 | AE18: 27 | AF18: 28 | AG18: 29 | AH18: 30 | AI18: 31 | AJ18: 32 | AK18: 33 | AL18: 34 | AM18: 35 | AN18: 36 | AO18: 37 | AP18: 38 | AQ18: 39 | AR18: 40
A20: Etapa | B20: Pozo Aguas Arriba | C20: Pozo Aguas Abajo | D20: Cota del terreno | E20: Sub - etapa Aguas arriba | F20: clave | G20: Sub - etapa Aguas abajo | H20: clave | I20: Longitud receptor | J20: Pendiente | K20: Unidades de Hunter | L20: Q Diseño | M20: Q Diseño | N20: Diámetro | O20: Diámetro | P20: Diámetro Comercial | Q20: Diámetro Comercial | R20: Qo | S20: Q/Qo | T20: Diámetro Comercial | U20: Diámetro Comercial | V20: Qo | W20: Q/Qo | X20: Vo | Y20: V/Vo | Z20: V | AA20: T | AB20: Rev. | AC20: Rev. | AD20: Rev. | AE20: ANALISIS CUMPLIMIENTO PARAMETROS ALCANTARILLADO | AI20: Ancho excavación | AJ20: COSTOS | AM20: Total 1 | AN20: Aguas Arriba | AO20: Total 2 | AP20: Mínimo | AQ20: Etapas optimas
R21: Lt/sg | V21: Lt/sg | X21: mt/sg | Z21: mt/sg | AA21: kg/m2 | AJ21: Tubería | AK21: Excavación | AL21: Aguas Arriba | AM21: r() | AN21: f() | AO21: f() | AP21: f() | AQ21: Aguas | AR21: Aguas
E22: K | F22: (m) | G22: K | H22: (m) | I22: (m) | J22: (m/m) | L22: (L/s) | M22: (m3/s) | N22: (m) | O22: (in) | P22: (in) | Q22: (m) | R22: (m3/s) | T22: (in) | U22: (m) | V22: (m3/s) | X22: m/s | Z22: m/s | AA22: kg/m2 | AB22: q/Q | AC22: V | AD22: T | AE22: q/Q | AF22: V | AG22: T | AH22: TOTAL | AI22: (m) | AJ22: ($) | AK22: ($) | AL22: ($) | AM22: ($) | AN22: ($) | AO22: ($) | AQ22: arriba | AR22: abajo
A23: 1 | B23: 1 | C23: 2 | D23: 49.3 | E23: 1 | F23: =+$D$23-$B$5 -> 48.1 | G23: 1 | H23: =+$D$48-$B$5-$B$4 -> 47.5 | I23: 80 | J23: =+(F23-H23)/I23 -> 0.0075 | K23: =+H4 -> 158 | L23: =IF(K23<38,K23^0.3686*0.7401,IF(K23<235,K23^0.4193*0.6215,IF(K23<932,K23*0.0092+4.2493,K23*0.0069+6.7345))) -> 5.192040238 | M23: =+L23/1000 -> 0.005192040238 | N23: =+IF(J23>0,((M23*$B$2*(4^(5/3))/((J23^0.5)*PI()*$B$6))^(3/8)),0) -> 0.09583719056 | O23: =+N23*(100/2.54) -> 3.773117739 | P23: =IF(O23<0.1,0,IF(O23<4,6,EVEN(O23))) -> 6 | Q23: =IF(O23>0,VLOOKUP(P23,'$ alcantarillado'!$I$5:$L$22,4,FALSE),"0") -> 0.145 | R23: =IF(P23>0,PI()*((Q23)^(8/3))*((J23)^0.5)/($B$2*4^(5/3)),"") -> 0.01566373011 | S23: =IF(P23>0,+M23/R23,0) -> 0.3314689542 | T23: =+IF(S23>$B$13,VLOOKUP(P23,'$ alcantarillado'!$I$6:$N$22,5),P23) -> 6 | U23: =IF(O23>0,VLOOKUP(T23,'$ alcantarillado'!$I$5:$L$22,4),"0") -> 0.145 | V23: =IF(T23>0,PI()*((U23)^(8/3))*((J23)^0.5)/($B$2*4^(5/3)),"") -> 0.01566373011 | W23: =IF(T23>0,M23/V23,0) -> 0.3314689542 | X23: =IF(T23>0,4*V23/(PI()*(U23)^2),"") -> 0.948569826 | Y23: =IF(T23>0,(VLOOKUP($W23,Relaciones!$A$4:$D$108,2)),"") -> 0.75 | Z23: =IF(T23>0,Y23*X23,"") -> 0.7114273695 | AA23: =IF(T23>0,250*U23*J23,"") -> 0.271875 | AB23: =IF(T23>0,IF(W23<=$B$13,"OK","No Cumple"),"") -> OK | AC23: =IF(T23>0,IF(Z23>=$B$12,"OK","No Cumple"),"") -> OK | AD23: =IF(T23>0,IF(AA23>$B$14,"OK","No Cumple"),"") -> OK | AE23: =+IF(AB23="OK",1,0) -> 1 | AF23: =+IF(AC23="OK",1,0) -> 1 | AG23: =+IF(AD23="OK",1,0) -> 1 | AH23: =SUM(AE23:AG23) -> 3 | AI23: =IF(AH23=3,2*$B$7+U23,0) -> 0.645 | AJ23: =IF(AI23>0,I23*VLOOKUP(T23,'$ alcantarillado'!$I$6:$K$22,3),0) -> 1912173.333 | AK23: =IF(N23>0,((($D$23-F23)+(U23))+(($D$48-H23)+(U23))/2)*AI23*I23*$C$9,0) -> 2106054 | AL23: =IF(AI23>0,(($D$23-F23)+U23)*$C$10,0) -> 938784.445 | AM23: =IF(AJ23>0,AJ23+AK23+AL23,0) -> 4957011.778 | AN23: 0 | AO23: =IF((AM23+AN23)>0,(AM23+AN23),"") -> 4957011.778 | AP23: =+MIN(AO23:AO27) -> 4957011.778
E24: 2 | F24: =+F23-$B$4 -> 47.6 | G24: 1 | H24: =+H23 -> 47.5 | I24: =+I23 -> 80 | J24: =+(F24-H24)/I24 -> 0.00125 | K24: =+K23 -> 158 | L24: =IF(K24<38,K24^0.3686*0.7401,IF(K24<235,K24^0.4193*0.6215,IF(K24<932,K24*0.0092+4.2493,K24*0.0069+6.7345))) -> 5.192040238 | M24: =+L24/1000 -> 0.005192040238 | N24: 0.1341026727 | O24: 5.279632783 | P24: =IF(O24<0.1,0,IF(O24<4,6,EVEN(O24))) -> 6 | Q24: =IF(O24>0,VLOOKUP(P24,'$ alcantarillado'!$I$5:$L$22,4,FALSE),"0") -> 0.145 | R24: 0.006394691039 | S24: =IF(P24>0,+M24/R24,0) -> 0.8119298033 | T24: =+IF(S24>$B$13,VLOOKUP(P24,'$ alcantarillado'!$I$6:$N$22,5),P24) -> 6 | U24: =IF(O24>0,VLOOKUP(T24,'$ alcantarillado'!$I$5:$L$22,4),"0") -> 0.145 | V24: 0.006394691039 | W24: 0.8119298033 | X24: =IF(T24>0,4*V24/(PI()*(U24)^2),"") -> 0.3872520099 | Y24: =IF(T24>0,(VLOOKUP($W24,Relaciones!$A$4:$D$108,2)),"") -> 0.987 | Z24: =IF(T24>0,Y24*X24,"") -> 0.3822177337 | AA24: =IF(T24>0,250*U24*J24,"") -> 0.0453125 | AB24: =IF(T24>0,IF(W24<=$B$13,"OK","No Cumple"),"") -> OK | AC24: =IF(T24>0,IF(Z24>=$B$12,"OK","No Cumple"),"") -> No Cumple | AD24: =IF(T24>0,IF(AA24>$B$14,"OK","No Cumple"),"") -> No Cumple | AE24: =+IF(AB24="OK",1,0) -> 1 | AF24: =+IF(AC24="OK",1,0) -> 0 | AG24: =+IF(AD24="OK",1,0) -> 0 | AH24: =SUM(AE24:AG24) -> 1 | AI24: =IF(AH24=3,2*$B$7+U24,0) -> 0 | AJ24: =IF(AI24>0,I24*VLOOKUP(T24,'$ alcantarillado'!$I$6:$K$22,3),0) -> 0 | AK24: 0 | AL24: 0 | AM24: =IF(AJ24>0,AJ24+AK24+AL24,0) -> 0 | AN24: 0 | AO24: =IF((AM24+AN24)>0,(AM24+AN24),"") ->  | AQ24: 1 | AR24: 1
E25: 3 | F25: =+F24-$B$4 -> 47.1 | G25: 1 | H25: =+H24 -> 47.5 | I25: =+I24 -> 80 | J25: -0.005 | K25: 158 | L25: 5.192040238 | M25: 0.005192040238 | N25: 0 | O25: 0 | P25: 0 | Q25: =IF(O25>0,VLOOKUP(P25,'$ alcantarillado'!$I$5:$L$22,4,FALSE),"0") -> 0 | S25: =IF(P25>0,+M25/R25,0) -> 0 | T25: =+IF(S25>$B$13,VLOOKUP(P25,'$ alcantarillado'!$I$6:$N$22,5),P25) -> 0 | U25: =IF(O25>0,VLOOKUP(T25,'$ alcantarillado'!$I$5:$L$22,4),"0") -> 0 | W25: 0 | Y25: =IF(T25>0,(VLOOKUP($W25,Relaciones!$A$4:$D$108,2)),"") ->  | AE25: =+IF(AB25="OK",1,0) -> 0 | AF25: =+IF(AC25="OK",1,0) -> 0 | AG25: =+IF(AD25="OK",1,0) -> 0 | AH25: =SUM(AE25:AG25) -> 0 | AI25: =IF(AH25=3,2*$B$7+U25,0) -> 0 | AJ25: =IF(AI25>0,I25*VLOOKUP(T25,'$ alcantarillado'!$I$6:$K$22,3),0) -> 0 | AK25: 0 | AL25: 0 | AM25: 0 | AN25: 0
E26: 4 | F26: 46.6 | G26: 1 | H26: 47.5 | I26: 80 | J26: =+(F26-H26)/I26 -> -0.01125 | K26: 158 | L26: 5.192040238 | M26: 0.005192040238 | N26: 0 | O26: 0 | P26: 0 | Q26: =IF(O26>0,VLOOKUP(P26,'$ alcantarillado'!$I$5:$L$22,4,FALSE),"0") -> 0 | S26: 0 | T26: =+IF(S26>$B$13,VLOOKUP(P26,'$ alcantarillado'!$I$6:$N$22,5),P26) -> 0 | U26: =IF(O26>0,VLOOKUP(T26,'$ alcantarillado'!$I$5:$L$22,4),"0") -> 0 | W26: 0 | Y26: =IF(T26>0,(VLOOKUP($W26,Relaciones!$A$4:$D$108,2)),"") ->  | AE26: 0 | AF26: 0 | AG26: 0 | AH26: 0 | AI26: 0 | AJ26: =IF(AI26>0,I26*VLOOKUP(T26,'$ alcantarillado'!$I$6:$K$22,3),0) -> 0 | AK26: 0 | AL26: 0 | AM26: 0 | AN26: 0
E27: 5 | F27: 46.1 | G27: 1 | H27: =+H26 -> 47.5 | I27: =+I26 -> 80 | J27: -0.0175 | K27: =+K26 -> 158 | L27: 5.192040238 | M27: 0.005192040238 | N27: 0 | O27: 0 | P27: 0 | Q27: =IF(O27>0,VLOOKUP(P27,'$ alcantarillado'!$I$5:$L$22,4,FALSE),"0") -> 0 | S27: 0 | T27: =+IF(S27>$B$13,VLOOKUP(P27,'$ alcantarillado'!$I$6:$N$22,5),P27) -> 0 | U27: =IF(O27>0,VLOOKUP(T27,'$ alcantarillado'!$I$5:$L$22,4),"0") -> 0 | W27: 0 | Y27: =IF(T27>0,(VLOOKUP($W27,Relaciones!$A$4:$D$108,2)),"") ->  | AE27: 0 | AF27: 0 | AG27: 0 | AH27: 0 | AI27: 0 | AJ27: =IF(AI27>0,I27*VLOOKUP(T27,'$ alcantarillado'!$I$6:$K$22,3),0) -> 0 | AK27: 0 | AL27: 0 | AM27: 0 | AN27: 0
E28: 1 | F28: =+$D$23-$B$5 -> 48.1 | G28: 2 | H28: =+H23-$B$4 -> 47 | I28: =+I27 -> 80 | J28: =+(F28-H28)/I28 -> 0.01375 | K28: =+K27 -> 158 | L28: =IF(K28<38,K28^0.3686*0.7401,IF(K28<235,K28^0.4193*0.6215,IF(K28<932,K28*0.0092+4.2493,K28*0.0069+6.7345))) -> 5.192040238 | M28: =+L28/1000 -> 0.005192040238 | N28: =+IF(J28>0,((M28*$B$2*(4^(5/3))/((J28^0.5)*PI()*$B$6))^(3/8)),0) -> 0.08554139039 | O28: 3.367771275 | P28: 6 | Q28: =IF(O28>0,VLOOKUP(P28,'$ alcantarillado'!$I$5:$L$22,4,FALSE),"0") -> 0.145 | R28: 0.02120879083 | S28: 0.2448060467 | T28: =+IF(S28>$B$13,VLOOKUP(P28,'$ alcantarillado'!$I$6:$N$22,5),P28) -> 6 | U28: =IF(O28>0,VLOOKUP(T28,'$ alcantarillado'!$I$5:$L$22,4),"0") -> 0.145 | V28: =IF(T28>0,PI()*((U28)^(8/3))*((J28)^0.5)/($B$2*4^(5/3)),"") -> 0.02120879083 | W28: 0.2448060467 | X28: =IF(T28>0,4*V28/(PI()*(U28)^2),"") -> 1.284369616 | Y28: =IF(T28>0,(VLOOKUP($W28,Relaciones!$A$4:$D$108,2)),"") -> 0.687 | Z28: =IF(T28>0,Y28*X28,"") -> 0.8823619262 | AA28: =IF(T28>0,250*U28*J28,"") -> 0.4984375 | AB28: =IF(T28>0,IF(W28<=$B$13,"OK","No Cumple"),"") -> OK | AC28: =IF(T28>0,IF(Z28>=$B$12,"OK","No Cumple"),"") -> OK | AD28: =IF(T28>0,IF(AA28>$B$14,"OK","No Cumple"),"") -> OK | AE28: =+IF(AB28="OK",1,0) -> 1 | AF28: =+IF(AC28="OK",1,0) -> 1 | AG28: =+IF(AD28="OK",1,0) -> 1 | AH28: =SUM(AE28:AG28) -> 3 | AI28: =IF(AH28=3,2*$B$7+U28,0) -> 0.645 | AJ28: =IF(AI28>0,I28*VLOOKUP(T28,'$ alcantarillado'!$I$6:$K$22,3),0) -> 1912173.333 | AK28: 2338254 | AL28: 938784.445 | AM28: =IF(AJ28>0,AJ28+AK28+AL28,0) -> 5189211.778 | AN28: 0 | AO28: =IF((AM28+AN28)>0,(AM28+AN28),"") -> 5189211.778 | AP28: =+MIN(AO28:AO32) -> 5189211.778
E29: 2 | F29: =+F28-$B$4 -> 47.6 | G29: 2 | H29: =+H28 -> 47 | I29: =+I28 -> 80 | J29: 0.0075 | K29: =+K28 -> 158 | L29: 5.192040238 | M29: 0.005192040238 | N29: 0.09583719056 | O29: 3.773117739 | P29: 6 | Q29: =IF(O29>0,VLOOKUP(P29,'$ alcantarillado'!$I$5:$L$22,4,FALSE),"0") -> 0.145 | R29: 0.01566373011 | S29: 0.3314689542 | T29: =+IF(S29>$B$13,VLOOKUP(P29,'$ alcantarillado'!$I$6:$N$22,5),P29) -> 6 | U29: =IF(O29>0,VLOOKUP(T29,'$ alcantarillado'!$I$5:$L$22,4),"0") -> 0.145 | V29: 0.01566373011 | W29: 0.3314689542 | X29: =IF(T29>0,4*V29/(PI()*(U29)^2),"") -> 0.948569826 | Y29: =IF(T29>0,(VLOOKUP($W29,Relaciones!$A$4:$D$108,2)),"") -> 0.75 | Z29: =IF(T29>0,Y29*X29,"") -> 0.7114273695 | AA29: =IF(T29>0,250*U29*J29,"") -> 0.271875 | AB29: =IF(T29>0,IF(W29<=$B$13,"OK","No Cumple"),"") -> OK | AC29: =IF(T29>0,IF(Z29>=$B$12,"OK","No Cumple"),"") -> OK | AD29: =IF(T29>0,IF(AA29>$B$14,"OK","No Cumple"),"") -> OK | AE29: =+IF(AB29="OK",1,0) -> 1 | AF29: =+IF(AC29="OK",1,0) -> 1 | AG29: =+IF(AD29="OK",1,0) -> 1 | AH29: =SUM(AE29:AG29) -> 3 | AI29: =IF(AH29=3,2*$B$7+U29,0) -> 0.645 | AJ29: =IF(AI29>0,I29*VLOOKUP(T29,'$ alcantarillado'!$I$6:$K$22,3),0) -> 1912173.333 | AK29: 2802654 | AL29: 1287774.945 | AM29: 6002602.278 | AN29: 0 | AO29: 6002602.278
E30: 3 | F30: =+F29-$B$4 -> 47.1 | G30: 2 | H30: =+H29 -> 47 | I30: 80 | J30: 0.00125 | K30: =+K29 -> 158 | L30: 5.192040238 | M30: 0.005192040238 | N30: 0.1341026727 | O30: 5.279632783 | P30: 6 | Q30: =IF(O30>0,VLOOKUP(P30,'$ alcantarillado'!$I$5:$L$22,4,FALSE),"0") -> 0.145 | R30: 0.006394691039 | S30: 0.8119298033 | T30: =+IF(S30>$B$13,VLOOKUP(P30,'$ alcantarillado'!$I$6:$N$22,5),P30) -> 6 | U30: =IF(O30>0,VLOOKUP(T30,'$ alcantarillado'!$I$5:$L$22,4),"0") -> 0.145 | V30: 0.006394691039 | W30: 0.8119298033 | X30: 0.3872520099 | Y30: =IF(T30>0,(VLOOKUP($W30,Relaciones!$A$4:$D$108,2)),"") -> 0.987 | Z30: 0.3822177337 | AA30: 0.0453125 | AB30: OK | AC30: No Cumple | AD30: No Cumple | AE30: 1 | AF30: 0 | AG30: 0 | AH30: 1 | AI30: 0 | AJ30: =IF(AI30>0,I30*VLOOKUP(T30,'$ alcantarillado'!$I$6:$K$22,3),0) -> 0 | AK30: 0 | AL30: 0 | AM30: 0 | AN30: 0 | AQ30: 1 | AR30: 2
E31: 4 | F31: 46.6 | G31: 2 | H31: 47 | I31: 80 | J31: =+(F31-H31)/I31 -> -0.005 | K31: 158 | L31: 5.192040238 | M31: 0.005192040238 | N31: 0 | O31: 0 | P31: 0 | Q31: =IF(O31>0,VLOOKUP(P31,'$ alcantarillado'!$I$5:$L$22,4,FALSE),"0") -> 0 | S31: 0 | T31: =+IF(S31>$B$13,VLOOKUP(P31,'$ alcantarillado'!$I$6:$N$22,5),P31) -> 0 | U31: =IF(O31>0,VLOOKUP(T31,'$ alcantarillado'!$I$5:$L$22,4),"0") -> 0 | W31: 0 | Y31: =IF(T31>0,(VLOOKUP($W31,Relaciones!$A$4:$D$108,2)),"") ->  | AE31: 0 | AF31: 0 | AG31: 0 | AH31: 0 | AI31: 0 | AJ31: =IF(AI31>0,I31*VLOOKUP(T31,'$ alcantarillado'!$I$6:$K$22,3),0) -> 0 | AK31: 0 | AL31: 0 | AM31: 0 | AN31: 0
E32: 5 | F32: 46.1 | G32: 2 | H32: =+H31 -> 47 | I32: =+I31 -> 80 | J32: -0.01125 | K32: =+K31 -> 158 | L32: 5.192040238 | M32: 0.005192040238 | N32: 0 | O32: 0 | P32: 0 | Q32: =IF(O32>0,VLOOKUP(P32,'$ alcantarillado'!$I$5:$L$22,4,FALSE),"0") -> 0 | S32: 0 | T32: =+IF(S32>$B$13,VLOOKUP(P32,'$ alcantarillado'!$I$6:$N$22,5),P32) -> 0 | U32: =IF(O32>0,VLOOKUP(T32,'$ alcantarillado'!$I$5:$L$22,4),"0") -> 0 | W32: 0 | Y32: =IF(T32>0,(VLOOKUP($W32,Relaciones!$A$4:$D$108,2)),"") ->  | AE32: 0 | AF32: 0 | AG32: 0 | AH32: 0 | AI32: 0 | AJ32: =IF(AI32>0,I32*VLOOKUP(T32,'$ alcantarillado'!$I$6:$K$22,3),0) -> 0 | AK32: 0 | AL32: 0 | AM32: 0 | AN32: 0
E33: 1 | F33: =+$D$23-$B$5 -> 48.1 | G33: 3 | H33: =+H28-$B$4 -> 46.5 | I33: =+I32 -> 80 | J33: =+(F33-H33)/I33 -> 0.02 | K33: 158 | L33: =IF(K33<38,K33^0.3686*0.7401,IF(K33<235,K33^0.4193*0.6215,IF(K33<932,K33*0.0092+4.2493,K33*0.0069+6.7345))) -> 5.192040238 | M33: =+L33/1000 -> 0.005192040238 | N33: 0.07973792624 | O33: 3.139288435 | P33: 6 | Q33: =IF(O33>0,VLOOKUP(P33,'$ alcantarillado'!$I$5:$L$22,4,FALSE),"0") -> 0.145 | R33: 0.02557876416 | S33: 0.2029824508 | T33: =+IF(S33>$B$13,VLOOKUP(P33,'$ alcantarillado'!$I$6:$N$22,5),P33) -> 6 | U33: =IF(O33>0,VLOOKUP(T33,'$ alcantarillado'!$I$5:$L$22,4),"0") -> 0.145 | V33: 0.02557876416 | W33: 0.2029824508 | X33: =IF(T33>0,4*V33/(PI()*(U33)^2),"") -> 1.549008039 | Y33: =IF(T33>0,(VLOOKUP($W33,Relaciones!$A$4:$D$108,2)),"") -> 0.656 | Z33: =IF(T33>0,Y33*X33,"") -> 1.016149274 | AA33: =IF(T33>0,250*U33*J33,"") -> 0.725 | AB33: =IF(T33>0,IF(W33<=$B$13,"OK","No Cumple"),"") -> OK | AC33: =IF(T33>0,IF(Z33>=$B$12,"OK","No Cumple"),"") -> OK | AD33: =IF(T33>0,IF(AA33>$B$14,"OK","No Cumple"),"") -> OK | AE33: =+IF(AB33="OK",1,0) -> 1 | AF33: =+IF(AC33="OK",1,0) -> 1 | AG33: =+IF(AD33="OK",1,0) -> 1 | AH33: =SUM(AE33:AG33) -> 3 | AI33: =IF(AH33=3,2*$B$7+U33,0) -> 0.645 | AJ33: =IF(AI33>0,I33*VLOOKUP(T33,'$ alcantarillado'!$I$6:$K$22,3),0) -> 1912173.333 | AK33: 2570454 | AL33: 938784.445 | AM33: =IF(AJ33>0,AJ33+AK33+AL33,0) -> 5421411.778 | AN33: 0 | AO33: 5421411.778 | AP33: =+MIN(AO33:AO37) -> 5421411.778
E34: 2 | F34: =+F33-$B$4 -> 47.6 | G34: 3 | H34: =+H33 -> 46.5 | I34: =+I33 -> 80 | J34: 0.01375 | K34: =+K33 -> 158 | L34: 5.192040238 | M34: 0.005192040238 | N34: 0.08554139039 | O34: 3.367771275 | P34: 6 | Q34: =IF(O34>0,VLOOKUP(P34,'$ alcantarillado'!$I$5:$L$22,4,FALSE),"0") -> 0.145 | R34: 0.02120879083 | S34: 0.2448060467 | T34: =+IF(S34>$B$13,VLOOKUP(P34,'$ alcantarillado'!$I$6:$N$22,5),P34) -> 6 | U34: =IF(O34>0,VLOOKUP(T34,'$ alcantarillado'!$I$5:$L$22,4),"0") -> 0.145 | V34: 0.02120879083 | W34: 0.2448060467 | X34: =IF(T34>0,4*V34/(PI()*(U34)^2),"") -> 1.284369616 | Y34: =IF(T34>0,(VLOOKUP($W34,Relaciones!$A$4:$D$108,2)),"") -> 0.687 | Z34: =IF(T34>0,Y34*X34,"") -> 0.8823619262 | AA34: =IF(T34>0,250*U34*J34,"") -> 0.4984375 | AB34: =IF(T34>0,IF(W34<=$B$13,"OK","No Cumple"),"") -> OK | AC34: =IF(T34>0,IF(Z34>=$B$12,"OK","No Cumple"),"") -> OK | AD34: =IF(T34>0,IF(AA34>$B$14,"OK","No Cumple"),"") -> OK | AE34: =+IF(AB34="OK",1,0) -> 1 | AF34: =+IF(AC34="OK",1,0) -> 1 | AG34: =+IF(AD34="OK",1,0) -> 1 | AH34: =SUM(AE34:AG34) -> 3 | AI34: =IF(AH34=3,2*$B$7+U34,0) -> 0.645 | AJ34: =IF(AI34>0,I34*VLOOKUP(T34,'$ alcantarillado'!$I$6:$K$22,3),0) -> 1912173.333 | AK34: 3034854 | AL34: 1287774.945 | AM34: 6234802.278 | AN34: 0 | AO34: 6234802.278
E35: 3 | F35: =+F34-$B$4 -> 47.1 | G35: 3 | H35: =+H34 -> 46.5 | I35: 80 | J35: 0.0075 | K35: =+K34 -> 158 | L35: 5.192040238 | M35: 0.005192040238 | N35: 0.09583719056 | O35: 3.773117739 | P35: 6 | Q35: =IF(O35>0,VLOOKUP(P35,'$ alcantarillado'!$I$5:$L$22,4,FALSE),"0") -> 0.145 | R35: 0.01566373011 | S35: 0.3314689542 | T35: =+IF(S35>$B$13,VLOOKUP(P35,'$ alcantarillado'!$I$6:$N$22,5),P35) -> 6 | U35: =IF(O35>0,VLOOKUP(T35,'$ alcantarillado'!$I$5:$L$22,4),"0") -> 0.145 | V35: 0.01566373011 | W35: 0.3314689542 | X35: 0.948569826 | Y35: =IF(T35>0,(VLOOKUP($W35,Relaciones!$A$4:$D$108,2)),"") -> 0.75 | Z35: 0.7114273695 | AA35: 0.271875 | AB35: OK | AC35: OK | AD35: OK | AE35: 1 | AF35: 1 | AG35: 1 | AH35: 3 | AI35: 0.645 | AJ35: =IF(AI35>0,I35*VLOOKUP(T35,'$ alcantarillado'!$I$6:$K$22,3),0) -> 1912173.333 | AK35: 3499254 | AL35: 1636765.445 | AM35: 7048192.778 | AN35: 0 | AO35: 7048192.778 | AQ35: 1 | AR35: 3
E36: 4 | F36: 46.6 | G36: 3 | H36: 46.5 | I36: 80 | J36: =+(F36-H36)/I36 -> 0.00125 | K36: 158 | L36: 5.192040238 | M36: 0.005192040238 | N36: 0.1341026727 | O36: 5.279632783 | P36: 6 | Q36: =IF(O36>0,VLOOKUP(P36,'$ alcantarillado'!$I$5:$L$22,4,FALSE),"0") -> 0.145 | R36: 0.006394691039 | S36: 0.8119298033 | T36: =+IF(S36>$B$13,VLOOKUP(P36,'$ alcantarillado'!$I$6:$N$22,5),P36) -> 6 | U36: =IF(O36>0,VLOOKUP(T36,'$ alcantarillado'!$I$5:$L$22,4),"0") -> 0.145 | V36: 0.006394691039 | W36: 0.8119298033 | X36: 0.3872520099 | Y36: =IF(T36>0,(VLOOKUP($W36,Relaciones!$A$4:$D$108,2)),"") -> 0.987 | Z36: 0.3822177337 | AA36: 0.0453125 | AB36: OK | AC36: No Cumple | AD36: No Cumple | AE36: 1 | AF36: 0 | AG36: 0 | AH36: 1 | AI36: 0 | AJ36: =IF(AI36>0,I36*VLOOKUP(T36,'$ alcantarillado'!$I$6:$K$22,3),0) -> 0 | AK36: 0 | AL36: 0 | AM36: 0 | AN36: 0
E37: 5 | F37: 46.1 | G37: 3 | H37: =+H36 -> 46.5 | I37: =+I36 -> 80 | J37: -0.005 | K37: =+K36 -> 158 | L37: 5.192040238 | M37: 0.005192040238 | N37: 0 | O37: 0 | P37: 0 | Q37: =IF(O37>0,VLOOKUP(P37,'$ alcantarillado'!$I$5:$L$22,4,FALSE),"0") -> 0 | S37: 0 | T37: =+IF(S37>$B$13,VLOOKUP(P37,'$ alcantarillado'!$I$6:$N$22,5),P37) -> 0 | U37: =IF(O37>0,VLOOKUP(T37,'$ alcantarillado'!$I$5:$L$22,4),"0") -> 0 | W37: 0 | Y37: =IF(T37>0,(VLOOKUP($W37,Relaciones!$A$4:$D$108,2)),"") ->  | AE37: 0 | AF37: 0 | AG37: 0 | AH37: 0 | AI37: 0 | AJ37: =IF(AI37>0,I37*VLOOKUP(T37,'$ alcantarillado'!$I$6:$K$22,3),0) -> 0 | AK37: 0 | AL37: 0 | AM37: 0 | AN37: 0
E38: 1 | F38: =+$D$23-$B$5 -> 48.1 | G38: 4 | H38: =+H33-$B$4 -> 46 | I38: =+I33 -> 80 | J38: =+(F38-H38)/I38 -> 0.02625 | K38: =+K33 -> 158 | L38: =IF(K38<38,K38^0.3686*0.7401,IF(K38<235,K38^0.4193*0.6215,IF(K38<932,K38*0.0092+4.2493,K38*0.0069+6.7345))) -> 5.192040238 | M38: =+L38/1000 -> 0.005192040238 | N38: 0.07577419228 | O38: 2.983235917 | P38: 6 | Q38: =IF(O38>0,VLOOKUP(P38,'$ alcantarillado'!$I$5:$L$22,4,FALSE),"0") -> 0.145 | R38: 0.02930415573 | S38: 0.1771776087 | T38: =+IF(S38>$B$13,VLOOKUP(P38,'$ alcantarillado'!$I$6:$N$22,5),P38) -> 6 | U38: =IF(O38>0,VLOOKUP(T38,'$ alcantarillado'!$I$5:$L$22,4),"0") -> 0.145 | V38: 0.02930415573 | W38: 0.1771776087 | X38: =IF(T38>0,4*V38/(PI()*(U38)^2),"") -> 1.774611648 | Y38: =IF(T38>0,(VLOOKUP($W38,Relaciones!$A$4:$D$108,2)),"") -> 0.624 | Z38: =IF(T38>0,Y38*X38,"") -> 1.107357668 | AA38: =IF(T38>0,250*U38*J38,"") -> 0.9515625 | AB38: =IF(T38>0,IF(W38<=$B$13,"OK","No Cumple"),"") -> OK | AC38: =IF(T38>0,IF(Z38>=$B$12,"OK","No Cumple"),"") -> OK | AD38: =IF(T38>0,IF(AA38>$B$14,"OK","No Cumple"),"") -> OK | AE38: =+IF(AB38="OK",1,0) -> 1 | AF38: =+IF(AC38="OK",1,0) -> 1 | AG38: =+IF(AD38="OK",1,0) -> 1 | AH38: =SUM(AE38:AG38) -> 3 | AI38: =IF(AH38=3,2*$B$7+U38,0) -> 0.645 | AJ38: =IF(AI38>0,I38*VLOOKUP(T38,'$ alcantarillado'!$I$6:$K$22,3),0) -> 1912173.333 | AK38: 2802654 | AL38: 938784.445 | AM38: =IF(AJ38>0,AJ38+AK38+AL38,0) -> 5653611.778 | AN38: 0 | AO38: 5653611.778 | AP38: =+MIN(AO38:AO42) -> 5653611.778
E39: 2 | F39: =+F38-$B$4 -> 47.6 | G39: 4 | H39: =+H38 -> 46 | I39: =+I38 -> 80 | J39: 0.02 | K39: =+K38 -> 158 | L39: 5.192040238 | M39: 0.005192040238 | N39: 0.07973792624 | O39: 3.139288435 | P39: 6 | Q39: =IF(O39>0,VLOOKUP(P39,'$ alcantarillado'!$I$5:$L$22,4,FALSE),"0") -> 0.145 | R39: 0.02557876416 | S39: 0.2029824508 | T39: =+IF(S39>$B$13,VLOOKUP(P39,'$ alcantarillado'!$I$6:$N$22,5),P39) -> 6 | U39: =IF(O39>0,VLOOKUP(T39,'$ alcantarillado'!$I$5:$L$22,4),"0") -> 0.145 | V39: 0.02557876416 | W39: 0.2029824508 | X39: =IF(T39>0,4*V39/(PI()*(U39)^2),"") -> 1.549008039 | Y39: =IF(T39>0,(VLOOKUP($W39,Relaciones!$A$4:$D$108,2)),"") -> 0.656 | Z39: =IF(T39>0,Y39*X39,"") -> 1.016149274 | AA39: =IF(T39>0,250*U39*J39,"") -> 0.725 | AB39: =IF(T39>0,IF(W39<=$B$13,"OK","No Cumple"),"") -> OK | AC39: =IF(T39>0,IF(Z39>=$B$12,"OK","No Cumple"),"") -> OK | AD39: =IF(T39>0,IF(AA39>$B$14,"OK","No Cumple"),"") -> OK | AE39: =+IF(AB39="OK",1,0) -> 1 | AF39: =+IF(AC39="OK",1,0) -> 1 | AG39: =+IF(AD39="OK",1,0) -> 1 | AH39: =SUM(AE39:AG39) -> 3 | AI39: =IF(AH39=3,2*$B$7+U39,0) -> 0.645 | AJ39: =IF(AI39>0,I39*VLOOKUP(T39,'$ alcantarillado'!$I$6:$K$22,3),0) -> 1912173.333 | AK39: 3267054 | AL39: 1287774.945 | AM39: 6467002.278 | AN39: 0 | AO39: 6467002.278
E40: 3 | F40: =+F39-$B$4 -> 47.1 | G40: 4 | H40: =+H39 -> 46 | I40: 80 | J40: 0.01375 | K40: =+K39 -> 158 | L40: 5.192040238 | M40: 0.005192040238 | N40: 0.08554139039 | O40: 3.367771275 | P40: 6 | Q40: =IF(O40>0,VLOOKUP(P40,'$ alcantarillado'!$I$5:$L$22,4,FALSE),"0") -> 0.145 | R40: 0.02120879083 | S40: 0.2448060467 | T40: =+IF(S40>$B$13,VLOOKUP(P40,'$ alcantarillado'!$I$6:$N$22,5),P40) -> 6 | U40: =IF(O40>0,VLOOKUP(T40,'$ alcantarillado'!$I$5:$L$22,4),"0") -> 0.145 | V40: 0.02120879083 | W40: 0.2448060467 | X40: 1.284369616 | Y40: =IF(T40>0,(VLOOKUP($W40,Relaciones!$A$4:$D$108,2)),"") -> 0.687 | Z40: 0.8823619262 | AA40: 0.4984375 | AB40: OK | AC40: OK | AD40: OK | AE40: 1 | AF40: 1 | AG40: 1 | AH40: 3 | AI40: 0.645 | AJ40: =IF(AI40>0,I40*VLOOKUP(T40,'$ alcantarillado'!$I$6:$K$22,3),0) -> 1912173.333 | AK40: 3731454 | AL40: 1636765.445 | AM40: 7280392.778 | AN40: 0 | AO40: 7280392.778 | AQ40: 1 | AR40: 4
E41: 4 | F41: 46.6 | G41: 4 | H41: 46 | I41: 80 | J41: =+(F41-H41)/I41 -> 0.0075 | K41: 158 | L41: 5.192040238 | M41: 0.005192040238 | N41: 0.09583719056 | O41: 3.773117739 | P41: 6 | Q41: =IF(O41>0,VLOOKUP(P41,'$ alcantarillado'!$I$5:$L$22,4,FALSE),"0") -> 0.145 | R41: 0.01566373011 | S41: 0.3314689542 | T41: =+IF(S41>$B$13,VLOOKUP(P41,'$ alcantarillado'!$I$6:$N$22,5),P41) -> 6 | U41: =IF(O41>0,VLOOKUP(T41,'$ alcantarillado'!$I$5:$L$22,4),"0") -> 0.145 | V41: 0.01566373011 | W41: 0.3314689542 | X41: 0.948569826 | Y41: =IF(T41>0,(VLOOKUP($W41,Relaciones!$A$4:$D$108,2)),"") -> 0.75 | Z41: 0.7114273695 | AA41: 0.271875 | AB41: OK | AC41: OK | AD41: OK | AE41: 1 | AF41: 1 | AG41: 1 | AH41: 3 | AI41: 0.645 | AJ41: =IF(AI41>0,I41*VLOOKUP(T41,'$ alcantarillado'!$I$6:$K$22,3),0) -> 1912173.333 | AK41: 4195854 | AL41: 1985755.945 | AM41: 8093783.278 | AN41: 0 | AO41: 8093783.278
E42: 5 | F42: 46.1 | G42: 4 | H42: =+H41 -> 46 | I42: =+I41 -> 80 | J42: 0.00125 | K42: =+K41 -> 158 | L42: 5.192040238 | M42: 0.005192040238 | N42: 0.1341026727 | O42: 5.279632783 | P42: 6 | Q42: =IF(O42>0,VLOOKUP(P42,'$ alcantarillado'!$I$5:$L$22,4,FALSE),"0") -> 0.145 | R42: 0.006394691039 | S42: 0.8119298033 | T42: =+IF(S42>$B$13,VLOOKUP(P42,'$ alcantarillado'!$I$6:$N$22,5),P42) -> 6 | U42: =IF(O42>0,VLOOKUP(T42,'$ alcantarillado'!$I$5:$L$22,4),"0") -> 0.145 | V42: 0.006394691039 | W42: 0.8119298033 | X42: 0.3872520099 | Y42: =IF(T42>0,(VLOOKUP($W42,Relaciones!$A$4:$D$108,2)),"") -> 0.987 | Z42: 0.3822177337 | AA42: 0.0453125 | AB42: OK | AC42: No Cumple | AD42: No Cumple | AE42: 1 | AF42: 0 | AG42: 0 | AH42: 1 | AI42: 0 | AJ42: =IF(AI42>0,I42*VLOOKUP(T42,'$ alcantarillado'!$I$6:$K$22,3),0) -> 0 | AK42: 0 | AL42: 0 | AM42: 0 | AN42: 0
E43: 1 | F43: =+$D$23-$B$5 -> 48.1 | G43: 5 | H43: =+H38-$B$4 -> 45.5 | I43: =+I38 -> 80 | J43: =+(F43-H43)/I43 -> 0.0325 | K43: =+K38 -> 158 | L43: =IF(K43<38,K43^0.3686*0.7401,IF(K43<235,K43^0.4193*0.6215,IF(K43<932,K43*0.0092+4.2493,K43*0.0069+6.7345))) -> 5.192040238 | M43: =+L43/1000 -> 0.005192040238 | N43: 0.07279975717 | O43: 2.866132172 | P43: 6 | Q43: =IF(O43>0,VLOOKUP(P43,'$ alcantarillado'!$I$5:$L$22,4,FALSE),"0") -> 0.145 | R43: 0.03260665439 | S43: 0.159232535 | T43: =+IF(S43>$B$13,VLOOKUP(P43,'$ alcantarillado'!$I$6:$N$22,5),P43) -> 6 | U43: =IF(O43>0,VLOOKUP(T43,'$ alcantarillado'!$I$5:$L$22,4),"0") -> 0.145 | V43: 0.03260665439 | W43: 0.159232535 | X43: =IF(T43>0,4*V43/(PI()*(U43)^2),"") -> 1.974605555 | Y43: =IF(T43>0,(VLOOKUP($W43,Relaciones!$A$4:$D$108,2)),"") -> 0.6 | Z43: =IF(T43>0,Y43*X43,"") -> 1.184763333 | AA43: =IF(T43>0,250*U43*J43,"") -> 1.178125 | AB43: =IF(T43>0,IF(W43<=$B$13,"OK","No Cumple"),"") -> OK | AC43: =IF(T43>0,IF(Z43>=$B$12,"OK","No Cumple"),"") -> OK | AD43: =IF(T43>0,IF(AA43>$B$14,"OK","No Cumple"),"") -> OK | AE43: =+IF(AB43="OK",1,0) -> 1 | AF43: =+IF(AC43="OK",1,0) -> 1 | AG43: =+IF(AD43="OK",1,0) -> 1 | AH43: =SUM(AE43:AG43) -> 3 | AI43: =IF(AH43=3,2*$B$7+U43,0) -> 0.645 | AJ43: =IF(AI43>0,I43*VLOOKUP(T43,'$ alcantarillado'!$I$6:$K$22,3),0) -> 1912173.333 | AK43: 3034854 | AL43: 938784.445 | AM43: =IF(AJ43>0,AJ43+AK43+AL43,0) -> 5885811.778 | AN43: 0 | AO43: 5885811.778 | AP43: =+MIN(AO43:AO47) -> 5885811.778
E44: 2 | F44: =+F43-$B$4 -> 47.6 | G44: 5 | H44: =+H43 -> 45.5 | I44: =+I43 -> 80 | J44: 0.02625 | K44: =+K43 -> 158 | L44: 5.192040238 | M44: 0.005192040238 | N44: 0.07577419228 | O44: 2.983235917 | P44: 6 | Q44: =IF(O44>0,VLOOKUP(P44,'$ alcantarillado'!$I$5:$L$22,4,FALSE),"0") -> 0.145 | R44: 0.02930415573 | S44: 0.1771776087 | T44: =+IF(S44>$B$13,VLOOKUP(P44,'$ alcantarillado'!$I$6:$N$22,5),P44) -> 6 | U44: =IF(O44>0,VLOOKUP(T44,'$ alcantarillado'!$I$5:$L$22,4),"0") -> 0.145 | V44: 0.02930415573 | W44: 0.1771776087 | X44: =IF(T44>0,4*V44/(PI()*(U44)^2),"") -> 1.774611648 | Y44: =IF(T44>0,(VLOOKUP($W44,Relaciones!$A$4:$D$108,2)),"") -> 0.624 | Z44: =IF(T44>0,Y44*X44,"") -> 1.107357668 | AA44: =IF(T44>0,250*U44*J44,"") -> 0.9515625 | AB44: =IF(T44>0,IF(W44<=$B$13,"OK","No Cumple"),"") -> OK | AC44: =IF(T44>0,IF(Z44>=$B$12,"OK","No Cumple"),"") -> OK | AD44: =IF(T44>0,IF(AA44>$B$14,"OK","No Cumple"),"") -> OK | AE44: =+IF(AB44="OK",1,0) -> 1 | AF44: =+IF(AC44="OK",1,0) -> 1 | AG44: =+IF(AD44="OK",1,0) -> 1 | AH44: =SUM(AE44:AG44) -> 3 | AI44: =IF(AH44=3,2*$B$7+U44,0) -> 0.645 | AJ44: =IF(AI44>0,I44*VLOOKUP(T44,'$ alcantarillado'!$I$6:$K$22,3),0) -> 1912173.333 | AK44: 3499254 | AL44: 1287774.945 | AM44: 6699202.278 | AN44: 0 | AO44: 6699202.278
E45: 3 | F45: =+F44-$B$4 -> 47.1 | G45: 5 | H45: =+H44 -> 45.5 | I45: 80 | J45: 0.02 | K45: =+K44 -> 158 | L45: 5.192040238 | M45: 0.005192040238 | N45: 0.07973792624 | O45: 3.139288435 | P45: 6 | Q45: =IF(O45>0,VLOOKUP(P45,'$ alcantarillado'!$I$5:$L$22,4,FALSE),"0") -> 0.145 | R45: 0.02557876416 | S45: 0.2029824508 | T45: =+IF(S45>$B$13,VLOOKUP(P45,'$ alcantarillado'!$I$6:$N$22,5),P45) -> 6 | U45: =IF(O45>0,VLOOKUP(T45,'$ alcantarillado'!$I$5:$L$22,4),"0") -> 0.145 | V45: 0.02557876416 | W45: 0.2029824508 | X45: 1.549008039 | Y45: =IF(T45>0,(VLOOKUP($W45,Relaciones!$A$4:$D$108,2)),"") -> 0.656 | Z45: 1.016149274 | AA45: 0.725 | AB45: OK | AC45: OK | AD45: OK | AE45: 1 | AF45: 1 | AG45: 1 | AH45: 3 | AI45: 0.645 | AJ45: =IF(AI45>0,I45*VLOOKUP(T45,'$ alcantarillado'!$I$6:$K$22,3),0) -> 1912173.333 | AK45: 3963654 | AL45: 1636765.445 | AM45: 7512592.778 | AN45: 0 | AO45: 7512592.778 | AQ45: 1 | AR45: 5
E46: 4 | F46: 46.6 | G46: 5 | H46: 45.5 | I46: 80 | J46: =+(F46-H46)/I46 -> 0.01375 | K46: 158 | L46: 5.192040238 | M46: 0.005192040238 | N46: 0.08554139039 | O46: 3.367771275 | P46: 6 | Q46: =IF(O46>0,VLOOKUP(P46,'$ alcantarillado'!$I$5:$L$22,4,FALSE),"0") -> 0.145 | R46: 0.02120879083 | S46: 0.2448060467 | T46: =+IF(S46>$B$13,VLOOKUP(P46,'$ alcantarillado'!$I$6:$N$22,5),P46) -> 6 | U46: =IF(O46>0,VLOOKUP(T46,'$ alcantarillado'!$I$5:$L$22,4),"0") -> 0.145 | V46: 0.02120879083 | W46: 0.2448060467 | X46: 1.284369616 | Y46: =IF(T46>0,(VLOOKUP($W46,Relaciones!$A$4:$D$108,2)),"") -> 0.687 | Z46: 0.8823619262 | AA46: 0.4984375 | AB46: OK | AC46: OK | AD46: OK | AE46: 1 | AF46: 1 | AG46: 1 | AH46: 3 | AI46: 0.645 | AJ46: =IF(AI46>0,I46*VLOOKUP(T46,'$ alcantarillado'!$I$6:$K$22,3),0) -> 1912173.333 | AK46: 4428054 | AL46: 1985755.945 | AM46: 8325983.278 | AN46: 0 | AO46: 8325983.278
E47: 5 | F47: 46.1 | G47: 5 | H47: =+H46 -> 45.5 | I47: =+I46 -> 80 | J47: 0.0075 | K47: =+K46 -> 158 | L47: 5.192040238 | M47: 0.005192040238 | N47: 0.09583719056 | O47: 3.773117739 | P47: 6 | Q47: =IF(O47>0,VLOOKUP(P47,'$ alcantarillado'!$I$5:$L$22,4,FALSE),"0") -> 0.145 | R47: 0.01566373011 | S47: 0.3314689542 | T47: =+IF(S47>$B$13,VLOOKUP(P47,'$ alcantarillado'!$I$6:$N$22,5),P47) -> 6 | U47: =IF(O47>0,VLOOKUP(T47,'$ alcantarillado'!$I$5:$L$22,4),"0") -> 0.145 | V47: 0.01566373011 | W47: 0.3314689542 | X47: 0.948569826 | Y47: =IF(T47>0,(VLOOKUP($W47,Relaciones!$A$4:$D$108,2)),"") -> 0.75 | Z47: 0.7114273695 | AA47: 0.271875 | AB47: OK | AC47: OK | AD47: OK | AE47: 1 | AF47: 1 | AG47: 1 | AH47: 3 | AI47: 0.645 | AJ47: =IF(AI47>0,I47*VLOOKUP(T47,'$ alcantarillado'!$I$6:$K$22,3),0) -> 1912173.333 | AK47: 4892454 | AL47: 2334746.445 | AM47: 9139373.778 | AN47: 0 | AO47: 9139373.778
A48: 2 | B48: 2 | C48: 5 | D48: 49.2 | E48: 1 | F48: =+H23 -> 47.5 | G48: 1 | H48: =+$D$73-$B$5-$B$4 -> 47.39 | I48: 80 | J48: =+(F48-H48)/I48 -> 0.001375 | K48: =+K23 -> 158 | L48: =IF(K48<38,K48^0.3686*0.7401,IF(K48<235,K48^0.4193*0.6215,IF(K48<932,K48*0.0092+4.2493,K48*0.0069+6.7345))) -> 5.192040238 | M48: =+L48/1000 -> 0.005192040238 | N48: 0.1317274561 | O48: 5.18612032 | P48: 6 | Q48: =IF(O48>0,VLOOKUP(P48,'$ alcantarillado'!$I$5:$L$22,4,FALSE),"0") -> 0.145 | R48: 0.006706808543 | S48: 0.7741446926 | T48: =+IF(S48>$B$13,VLOOKUP(P48,'$ alcantarillado'!$I$6:$N$22,5),P48) -> 6 | U48: =IF(O48>0,VLOOKUP(T48,'$ alcantarillado'!$I$5:$L$22,4),"0") -> 0.145 | V48: 0.006706808543 | W48: 0.7741446926 | X48: =IF(T48>0,4*V48/(PI()*(U48)^2),"") -> 0.4061533344 | Y48: =IF(T48>0,(VLOOKUP($W48,Relaciones!$A$4:$D$108,2)),"") -> 0.972 | Z48: =IF(T48>0,Y48*X48,"") -> 0.394781041 | AA48: =IF(T48>0,250*U48*J48,"") -> 0.04984375 | AB48: =IF(T48>0,IF(W48<=$B$13,"OK","No Cumple"),"") -> OK | AC48: =IF(T48>0,IF(Z48>=$B$12,"OK","No Cumple"),"") -> No Cumple | AD48: =IF(T48>0,IF(AA48>$B$14,"OK","No Cumple"),"") -> No Cumple | AE48: =+IF(AB48="OK",1,0) -> 1 | AF48: =+IF(AC48="OK",1,0) -> 0 | AG48: =+IF(AD48="OK",1,0) -> 0 | AH48: =SUM(AE48:AG48) -> 1 | AI48: =IF(AH48=3,2*$B$7+U48,0) -> 0 | AJ48: =IF(AI48>0,I48*VLOOKUP(T48,'$ alcantarillado'!$I$6:$K$22,3),0) -> 0 | AK48: =IF(N48>0,((($D$48-F48)+(U48))+(($D$73-H48)+(U48))/2)*AI48*I48*$C$9,0) -> 0 | AL48: =IF(AI48>0,(($D$48-F48)+U48)*$C$10,0) -> 0 | AM48: =IF(AJ48>0,AJ48+AK48+AL48,0) -> 0 | AN48: =+AP23 -> 4957011.778 | AO48: =IF((AM48)>0,IF(AN48>0,AM48+AN48,""),"") ->  | AP48: =+MIN(AO48:AO52) -> 0
E49: 2 | F49: =+H28 -> 47 | G49: 1 | H49: =+H48 -> 47.39 | I49: =+I48 -> 80 | J49: -0.004875 | K49: =+K48 -> 158 | L49: 5.192040238 | M49: =+L49/1000 -> 0.005192040238 | N49: 0 | O49: 0 | P49: 0 | Q49: =IF(O49>0,VLOOKUP(P49,'$ alcantarillado'!$I$5:$L$22,4,FALSE),"0") -> 0 | S49: 0 | T49: =+IF(S49>$B$13,VLOOKUP(P49,'$ alcantarillado'!$I$6:$N$22,5),P49) -> 0 | U49: =IF(O49>0,VLOOKUP(T49,'$ alcantarillado'!$I$5:$L$22,4),"0") -> 0 | W49: 0 | X49: =IF(T49>0,4*V49/(PI()*(U49)^2),"") ->  | Y49: =IF(T49>0,(VLOOKUP($W49,Relaciones!$A$4:$D$108,2)),"") ->  | Z49: =IF(T49>0,Y49*X49,"") ->  | AA49: =IF(T49>0,250*U49*J49,"") ->  | AB49: =IF(T49>0,IF(W49<=$B$13,"OK","No Cumple"),"") ->  | AC49: =IF(T49>0,IF(Z49>=$B$12,"OK","No Cumple"),"") ->  | AD49: =IF(T49>0,IF(AA49>$B$14,"OK","No Cumple"),"") ->  | AE49: =+IF(AB49="OK",1,0) -> 0 | AF49: =+IF(AC49="OK",1,0) -> 0 | AG49: =+IF(AD49="OK",1,0) -> 0 | AH49: =SUM(AE49:AG49) -> 0 | AI49: =IF(AH49=3,2*$B$7+U49,0) -> 0 | AJ49: =IF(AI49>0,I49*VLOOKUP(T49,'$ alcantarillado'!$I$6:$K$22,3),0) -> 0 | AK49: 0 | AL49: 0 | AM49: 0 | AN49: =+AP28 -> 5189211.778 | AO49: =IF((AM49)>0,IF(AN49>0,AM49+AN49,""),"") -> 
E50: 3 | F50: =+H33 -> 46.5 | G50: 1 | H50: =+H49 -> 47.39 | I50: 80 | J50: -0.011125 | K50: =+K49 -> 158 | L50: 5.192040238 | M50: 0.005192040238 | N50: 0 | O50: 0 | P50: 0 | Q50: =IF(O50>0,VLOOKUP(P50,'$ alcantarillado'!$I$5:$L$22,4,FALSE),"0") -> 0 | S50: 0 | T50: =+IF(S50>$B$13,VLOOKUP(P50,'$ alcantarillado'!$I$6:$N$22,5),P50) -> 0 | U50: =IF(O50>0,VLOOKUP(T50,'$ alcantarillado'!$I$5:$L$22,4),"0") -> 0 | W50: 0 | Y50: =IF(T50>0,(VLOOKUP($W50,Relaciones!$A$4:$D$108,2)),"") ->  | AE50: 0 | AF50: 0 | AG50: 0 | AH50: 0 | AI50: 0 | AJ50: =IF(AI50>0,I50*VLOOKUP(T50,'$ alcantarillado'!$I$6:$K$22,3),0) -> 0 | AK50: 0 | AL50: 0 | AM50: 0 | AN50: =+AP33 -> 5421411.778
E51: 4 | F51: =+H38 -> 46 | G51: 1 | H51: 47.39 | I51: 80 | J51: =+(F51-H51)/I51 -> -0.017375 | K51: =+K50 -> 158 | L51: 5.192040238 | M51: 0.005192040238 | N51: 0 | O51: 0 | P51: 0 | Q51: =IF(O51>0,VLOOKUP(P51,'$ alcantarillado'!$I$5:$L$22,4,FALSE),"0") -> 0 | S51: 0 | T51: =+IF(S51>$B$13,VLOOKUP(P51,'$ alcantarillado'!$I$6:$N$22,5),P51) -> 0 | U51: =IF(O51>0,VLOOKUP(T51,'$ alcantarillado'!$I$5:$L$22,4),"0") -> 0 | W51: 0 | Y51: =IF(T51>0,(VLOOKUP($W51,Relaciones!$A$4:$D$108,2)),"") ->  | AE51: 0 | AF51: 0 | AG51: 0 | AH51: 0 | AI51: 0 | AJ51: =IF(AI51>0,I51*VLOOKUP(T51,'$ alcantarillado'!$I$6:$K$22,3),0) -> 0 | AK51: 0 | AL51: 0 | AM51: 0 | AN51: =+AP38 -> 5653611.778
E52: 5 | F52: =+H43 -> 45.5 | G52: 1 | H52: 47.39 | I52: =+I51 -> 80 | J52: -0.023625 | K52: =+K51 -> 158 | L52: 5.192040238 | M52: 0.005192040238 | N52: 0 | O52: 0 | P52: 0 | Q52: =IF(O52>0,VLOOKUP(P52,'$ alcantarillado'!$I$5:$L$22,4,FALSE),"0") -> 0 | S52: 0 | T52: =+IF(S52>$B$13,VLOOKUP(P52,'$ alcantarillado'!$I$6:$N$22,5),P52) -> 0 | U52: =IF(O52>0,VLOOKUP(T52,'$ alcantarillado'!$I$5:$L$22,4),"0") -> 0 | W52: 0 | Y52: =IF(T52>0,(VLOOKUP($W52,Relaciones!$A$4:$D$108,2)),"") ->  | AE52: 0 | AF52: 0 | AG52: 0 | AH52: 0 | AI52: 0 | AJ52: =IF(AI52>0,I52*VLOOKUP(T52,'$ alcantarillado'!$I$6:$K$22,3),0) -> 0 | AK52: 0 | AL52: 0 | AM52: 0 | AN52: =+AP43 -> 5885811.778
E53: 1 | F53: =+H23 -> 47.5 | G53: 2 | H53: =+H48-$B$4 -> 46.89 | I53: =+I52 -> 80 | J53: =+(F53-H53)/I53 -> 0.007625 | K53: =+K52 -> 158 | L53: =IF(K53<38,K53^0.3686*0.7401,IF(K53<235,K53^0.4193*0.6215,IF(K53<932,K53*0.0092+4.2493,K53*0.0069+6.7345))) -> 5.192040238 | M53: =+L53/1000 -> 0.005192040238 | N53: =+IF(J53>0,((M53*$B$2*(4^(5/3))/((J53^0.5)*PI()*$B$6))^(3/8)),0) -> 0.09554062751 | O53: 3.761442028 | P53: 6 | Q53: =IF(O53>0,VLOOKUP(P53,'$ alcantarillado'!$I$5:$L$22,4,FALSE),"0") -> 0.145 | R53: 0.0157937218 | S53: 0.3287407683 | T53: =+IF(S53>$B$13,VLOOKUP(P53,'$ alcantarillado'!$I$6:$N$22,5),P53) -> 6 | U53: =IF(O53>0,VLOOKUP(T53,'$ alcantarillado'!$I$5:$L$22,4),"0") -> 0.145 | V53: =IF(T53>0,PI()*((U53)^(8/3))*((J53)^0.5)/($B$2*4^(5/3)),"") -> 0.0157937218 | W53: 0.3287407683 | X53: =IF(T53>0,4*V53/(PI()*(U53)^2),"") -> 0.9564419097 | Y53: =IF(T53>0,(VLOOKUP($W53,Relaciones!$A$4:$D$108,2)),"") -> 0.74 | Z53: =IF(T53>0,Y53*X53,"") -> 0.7077670132 | AA53: =IF(T53>0,250*U53*J53,"") -> 0.27640625 | AB53: =IF(T53>0,IF(W53<=$B$13,"OK","No Cumple"),"") -> OK | AC53: =IF(T53>0,IF(Z53>=$B$12,"OK","No Cumple"),"") -> OK | AD53: =IF(T53>0,IF(AA53>$B$14,"OK","No Cumple"),"") -> OK | AE53: =+IF(AB53="OK",1,0) -> 1 | AF53: =+IF(AC53="OK",1,0) -> 1 | AG53: =+IF(AD53="OK",1,0) -> 1 | AH53: =SUM(AE53:AG53) -> 3 | AI53: =IF(AH53=3,2*$B$7+U53,0) -> 0.645 | AJ53: =IF(AI53>0,I53*VLOOKUP(T53,'$ alcantarillado'!$I$6:$K$22,3),0) -> 1912173.333 | AK53: 2802654 | AL53: 1287774.945 | AM53: =IF(AJ53>0,AJ53+AK53+AL53,0) -> 6002602.278 | AN53: =IF(AP23>0,+AP23,0) -> 4957011.778 | AO53: =IF((AM53)>0,IF(AN53>0,AM53+AN53,""),"") -> 10959614.06 | AP53: =+MIN(AO53:AO57) -> 10959614.06
E54: 2 | F54: =+H28 -> 47 | G54: 2 | H54: =+H53 -> 46.89 | I54: =+I53 -> 80 | J54: 0.001375 | K54: =+K53 -> 158 | L54: 5.192040238 | M54: =+L54/1000 -> 0.005192040238 | N54: 0.1317274561 | O54: 5.18612032 | P54: 6 | Q54: =IF(O54>0,VLOOKUP(P54,'$ alcantarillado'!$I$5:$L$22,4,FALSE),"0") -> 0.145 | R54: 0.006706808543 | S54: 0.7741446926 | T54: =+IF(S54>$B$13,VLOOKUP(P54,'$ alcantarillado'!$I$6:$N$22,5),P54) -> 6 | U54: =IF(O54>0,VLOOKUP(T54,'$ alcantarillado'!$I$5:$L$22,4),"0") -> 0.145 | V54: 0.006706808543 | W54: 0.7741446926 | X54: =IF(T54>0,4*V54/(PI()*(U54)^2),"") -> 0.4061533344 | Y54: =IF(T54>0,(VLOOKUP($W54,Relaciones!$A$4:$D$108,2)),"") -> 0.972 | Z54: =IF(T54>0,Y54*X54,"") -> 0.394781041 | AA54: =IF(T54>0,250*U54*J54,"") -> 0.04984375 | AB54: =IF(T54>0,IF(W54<=$B$13,"OK","No Cumple"),"") -> OK | AC54: =IF(T54>0,IF(Z54>=$B$12,"OK","No Cumple"),"") -> No Cumple | AD54: =IF(T54>0,IF(AA54>$B$14,"OK","No Cumple"),"") -> No Cumple | AE54: =+IF(AB54="OK",1,0) -> 1 | AF54: =+IF(AC54="OK",1,0) -> 0 | AG54: =+IF(AD54="OK",1,0) -> 0 | AH54: =SUM(AE54:AG54) -> 1 | AI54: =IF(AH54=3,2*$B$7+U54,0) -> 0 | AJ54: =IF(AI54>0,I54*VLOOKUP(T54,'$ alcantarillado'!$I$6:$K$22,3),0) -> 0 | AK54: 0 | AL54: 0 | AM54: 0 | AN54: =+AP28 -> 5189211.778
E55: 3 | F55: =+H33 -> 46.5 | G55: 2 | H55: =+H54 -> 46.89 | I55: 80 | J55: -0.004875 | K55: =+K54 -> 158 | L55: 5.192040238 | M55: 0.005192040238 | N55: 0 | O55: =+N55*(100/2.54) -> 0 | P55: 0 | Q55: =IF(O55>0,VLOOKUP(P55,'$ alcantarillado'!$I$5:$L$22,4,FALSE),"0") -> 0 | R55: =IF(P55>0,PI()*((Q55)^(8/3))*((J55)^0.5)/($B$2*4^(5/3)),"") ->  | S55: =IF(P55>0,+M55/R55,0) -> 0 | T55: =+IF(S55>$B$13,VLOOKUP(P55,'$ alcantarillado'!$I$6:$N$22,5),P55) -> 0 | U55: =IF(O55>0,VLOOKUP(T55,'$ alcantarillado'!$I$5:$L$22,4),"0") -> 0 | W55: =IF(T55>0,M55/V55,0) -> 0 | Y55: =IF(T55>0,(VLOOKUP($W55,Relaciones!$A$4:$D$108,2)),"") ->  | AE55: 0 | AF55: 0 | AG55: 0 | AH55: 0 | AI55: 0 | AJ55: =IF(AI55>0,I55*VLOOKUP(T55,'$ alcantarillado'!$I$6:$K$22,3),0) -> 0 | AK55: 0 | AL55: 0 | AM55: 0 | AN55: =+AP33 -> 5421411.778 | AQ55: 1 | AR55: 2
E56: 4 | F56: =+H38 -> 46 | G56: 2 | H56: =+H55 -> 46.89 | I56: 80 | J56: =+(F56-H56)/I56 -> -0.011125 | K56: 158 | L56: 5.192040238 | M56: 0.005192040238 | N56: 0 | O56: 0 | P56: 0 | Q56: =IF(O56>0,VLOOKUP(P56,'$ alcantarillado'!$I$5:$L$22,4,FALSE),"0") -> 0 | S56: 0 | T56: =+IF(S56>$B$13,VLOOKUP(P56,'$ alcantarillado'!$I$6:$N$22,5),P56) -> 0 | U56: =IF(O56>0,VLOOKUP(T56,'$ alcantarillado'!$I$5:$L$22,4),"0") -> 0 | W56: 0 | Y56: =IF(T56>0,(VLOOKUP($W56,Relaciones!$A$4:$D$108,2)),"") ->  | AE56: 0 | AF56: 0 | AG56: 0 | AH56: 0 | AI56: 0 | AJ56: =IF(AI56>0,I56*VLOOKUP(T56,'$ alcantarillado'!$I$6:$K$22,3),0) -> 0 | AK56: 0 | AL56: 0 | AM56: 0 | AN56: =+AP38 -> 5653611.778
E57: 5 | F57: =+H43 -> 45.5 | G57: 2 | H57: =+H56 -> 46.89 | I57: =+I56 -> 80 | J57: -0.017375 | K57: =+K56 -> 158 | L57: 5.192040238 | M57: 0.005192040238 | N57: 0 | O57: 0 | P57: 0 | Q57: =IF(O57>0,VLOOKUP(P57,'$ alcantarillado'!$I$5:$L$22,4,FALSE),"0") -> 0 | S57: 0 | T57: =+IF(S57>$B$13,VLOOKUP(P57,'$ alcantarillado'!$I$6:$N$22,5),P57) -> 0 | U57: =IF(O57>0,VLOOKUP(T57,'$ alcantarillado'!$I$5:$L$22,4),"0") -> 0 | W57: 0 | Y57: =IF(T57>0,(VLOOKUP($W57,Relaciones!$A$4:$D$108,2)),"") ->  | AE57: 0 | AF57: 0 | AG57: 0 | AH57: 0 | AI57: 0 | AJ57: =IF(AI57>0,I57*VLOOKUP(T57,'$ alcantarillado'!$I$6:$K$22,3),0) -> 0 | AK57: 0 | AL57: 0 | AM57: 0 | AN57: =+AP43 -> 5885811.778
E58: 1 | F58: =+H23 -> 47.5 | G58: 3 | H58: =+H53-$B$4 -> 46.39 | I58: =+I57 -> 80 | J58: =+(F58-H58)/I58 -> 0.013875 | K58: =+K57 -> 158 | L58: =IF(K58<38,K58^0.3686*0.7401,IF(K58<235,K58^0.4193*0.6215,IF(K58<932,K58*0.0092+4.2493,K58*0.0069+6.7345))) -> 5.192040238 | M58: =+L58/1000 -> 0.005192040238 | N58: 0.08539636306 | O58: 3.362061538 | P58: 6 | Q58: =IF(O58>0,VLOOKUP(P58,'$ alcantarillado'!$I$5:$L$22,4,FALSE),"0") -> 0.145 | R58: 0.02130497631 | S58: 0.2437008219 | T58: =+IF(S58>$B$13,VLOOKUP(P58,'$ alcantarillado'!$I$6:$N$22,5),P58) -> 6 | U58: =IF(O58>0,VLOOKUP(T58,'$ alcantarillado'!$I$5:$L$22,4),"0") -> 0.145 | V58: 0.02130497631 | W58: 0.2437008219 | X58: =IF(T58>0,4*V58/(PI()*(U58)^2),"") -> 1.290194451 | Y58: =IF(T58>0,(VLOOKUP($W58,Relaciones!$A$4:$D$108,2)),"") -> 0.687 | Z58: =IF(T58>0,Y58*X58,"") -> 0.8863635881 | AA58: =IF(T58>0,250*U58*J58,"") -> 0.50296875 | AB58: =IF(T58>0,IF(W58<=$B$13,"OK","No Cumple"),"") -> OK | AC58: =IF(T58>0,IF(Z58>=$B$12,"OK","No Cumple"),"") -> OK | AD58: =IF(T58>0,IF(AA58>$B$14,"OK","No Cumple"),"") -> OK | AE58: =+IF(AB58="OK",1,0) -> 1 | AF58: =+IF(AC58="OK",1,0) -> 1 | AG58: =+IF(AD58="OK",1,0) -> 1 | AH58: =SUM(AE58:AG58) -> 3 | AI58: =IF(AH58=3,2*$B$7+U58,0) -> 0.645 | AJ58: =IF(AI58>0,I58*VLOOKUP(T58,'$ alcantarillado'!$I$6:$K$22,3),0) -> 1912173.333 | AK58: 3034854 | AL58: 1287774.945 | AM58: =IF(AJ58>0,AJ58+AK58+AL58,0) -> 6234802.278 | AN58: =IF(AP23>0,+AP23,0) -> 4957011.778 | AO58: =IF((AM58)>0,IF(AN58>0,AM58+AN58,""),"") -> 11191814.06 | AP58: =+MIN(AO58:AO62) -> 11191814.06
E59: 2 | F59: =+H28 -> 47 | G59: 3 | H59: =+H58 -> 46.39 | I59: =+I58 -> 80 | J59: 0.007625 | K59: =+K58 -> 158 | L59: 5.192040238 | M59: =+L59/1000 -> 0.005192040238 | N59: 0.09554062751 | O59: 3.761442028 | P59: 6 | Q59: =IF(O59>0,VLOOKUP(P59,'$ alcantarillado'!$I$5:$L$22,4,FALSE),"0") -> 0.145 | R59: 0.0157937218 | S59: 0.3287407683 | T59: =+IF(S59>$B$13,VLOOKUP(P59,'$ alcantarillado'!$I$6:$N$22,5),P59) -> 6 | U59: =IF(O59>0,VLOOKUP(T59,'$ alcantarillado'!$I$5:$L$22,4),"0") -> 0.145 | V59: 0.0157937218 | W59: 0.3287407683 | X59: =IF(T59>0,4*V59/(PI()*(U59)^2),"") -> 0.9564419097 | Y59: =IF(T59>0,(VLOOKUP($W59,Relaciones!$A$4:$D$108,2)),"") -> 0.74 | Z59: =IF(T59>0,Y59*X59,"") -> 0.7077670132 | AA59: =IF(T59>0,250*U59*J59,"") -> 0.27640625 | AB59: =IF(T59>0,IF(W59<=$B$13,"OK","No Cumple"),"") -> OK | AC59: =IF(T59>0,IF(Z59>=$B$12,"OK","No Cumple"),"") -> OK | AD59: =IF(T59>0,IF(AA59>$B$14,"OK","No Cumple"),"") -> OK | AE59: =+IF(AB59="OK",1,0) -> 1 | AF59: =+IF(AC59="OK",1,0) -> 1 | AG59: =+IF(AD59="OK",1,0) -> 1 | AH59: =SUM(AE59:AG59) -> 3 | AI59: =IF(AH59=3,2*$B$7+U59,0) -> 0.645 | AJ59: =IF(AI59>0,I59*VLOOKUP(T59,'$ alcantarillado'!$I$6:$K$22,3),0) -> 1912173.333 | AK59: 3499254 | AL59: 1636765.445 | AM59: 7048192.778 | AN59: =+AP28 -> 5189211.778 | AO59: 12237404.56
E60: 3 | F60: =+H33 -> 46.5 | G60: 3 | H60: =+H59 -> 46.39 | I60: 80 | J60: 0.001375 | K60: =+K59 -> 158 | L60: 5.192040238 | M60: 0.005192040238 | N60: 0.1317274561 | O60: 5.18612032 | P60: 6 | Q60: =IF(O60>0,VLOOKUP(P60,'$ alcantarillado'!$I$5:$L$22,4,FALSE),"0") -> 0.145 | R60: 0.006706808543 | S60: 0.7741446926 | T60: =+IF(S60>$B$13,VLOOKUP(P60,'$ alcantarillado'!$I$6:$N$22,5),P60) -> 6 | U60: =IF(O60>0,VLOOKUP(T60,'$ alcantarillado'!$I$5:$L$22,4),"0") -> 0.145 | V60: 0.006706808543 | W60: 0.7741446926 | X60: 0.4061533344 | Y60: =IF(T60>0,(VLOOKUP($W60,Relaciones!$A$4:$D$108,2)),"") -> 0.972 | Z60: 0.394781041 | AA60: 0.04984375 | AB60: OK | AC60: No Cumple | AD60: No Cumple | AE60: 1 | AF60: 0 | AG60: 0 | AH60: 1 | AI60: 0 | AJ60: =IF(AI60>0,I60*VLOOKUP(T60,'$ alcantarillado'!$I$6:$K$22,3),0) -> 0 | AK60: 0 | AL60: 0 | AM60: 0 | AN60: =+AP33 -> 5421411.778 | AQ60: 1 | AR60: 3
E61: 4 | F61: =+H38 -> 46 | G61: 3 | H61: =+H60 -> 46.39 | I61: 80 | J61: =+(F61-H61)/I61 -> -0.004875 | K61: 158 | L61: 5.192040238 | M61: 0.005192040238 | N61: 0 | O61: 0 | P61: 0 | Q61: =IF(O61>0,VLOOKUP(P61,'$ alcantarillado'!$I$5:$L$22,4,FALSE),"0") -> 0 | S61: 0 | T61: =+IF(S61>$B$13,VLOOKUP(P61,'$ alcantarillado'!$I$6:$N$22,5),P61) -> 0 | U61: =IF(O61>0,VLOOKUP(T61,'$ alcantarillado'!$I$5:$L$22,4),"0") -> 0 | W61: 0 | Y61: =IF(T61>0,(VLOOKUP($W61,Relaciones!$A$4:$D$108,2)),"") ->  | AE61: 0 | AF61: 0 | AG61: 0 | AH61: 0 | AI61: 0 | AJ61: =IF(AI61>0,I61*VLOOKUP(T61,'$ alcantarillado'!$I$6:$K$22,3),0) -> 0 | AK61: 0 | AL61: 0 | AM61: 0 | AN61: =+AP38 -> 5653611.778
E62: 5 | F62: =+H43 -> 45.5 | G62: 3 | H62: =+H61 -> 46.39 | I62: =+I61 -> 80 | J62: -0.011125 | K62: =+K61 -> 158 | L62: 5.192040238 | M62: 0.005192040238 | N62: 0 | O62: 0 | P62: 0 | Q62: =IF(O62>0,VLOOKUP(P62,'$ alcantarillado'!$I$5:$L$22,4,FALSE),"0") -> 0 | S62: 0 | T62: =+IF(S62>$B$13,VLOOKUP(P62,'$ alcantarillado'!$I$6:$N$22,5),P62) -> 0 | U62: =IF(O62>0,VLOOKUP(T62,'$ alcantarillado'!$I$5:$L$22,4),"0") -> 0 | W62: 0 | Y62: =IF(T62>0,(VLOOKUP($W62,Relaciones!$A$4:$D$108,2)),"") ->  | AE62: 0 | AF62: 0 | AG62: 0 | AH62: 0 | AI62: 0 | AJ62: =IF(AI62>0,I62*VLOOKUP(T62,'$ alcantarillado'!$I$6:$K$22,3),0) -> 0 | AK62: 0 | AL62: 0 | AM62: 0 | AN62: =+AP43 -> 5885811.778
E63: 1 | F63: =+H23 -> 47.5 | G63: 4 | H63: =+H58-$B$4 -> 45.89 | I63: =+I58 -> 80 | J63: =+(F63-H63)/I63 -> 0.020125 | K63: =+K58 -> 158 | L63: =IF(K63<38,K63^0.3686*0.7401,IF(K63<235,K63^0.4193*0.6215,IF(K63<932,K63*0.0092+4.2493,K63*0.0069+6.7345))) -> 5.192040238 | M63: =+L63/1000 -> 0.005192040238 | N63: 0.07964482855 | O63: 3.135623171 | P63: 6 | Q63: =IF(O63>0,VLOOKUP(P63,'$ alcantarillado'!$I$5:$L$22,4,FALSE),"0") -> 0.145 | R63: 0.02565857329 | S63: 0.2023510887 | T63: =+IF(S63>$B$13,VLOOKUP(P63,'$ alcantarillado'!$I$6:$N$22,5),P63) -> 6 | U63: =IF(O63>0,VLOOKUP(T63,'$ alcantarillado'!$I$5:$L$22,4),"0") -> 0.145 | V63: 0.02565857329 | W63: 0.2023510887 | X63: =IF(T63>0,4*V63/(PI()*(U63)^2),"") -> 1.55384115 | Y63: =IF(T63>0,(VLOOKUP($W63,Relaciones!$A$4:$D$108,2)),"") -> 0.656 | Z63: =IF(T63>0,Y63*X63,"") -> 1.019319794 | AA63: =IF(T63>0,250*U63*J63,"") -> 0.72953125 | AB63: =IF(T63>0,IF(W63<=$B$13,"OK","No Cumple"),"") -> OK | AC63: =IF(T63>0,IF(Z63>=$B$12,"OK","No Cumple"),"") -> OK | AD63: =IF(T63>0,IF(AA63>$B$14,"OK","No Cumple"),"") -> OK | AE63: =+IF(AB63="OK",1,0) -> 1 | AF63: =+IF(AC63="OK",1,0) -> 1 | AG63: =+IF(AD63="OK",1,0) -> 1 | AH63: =SUM(AE63:AG63) -> 3 | AI63: =IF(AH63=3,2*$B$7+U63,0) -> 0.645 | AJ63: =IF(AI63>0,I63*VLOOKUP(T63,'$ alcantarillado'!$I$6:$K$22,3),0) -> 1912173.333 | AK63: 3267054 | AL63: 1287774.945 | AM63: =IF(AJ63>0,AJ63+AK63+AL63,0) -> 6467002.278 | AN63: =IF(AP23>0,+AP23,0) -> 4957011.778 | AO63: =IF((AM63)>0,IF(AN63>0,AM63+AN63,""),"") -> 11424014.06 | AP63: =+MIN(AO63:AO67) -> 11424014.06
E64: 2 | F64: =+H28 -> 47 | G64: 4 | H64: =+H63 -> 45.89 | I64: =+I63 -> 80 | J64: 0.013875 | K64: =+K63 -> 158 | L64: 5.192040238 | M64: =+L64/1000 -> 0.005192040238 | N64: 0.08539636306 | O64: 3.362061538 | P64: 6 | Q64: =IF(O64>0,VLOOKUP(P64,'$ alcantarillado'!$I$5:$L$22,4,FALSE),"0") -> 0.145 | R64: 0.02130497631 | S64: 0.2437008219 | T64: =+IF(S64>$B$13,VLOOKUP(P64,'$ alcantarillado'!$I$6:$N$22,5),P64) -> 6 | U64: =IF(O64>0,VLOOKUP(T64,'$ alcantarillado'!$I$5:$L$22,4),"0") -> 0.145 | V64: 0.02130497631 | W64: 0.2437008219 | X64: =IF(T64>0,4*V64/(PI()*(U64)^2),"") -> 1.290194451 | Y64: =IF(T64>0,(VLOOKUP($W64,Relaciones!$A$4:$D$108,2)),"") -> 0.687 | Z64: =IF(T64>0,Y64*X64,"") -> 0.8863635881 | AA64: =IF(T64>0,250*U64*J64,"") -> 0.50296875 | AB64: =IF(T64>0,IF(W64<=$B$13,"OK","No Cumple"),"") -> OK | AC64: =IF(T64>0,IF(Z64>=$B$12,"OK","No Cumple"),"") -> OK | AD64: =IF(T64>0,IF(AA64>$B$14,"OK","No Cumple"),"") -> OK | AE64: =+IF(AB64="OK",1,0) -> 1 | AF64: =+IF(AC64="OK",1,0) -> 1 | AG64: =+IF(AD64="OK",1,0) -> 1 | AH64: =SUM(AE64:AG64) -> 3 | AI64: =IF(AH64=3,2*$B$7+U64,0) -> 0.645 | AJ64: =IF(AI64>0,I64*VLOOKUP(T64,'$ alcantarillado'!$I$6:$K$22,3),0) -> 1912173.333 | AK64: 3731454 | AL64: 1636765.445 | AM64: 7280392.778 | AN64: =+AP28 -> 5189211.778 | AO64: 12469604.56
E65: 3 | F65: =+H33 -> 46.5 | G65: 4 | H65: =+H64 -> 45.89 | I65: 80 | J65: 0.007625 | K65: =+K64 -> 158 | L65: 5.192040238 | M65: 0.005192040238 | N65: 0.09554062751 | O65: 3.761442028 | P65: 6 | Q65: =IF(O65>0,VLOOKUP(P65,'$ alcantarillado'!$I$5:$L$22,4,FALSE),"0") -> 0.145 | R65: 0.0157937218 | S65: 0.3287407683 | T65: =+IF(S65>$B$13,VLOOKUP(P65,'$ alcantarillado'!$I$6:$N$22,5),P65) -> 6 | U65: =IF(O65>0,VLOOKUP(T65,'$ alcantarillado'!$I$5:$L$22,4),"0") -> 0.145 | V65: 0.0157937218 | W65: 0.3287407683 | X65: 0.9564419097 | Y65: =IF(T65>0,(VLOOKUP($W65,Relaciones!$A$4:$D$108,2)),"") -> 0.74 | Z65: 0.7077670132 | AA65: 0.27640625 | AB65: OK | AC65: OK | AD65: OK | AE65: 1 | AF65: 1 | AG65: 1 | AH65: 3 | AI65: 0.645 | AJ65: =IF(AI65>0,I65*VLOOKUP(T65,'$ alcantarillado'!$I$6:$K$22,3),0) -> 1912173.333 | AK65: 4195854 | AL65: 1985755.945 | AM65: 8093783.278 | AN65: =+AP33 -> 5421411.778 | AO65: 13515195.06 | AQ65: 1 | AR65: 4
E66: 4 | F66: =+H38 -> 46 | G66: 4 | H66: =+H65 -> 45.89 | I66: 80 | J66: =+(F66-H66)/I66 -> 0.001375 | K66: 158 | L66: 5.192040238 | M66: 0.005192040238 | N66: 0.1317274561 | O66: 5.18612032 | P66: 6 | Q66: =IF(O66>0,VLOOKUP(P66,'$ alcantarillado'!$I$5:$L$22,4,FALSE),"0") -> 0.145 | R66: 0.006706808543 | S66: 0.7741446926 | T66: =+IF(S66>$B$13,VLOOKUP(P66,'$ alcantarillado'!$I$6:$N$22,5),P66) -> 6 | U66: =IF(O66>0,VLOOKUP(T66,'$ alcantarillado'!$I$5:$L$22,4),"0") -> 0.145 | V66: 0.006706808543 | W66: 0.7741446926 | X66: 0.4061533344 | Y66: =IF(T66>0,(VLOOKUP($W66,Relaciones!$A$4:$D$108,2)),"") -> 0.972 | Z66: 0.394781041 | AA66: 0.04984375 | AB66: OK | AC66: No Cumple | AD66: No Cumple | AE66: 1 | AF66: 0 | AG66: 0 | AH66: 1 | AI66: 0 | AJ66: =IF(AI66>0,I66*VLOOKUP(T66,'$ alcantarillado'!$I$6:$K$22,3),0) -> 0 | AK66: 0 | AL66: 0 | AM66: 0 | AN66: =+AP38 -> 5653611.778
E67: 5 | F67: =+H43 -> 45.5 | G67: 4 | H67: =+H66 -> 45.89 | I67: =+I66 -> 80 | J67: -0.004875 | K67: =+K66 -> 158 | L67: 5.192040238 | M67: 0.005192040238 | N67: 0 | O67: 0 | P67: 0 | Q67: =IF(O67>0,VLOOKUP(P67,'$ alcantarillado'!$I$5:$L$22,4,FALSE),"0") -> 0 | S67: 0 | T67: =+IF(S67>$B$13,VLOOKUP(P67,'$ alcantarillado'!$I$6:$N$22,5),P67) -> 0 | U67: =IF(O67>0,VLOOKUP(T67,'$ alcantarillado'!$I$5:$L$22,4),"0") -> 0 | W67: 0 | Y67: =IF(T67>0,(VLOOKUP($W67,Relaciones!$A$4:$D$108,2)),"") ->  | AE67: 0 | AF67: 0 | AG67: 0 | AH67: 0 | AI67: 0 | AJ67: =IF(AI67>0,I67*VLOOKUP(T67,'$ alcantarillado'!$I$6:$K$22,3),0) -> 0 | AK67: 0 | AL67: 0 | AM67: 0 | AN67: =+AP43 -> 5885811.778
E68: 1 | F68: =+H23 -> 47.5 | G68: 5 | H68: =+H63-$B$4 -> 45.39 | I68: =+I63 -> 80 | J68: =+(F68-H68)/I68 -> 0.026375 | K68: =+K63 -> 158 | L68: =IF(K68<38,K68^0.3686*0.7401,IF(K68<235,K68^0.4193*0.6215,IF(K68<932,K68*0.0092+4.2493,K68*0.0069+6.7345))) -> 5.192040238 | M68: =+L68/1000 -> 0.005192040238 | N68: 0.07570672738 | O68: 2.980579818 | P68: 6 | Q68: =IF(O68>0,VLOOKUP(P68,'$ alcantarillado'!$I$5:$L$22,4,FALSE),"0") -> 0.145 | R68: 0.02937384467 | S68: 0.1767572579 | T68: =+IF(S68>$B$13,VLOOKUP(P68,'$ alcantarillado'!$I$6:$N$22,5),P68) -> 6 | U68: =IF(O68>0,VLOOKUP(T68,'$ alcantarillado'!$I$5:$L$22,4),"0") -> 0.145 | V68: 0.02937384467 | W68: 0.1767572579 | X68: =IF(T68>0,4*V68/(PI()*(U68)^2),"") -> 1.778831896 | Y68: =IF(T68>0,(VLOOKUP($W68,Relaciones!$A$4:$D$108,2)),"") -> 0.624 | Z68: =IF(T68>0,Y68*X68,"") -> 1.109991103 | AA68: =IF(T68>0,250*U68*J68,"") -> 0.95609375 | AB68: =IF(T68>0,IF(W68<=$B$13,"OK","No Cumple"),"") -> OK | AC68: =IF(T68>0,IF(Z68>=$B$12,"OK","No Cumple"),"") -> OK | AD68: =IF(T68>0,IF(AA68>$B$14,"OK","No Cumple"),"") -> OK | AE68: =+IF(AB68="OK",1,0) -> 1 | AF68: =+IF(AC68="OK",1,0) -> 1 | AG68: =+IF(AD68="OK",1,0) -> 1 | AH68: =SUM(AE68:AG68) -> 3 | AI68: =IF(AH68=3,2*$B$7+U68,0) -> 0.645 | AJ68: =IF(AI68>0,I68*VLOOKUP(T68,'$ alcantarillado'!$I$6:$K$22,3),0) -> 1912173.333 | AK68: 3499254 | AL68: 1287774.945 | AM68: =IF(AJ68>0,AJ68+AK68+AL68,0) -> 6699202.278 | AN68: =IF(AP23>0,+AP23,0) -> 4957011.778 | AO68: =IF((AM68)>0,IF(AN68>0,AM68+AN68,""),"") -> 11656214.06 | AP68: =+MIN(AO68:AO72) -> 11656214.06
E69: 2 | F69: =+H28 -> 47 | G69: 5 | H69: =+H68 -> 45.39 | I69: =+I68 -> 80 | J69: 0.020125 | K69: =+K68 -> 158 | L69: 5.192040238 | M69: =+L69/1000 -> 0.005192040238 | N69: 0.07964482855 | O69: 3.135623171 | P69: 6 | Q69: =IF(O69>0,VLOOKUP(P69,'$ alcantarillado'!$I$5:$L$22,4,FALSE),"0") -> 0.145 | R69: 0.02565857329 | S69: 0.2023510887 | T69: =+IF(S69>$B$13,VLOOKUP(P69,'$ alcantarillado'!$I$6:$N$22,5),P69) -> 6 | U69: =IF(O69>0,VLOOKUP(T69,'$ alcantarillado'!$I$5:$L$22,4),"0") -> 0.145 | V69: 0.02565857329 | W69: 0.2023510887 | X69: =IF(T69>0,4*V69/(PI()*(U69)^2),"") -> 1.55384115 | Y69: =IF(T69>0,(VLOOKUP($W69,Relaciones!$A$4:$D$108,2)),"") -> 0.656 | Z69: =IF(T69>0,Y69*X69,"") -> 1.019319794 | AA69: =IF(T69>0,250*U69*J69,"") -> 0.72953125 | AB69: =IF(T69>0,IF(W69<=$B$13,"OK","No Cumple"),"") -> OK | AC69: =IF(T69>0,IF(Z69>=$B$12,"OK","No Cumple"),"") -> OK | AD69: =IF(T69>0,IF(AA69>$B$14,"OK","No Cumple"),"") -> OK | AE69: =+IF(AB69="OK",1,0) -> 1 | AF69: =+IF(AC69="OK",1,0) -> 1 | AG69: =+IF(AD69="OK",1,0) -> 1 | AH69: =SUM(AE69:AG69) -> 3 | AI69: =IF(AH69=3,2*$B$7+U69,0) -> 0.645 | AJ69: =IF(AI69>0,I69*VLOOKUP(T69,'$ alcantarillado'!$I$6:$K$22,3),0) -> 1912173.333 | AK69: 3963654 | AL69: 1636765.445 | AM69: 7512592.778 | AN69: =+AP28 -> 5189211.778 | AO69: 12701804.56
E70: 3 | F70: =+H33 -> 46.5 | G70: 5 | H70: =+H69 -> 45.39 | I70: 80 | J70: 0.013875 | K70: =+K69 -> 158 | L70: 5.192040238 | M70: 0.005192040238 | N70: 0.08539636306 | O70: 3.362061538 | P70: 6 | Q70: =IF(O70>0,VLOOKUP(P70,'$ alcantarillado'!$I$5:$L$22,4,FALSE),"0") -> 0.145 | R70: 0.02130497631 | S70: 0.2437008219 | T70: =+IF(S70>$B$13,VLOOKUP(P70,'$ alcantarillado'!$I$6:$N$22,5),P70) -> 6 | U70: =IF(O70>0,VLOOKUP(T70,'$ alcantarillado'!$I$5:$L$22,4),"0") -> 0.145 | V70: 0.02130497631 | W70: 0.2437008219 | X70: 1.290194451 | Y70: =IF(T70>0,(VLOOKUP($W70,Relaciones!$A$4:$D$108,2)),"") -> 0.687 | Z70: 0.8863635881 | AA70: 0.50296875 | AB70: OK | AC70: OK | AD70: OK | AE70: 1 | AF70: 1 | AG70: 1 | AH70: 3 | AI70: 0.645 | AJ70: =IF(AI70>0,I70*VLOOKUP(T70,'$ alcantarillado'!$I$6:$K$22,3),0) -> 1912173.333 | AK70: 4428054 | AL70: 1985755.945 | AM70: 8325983.278 | AN70: =+AP33 -> 5421411.778 | AO70: 13747395.06 | AQ70: 1 | AR70: 5
E71: 4 | F71: =+H38 -> 46 | G71: 5 | H71: =+H70 -> 45.39 | I71: 80 | J71: =+(F71-H71)/I71 -> 0.007625 | K71: 158 | L71: 5.192040238 | M71: 0.005192040238 | N71: 0.09554062751 | O71: 3.761442028 | P71: 6 | Q71: =IF(O71>0,VLOOKUP(P71,'$ alcantarillado'!$I$5:$L$22,4,FALSE),"0") -> 0.145 | R71: 0.0157937218 | S71: 0.3287407683 | T71: =+IF(S71>$B$13,VLOOKUP(P71,'$ alcantarillado'!$I$6:$N$22,5),P71) -> 6 | U71: =IF(O71>0,VLOOKUP(T71,'$ alcantarillado'!$I$5:$L$22,4),"0") -> 0.145 | V71: 0.0157937218 | W71: 0.3287407683 | X71: 0.9564419097 | Y71: =IF(T71>0,(VLOOKUP($W71,Relaciones!$A$4:$D$108,2)),"") -> 0.74 | Z71: 0.7077670132 | AA71: 0.27640625 | AB71: OK | AC71: OK | AD71: OK | AE71: 1 | AF71: 1 | AG71: 1 | AH71: 3 | AI71: 0.645 | AJ71: =IF(AI71>0,I71*VLOOKUP(T71,'$ alcantarillado'!$I$6:$K$22,3),0) -> 1912173.333 | AK71: 4892454 | AL71: 2334746.445 | AM71: 9139373.778 | AN71: =+AP38 -> 5653611.778 | AO71: 14792985.56
E72: 5 | F72: =+H43 -> 45.5 | G72: 5 | H72: =+H71 -> 45.39 | I72: =+I71 -> 80 | J72: 0.001375 | K72: =+K71 -> 158 | L72: 5.192040238 | M72: 0.005192040238 | N72: 0.1317274561 | O72: 5.18612032 | P72: 6 | Q72: =IF(O72>0,VLOOKUP(P72,'$ alcantarillado'!$I$5:$L$22,4,FALSE),"0") -> 0.145 | R72: 0.006706808543 | S72: 0.7741446926 | T72: =+IF(S72>$B$13,VLOOKUP(P72,'$ alcantarillado'!$I$6:$N$22,5),P72) -> 6 | U72: =IF(O72>0,VLOOKUP(T72,'$ alcantarillado'!$I$5:$L$22,4),"0") -> 0.145 | V72: 0.006706808543 | W72: 0.7741446926 | X72: 0.4061533344 | Y72: =IF(T72>0,(VLOOKUP($W72,Relaciones!$A$4:$D$108,2)),"") -> 0.972 | Z72: 0.394781041 | AA72: 0.04984375 | AB72: OK | AC72: No Cumple | AD72: No Cumple | AE72: 1 | AF72: 0 | AG72: 0 | AH72: 1 | AI72: 0 | AJ72: =IF(AI72>0,I72*VLOOKUP(T72,'$ alcantarillado'!$I$6:$K$22,3),0) -> 0 | AK72: 0 | AL72: 0 | AM72: 0 | AN72: =+AP43 -> 5885811.778
A73: 3 | B73: 5 | C73: 6 | D73: 49.09 | E73: 1 | F73: =IF(H48<H176,H48,H176) -> 47.39 | G73: 1 | H73: =+$D$98-$B$5-$B$4 -> 47.39 | I73: 80 | J73: =+(F73-H73)/I73 -> 0 | K73: =+K48+(K176)+H4 -> 1264 | L73: =IF(K73<38,K73^0.3686*0.7401,IF(K73<235,K73^0.4193*0.6215,IF(K73<932,K73*0.0092+4.2493,K73*0.0069+6.7345))) -> 15.4561 | M73: =+L73/1000 -> 0.0154561 | N73: 0 | O73: 0 | P73: 0 | Q73: =IF(O73>0,VLOOKUP(P73,'$ alcantarillado'!$I$5:$L$22,4,FALSE),"0") -> 0 | S73: 0 | T73: =+IF(S73>$B$13,VLOOKUP(P73,'$ alcantarillado'!$I$6:$N$22,5),P73) -> 0 | U73: =IF(O73>0,VLOOKUP(T73,'$ alcantarillado'!$I$5:$L$22,4),"0") -> 0 | W73: 0 | X73: =IF(T73>0,4*V73/(PI()*(U73)^2),"") ->  | Y73: =IF(T73>0,(VLOOKUP($W73,Relaciones!$A$4:$D$108,2)),"") ->  | Z73: =IF(T73>0,Y73*X73,"") ->  | AA73: =IF(T73>0,250*U73*J73,"") ->  | AB73: =IF(T73>0,IF(W73<=$B$13,"OK","No Cumple"),"") ->  | AC73: =IF(T73>0,IF(Z73>=$B$12,"OK","No Cumple"),"") ->  | AD73: =IF(T73>0,IF(AA73>$B$14,"OK","No Cumple"),"") ->  | AE73: =+IF(AB73="OK",1,0) -> 0 | AF73: =+IF(AC73="OK",1,0) -> 0 | AG73: =+IF(AD73="OK",1,0) -> 0 | AH73: =SUM(AE73:AG73) -> 0 | AI73: =IF(AH73=3,2*$B$7+U73,0) -> 0 | AJ73: =IF(AI73>0,I73*VLOOKUP(T73,'$ alcantarillado'!$I$6:$K$22,3),0) -> 0 | AK73: =IF(N73>0,((($D$73-F73)+(U73))+(($D$98-H73)+(U73))/2)*AI73*I73*$C$9,0) -> 0 | AL73: =IF(AI73>0,(($D$73-F73)+U73)*$C$10,0) -> 0 | AM73: =IF(AJ73>0,AJ73+AK73+AL73,0) -> 0 | AN73: =IF(AP48>0,IF(AP176>0,AP48+AP176,0),0) -> 0 | AO73: =IF((AM73)>0,IF(AN73>0,AM73+AN73,""),"") ->  | AP73: =+MIN(AO73:AO77) -> 0
E74: 2 | F74: =IF(H53<H181,H53,H181) -> 46.89 | G74: 1 | H74: =+H73 -> 47.39 | I74: =+I73 -> 80 | J74: -0.00625 | K74: =+K73 -> 1264 | L74: 15.4561 | M74: =+L74/1000 -> 0.0154561 | N74: 0 | O74: 0 | P74: 0 | Q74: =IF(O74>0,VLOOKUP(P74,'$ alcantarillado'!$I$5:$L$22,4,FALSE),"0") -> 0 | S74: 0 | T74: =+IF(S74>$B$13,VLOOKUP(P74,'$ alcantarillado'!$I$6:$N$22,5),P74) -> 0 | U74: =IF(O74>0,VLOOKUP(T74,'$ alcantarillado'!$I$5:$L$22,4),"0") -> 0 | W74: 0 | X74: =IF(T74>0,4*V74/(PI()*(U74)^2),"") ->  | Y74: =IF(T74>0,(VLOOKUP($W74,Relaciones!$A$4:$D$108,2)),"") ->  | Z74: =IF(T74>0,Y74*X74,"") ->  | AA74: =IF(T74>0,250*U74*J74,"") ->  | AB74: =IF(T74>0,IF(W74<=$B$13,"OK","No Cumple"),"") ->  | AC74: =IF(T74>0,IF(Z74>=$B$12,"OK","No Cumple"),"") ->  | AD74: =IF(T74>0,IF(AA74>$B$14,"OK","No Cumple"),"") ->  | AE74: =+IF(AB74="OK",1,0) -> 0 | AF74: =+IF(AC74="OK",1,0) -> 0 | AG74: =+IF(AD74="OK",1,0) -> 0 | AH74: =SUM(AE74:AG74) -> 0 | AI74: =IF(AH74=3,2*$B$7+U74,0) -> 0 | AJ74: =IF(AI74>0,I74*VLOOKUP(T74,'$ alcantarillado'!$I$6:$K$22,3),0) -> 0 | AK74: 0 | AL74: 0 | AM74: 0 | AN74: =IF(AP53>0,IF(AP181>0,AP53+AP181,0),0) -> 23846301.05
E75: 3 | F75: =IF(H58<H186,H58,H186) -> 46.39 | G75: 1 | H75: =+H74 -> 47.39 | I75: =+I74 -> 80 | J75: -0.0125 | K75: =+K74 -> 1264 | L75: 15.4561 | M75: 0.0154561 | N75: 0 | O75: 0 | P75: 0 | Q75: =IF(O75>0,VLOOKUP(P75,'$ alcantarillado'!$I$5:$L$22,4,FALSE),"0") -> 0 | S75: 0 | T75: =+IF(S75>$B$13,VLOOKUP(P75,'$ alcantarillado'!$I$6:$N$22,5),P75) -> 0 | U75: =IF(O75>0,VLOOKUP(T75,'$ alcantarillado'!$I$5:$L$22,4),"0") -> 0 | W75: 0 | Y75: =IF(T75>0,(VLOOKUP($W75,Relaciones!$A$4:$D$108,2)),"") ->  | AE75: 0 | AF75: 0 | AG75: 0 | AH75: 0 | AI75: 0 | AJ75: =IF(AI75>0,I75*VLOOKUP(T75,'$ alcantarillado'!$I$6:$K$22,3),0) -> 0 | AK75: 0 | AL75: 0 | AM75: 0 | AN75: =IF(AP58>0,IF(AP186>0,AP58+AP186,0),0) -> 23327184.58
E76: 4 | F76: =IF(H63<H191,H63,H191) -> 45.89 | G76: 1 | H76: =+H75 -> 47.39 | I76: =+I75 -> 80 | J76: =+(F76-H76)/I76 -> -0.01875 | K76: =+K75 -> 1264 | L76: 15.4561 | M76: 0.0154561 | N76: 0 | O76: 0 | P76: 0 | Q76: =IF(O76>0,VLOOKUP(P76,'$ alcantarillado'!$I$5:$L$22,4,FALSE),"0") -> 0 | S76: 0 | T76: =+IF(S76>$B$13,VLOOKUP(P76,'$ alcantarillado'!$I$6:$N$22,5),P76) -> 0 | U76: =IF(O76>0,VLOOKUP(T76,'$ alcantarillado'!$I$5:$L$22,4),"0") -> 0 | W76: 0 | Y76: =IF(T76>0,(VLOOKUP($W76,Relaciones!$A$4:$D$108,2)),"") ->  | AE76: 0 | AF76: 0 | AG76: 0 | AH76: 0 | AI76: 0 | AJ76: =IF(AI76>0,I76*VLOOKUP(T76,'$ alcantarillado'!$I$6:$K$22,3),0) -> 0 | AK76: 0 | AL76: 0 | AM76: 0 | AN76: =IF(AP63>0,IF(AP191>0,AP63+AP191,0),0) -> 23791584.58
E77: 5 | F77: =IF(H68<H196,H68,H196) -> 45.39 | G77: 1 | H77: =+H76 -> 47.39 | I77: =+I76 -> 80 | J77: -0.025 | K77: =+K76 -> 1264 | L77: 15.4561 | M77: 0.0154561 | N77: 0 | O77: 0 | P77: 0 | Q77: =IF(O77>0,VLOOKUP(P77,'$ alcantarillado'!$I$5:$L$22,4,FALSE),"0") -> 0 | S77: 0 | T77: =+IF(S77>$B$13,VLOOKUP(P77,'$ alcantarillado'!$I$6:$N$22,5),P77) -> 0 | U77: =IF(O77>0,VLOOKUP(T77,'$ alcantarillado'!$I$5:$L$22,4),"0") -> 0 | W77: 0 | Y77: =IF(T77>0,(VLOOKUP($W77,Relaciones!$A$4:$D$108,2)),"") ->  | AE77: 0 | AF77: 0 | AG77: 0 | AH77: 0 | AI77: 0 | AJ77: =IF(AI77>0,I77*VLOOKUP(T77,'$ alcantarillado'!$I$6:$K$22,3),0) -> 0 | AK77: 0 | AL77: 0 | AM77: 0 | AN77: =IF(AP68>0,IF(AP196>0,AP68+AP196,0),0) -> 24255984.58
E78: 1 | F78: =IF(H49<H177,H49,H177) -> 47.39 | G78: 2 | H78: =+H73-$B$4 -> 46.89 | I78: =+I77 -> 80 | J78: =+(F78-H78)/I78 -> 0.00625 | K78: =+K77 -> 1264 | L78: =IF(K78<38,K78^0.3686*0.7401,IF(K78<235,K78^0.4193*0.6215,IF(K78<932,K78*0.0092+4.2493,K78*0.0069+6.7345))) -> 15.4561 | M78: =+L78/1000 -> 0.0154561 | N78: 0.1492936234 | O78: 5.877701709 | P78: 6 | Q78: =IF(O78>0,VLOOKUP(P78,'$ alcantarillado'!$I$5:$L$22,4,FALSE),"0") -> 0.145 | R78: 0.01429896386 | S78: 1.080924475 | T78: =+IF(S78>$B$13,VLOOKUP(P78,'$ alcantarillado'!$I$6:$N$22,5),P78) -> 8 | U78: =IF(O78>0,VLOOKUP(T78,'$ alcantarillado'!$I$5:$L$22,4),"0") -> 0.182 | V78: 0.02621281106 | W78: 0.5896391641 | X78: =IF(T78>0,4*V78/(PI()*(U78)^2),"") -> 1.007583251 | Y78: =IF(T78>0,(VLOOKUP($W78,Relaciones!$A$4:$D$108,2)),"") -> 0.89 | Z78: =IF(T78>0,Y78*X78,"") -> 0.8967490937 | AA78: =IF(T78>0,250*U78*J78,"") -> 0.284375 | AB78: =IF(T78>0,IF(W78<=$B$13,"OK","No Cumple"),"") -> OK | AC78: =IF(T78>0,IF(Z78>=$B$12,"OK","No Cumple"),"") -> OK | AD78: =IF(T78>0,IF(AA78>$B$14,"OK","No Cumple"),"") -> OK | AE78: =+IF(AB78="OK",1,0) -> 1 | AF78: =+IF(AC78="OK",1,0) -> 1 | AG78: =+IF(AD78="OK",1,0) -> 1 | AH78: =SUM(AE78:AG78) -> 3 | AI78: =IF(AH78=3,2*$B$7+U78,0) -> 0.682 | AJ78: =IF(AI78>0,I78*VLOOKUP(T78,'$ alcantarillado'!$I$6:$K$22,3),0) -> 2654586.667 | AK78: 3017931.84 | AL78: 1313600.242 | AM78: =IF(AJ78>0,AJ78+AK78+AL78,0) -> 6986118.749 | AN78: =IF(AP48>0,IF(AP176>0,AP48+AP176,0),0) -> 0 | AO78: =IF((AM78)>0,IF(AN78>0,AM78+AN78,""),"") ->  | AP78: =+MIN(AO78:AO82) -> 0
E79: 2 | F79: =IF(H54<H182,H54,H182) -> 46.89 | G79: 2 | H79: =+H78 -> 46.89 | I79: =+I78 -> 80 | J79: 0 | K79: =+K78 -> 1264 | L79: 15.4561 | M79: =+L79/1000 -> 0.0154561 | N79: 0 | O79: 0 | P79: 0 | Q79: =IF(O79>0,VLOOKUP(P79,'$ alcantarillado'!$I$5:$L$22,4,FALSE),"0") -> 0 | S79: 0 | T79: =+IF(S79>$B$13,VLOOKUP(P79,'$ alcantarillado'!$I$6:$N$22,5),P79) -> 0 | U79: =IF(O79>0,VLOOKUP(T79,'$ alcantarillado'!$I$5:$L$22,4),"0") -> 0 | W79: 0 | X79: =IF(T79>0,4*V79/(PI()*(U79)^2),"") ->  | Y79: =IF(T79>0,(VLOOKUP($W79,Relaciones!$A$4:$D$108,2)),"") ->  | Z79: =IF(T79>0,Y79*X79,"") ->  | AA79: =IF(T79>0,250*U79*J79,"") ->  | AB79: =IF(T79>0,IF(W79<=$B$13,"OK","No Cumple"),"") ->  | AC79: =IF(T79>0,IF(Z79>=$B$12,"OK","No Cumple"),"") ->  | AD79: =IF(T79>0,IF(AA79>$B$14,"OK","No Cumple"),"") ->  | AE79: =+IF(AB79="OK",1,0) -> 0 | AF79: =+IF(AC79="OK",1,0) -> 0 | AG79: =+IF(AD79="OK",1,0) -> 0 | AH79: =SUM(AE79:AG79) -> 0 | AI79: =IF(AH79=3,2*$B$7+U79,0) -> 0 | AJ79: =IF(AI79>0,I79*VLOOKUP(T79,'$ alcantarillado'!$I$6:$K$22,3),0) -> 0 | AK79: 0 | AL79: 0 | AM79: 0 | AN79: =IF(AP53>0,IF(AP181>0,AP53+AP181,0),0) -> 23846301.05
E80: 3 | F80: =IF(H59<H187,H59,H187) -> 46.39 | G80: 2 | H80: =+H79 -> 46.89 | I80: =+I79 -> 80 | J80: -0.00625 | K80: =+K79 -> 1264 | L80: 15.4561 | M80: 0.0154561 | N80: 0 | O80: 0 | P80: 0 | Q80: =IF(O80>0,VLOOKUP(P80,'$ alcantarillado'!$I$5:$L$22,4,FALSE),"0") -> 0 | S80: 0 | T80: =+IF(S80>$B$13,VLOOKUP(P80,'$ alcantarillado'!$I$6:$N$22,5),P80) -> 0 | U80: =IF(O80>0,VLOOKUP(T80,'$ alcantarillado'!$I$5:$L$22,4),"0") -> 0 | W80: 0 | Y80: =IF(T80>0,(VLOOKUP($W80,Relaciones!$A$4:$D$108,2)),"") ->  | AE80: 0 | AF80: 0 | AG80: 0 | AH80: 0 | AI80: 0 | AJ80: =IF(AI80>0,I80*VLOOKUP(T80,'$ alcantarillado'!$I$6:$K$22,3),0) -> 0 | AK80: 0 | AL80: 0 | AM80: 0 | AN80: =IF(AP58>0,IF(AP186>0,AP58+AP186,0),0) -> 23327184.58
E81: 4 | F81: =IF(H64<H192,H64,H192) -> 45.89 | G81: 2 | H81: =+H80 -> 46.89 | I81: =+I80 -> 80 | J81: =+(F81-H81)/I81 -> -0.0125 | K81: 1264 | L81: 15.4561 | M81: 0.0154561 | N81: 0 | O81: 0 | P81: 0 | Q81: =IF(O81>0,VLOOKUP(P81,'$ alcantarillado'!$I$5:$L$22,4,FALSE),"0") -> 0 | S81: 0 | T81: =+IF(S81>$B$13,VLOOKUP(P81,'$ alcantarillado'!$I$6:$N$22,5),P81) -> 0 | U81: =IF(O81>0,VLOOKUP(T81,'$ alcantarillado'!$I$5:$L$22,4),"0") -> 0 | W81: 0 | Y81: =IF(T81>0,(VLOOKUP($W81,Relaciones!$A$4:$D$108,2)),"") ->  | AE81: 0 | AF81: 0 | AG81: 0 | AH81: 0 | AI81: 0 | AJ81: =IF(AI81>0,I81*VLOOKUP(T81,'$ alcantarillado'!$I$6:$K$22,3),0) -> 0 | AK81: 0 | AL81: 0 | AM81: 0 | AN81: =IF(AP63>0,IF(AP191>0,AP63+AP191,0),0) -> 23791584.58
E82: 5 | F82: =IF(H69<H197,H69,H197) -> 45.39 | G82: 2 | H82: =+H81 -> 46.89 | I82: =+I81 -> 80 | J82: -0.01875 | K82: =+K81 -> 1264 | L82: 15.4561 | M82: 0.0154561 | N82: 0 | O82: 0 | P82: 0 | Q82: =IF(O82>0,VLOOKUP(P82,'$ alcantarillado'!$I$5:$L$22,4,FALSE),"0") -> 0 | S82: 0 | T82: =+IF(S82>$B$13,VLOOKUP(P82,'$ alcantarillado'!$I$6:$N$22,5),P82) -> 0 | U82: =IF(O82>0,VLOOKUP(T82,'$ alcantarillado'!$I$5:$L$22,4),"0") -> 0 | W82: 0 | Y82: =IF(T82>0,(VLOOKUP($W82,Relaciones!$A$4:$D$108,2)),"") ->  | AE82: 0 | AF82: 0 | AG82: 0 | AH82: 0 | AI82: 0 | AJ82: =IF(AI82>0,I82*VLOOKUP(T82,'$ alcantarillado'!$I$6:$K$22,3),0) -> 0 | AK82: 0 | AL82: 0 | AM82: 0 | AN82: =IF(AP68>0,IF(AP196>0,AP68+AP196,0),0) -> 24255984.58
E83: 1 | F83: =IF(H50<H178,H50,H178) -> 47.39 | G83: 3 | H83: =+H78-$B$4 -> 46.39 | I83: =+I82 -> 80 | J83: =+(F83-H83)/I83 -> 0.0125 | K83: =+K82 -> 1264 | L83: =IF(K83<38,K83^0.3686*0.7401,IF(K83<235,K83^0.4193*0.6215,IF(K83<932,K83*0.0092+4.2493,K83*0.0069+6.7345))) -> 15.4561 | M83: =+L83/1000 -> 0.0154561 | N83: 0.1310986243 | O83: 5.161363163 | P83: 6 | Q83: =IF(O83>0,VLOOKUP(P83,'$ alcantarillado'!$I$5:$L$22,4,FALSE),"0") -> 0.145 | R83: 0.02022178862 | S83: 0.7643290262 | T83: =+IF(S83>$B$13,VLOOKUP(P83,'$ alcantarillado'!$I$6:$N$22,5),P83) -> 6 | U83: =IF(O83>0,VLOOKUP(T83,'$ alcantarillado'!$I$5:$L$22,4),"0") -> 0.145 | V83: 0.02022178862 | W83: 0.7643290262 | X83: =IF(T83>0,4*V83/(PI()*(U83)^2),"") -> 1.22459838 | Y83: =IF(T83>0,(VLOOKUP($W83,Relaciones!$A$4:$D$108,2)),"") -> 0.969 | Z83: =IF(T83>0,Y83*X83,"") -> 1.18663583 | AA83: =IF(T83>0,250*U83*J83,"") -> 0.453125 | AB83: =IF(T83>0,IF(W83<=$B$13,"OK","No Cumple"),"") -> OK | AC83: =IF(T83>0,IF(Z83>=$B$12,"OK","No Cumple"),"") -> OK | AD83: =IF(T83>0,IF(AA83>$B$14,"OK","No Cumple"),"") -> OK | AE83: =+IF(AB83="OK",1,0) -> 1 | AF83: =+IF(AC83="OK",1,0) -> 1 | AG83: =+IF(AD83="OK",1,0) -> 1 | AH83: =SUM(AE83:AG83) -> 3 | AI83: =IF(AH83=3,2*$B$7+U83,0) -> 0.645 | AJ83: =IF(AI83>0,I83*VLOOKUP(T83,'$ alcantarillado'!$I$6:$K$22,3),0) -> 1912173.333 | AK83: 3034854 | AL83: 1287774.945 | AM83: =IF(AJ83>0,AJ83+AK83+AL83,0) -> 6234802.278 | AN83: =IF(AP48>0,IF(AP176>0,AP48+AP176,0),0) -> 0 | AO83: =IF((AM83)>0,IF(AN83>0,AM83+AN83,""),"") ->  | AP83: =+MIN(AO83:AO87) -> 31917970.3
E84: 2 | F84: =IF(H55<H183,H55,H183) -> 46.89 | G84: 3 | H84: =+H83 -> 46.39 | I84: =+I83 -> 80 | J84: 0.00625 | K84: =+K83 -> 1264 | L84: 15.4561 | M84: =+L84/1000 -> 0.0154561 | N84: 0.1492936234 | O84: 5.877701709 | P84: 6 | Q84: =IF(O84>0,VLOOKUP(P84,'$ alcantarillado'!$I$5:$L$22,4,FALSE),"0") -> 0.145 | R84: 0.01429896386 | S84: 1.080924475 | T84: =+IF(S84>$B$13,VLOOKUP(P84,'$ alcantarillado'!$I$6:$N$22,5),P84) -> 8 | U84: =IF(O84>0,VLOOKUP(T84,'$ alcantarillado'!$I$5:$L$22,4),"0") -> 0.182 | V84: 0.02621281106 | W84: 0.5896391641 | X84: =IF(T84>0,4*V84/(PI()*(U84)^2),"") -> 1.007583251 | Y84: =IF(T84>0,(VLOOKUP($W84,Relaciones!$A$4:$D$108,2)),"") -> 0.89 | Z84: =IF(T84>0,Y84*X84,"") -> 0.8967490937 | AA84: =IF(T84>0,250*U84*J84,"") -> 0.284375 | AB84: =IF(T84>0,IF(W84<=$B$13,"OK","No Cumple"),"") -> OK | AC84: =IF(T84>0,IF(Z84>=$B$12,"OK","No Cumple"),"") -> OK | AD84: =IF(T84>0,IF(AA84>$B$14,"OK","No Cumple"),"") -> OK | AE84: =+IF(AB84="OK",1,0) -> 1 | AF84: =+IF(AC84="OK",1,0) -> 1 | AG84: =+IF(AD84="OK",1,0) -> 1 | AH84: =SUM(AE84:AG84) -> 3 | AI84: =IF(AH84=3,2*$B$7+U84,0) -> 0.682 | AJ84: =IF(AI84>0,I84*VLOOKUP(T84,'$ alcantarillado'!$I$6:$K$22,3),0) -> 2654586.667 | AK84: 3754491.84 | AL84: 1662590.742 | AM84: 8071669.249 | AN84: =IF(AP53>0,IF(AP181>0,AP53+AP181,0),0) -> 23846301.05 | AO84: 31917970.3
E85: 3 | F85: =IF(H60<H188,H60,H188) -> 46.39 | G85: 3 | H85: =+H84 -> 46.39 | I85: =+I84 -> 80 | J85: 0 | K85: =+K84 -> 1264 | L85: 15.4561 | M85: 0.0154561 | N85: 0 | O85: 0 | P85: 0 | Q85: =IF(O85>0,VLOOKUP(P85,'$ alcantarillado'!$I$5:$L$22,4,FALSE),"0") -> 0 | S85: 0 | T85: =+IF(S85>$B$13,VLOOKUP(P85,'$ alcantarillado'!$I$6:$N$22,5),P85) -> 0 | U85: =IF(O85>0,VLOOKUP(T85,'$ alcantarillado'!$I$5:$L$22,4),"0") -> 0 | W85: 0 | Y85: =IF(T85>0,(VLOOKUP($W85,Relaciones!$A$4:$D$108,2)),"") ->  | AE85: 0 | AF85: 0 | AG85: 0 | AH85: 0 | AI85: 0 | AJ85: =IF(AI85>0,I85*VLOOKUP(T85,'$ alcantarillado'!$I$6:$K$22,3),0) -> 0 | AK85: 0 | AL85: 0 | AM85: 0 | AN85: =IF(AP58>0,IF(AP186>0,AP58+AP186,0),0) -> 23327184.58 | AQ85: 2 | AR85: 3
E86: 4 | F86: =IF(H65<H193,H65,H193) -> 45.89 | G86: 3 | H86: =+H85 -> 46.39 | I86: =+I85 -> 80 | J86: =+(F86-H86)/I86 -> -0.00625 | K86: 1264 | L86: 15.4561 | M86: 0.0154561 | N86: 0 | O86: 0 | P86: 0 | Q86: =IF(O86>0,VLOOKUP(P86,'$ alcantarillado'!$I$5:$L$22,4,FALSE),"0") -> 0 | S86: 0 | T86: =+IF(S86>$B$13,VLOOKUP(P86,'$ alcantarillado'!$I$6:$N$22,5),P86) -> 0 | U86: =IF(O86>0,VLOOKUP(T86,'$ alcantarillado'!$I$5:$L$22,4),"0") -> 0 | W86: 0 | Y86: =IF(T86>0,(VLOOKUP($W86,Relaciones!$A$4:$D$108,2)),"") ->  | AE86: 0 | AF86: 0 | AG86: 0 | AH86: 0 | AI86: 0 | AJ86: =IF(AI86>0,I86*VLOOKUP(T86,'$ alcantarillado'!$I$6:$K$22,3),0) -> 0 | AK86: 0 | AL86: 0 | AM86: 0 | AN86: =IF(AP63>0,IF(AP191>0,AP63+AP191,0),0) -> 23791584.58
E87: 5 | F87: =IF(H70<H193,H70,H193) -> 45.39 | G87: 3 | H87: =+H86 -> 46.39 | I87: =+I86 -> 80 | J87: -0.0125 | K87: =+K86 -> 1264 | L87: 15.4561 | M87: 0.0154561 | N87: 0 | O87: =+N87*(100/2.54) -> 0 | P87: =IF(O87<0.1,0,IF(O87<4,6,EVEN(O87))) -> 0 | Q87: =IF(O87>0,VLOOKUP(P87,'$ alcantarillado'!$I$5:$L$22,4,FALSE),"0") -> 0 | R87: =IF(P87>0,PI()*((Q87)^(8/3))*((J87)^0.5)/($B$2*4^(5/3)),"") ->  | S87: =IF(P87>0,+M87/R87,0) -> 0 | T87: =+IF(S87>$B$13,VLOOKUP(P87,'$ alcantarillado'!$I$6:$N$22,5),P87) -> 0 | U87: =IF(O87>0,VLOOKUP(T87,'$ alcantarillado'!$I$5:$L$22,4),"0") -> 0 | W87: =IF(T87>0,M87/V87,0) -> 0 | Y87: =IF(T87>0,(VLOOKUP($W87,Relaciones!$A$4:$D$108,2)),"") ->  | AE87: 0 | AF87: 0 | AG87: 0 | AH87: 0 | AI87: 0 | AJ87: =IF(AI87>0,I87*VLOOKUP(T87,'$ alcantarillado'!$I$6:$K$22,3),0) -> 0 | AK87: 0 | AL87: 0 | AM87: 0 | AN87: =IF(AP68>0,IF(AP196>0,AP68+AP196,0),0) -> 24255984.58
E88: 1 | F88: =IF(H52<H176,H52,H176) -> 47.39 | G88: 4 | H88: =+H83-$B$4 -> 45.89 | I88: =+I83 -> 80 | J88: =+(F88-H88)/I88 -> 0.01875 | K88: =+K83 -> 1264 | L88: =IF(K88<38,K88^0.3686*0.7401,IF(K88<235,K88^0.4193*0.6215,IF(K88<932,K88*0.0092+4.2493,K88*0.0069+6.7345))) -> 15.4561 | M88: =+L88/1000 -> 0.0154561 | N88: 0.1215013276 | O88: 4.783516835 | P88: 6 | Q88: =IF(O88>0,VLOOKUP(P88,'$ alcantarillado'!$I$5:$L$22,4,FALSE),"0") -> 0.145 | R88: 0.0247665319 | S88: 0.6240720366 | T88: =+IF(S88>$B$13,VLOOKUP(P88,'$ alcantarillado'!$I$6:$N$22,5),P88) -> 6 | U88: =IF(O88>0,VLOOKUP(T88,'$ alcantarillado'!$I$5:$L$22,4),"0") -> 0.145 | V88: 0.0247665319 | W88: 0.6240720366 | X88: =IF(T88>0,4*V88/(PI()*(U88)^2),"") -> 1.499820585 | Y88: =IF(T88>0,(VLOOKUP($W88,Relaciones!$A$4:$D$108,2)),"") -> 0.908 | Z88: =IF(T88>0,Y88*X88,"") -> 1.361837091 | AA88: =IF(T88>0,250*U88*J88,"") -> 0.6796875 | AB88: =IF(T88>0,IF(W88<=$B$13,"OK","No Cumple"),"") -> OK | AC88: =IF(T88>0,IF(Z88>=$B$12,"OK","No Cumple"),"") -> OK | AD88: =IF(T88>0,IF(AA88>$B$14,"OK","No Cumple"),"") -> OK | AE88: =+IF(AB88="OK",1,0) -> 1 | AF88: =+IF(AC88="OK",1,0) -> 1 | AG88: =+IF(AD88="OK",1,0) -> 1 | AH88: =SUM(AE88:AG88) -> 3 | AI88: =IF(AH88=3,2*$B$7+U88,0) -> 0.645 | AJ88: =IF(AI88>0,I88*VLOOKUP(T88,'$ alcantarillado'!$I$6:$K$22,3),0) -> 1912173.333 | AK88: 3267054 | AL88: 1287774.945 | AM88: =IF(AJ88>0,AJ88+AK88+AL88,0) -> 6467002.278 | AN88: =IF(AP48>0,IF(AP176>0,AP48+AP176,0),0) -> 0 | AO88: =IF((AM88)>0,IF(AN88>0,AM88+AN88,""),"") ->  | AP88: =+MIN(AO88:AO92) -> 31126693.83
E89: 2 | F89: =IF(H55<H181,H55,H181) -> 46.89 | G89: 4 | H89: =+H88 -> 45.89 | I89: =+I88 -> 80 | J89: =+(F89-H89)/I89 -> 0.0125 | K89: =+K88 -> 1264 | L89: =IF(K89<38,K89^0.3686*0.7401,IF(K89<235,K89^0.4193*0.6215,IF(K89<932,K89*0.0092+4.2493,K89*0.0069+6.7345))) -> 15.4561 | M89: =+L89/1000 -> 0.0154561 | N89: 0.1310986243 | O89: 5.161363163 | P89: 6 | Q89: =IF(O89>0,VLOOKUP(P89,'$ alcantarillado'!$I$5:$L$22,4,FALSE),"0") -> 0.145 | R89: 0.02022178862 | S89: 0.7643290262 | T89: =+IF(S89>$B$13,VLOOKUP(P89,'$ alcantarillado'!$I$6:$N$22,5),P89) -> 6 | U89: =IF(O89>0,VLOOKUP(T89,'$ alcantarillado'!$I$5:$L$22,4),"0") -> 0.145 | V89: 0.02022178862 | W89: 0.7643290262 | X89: =IF(T89>0,4*V89/(PI()*(U89)^2),"") -> 1.22459838 | Y89: =IF(T89>0,(VLOOKUP($W89,Relaciones!$A$4:$D$108,2)),"") -> 0.969 | Z89: =IF(T89>0,Y89*X89,"") -> 1.18663583 | AA89: =IF(T89>0,250*U89*J89,"") -> 0.453125 | AB89: =IF(T89>0,IF(W89<=$B$13,"OK","No Cumple"),"") -> OK | AC89: =IF(T89>0,IF(Z89>=$B$12,"OK","No Cumple"),"") -> OK | AD89: =IF(T89>0,IF(AA89>$B$14,"OK","No Cumple"),"") -> OK | AE89: =+IF(AB89="OK",1,0) -> 1 | AF89: =+IF(AC89="OK",1,0) -> 1 | AG89: =+IF(AD89="OK",1,0) -> 1 | AH89: =SUM(AE89:AG89) -> 3 | AI89: =IF(AH89=3,2*$B$7+U89,0) -> 0.645 | AJ89: =IF(AI89>0,I89*VLOOKUP(T89,'$ alcantarillado'!$I$6:$K$22,3),0) -> 1912173.333 | AK89: 3731454 | AL89: 1636765.445 | AM89: =IF(AJ89>0,AJ89+AK89+AL89,0) -> 7280392.778 | AN89: =IF(AP53>0,IF(AP181>0,AP53+AP181,0),0) -> 23846301.05 | AO89: 31126693.83
E90: 3 | F90: =IF(H60<H187,H60,H187) -> 46.39 | G90: 4 | H90: =+H89 -> 45.89 | I90: =+I89 -> 80 | J90: 0.00625 | K90: =+K89 -> 1264 | L90: 15.4561 | M90: 0.0154561 | N90: 0.1492936234 | O90: 5.877701709 | P90: 6 | Q90: =IF(O90>0,VLOOKUP(P90,'$ alcantarillado'!$I$5:$L$22,4,FALSE),"0") -> 0.145 | R90: 0.01429896386 | S90: 1.080924475 | T90: =+IF(S90>$B$13,VLOOKUP(P90,'$ alcantarillado'!$I$6:$N$22,5),P90) -> 8 | U90: =IF(O90>0,VLOOKUP(T90,'$ alcantarillado'!$I$5:$L$22,4),"0") -> 0.182 | V90: 0.02621281106 | W90: 0.5896391641 | X90: 1.007583251 | Y90: =IF(T90>0,(VLOOKUP($W90,Relaciones!$A$4:$D$108,2)),"") -> 0.89 | Z90: 0.8967490937 | AA90: 0.284375 | AB90: OK | AC90: OK | AD90: OK | AE90: 1 | AF90: 1 | AG90: 1 | AH90: 3 | AI90: 0.682 | AJ90: =IF(AI90>0,I90*VLOOKUP(T90,'$ alcantarillado'!$I$6:$K$22,3),0) -> 2654586.667 | AK90: 4491051.84 | AL90: 2011581.242 | AM90: 9157219.749 | AN90: =IF(AP58>0,IF(AP186>0,AP58+AP186,0),0) -> 23327184.58 | AO90: 32484404.33 | AQ90: 2 | AR90: 4
E91: 4 | F91: =IF(H66<H192,H66,H192) -> 45.89 | G91: 4 | H91: =+H90 -> 45.89 | I91: =+I90 -> 80 | J91: =+(F91-H91)/I91 -> 0 | K91: 1264 | L91: 15.4561 | M91: 0.0154561 | N91: 0 | O91: 0 | P91: 0 | Q91: =IF(O91>0,VLOOKUP(P91,'$ alcantarillado'!$I$5:$L$22,4,FALSE),"0") -> 0 | S91: 0 | T91: =+IF(S91>$B$13,VLOOKUP(P91,'$ alcantarillado'!$I$6:$N$22,5),P91) -> 0 | U91: =IF(O91>0,VLOOKUP(T91,'$ alcantarillado'!$I$5:$L$22,4),"0") -> 0 | W91: 0 | Y91: =IF(T91>0,(VLOOKUP($W91,Relaciones!$A$4:$D$108,2)),"") ->  | AE91: 0 | AF91: 0 | AG91: 0 | AH91: 0 | AI91: 0 | AJ91: =IF(AI91>0,I91*VLOOKUP(T91,'$ alcantarillado'!$I$6:$K$22,3),0) -> 0 | AK91: 0 | AL91: 0 | AM91: 0 | AN91: =IF(AP63>0,IF(AP191>0,AP63+AP191,0),0) -> 23791584.58
E92: 5 | F92: =IF(H69<H196,H69,H196) -> 45.39 | G92: 4 | H92: =+H91 -> 45.89 | I92: =+I91 -> 80 | J92: -0.00625 | K92: =+K91 -> 1264 | L92: 15.4561 | M92: 0.0154561 | N92: 0 | O92: 0 | P92: 0 | Q92: =IF(O92>0,VLOOKUP(P92,'$ alcantarillado'!$I$5:$L$22,4,FALSE),"0") -> 0 | S92: 0 | T92: =+IF(S92>$B$13,VLOOKUP(P92,'$ alcantarillado'!$I$6:$N$22,5),P92) -> 0 | U92: =IF(O92>0,VLOOKUP(T92,'$ alcantarillado'!$I$5:$L$22,4),"0") -> 0 | W92: 0 | Y92: =IF(T92>0,(VLOOKUP($W92,Relaciones!$A$4:$D$108,2)),"") ->  | AE92: 0 | AF92: 0 | AG92: 0 | AH92: 0 | AI92: 0 | AJ92: =IF(AI92>0,I92*VLOOKUP(T92,'$ alcantarillado'!$I$6:$K$22,3),0) -> 0 | AK92: 0 | AL92: 0 | AM92: 0 | AN92: =IF(AP68>0,IF(AP196>0,AP68+AP196,0),0) -> 24255984.58
E93: 1 | F93: =IF(H49<H176,H49,H176) -> 47.39 | G93: 5 | H93: =+H88-$B$4 -> 45.39 | I93: =+I88 -> 80 | J93: =+(F93-H93)/I93 -> 0.025 | K93: =+K88 -> 1264 | L93: =IF(K93<38,K93^0.3686*0.7401,IF(K93<235,K93^0.4193*0.6215,IF(K93<932,K93*0.0092+4.2493,K93*0.0069+6.7345))) -> 15.4561 | M93: =+L93/1000 -> 0.0154561 | N93: 0.1151211211 | O93: 4.532327602 | P93: 6 | Q93: =IF(O93>0,VLOOKUP(P93,'$ alcantarillado'!$I$5:$L$22,4,FALSE),"0") -> 0.145 | R93: 0.02859792772 | S93: 0.5404622374 | T93: =+IF(S93>$B$13,VLOOKUP(P93,'$ alcantarillado'!$I$6:$N$22,5),P93) -> 6 | U93: =IF(O93>0,VLOOKUP(T93,'$ alcantarillado'!$I$5:$L$22,4),"0") -> 0.145 | V93: 0.02859792772 | W93: 0.5404622374 | X93: =IF(T93>0,4*V93/(PI()*(U93)^2),"") -> 1.731843637 | Y93: =IF(T93>0,(VLOOKUP($W93,Relaciones!$A$4:$D$108,2)),"") -> 0.87 | Z93: =IF(T93>0,Y93*X93,"") -> 1.506703964 | AA93: =IF(T93>0,250*U93*J93,"") -> 0.90625 | AB93: =IF(T93>0,IF(W93<=$B$13,"OK","No Cumple"),"") -> OK | AC93: =IF(T93>0,IF(Z93>=$B$12,"OK","No Cumple"),"") -> OK | AD93: =IF(T93>0,IF(AA93>$B$14,"OK","No Cumple"),"") -> OK | AE93: =+IF(AB93="OK",1,0) -> 1 | AF93: =+IF(AC93="OK",1,0) -> 1 | AG93: =+IF(AD93="OK",1,0) -> 1 | AH93: =SUM(AE93:AG93) -> 3 | AI93: =IF(AH93=3,2*$B$7+U93,0) -> 0.645 | AJ93: =IF(AI93>0,I93*VLOOKUP(T93,'$ alcantarillado'!$I$6:$K$22,3),0) -> 1912173.333 | AK93: 3499254 | AL93: 1287774.945 | AM93: =IF(AJ93>0,AJ93+AK93+AL93,0) -> 6699202.278 | AN93: =IF(AP48>0,IF(AP176>0,AP48+AP176,0),0) -> 0 | AO93: =IF((AM93)>0,IF(AN93>0,AM93+AN93,""),"") ->  | AP93: =+MIN(AO93:AO97) -> 31358893.83
E94: 2 | F94: =IF(H54<H182,H54,H182) -> 46.89 | G94: 5 | H94: =+H93 -> 45.39 | I94: =+I93 -> 80 | J94: 0.01875 | K94: =+K93 -> 1264 | L94: 15.4561 | M94: =+L94/1000 -> 0.0154561 | N94: 0.1215013276 | O94: 4.783516835 | P94: 6 | Q94: =IF(O94>0,VLOOKUP(P94,'$ alcantarillado'!$I$5:$L$22,4,FALSE),"0") -> 0.145 | R94: 0.0247665319 | S94: 0.6240720366 | T94: =+IF(S94>$B$13,VLOOKUP(P94,'$ alcantarillado'!$I$6:$N$22,5),P94) -> 6 | U94: =IF(O94>0,VLOOKUP(T94,'$ alcantarillado'!$I$5:$L$22,4),"0") -> 0.145 | V94: 0.0247665319 | W94: 0.6240720366 | X94: =IF(T94>0,4*V94/(PI()*(U94)^2),"") -> 1.499820585 | Y94: =IF(T94>0,(VLOOKUP($W94,Relaciones!$A$4:$D$108,2)),"") -> 0.908 | Z94: =IF(T94>0,Y94*X94,"") -> 1.361837091 | AA94: =IF(T94>0,250*U94*J94,"") -> 0.6796875 | AB94: =IF(T94>0,IF(W94<=$B$13,"OK","No Cumple"),"") -> OK | AC94: =IF(T94>0,IF(Z94>=$B$12,"OK","No Cumple"),"") -> OK | AD94: =IF(T94>0,IF(AA94>$B$14,"OK","No Cumple"),"") -> OK | AE94: =+IF(AB94="OK",1,0) -> 1 | AF94: =+IF(AC94="OK",1,0) -> 1 | AG94: =+IF(AD94="OK",1,0) -> 1 | AH94: =SUM(AE94:AG94) -> 3 | AI94: =IF(AH94=3,2*$B$7+U94,0) -> 0.645 | AJ94: =IF(AI94>0,I94*VLOOKUP(T94,'$ alcantarillado'!$I$6:$K$22,3),0) -> 1912173.333 | AK94: 3963654 | AL94: 1636765.445 | AM94: 7512592.778 | AN94: =IF(AP53>0,IF(AP181>0,AP53+AP181,0),0) -> 23846301.05 | AO94: 31358893.83
E95: 3 | F95: =IF(H60<H187,H60,H187) -> 46.39 | G95: 5 | H95: =+H94 -> 45.39 | I95: =+I94 -> 80 | J95: 0.0125 | K95: =+K94 -> 1264 | L95: 15.4561 | M95: 0.0154561 | N95: 0.1310986243 | O95: 5.161363163 | P95: 6 | Q95: =IF(O95>0,VLOOKUP(P95,'$ alcantarillado'!$I$5:$L$22,4,FALSE),"0") -> 0.145 | R95: 0.02022178862 | S95: 0.7643290262 | T95: =+IF(S95>$B$13,VLOOKUP(P95,'$ alcantarillado'!$I$6:$N$22,5),P95) -> 6 | U95: =IF(O95>0,VLOOKUP(T95,'$ alcantarillado'!$I$5:$L$22,4),"0") -> 0.145 | V95: 0.02022178862 | W95: 0.7643290262 | X95: 1.22459838 | Y95: =IF(T95>0,(VLOOKUP($W95,Relaciones!$A$4:$D$108,2)),"") -> 0.969 | Z95: 1.18663583 | AA95: 0.453125 | AB95: OK | AC95: OK | AD95: OK | AE95: 1 | AF95: 1 | AG95: 1 | AH95: 3 | AI95: 0.645 | AJ95: =IF(AI95>0,I95*VLOOKUP(T95,'$ alcantarillado'!$I$6:$K$22,3),0) -> 1912173.333 | AK95: 4428054 | AL95: 1985755.945 | AM95: 8325983.278 | AN95: =IF(AP58>0,IF(AP186>0,AP58+AP186,0),0) -> 23327184.58 | AO95: 31653167.86 | AQ95: 2 | AR95: 5
E96: 4 | F96: =IF(H64<H193,H64,H193) -> 45.89 | G96: 5 | H96: =+H95 -> 45.39 | I96: =+I95 -> 80 | J96: =+(F96-H96)/I96 -> 0.00625 | K96: 1264 | L96: 15.4561 | M96: 0.0154561 | N96: 0.1492936234 | O96: 5.877701709 | P96: 6 | Q96: =IF(O96>0,VLOOKUP(P96,'$ alcantarillado'!$I$5:$L$22,4,FALSE),"0") -> 0.145 | R96: 0.01429896386 | S96: 1.080924475 | T96: =+IF(S96>$B$13,VLOOKUP(P96,'$ alcantarillado'!$I$6:$N$22,5),P96) -> 8 | U96: =IF(O96>0,VLOOKUP(T96,'$ alcantarillado'!$I$5:$L$22,4),"0") -> 0.182 | V96: 0.02621281106 | W96: 0.5896391641 | X96: 1.007583251 | Y96: =IF(T96>0,(VLOOKUP($W96,Relaciones!$A$4:$D$108,2)),"") -> 0.89 | Z96: 0.8967490937 | AA96: 0.284375 | AB96: OK | AC96: OK | AD96: OK | AE96: 1 | AF96: 1 | AG96: 1 | AH96: 3 | AI96: 0.682 | AJ96: =IF(AI96>0,I96*VLOOKUP(T96,'$ alcantarillado'!$I$6:$K$22,3),0) -> 2654586.667 | AK96: 5227611.84 | AL96: 2360571.742 | AM96: 10242770.25 | AN96: =IF(AP63>0,IF(AP191>0,AP63+AP191,0),0) -> 23791584.58 | AO96: 34034354.83
E97: 5 | F97: =IF(H71<H196,H71,H196) -> 45.39 | G97: 5 | H97: =+H96 -> 45.39 | I97: =+I96 -> 80 | J97: 0 | K97: =+K96 -> 1264 | L97: 15.4561 | M97: 0.0154561 | N97: 0 | O97: 0 | P97: 0 | Q97: =IF(O97>0,VLOOKUP(P97,'$ alcantarillado'!$I$5:$L$22,4,FALSE),"0") -> 0 | S97: 0 | T97: =+IF(S97>$B$13,VLOOKUP(P97,'$ alcantarillado'!$I$6:$N$22,5),P97) -> 0 | U97: =IF(O97>0,VLOOKUP(T97,'$ alcantarillado'!$I$5:$L$22,4),"0") -> 0 | W97: 0 | Y97: =IF(T97>0,(VLOOKUP($W97,Relaciones!$A$4:$D$108,2)),"") ->  | AE97: 0 | AF97: 0 | AG97: 0 | AH97: 0 | AI97: 0 | AJ97: =IF(AI97>0,I97*VLOOKUP(T97,'$ alcantarillado'!$I$6:$K$22,3),0) -> 0 | AK97: 0 | AL97: 0 | AM97: 0 | AN97: =IF(AP68>0,IF(AP196>0,AP68+AP196,0),0) -> 24255984.58
A98: 4 | B98: =+C73 -> 6 | C98: 7 | D98: 49.09 | E98: 1 | F98: =+H73 -> 47.39 | G98: 1 | H98: =+$D$123-$B$5-$B$4 -> 47.39 | I98: =+I87 -> 80 | J98: =+(F98-H98)/I98 -> 0 | K98: =+K87+H5 -> 1281 | L98: =IF(K98<38,K98^0.3686*0.7401,IF(K98<235,K98^0.4193*0.6215,IF(K98<932,K98*0.0092+4.2493,K98*0.0069+6.7345))) -> 15.5734 | M98: =+L98/1000 -> 0.0155734 | N98: 0 | O98: 0 | P98: 0 | Q98: =IF(O98>0,VLOOKUP(P98,'$ alcantarillado'!$I$5:$L$22,4,FALSE),"0") -> 0 | S98: 0 | T98: =+IF(S98>$B$13,VLOOKUP(P98,'$ alcantarillado'!$I$6:$N$22,5),P98) -> 0 | U98: =IF(O98>0,VLOOKUP(T98,'$ alcantarillado'!$I$5:$L$22,4),"0") -> 0 | W98: 0 | X98: =IF(T98>0,4*V98/(PI()*(U98)^2),"") ->  | Y98: =IF(T98>0,(VLOOKUP($W98,Relaciones!$A$4:$D$108,2)),"") ->  | Z98: =IF(T98>0,Y98*X98,"") ->  | AA98: =IF(T98>0,250*U98*J98,"") ->  | AB98: =IF(T98>0,IF(W98<=$B$13,"OK","No Cumple"),"") ->  | AC98: =IF(T98>0,IF(Z98>=$B$12,"OK","No Cumple"),"") ->  | AD98: =IF(T98>0,IF(AA98>$B$14,"OK","No Cumple"),"") ->  | AE98: =+IF(AB98="OK",1,0) -> 0 | AF98: =+IF(AC98="OK",1,0) -> 0 | AG98: =+IF(AD98="OK",1,0) -> 0 | AH98: =SUM(AE98:AG98) -> 0 | AI98: =IF(AH98=3,2*$B$7+U98,0) -> 0 | AJ98: =IF(AI98>0,I98*VLOOKUP(T98,'$ alcantarillado'!$I$6:$K$22,3),0) -> 0 | AK98: =IF(N98>0,((($D$98-F98)+(U98))+(($D$123-H98)+(U98))/2)*AI98*I98*$C$9,0) -> 0 | AL98: =IF(AI98>0,(($D$98-F98)+U98)*$C$10,0) -> 0 | AM98: =IF(AJ98>0,AJ98+AK98+AL98,0) -> 0 | AN98: =IF(AP73>0,+AP73,0) -> 0 | AO98: =IF((AM98)>0,IF(AN98>0,AM98+AN98,""),"") ->  | AP98: =+MIN(AO98:AO102) -> 0
E99: 2 | F99: =+H78 -> 46.89 | G99: 1 | H99: =+H98 -> 47.39 | I99: =+I98 -> 80 | J99: =+(F99-H99)/I99 -> -0.00625 | K99: =+K98 -> 1281 | L99: =IF(K99<38,K99^0.3686*0.7401,IF(K99<235,K99^0.4193*0.6215,IF(K99<932,K99*0.0092+4.2493,K99*0.0069+6.7345))) -> 15.5734 | M99: =+L99/1000 -> 0.0155734 | N99: 0 | O99: 0 | P99: 0 | Q99: =IF(O99>0,VLOOKUP(P99,'$ alcantarillado'!$I$5:$L$22,4,FALSE),"0") -> 0 | S99: 0 | T99: =+IF(S99>$B$13,VLOOKUP(P99,'$ alcantarillado'!$I$6:$N$22,5),P99) -> 0 | U99: =IF(O99>0,VLOOKUP(T99,'$ alcantarillado'!$I$5:$L$22,4),"0") -> 0 | W99: 0 | X99: =IF(T99>0,4*V99/(PI()*(U99)^2),"") ->  | Y99: =IF(T99>0,(VLOOKUP($W99,Relaciones!$A$4:$D$108,2)),"") ->  | Z99: =IF(T99>0,Y99*X99,"") ->  | AA99: =IF(T99>0,250*U99*J99,"") ->  | AB99: =IF(T99>0,IF(W99<=$B$13,"OK","No Cumple"),"") ->  | AC99: =IF(T99>0,IF(Z99>=$B$12,"OK","No Cumple"),"") ->  | AD99: =IF(T99>0,IF(AA99>$B$14,"OK","No Cumple"),"") ->  | AE99: =+IF(AB99="OK",1,0) -> 0 | AF99: =+IF(AC99="OK",1,0) -> 0 | AG99: =+IF(AD99="OK",1,0) -> 0 | AH99: =SUM(AE99:AG99) -> 0 | AI99: =IF(AH99=3,2*$B$7+U99,0) -> 0 | AJ99: =IF(AI99>0,I99*VLOOKUP(T99,'$ alcantarillado'!$I$6:$K$22,3),0) -> 0 | AK99: 0 | AL99: 0 | AM99: =IF(AJ99>0,AJ99+AK99+AL99,0) -> 0 | AN99: =+AP78 -> 0
E100: 3 | F100: =+H83 -> 46.39 | G100: 1 | H100: =+H99 -> 47.39 | I100: =+I99 -> 80 | J100: -0.0125 | K100: =+K99 -> 1281 | L100: 15.5734 | M100: 0.0155734 | N100: 0 | O100: 0 | P100: 0 | Q100: =IF(O100>0,VLOOKUP(P100,'$ alcantarillado'!$I$5:$L$22,4,FALSE),"0") -> 0 | S100: 0 | T100: =+IF(S100>$B$13,VLOOKUP(P100,'$ alcantarillado'!$I$6:$N$22,5),P100) -> 0 | U100: =IF(O100>0,VLOOKUP(T100,'$ alcantarillado'!$I$5:$L$22,4),"0") -> 0 | W100: 0 | Y100: =IF(T100>0,(VLOOKUP($W100,Relaciones!$A$4:$D$108,2)),"") ->  | AE100: 0 | AF100: 0 | AG100: 0 | AH100: 0 | AI100: 0 | AJ100: =IF(AI100>0,I100*VLOOKUP(T100,'$ alcantarillado'!$I$6:$K$22,3),0) -> 0 | AK100: 0 | AL100: 0 | AM100: 0 | AN100: =+AP83 -> 31917970.3
E101: 4 | F101: =+H88 -> 45.89 | G101: 1 | H101: 47.39 | I101: =+I100 -> 80 | J101: =+(F101-H101)/I101 -> -0.01875 | K101: =+K100 -> 1281 | L101: 15.5734 | M101: 0.0155734 | N101: 0 | O101: 0 | P101: 0 | Q101: =IF(O101>0,VLOOKUP(P101,'$ alcantarillado'!$I$5:$L$22,4,FALSE),"0") -> 0 | S101: 0 | T101: =+IF(S101>$B$13,VLOOKUP(P101,'$ alcantarillado'!$I$6:$N$22,5),P101) -> 0 | U101: =IF(O101>0,VLOOKUP(T101,'$ alcantarillado'!$I$5:$L$22,4),"0") -> 0 | W101: 0 | Y101: =IF(T101>0,(VLOOKUP($W101,Relaciones!$A$4:$D$108,2)),"") ->  | AE101: 0 | AF101: 0 | AG101: 0 | AH101: 0 | AI101: 0 | AJ101: =IF(AI101>0,I101*VLOOKUP(T101,'$ alcantarillado'!$I$6:$K$22,3),0) -> 0 | AK101: 0 | AL101: 0 | AM101: 0 | AN101: =+AP88 -> 31126693.83
E102: 5 | F102: =+H93 -> 45.39 | G102: 1 | H102: 47.39 | I102: =+I101 -> 80 | J102: -0.025 | K102: =+K101 -> 1281 | L102: 15.5734 | M102: 0.0155734 | N102: 0 | O102: 0 | P102: 0 | Q102: =IF(O102>0,VLOOKUP(P102,'$ alcantarillado'!$I$5:$L$22,4,FALSE),"0") -> 0 | S102: 0 | T102: =+IF(S102>$B$13,VLOOKUP(P102,'$ alcantarillado'!$I$6:$N$22,5),P102) -> 0 | U102: =IF(O102>0,VLOOKUP(T102,'$ alcantarillado'!$I$5:$L$22,4),"0") -> 0 | W102: 0 | Y102: =IF(T102>0,(VLOOKUP($W102,Relaciones!$A$4:$D$108,2)),"") ->  | AE102: 0 | AF102: 0 | AG102: 0 | AH102: 0 | AI102: 0 | AJ102: =IF(AI102>0,I102*VLOOKUP(T102,'$ alcantarillado'!$I$6:$K$22,3),0) -> 0 | AK102: 0 | AL102: 0 | AM102: 0 | AN102: =+AP93 -> 31358893.83
E103: 1 | F103: =+H73 -> 47.39 | G103: 2 | H103: =+H98-$B$4 -> 46.89 | I103: =+I102 -> 80 | J103: =+(F103-H103)/I103 -> 0.00625 | K103: =+K102 -> 1281 | L103: =IF(K103<38,K103^0.3686*0.7401,IF(K103<235,K103^0.4193*0.6215,IF(K103<932,K103*0.0092+4.2493,K103*0.0069+6.7345))) -> 15.5734 | M103: =+L103/1000 -> 0.0155734 | N103: 0.1497175041 | O103: 5.894389925 | P103: 6 | Q103: =IF(O103>0,VLOOKUP(P103,'$ alcantarillado'!$I$5:$L$22,4,FALSE),"0") -> 0.145 | R103: 0.01429896386 | S103: 1.089127866 | T103: =+IF(S103>$B$13,VLOOKUP(P103,'$ alcantarillado'!$I$6:$N$22,5),P103) -> 8 | U103: =IF(O103>0,VLOOKUP(T103,'$ alcantarillado'!$I$5:$L$22,4),"0") -> 0.182 | V103: 0.02621281106 | W103: 0.5941140752 | X103: =IF(T103>0,4*V103/(PI()*(U103)^2),"") -> 1.007583251 | Y103: =IF(T103>0,(VLOOKUP($W103,Relaciones!$A$4:$D$108,2)),"") -> 0.895 | Z103: =IF(T103>0,Y103*X103,"") -> 0.9017870099 | AA103: =IF(T103>0,250*U103*J103,"") -> 0.284375 | AB103: =IF(T103>0,IF(W103<=$B$13,"OK","No Cumple"),"") -> OK | AC103: =IF(T103>0,IF(Z103>=$B$12,"OK","No Cumple"),"") -> OK | AD103: =IF(T103>0,IF(AA103>$B$14,"OK","No Cumple"),"") -> OK | AE103: =+IF(AB103="OK",1,0) -> 1 | AF103: =+IF(AC103="OK",1,0) -> 1 | AG103: =+IF(AD103="OK",1,0) -> 1 | AH103: =SUM(AE103:AG103) -> 3 | AI103: =IF(AH103=3,2*$B$7+U103,0) -> 0.682 | AJ103: =IF(AI103>0,I103*VLOOKUP(T103,'$ alcantarillado'!$I$6:$K$22,3),0) -> 2654586.667 | AK103: 3017931.84 | AL103: 1313600.242 | AM103: =IF(AJ103>0,AJ103+AK103+AL103,0) -> 6986118.749 | AN103: =IF(AP73>0,+AP73,0) -> 0 | AO103: =IF((AM103)>0,IF(AN103>0,AM103+AN103,""),"") ->  | AP103: =+MIN(AO103:AO107) -> 0
E104: 2 | F104: =+H78 -> 46.89 | G104: 2 | H104: =+H103 -> 46.89 | I104: =+I103 -> 80 | J104: 0 | K104: =+K103 -> 1281 | L104: 15.5734 | M104: =+L104/1000 -> 0.0155734 | N104: 0 | O104: 0 | P104: 0 | Q104: =IF(O104>0,VLOOKUP(P104,'$ alcantarillado'!$I$5:$L$22,4,FALSE),"0") -> 0 | S104: 0 | T104: =+IF(S104>$B$13,VLOOKUP(P104,'$ alcantarillado'!$I$6:$N$22,5),P104) -> 0 | U104: =IF(O104>0,VLOOKUP(T104,'$ alcantarillado'!$I$5:$L$22,4),"0") -> 0 | W104: 0 | X104: =IF(T104>0,4*V104/(PI()*(U104)^2),"") ->  | Y104: =IF(T104>0,(VLOOKUP($W104,Relaciones!$A$4:$D$108,2)),"") ->  | Z104: =IF(T104>0,Y104*X104,"") ->  | AA104: =IF(T104>0,250*U104*J104,"") ->  | AB104: =IF(T104>0,IF(W104<=$B$13,"OK","No Cumple"),"") ->  | AC104: =IF(T104>0,IF(Z104>=$B$12,"OK","No Cumple"),"") ->  | AD104: =IF(T104>0,IF(AA104>$B$14,"OK","No Cumple"),"") ->  | AE104: =+IF(AB104="OK",1,0) -> 0 | AF104: =+IF(AC104="OK",1,0) -> 0 | AG104: =+IF(AD104="OK",1,0) -> 0 | AH104: =SUM(AE104:AG104) -> 0 | AI104: =IF(AH104=3,2*$B$7+U104,0) -> 0 | AJ104: =IF(AI104>0,I104*VLOOKUP(T104,'$ alcantarillado'!$I$6:$K$22,3),0) -> 0 | AK104: 0 | AL104: 0 | AM104: 0 | AN104: =+AP78 -> 0
E105: 3 | F105: =+H83 -> 46.39 | G105: 2 | H105: =+H104 -> 46.89 | I105: =+I104 -> 80 | J105: -0.00625 | K105: =+K104 -> 1281 | L105: 15.5734 | M105: 0.0155734 | N105: 0 | O105: 0 | P105: 0 | Q105: =IF(O105>0,VLOOKUP(P105,'$ alcantarillado'!$I$5:$L$22,4,FALSE),"0") -> 0 | S105: 0 | T105: =+IF(S105>$B$13,VLOOKUP(P105,'$ alcantarillado'!$I$6:$N$22,5),P105) -> 0 | U105: =IF(O105>0,VLOOKUP(T105,'$ alcantarillado'!$I$5:$L$22,4),"0") -> 0 | W105: 0 | Y105: =IF(T105>0,(VLOOKUP($W105,Relaciones!$A$4:$D$108,2)),"") ->  | AE105: 0 | AF105: 0 | AG105: 0 | AH105: 0 | AI105: 0 | AJ105: =IF(AI105>0,I105*VLOOKUP(T105,'$ alcantarillado'!$I$6:$K$22,3),0) -> 0 | AK105: 0 | AL105: 0 | AM105: 0 | AN105: =+AP83 -> 31917970.3
E106: 4 | F106: =+H88 -> 45.89 | G106: 2 | H106: 46.89 | I106: =+I105 -> 80 | J106: =+(F106-H106)/I106 -> -0.0125 | K106: 1281 | L106: 15.5734 | M106: 0.0155734 | N106: 0 | O106: 0 | P106: 0 | Q106: =IF(O106>0,VLOOKUP(P106,'$ alcantarillado'!$I$5:$L$22,4,FALSE),"0") -> 0 | S106: 0 | T106: =+IF(S106>$B$13,VLOOKUP(P106,'$ alcantarillado'!$I$6:$N$22,5),P106) -> 0 | U106: =IF(O106>0,VLOOKUP(T106,'$ alcantarillado'!$I$5:$L$22,4),"0") -> 0 | W106: 0 | Y106: =IF(T106>0,(VLOOKUP($W106,Relaciones!$A$4:$D$108,2)),"") ->  | AE106: 0 | AF106: 0 | AG106: 0 | AH106: 0 | AI106: 0 | AJ106: =IF(AI106>0,I106*VLOOKUP(T106,'$ alcantarillado'!$I$6:$K$22,3),0) -> 0 | AK106: 0 | AL106: 0 | AM106: 0 | AN106: =+AP88 -> 31126693.83
E107: 5 | F107: =+H93 -> 45.39 | G107: 2 | H107: =+H106 -> 46.89 | I107: =+I106 -> 80 | J107: -0.01875 | K107: =+K106 -> 1281 | L107: 15.5734 | M107: 0.0155734 | N107: 0 | O107: 0 | P107: 0 | Q107: =IF(O107>0,VLOOKUP(P107,'$ alcantarillado'!$I$5:$L$22,4,FALSE),"0") -> 0 | S107: 0 | T107: =+IF(S107>$B$13,VLOOKUP(P107,'$ alcantarillado'!$I$6:$N$22,5),P107) -> 0 | U107: =IF(O107>0,VLOOKUP(T107,'$ alcantarillado'!$I$5:$L$22,4),"0") -> 0 | W107: 0 | Y107: =IF(T107>0,(VLOOKUP($W107,Relaciones!$A$4:$D$108,2)),"") ->  | AE107: 0 | AF107: 0 | AG107: 0 | AH107: 0 | AI107: 0 | AJ107: =IF(AI107>0,I107*VLOOKUP(T107,'$ alcantarillado'!$I$6:$K$22,3),0) -> 0 | AK107: 0 | AL107: 0 | AM107: 0 | AN107: =+AP93 -> 31358893.83
E108: 1 | F108: =+H73 -> 47.39 | G108: 3 | H108: =+H103-$B$4 -> 46.39 | I108: =+I107 -> 80 | J108: =+(F108-H108)/I108 -> 0.0125 | K108: =+K107 -> 1281 | L108: =IF(K108<38,K108^0.3686*0.7401,IF(K108<235,K108^0.4193*0.6215,IF(K108<932,K108*0.0092+4.2493,K108*0.0069+6.7345))) -> 15.5734 | M108: =+L108/1000 -> 0.0155734 | N108: 0.131470845 | O108: 5.17601752 | P108: 6 | Q108: =IF(O108>0,VLOOKUP(P108,'$ alcantarillado'!$I$5:$L$22,4,FALSE),"0") -> 0.145 | R108: 0.02022178862 | S108: 0.7701297 | T108: =+IF(S108>$B$13,VLOOKUP(P108,'$ alcantarillado'!$I$6:$N$22,5),P108) -> 6 | U108: =IF(O108>0,VLOOKUP(T108,'$ alcantarillado'!$I$5:$L$22,4),"0") -> 0.145 | V108: 0.02022178862 | W108: 0.7701297 | X108: =IF(T108>0,4*V108/(PI()*(U108)^2),"") -> 1.22459838 | Y108: =IF(T108>0,(VLOOKUP($W108,Relaciones!$A$4:$D$108,2)),"") -> 0.972 | Z108: =IF(T108>0,Y108*X108,"") -> 1.190309625 | AA108: =IF(T108>0,250*U108*J108,"") -> 0.453125 | AB108: =IF(T108>0,IF(W108<=$B$13,"OK","No Cumple"),"") -> OK | AC108: =IF(T108>0,IF(Z108>=$B$12,"OK","No Cumple"),"") -> OK | AD108: =IF(T108>0,IF(AA108>$B$14,"OK","No Cumple"),"") -> OK | AE108: =+IF(AB108="OK",1,0) -> 1 | AF108: =+IF(AC108="OK",1,0) -> 1 | AG108: =+IF(AD108="OK",1,0) -> 1 | AH108: =SUM(AE108:AG108) -> 3 | AI108: =IF(AH108=3,2*$B$7+U108,0) -> 0.645 | AJ108: =IF(AI108>0,I108*VLOOKUP(T108,'$ alcantarillado'!$I$6:$K$22,3),0) -> 1912173.333 | AK108: 3034854 | AL108: 1287774.945 | AM108: =IF(AJ108>0,AJ108+AK108+AL108,0) -> 6234802.278 | AN108: =IF(AP73>0,+AP73,0) -> 0 | AO108: =IF((AM108)>0,IF(AN108>0,AM108+AN108,""),"") ->  | AP108: =+MIN(AO108:AO112) -> 0
E109: 2 | F109: =+H78 -> 46.89 | G109: 3 | H109: =+H108 -> 46.39 | I109: =+I108 -> 80 | J109: 0.00625 | K109: =+K108 -> 1281 | L109: 15.5734 | M109: =+L109/1000 -> 0.0155734 | N109: 0.1497175041 | O109: 5.894389925 | P109: 6 | Q109: =IF(O109>0,VLOOKUP(P109,'$ alcantarillado'!$I$5:$L$22,4,FALSE),"0") -> 0.145 | R109: 0.01429896386 | S109: 1.089127866 | T109: =+IF(S109>$B$13,VLOOKUP(P109,'$ alcantarillado'!$I$6:$N$22,5),P109) -> 8 | U109: =IF(O109>0,VLOOKUP(T109,'$ alcantarillado'!$I$5:$L$22,4),"0") -> 0.182 | V109: 0.02621281106 | W109: 0.5941140752 | X109: =IF(T109>0,4*V109/(PI()*(U109)^2),"") -> 1.007583251 | Y109: =IF(T109>0,(VLOOKUP($W109,Relaciones!$A$4:$D$108,2)),"") -> 0.895 | Z109: =IF(T109>0,Y109*X109,"") -> 0.9017870099 | AA109: =IF(T109>0,250*U109*J109,"") -> 0.284375 | AB109: =IF(T109>0,IF(W109<=$B$13,"OK","No Cumple"),"") -> OK | AC109: =IF(T109>0,IF(Z109>=$B$12,"OK","No Cumple"),"") -> OK | AD109: =IF(T109>0,IF(AA109>$B$14,"OK","No Cumple"),"") -> OK | AE109: =+IF(AB109="OK",1,0) -> 1 | AF109: =+IF(AC109="OK",1,0) -> 1 | AG109: =+IF(AD109="OK",1,0) -> 1 | AH109: =SUM(AE109:AG109) -> 3 | AI109: =IF(AH109=3,2*$B$7+U109,0) -> 0.682 | AJ109: =IF(AI109>0,I109*VLOOKUP(T109,'$ alcantarillado'!$I$6:$K$22,3),0) -> 2654586.667 | AK109: 3754491.84 | AL109: 1662590.742 | AM109: 8071669.249 | AN109: =+AP78 -> 0
E110: 3 | F110: =+H83 -> 46.39 | G110: 3 | H110: =+H109 -> 46.39 | I110: =+I109 -> 80 | J110: 0 | K110: =+K109 -> 1281 | L110: 15.5734 | M110: 0.0155734 | N110: 0 | O110: 0 | P110: 0 | Q110: =IF(O110>0,VLOOKUP(P110,'$ alcantarillado'!$I$5:$L$22,4,FALSE),"0") -> 0 | S110: 0 | T110: =+IF(S110>$B$13,VLOOKUP(P110,'$ alcantarillado'!$I$6:$N$22,5),P110) -> 0 | U110: =IF(O110>0,VLOOKUP(T110,'$ alcantarillado'!$I$5:$L$22,4),"0") -> 0 | W110: 0 | Y110: =IF(T110>0,(VLOOKUP($W110,Relaciones!$A$4:$D$108,2)),"") ->  | AE110: 0 | AF110: 0 | AG110: 0 | AH110: 0 | AI110: 0 | AJ110: =IF(AI110>0,I110*VLOOKUP(T110,'$ alcantarillado'!$I$6:$K$22,3),0) -> 0 | AK110: 0 | AL110: 0 | AM110: 0 | AN110: =+AP83 -> 31917970.3
E111: 4 | F111: =+H88 -> 45.89 | G111: 3 | H111: 46.39 | I111: =+I110 -> 80 | J111: =+(F111-H111)/I111 -> -0.00625 | K111: 1281 | L111: 15.5734 | M111: 0.0155734 | N111: 0 | O111: 0 | P111: 0 | Q111: =IF(O111>0,VLOOKUP(P111,'$ alcantarillado'!$I$5:$L$22,4,FALSE),"0") -> 0 | S111: 0 | T111: =+IF(S111>$B$13,VLOOKUP(P111,'$ alcantarillado'!$I$6:$N$22,5),P111) -> 0 | U111: =IF(O111>0,VLOOKUP(T111,'$ alcantarillado'!$I$5:$L$22,4),"0") -> 0 | W111: 0 | Y111: =IF(T111>0,(VLOOKUP($W111,Relaciones!$A$4:$D$108,2)),"") ->  | AE111: 0 | AF111: 0 | AG111: 0 | AH111: 0 | AI111: 0 | AJ111: =IF(AI111>0,I111*VLOOKUP(T111,'$ alcantarillado'!$I$6:$K$22,3),0) -> 0 | AK111: 0 | AL111: 0 | AM111: 0 | AN111: =+AP88 -> 31126693.83
E112: 5 | F112: =+H93 -> 45.39 | G112: 3 | H112: =+H111 -> 46.39 | I112: =+I111 -> 80 | J112: -0.0125 | K112: =+K111 -> 1281 | L112: 15.5734 | M112: 0.0155734 | N112: 0 | O112: 0 | P112: 0 | Q112: =IF(O112>0,VLOOKUP(P112,'$ alcantarillado'!$I$5:$L$22,4,FALSE),"0") -> 0 | S112: 0 | T112: =+IF(S112>$B$13,VLOOKUP(P112,'$ alcantarillado'!$I$6:$N$22,5),P112) -> 0 | U112: =IF(O112>0,VLOOKUP(T112,'$ alcantarillado'!$I$5:$L$22,4),"0") -> 0 | W112: 0 | Y112: =IF(T112>0,(VLOOKUP($W112,Relaciones!$A$4:$D$108,2)),"") ->  | AE112: 0 | AF112: 0 | AG112: 0 | AH112: 0 | AI112: 0 | AJ112: =IF(AI112>0,I112*VLOOKUP(T112,'$ alcantarillado'!$I$6:$K$22,3),0) -> 0 | AK112: 0 | AL112: 0 | AM112: 0 | AN112: =+AP93 -> 31358893.83
E113: 1 | F113: =+H73 -> 47.39 | G113: 4 | H113: =+H108-$B$4 -> 45.89 | I113: =+I108 -> 80 | J113: =+(F113-H113)/I113 -> 0.01875 | K113: =+K108 -> 1281 | L113: =IF(K113<38,K113^0.3686*0.7401,IF(K113<235,K113^0.4193*0.6215,IF(K113<932,K113*0.0092+4.2493,K113*0.0069+6.7345))) -> 15.5734 | M113: =+L113/1000 -> 0.0155734 | N113: 0.1218462993 | O113: 4.797098396 | P113: 6 | Q113: =IF(O113>0,VLOOKUP(P113,'$ alcantarillado'!$I$5:$L$22,4,FALSE),"0") -> 0.145 | R113: 0.0247665319 | S113: 0.6288082669 | T113: =+IF(S113>$B$13,VLOOKUP(P113,'$ alcantarillado'!$I$6:$N$22,5),P113) -> 6 | U113: =IF(O113>0,VLOOKUP(T113,'$ alcantarillado'!$I$5:$L$22,4),"0") -> 0.145 | V113: 0.0247665319 | W113: 0.6288082669 | X113: =IF(T113>0,4*V113/(PI()*(U113)^2),"") -> 1.499820585 | Y113: =IF(T113>0,(VLOOKUP($W113,Relaciones!$A$4:$D$108,2)),"") -> 0.908 | Z113: =IF(T113>0,Y113*X113,"") -> 1.361837091 | AA113: =IF(T113>0,250*U113*J113,"") -> 0.6796875 | AB113: =IF(T113>0,IF(W113<=$B$13,"OK","No Cumple"),"") -> OK | AC113: =IF(T113>0,IF(Z113>=$B$12,"OK","No Cumple"),"") -> OK | AD113: =IF(T113>0,IF(AA113>$B$14,"OK","No Cumple"),"") -> OK | AE113: =+IF(AB113="OK",1,0) -> 1 | AF113: =+IF(AC113="OK",1,0) -> 1 | AG113: =+IF(AD113="OK",1,0) -> 1 | AH113: =SUM(AE113:AG113) -> 3 | AI113: =IF(AH113=3,2*$B$7+U113,0) -> 0.645 | AJ113: =IF(AI113>0,I113*VLOOKUP(T113,'$ alcantarillado'!$I$6:$K$22,3),0) -> 1912173.333 | AK113: 3267054 | AL113: 1287774.945 | AM113: =IF(AJ113>0,AJ113+AK113+AL113,0) -> 6467002.278 | AN113: =IF(AP73>0,+AP73,0) -> 0 | AO113: =IF((AM113)>0,IF(AN113>0,AM113+AN113,""),"") ->  | AP113: =+MIN(AO113:AO117) -> 41075190.05
E114: 2 | F114: =+H78 -> 46.89 | G114: 4 | H114: =+H113 -> 45.89 | I114: =+I113 -> 80 | J114: 0.0125 | K114: =+K113 -> 1281 | L114: 15.5734 | M114: =+L114/1000 -> 0.0155734 | N114: 0.131470845 | O114: 5.17601752 | P114: 6 | Q114: =IF(O114>0,VLOOKUP(P114,'$ alcantarillado'!$I$5:$L$22,4,FALSE),"0") -> 0.145 | R114: 0.02022178862 | S114: 0.7701297 | T114: =+IF(S114>$B$13,VLOOKUP(P114,'$ alcantarillado'!$I$6:$N$22,5),P114) -> 6 | U114: =IF(O114>0,VLOOKUP(T114,'$ alcantarillado'!$I$5:$L$22,4),"0") -> 0.145 | V114: 0.02022178862 | W114: 0.7701297 | X114: =IF(T114>0,4*V114/(PI()*(U114)^2),"") -> 1.22459838 | Y114: =IF(T114>0,(VLOOKUP($W114,Relaciones!$A$4:$D$108,2)),"") -> 0.972 | Z114: =IF(T114>0,Y114*X114,"") -> 1.190309625 | AA114: =IF(T114>0,250*U114*J114,"") -> 0.453125 | AB114: =IF(T114>0,IF(W114<=$B$13,"OK","No Cumple"),"") -> OK | AC114: =IF(T114>0,IF(Z114>=$B$12,"OK","No Cumple"),"") -> OK | AD114: =IF(T114>0,IF(AA114>$B$14,"OK","No Cumple"),"") -> OK | AE114: =+IF(AB114="OK",1,0) -> 1 | AF114: =+IF(AC114="OK",1,0) -> 1 | AG114: =+IF(AD114="OK",1,0) -> 1 | AH114: =SUM(AE114:AG114) -> 3 | AI114: =IF(AH114=3,2*$B$7+U114,0) -> 0.645 | AJ114: =IF(AI114>0,I114*VLOOKUP(T114,'$ alcantarillado'!$I$6:$K$22,3),0) -> 1912173.333 | AK114: 3731454 | AL114: 1636765.445 | AM114: 7280392.778 | AN114: =+AP78 -> 0
E115: 3 | F115: =+H83 -> 46.39 | G115: 4 | H115: =+H114 -> 45.89 | I115: =+I114 -> 80 | J115: 0.00625 | K115: =+K114 -> 1281 | L115: 15.5734 | M115: 0.0155734 | N115: 0.1497175041 | O115: 5.894389925 | P115: 6 | Q115: =IF(O115>0,VLOOKUP(P115,'$ alcantarillado'!$I$5:$L$22,4,FALSE),"0") -> 0.145 | R115: 0.01429896386 | S115: 1.089127866 | T115: =+IF(S115>$B$13,VLOOKUP(P115,'$ alcantarillado'!$I$6:$N$22,5),P115) -> 8 | U115: =IF(O115>0,VLOOKUP(T115,'$ alcantarillado'!$I$5:$L$22,4),"0") -> 0.182 | V115: 0.02621281106 | W115: 0.5941140752 | X115: 1.007583251 | Y115: =IF(T115>0,(VLOOKUP($W115,Relaciones!$A$4:$D$108,2)),"") -> 0.895 | Z115: 0.9017870099 | AA115: 0.284375 | AB115: OK | AC115: OK | AD115: OK | AE115: 1 | AF115: 1 | AG115: 1 | AH115: 3 | AI115: 0.682 | AJ115: =IF(AI115>0,I115*VLOOKUP(T115,'$ alcantarillado'!$I$6:$K$22,3),0) -> 2654586.667 | AK115: 4491051.84 | AL115: 2011581.242 | AM115: 9157219.749 | AN115: =+AP83 -> 31917970.3 | AO115: =IF((AM115)>0,IF(AN115>0,AM115+AN115,""),"") -> 41075190.05 | AQ115: 3 | AR115: 4
E116: 4 | F116: =+H88 -> 45.89 | G116: 4 | H116: 45.89 | I116: =+I115 -> 80 | J116: =+(F116-H116)/I116 -> 0 | K116: 1281 | L116: 15.5734 | M116: 0.0155734 | N116: 0 | O116: 0 | P116: 0 | Q116: =IF(O116>0,VLOOKUP(P116,'$ alcantarillado'!$I$5:$L$22,4,FALSE),"0") -> 0 | S116: 0 | T116: =+IF(S116>$B$13,VLOOKUP(P116,'$ alcantarillado'!$I$6:$N$22,5),P116) -> 0 | U116: =IF(O116>0,VLOOKUP(T116,'$ alcantarillado'!$I$5:$L$22,4),"0") -> 0 | W116: 0 | Y116: =IF(T116>0,(VLOOKUP($W116,Relaciones!$A$4:$D$108,2)),"") ->  | AE116: 0 | AF116: 0 | AG116: 0 | AH116: 0 | AI116: 0 | AJ116: =IF(AI116>0,I116*VLOOKUP(T116,'$ alcantarillado'!$I$6:$K$22,3),0) -> 0 | AK116: 0 | AL116: 0 | AM116: 0 | AN116: =+AP88 -> 31126693.83
E117: 5 | F117: =+H93 -> 45.39 | G117: 4 | H117: =+H116 -> 45.89 | I117: =+I116 -> 80 | J117: -0.00625 | K117: =+K116 -> 1281 | L117: 15.5734 | M117: 0.0155734 | N117: =+IF(J117>0,((M117*$B$2*(4^(5/3))/((J117^0.5)*PI()*$B$6))^(3/8)),0) -> 0 | O117: 0 | P117: 0 | Q117: =IF(O117>0,VLOOKUP(P117,'$ alcantarillado'!$I$5:$L$22,4,FALSE),"0") -> 0 | S117: 0 | T117: =+IF(S117>$B$13,VLOOKUP(P117,'$ alcantarillado'!$I$6:$N$22,5),P117) -> 0 | U117: =IF(O117>0,VLOOKUP(T117,'$ alcantarillado'!$I$5:$L$22,4),"0") -> 0 | V117: =IF(T117>0,PI()*((U117)^(8/3))*((J117)^0.5)/($B$2*4^(5/3)),"") ->  | W117: 0 | Y117: =IF(T117>0,(VLOOKUP($W117,Relaciones!$A$4:$D$108,2)),"") ->  | AE117: 0 | AF117: 0 | AG117: 0 | AH117: 0 | AI117: 0 | AJ117: =IF(AI117>0,I117*VLOOKUP(T117,'$ alcantarillado'!$I$6:$K$22,3),0) -> 0 | AK117: 0 | AL117: 0 | AM117: 0 | AN117: =+AP93 -> 31358893.83
E118: 1 | F118: =+H73 -> 47.39 | G118: 5 | H118: =+H113-$B$4 -> 45.39 | I118: =+I113 -> 80 | J118: =+(F118-H118)/I118 -> 0.025 | K118: =+K113 -> 1281 | L118: =IF(K118<38,K118^0.3686*0.7401,IF(K118<235,K118^0.4193*0.6215,IF(K118<932,K118*0.0092+4.2493,K118*0.0069+6.7345))) -> 15.5734 | M118: =+L118/1000 -> 0.0155734 | N118: 0.1154479778 | O118: 4.545195976 | P118: 6 | Q118: =IF(O118>0,VLOOKUP(P118,'$ alcantarillado'!$I$5:$L$22,4,FALSE),"0") -> 0.145 | R118: 0.02859792772 | S118: 0.5445639332 | T118: =+IF(S118>$B$13,VLOOKUP(P118,'$ alcantarillado'!$I$6:$N$22,5),P118) -> 6 | U118: =IF(O118>0,VLOOKUP(T118,'$ alcantarillado'!$I$5:$L$22,4),"0") -> 0.145 | V118: 0.02859792772 | W118: 0.5445639332 | X118: =IF(T118>0,4*V118/(PI()*(U118)^2),"") -> 1.731843637 | Y118: =IF(T118>0,(VLOOKUP($W118,Relaciones!$A$4:$D$108,2)),"") -> 0.87 | Z118: =IF(T118>0,Y118*X118,"") -> 1.506703964 | AA118: =IF(T118>0,250*U118*J118,"") -> 0.90625 | AB118: =IF(T118>0,IF(W118<=$B$13,"OK","No Cumple"),"") -> OK | AC118: =IF(T118>0,IF(Z118>=$B$12,"OK","No Cumple"),"") -> OK | AD118: =IF(T118>0,IF(AA118>$B$14,"OK","No Cumple"),"") -> OK | AE118: =+IF(AB118="OK",1,0) -> 1 | AF118: =+IF(AC118="OK",1,0) -> 1 | AG118: =+IF(AD118="OK",1,0) -> 1 | AH118: =SUM(AE118:AG118) -> 3 | AI118: =IF(AH118=3,2*$B$7+U118,0) -> 0.645 | AJ118: =IF(AI118>0,I118*VLOOKUP(T118,'$ alcantarillado'!$I$6:$K$22,3),0) -> 1912173.333 | AK118: 3499254 | AL118: 1287774.945 | AM118: =IF(AJ118>0,AJ118+AK118+AL118,0) -> 6699202.278 | AN118: =IF(AP73>0,+AP73,0) -> 0 | AO118: =IF((AM118)>0,IF(AN118>0,AM118+AN118,""),"") ->  | AP118: =+MIN(AO118:AO122) -> 40243953.58
E119: 2 | F119: =+H78 -> 46.89 | G119: 5 | H119: =+H118 -> 45.39 | I119: =+I118 -> 80 | J119: 0.01875 | K119: =+K118 -> 1281 | L119: 15.5734 | M119: =+L119/1000 -> 0.0155734 | N119: 0.1218462993 | O119: =+N119*(100/2.54) -> 4.797098396 | P119: 6 | Q119: =IF(O119>0,VLOOKUP(P119,'$ alcantarillado'!$I$5:$L$22,4,FALSE),"0") -> 0.145 | R119: =IF(P119>0,PI()*((Q119)^(8/3))*((J119)^0.5)/($B$2*4^(5/3)),"") -> 0.0247665319 | S119: =IF(P119>0,+M119/R119,0) -> 0.6288082669 | T119: =+IF(S119>$B$13,VLOOKUP(P119,'$ alcantarillado'!$I$6:$N$22,5),P119) -> 6 | U119: =IF(O119>0,VLOOKUP(T119,'$ alcantarillado'!$I$5:$L$22,4),"0") -> 0.145 | V119: 0.0247665319 | W119: =IF(T119>0,M119/V119,0) -> 0.6288082669 | X119: =IF(T119>0,4*V119/(PI()*(U119)^2),"") -> 1.499820585 | Y119: =IF(T119>0,(VLOOKUP($W119,Relaciones!$A$4:$D$108,2)),"") -> 0.908 | Z119: =IF(T119>0,Y119*X119,"") -> 1.361837091 | AA119: =IF(T119>0,250*U119*J119,"") -> 0.6796875 | AB119: =IF(T119>0,IF(W119<=$B$13,"OK","No Cumple"),"") -> OK | AC119: =IF(T119>0,IF(Z119>=$B$12,"OK","No Cumple"),"") -> OK | AD119: =IF(T119>0,IF(AA119>$B$14,"OK","No Cumple"),"") -> OK | AE119: =+IF(AB119="OK",1,0) -> 1 | AF119: =+IF(AC119="OK",1,0) -> 1 | AG119: =+IF(AD119="OK",1,0) -> 1 | AH119: =SUM(AE119:AG119) -> 3 | AI119: =IF(AH119=3,2*$B$7+U119,0) -> 0.645 | AJ119: =IF(AI119>0,I119*VLOOKUP(T119,'$ alcantarillado'!$I$6:$K$22,3),0) -> 1912173.333 | AK119: 3963654 | AL119: 1636765.445 | AM119: 7512592.778 | AN119: =+AP78 -> 0 | AO119: =IF((AM119)>0,IF(AN119>0,AM119+AN119,""),"") -> 
E120: 3 | F120: =+H83 -> 46.39 | G120: 5 | H120: =+H119 -> 45.39 | I120: =+I119 -> 80 | J120: 0.0125 | K120: =+K119 -> 1281 | L120: 15.5734 | M120: 0.0155734 | N120: 0.131470845 | O120: 5.17601752 | P120: =IF(O120<0.1,0,IF(O120<4,6,EVEN(O120))) -> 6 | Q120: =IF(O120>0,VLOOKUP(P120,'$ alcantarillado'!$I$5:$L$22,4,FALSE),"0") -> 0.145 | R120: 0.02022178862 | S120: 0.7701297 | T120: =+IF(S120>$B$13,VLOOKUP(P120,'$ alcantarillado'!$I$6:$N$22,5),P120) -> 6 | U120: =IF(O120>0,VLOOKUP(T120,'$ alcantarillado'!$I$5:$L$22,4),"0") -> 0.145 | V120: 0.02022178862 | W120: 0.7701297 | X120: 1.22459838 | Y120: =IF(T120>0,(VLOOKUP($W120,Relaciones!$A$4:$D$108,2)),"") -> 0.972 | Z120: 1.190309625 | AA120: 0.453125 | AB120: OK | AC120: OK | AD120: OK | AE120: 1 | AF120: 1 | AG120: 1 | AH120: 3 | AI120: 0.645 | AJ120: =IF(AI120>0,I120*VLOOKUP(T120,'$ alcantarillado'!$I$6:$K$22,3),0) -> 1912173.333 | AK120: 4428054 | AL120: 1985755.945 | AM120: 8325983.278 | AN120: =+AP83 -> 31917970.3 | AO120: 40243953.58 | AQ120: 3 | AR120: 5
E121: 4 | F121: =+H88 -> 45.89 | G121: 5 | H121: 45.39 | I121: =+I120 -> 80 | J121: =+(F121-H121)/I121 -> 0.00625 | K121: 1281 | L121: 15.5734 | M121: 0.0155734 | N121: 0.1497175041 | O121: 5.894389925 | P121: 6 | Q121: =IF(O121>0,VLOOKUP(P121,'$ alcantarillado'!$I$5:$L$22,4,FALSE),"0") -> 0.145 | R121: 0.01429896386 | S121: 1.089127866 | T121: =+IF(S121>$B$13,VLOOKUP(P121,'$ alcantarillado'!$I$6:$N$22,5),P121) -> 8 | U121: =IF(O121>0,VLOOKUP(T121,'$ alcantarillado'!$I$5:$L$22,4),"0") -> 0.182 | V121: 0.02621281106 | W121: 0.5941140752 | X121: 1.007583251 | Y121: =IF(T121>0,(VLOOKUP($W121,Relaciones!$A$4:$D$108,2)),"") -> 0.895 | Z121: 0.9017870099 | AA121: 0.284375 | AB121: OK | AC121: OK | AD121: OK | AE121: 1 | AF121: 1 | AG121: 1 | AH121: 3 | AI121: 0.682 | AJ121: =IF(AI121>0,I121*VLOOKUP(T121,'$ alcantarillado'!$I$6:$K$22,3),0) -> 2654586.667 | AK121: 5227611.84 | AL121: 2360571.742 | AM121: 10242770.25 | AN121: =+AP88 -> 31126693.83 | AO121: 41369464.08
E122: 5 | F122: =+H93 -> 45.39 | G122: 5 | H122: =+H121 -> 45.39 | I122: =+I121 -> 80 | J122: 0 | K122: =+K121 -> 1281 | L122: 15.5734 | M122: 0.0155734 | N122: 0 | O122: 0 | P122: 0 | Q122: =IF(O122>0,VLOOKUP(P122,'$ alcantarillado'!$I$5:$L$22,4,FALSE),"0") -> 0 | S122: 0 | T122: =+IF(S122>$B$13,VLOOKUP(P122,'$ alcantarillado'!$I$6:$N$22,5),P122) -> 0 | U122: =IF(O122>0,VLOOKUP(T122,'$ alcantarillado'!$I$5:$L$22,4),"0") -> 0 | W122: 0 | Y122: =IF(T122>0,(VLOOKUP($W122,Relaciones!$A$4:$D$108,2)),"") ->  | AE122: 0 | AF122: 0 | AG122: 0 | AH122: 0 | AI122: 0 | AJ122: =IF(AI122>0,I122*VLOOKUP(T122,'$ alcantarillado'!$I$6:$K$22,3),0) -> 0 | AK122: 0 | AL122: 0 | AM122: 0 | AN122: =+AP93 -> 31358893.83
A123: 5 | B123: =+C98 -> 7 | C123: 10 | D123: 49.09 | E123: 1 | F123: =+H98 -> 47.39 | G123: 1 | H123: =+$D$148-$B$5-$B$4 -> 46.39 | I123: 75 | J123: =+(F123-H123)/I123 -> 0.01333333333 | K123: =+K112+H7 -> 1460 | L123: =IF(K123<38,K123^0.3686*0.7401,IF(K123<235,K123^0.4193*0.6215,IF(K123<932,K123*0.0092+4.2493,K123*0.0069+6.7345))) -> 16.8085 | M123: =+L123/1000 -> 0.0168085 | N123: 0.1336606715 | O123: 5.262231161 | P123: 6 | Q123: =IF(O123>0,VLOOKUP(P123,'$ alcantarillado'!$I$5:$L$22,4,FALSE),"0") -> 0.145 | R123: 0.02088497348 | S123: 0.8048130881 | T123: =+IF(S123>$B$13,VLOOKUP(P123,'$ alcantarillado'!$I$6:$N$22,5),P123) -> 6 | U123: =IF(O123>0,VLOOKUP(T123,'$ alcantarillado'!$I$5:$L$22,4),"0") -> 0.145 | V123: 0.02088497348 | W123: 0.8048130881 | X123: =IF(T123>0,4*V123/(PI()*(U123)^2),"") -> 1.264759768 | Y123: =IF(T123>0,(VLOOKUP($W123,Relaciones!$A$4:$D$108,2)),"") -> 0.984 | Z123: =IF(T123>0,Y123*X123,"") -> 1.244523612 | AA123: =IF(T123>0,250*U123*J123,"") -> 0.4833333333 | AB123: =IF(T123>0,IF(W123<=$B$13,"OK","No Cumple"),"") -> OK | AC123: =IF(T123>0,IF(Z123>=$B$12,"OK","No Cumple"),"") -> OK | AD123: =IF(T123>0,IF(AA123>$B$14,"OK","No Cumple"),"") -> OK | AE123: =+IF(AB123="OK",1,0) -> 1 | AF123: =+IF(AC123="OK",1,0) -> 1 | AG123: =+IF(AD123="OK",1,0) -> 1 | AH123: =SUM(AE123:AG123) -> 3 | AI123: =IF(AH123=3,2*$B$7+U123,0) -> 0.645 | AJ123: =IF(AI123>0,I123*VLOOKUP(T123,'$ alcantarillado'!$I$6:$K$22,3),0) -> 1792662.5 | AK123: =IF(N123>0,((($D$123-F123)+(U123))+(($D$148-H123)+(U123))/2)*AI123*I123*$C$9,0) -> 2409800.625 | AL123: =IF(AI123>0,(($D$123-F123)+U123)*$C$10,0) -> 1287774.945 | AM123: =IF(AJ123>0,AJ123+AK123+AL123,0) -> 5490238.07 | AN123: =IF(AP98>0,+AP98,0) -> 0 | AO123: =IF((AM123)>0,IF(AN123>0,AM123+AN123,""),"") ->  | AP123: =+MIN(AO123:AO127) -> 0
E124: 2 | F124: =+H103 -> 46.89 | G124: 1 | H124: =+H123 -> 46.39 | I124: =+I123 -> 75 | J124: =+(F124-H124)/I124 -> 0.006666666667 | K124: =+K123 -> 1460 | L124: =IF(K124<38,K124^0.3686*0.7401,IF(K124<235,K124^0.4193*0.6215,IF(K124<932,K124*0.0092+4.2493,K124*0.0069+6.7345))) -> 16.8085 | M124: =+L124/1000 -> 0.0168085 | N124: 0.1522112536 | O124: 5.99256904 | P124: 6 | Q124: =IF(O124>0,VLOOKUP(P124,'$ alcantarillado'!$I$5:$L$22,4,FALSE),"0") -> 0.145 | R124: 0.01476790637 | S124: 1.138177584 | T124: =+IF(S124>$B$13,VLOOKUP(P124,'$ alcantarillado'!$I$6:$N$22,5),P124) -> 8 | U124: =IF(O124>0,VLOOKUP(T124,'$ alcantarillado'!$I$5:$L$22,4),"0") -> 0.182 | V124: 0.02707247485 | W124: 0.6208704632 | X124: =IF(T124>0,4*V124/(PI()*(U124)^2),"") -> 1.040627507 | Y124: =IF(T124>0,(VLOOKUP($W124,Relaciones!$A$4:$D$108,2)),"") -> 0.908 | Z124: =IF(T124>0,Y124*X124,"") -> 0.9448897766 | AA124: =IF(T124>0,250*U124*J124,"") -> 0.3033333333 | AB124: =IF(T124>0,IF(W124<=$B$13,"OK","No Cumple"),"") -> OK | AC124: =IF(T124>0,IF(Z124>=$B$12,"OK","No Cumple"),"") -> OK | AD124: =IF(T124>0,IF(AA124>$B$14,"OK","No Cumple"),"") -> OK | AE124: =+IF(AB124="OK",1,0) -> 1 | AF124: =+IF(AC124="OK",1,0) -> 1 | AG124: =+IF(AD124="OK",1,0) -> 1 | AH124: =SUM(AE124:AG124) -> 3 | AI124: =IF(AH124=3,2*$B$7+U124,0) -> 0.682 | AJ124: =IF(AI124>0,I124*VLOOKUP(T124,'$ alcantarillado'!$I$6:$K$22,3),0) -> 2488675 | AK124: 3059486.1 | AL124: 1662590.742 | AM124: =IF(AJ124>0,AJ124+AK124+AL124,0) -> 7210751.842 | AN124: =+AP103 -> 0 | AO124: =IF((AM124)>0,IF(AN124>0,AM124+AN124,""),"") -> 
E125: 3 | F125: =+H108 -> 46.39 | G125: 1 | H125: =+H124 -> 46.39 | I125: =+I124 -> 75 | J125: 0 | K125: =+K124 -> 1460 | L125: 16.8085 | M125: 0.0168085 | N125: 0 | O125: 0 | P125: 0 | Q125: =IF(O125>0,VLOOKUP(P125,'$ alcantarillado'!$I$5:$L$22,4,FALSE),"0") -> 0 | S125: 0 | T125: =+IF(S125>$B$13,VLOOKUP(P125,'$ alcantarillado'!$I$6:$N$22,5),P125) -> 0 | U125: =IF(O125>0,VLOOKUP(T125,'$ alcantarillado'!$I$5:$L$22,4),"0") -> 0 | W125: 0 | Y125: =IF(T125>0,(VLOOKUP($W125,Relaciones!$A$4:$D$108,2)),"") ->  | AE125: 0 | AF125: 0 | AG125: 0 | AH125: 0 | AI125: 0 | AJ125: =IF(AI125>0,I125*VLOOKUP(T125,'$ alcantarillado'!$I$6:$K$22,3),0) -> 0 | AK125: 0 | AL125: 0 | AM125: 0 | AN125: =+AP108 -> 0
E126: 4 | F126: =+H113 -> 45.89 | G126: 1 | H126: 46.39 | I126: =+I125 -> 75 | J126: =+(F126-H126)/I126 -> -0.006666666667 | K126: =+K125 -> 1460 | L126: 16.8085 | M126: 0.0168085 | N126: 0 | O126: 0 | P126: 0 | Q126: =IF(O126>0,VLOOKUP(P126,'$ alcantarillado'!$I$5:$L$22,4,FALSE),"0") -> 0 | S126: 0 | T126: =+IF(S126>$B$13,VLOOKUP(P126,'$ alcantarillado'!$I$6:$N$22,5),P126) -> 0 | U126: =IF(O126>0,VLOOKUP(T126,'$ alcantarillado'!$I$5:$L$22,4),"0") -> 0 | W126: 0 | Y126: =IF(T126>0,(VLOOKUP($W126,Relaciones!$A$4:$D$108,2)),"") ->  | AE126: 0 | AF126: 0 | AG126: 0 | AH126: 0 | AI126: 0 | AJ126: =IF(AI126>0,I126*VLOOKUP(T126,'$ alcantarillado'!$I$6:$K$22,3),0) -> 0 | AK126: 0 | AL126: 0 | AM126: 0 | AN126: =+AP113 -> 41075190.05
E127: 5 | F127: =+H118 -> 45.39 | G127: 1 | H127: 46.39 | I127: =+I126 -> 75 | J127: -0.01333333333 | K127: =+K126 -> 1460 | L127: 16.8085 | M127: 0.0168085 | N127: 0 | O127: 0 | P127: 0 | Q127: =IF(O127>0,VLOOKUP(P127,'$ alcantarillado'!$I$5:$L$22,4,FALSE),"0") -> 0 | S127: 0 | T127: =+IF(S127>$B$13,VLOOKUP(P127,'$ alcantarillado'!$I$6:$N$22,5),P127) -> 0 | U127: =IF(O127>0,VLOOKUP(T127,'$ alcantarillado'!$I$5:$L$22,4),"0") -> 0 | W127: 0 | Y127: =IF(T127>0,(VLOOKUP($W127,Relaciones!$A$4:$D$108,2)),"") ->  | AE127: 0 | AF127: 0 | AG127: 0 | AH127: 0 | AI127: 0 | AJ127: =IF(AI127>0,I127*VLOOKUP(T127,'$ alcantarillado'!$I$6:$K$22,3),0) -> 0 | AK127: 0 | AL127: 0 | AM127: 0 | AN127: =+AP118 -> 40243953.58
E128: 1 | F128: =+H98 -> 47.39 | G128: 2 | H128: =+H123-$B$4 -> 45.89 | I128: =+I127 -> 75 | J128: =+(F128-H128)/I128 -> 0.02 | K128: =+K127 -> 1460 | L128: =IF(K128<38,K128^0.3686*0.7401,IF(K128<235,K128^0.4193*0.6215,IF(K128<932,K128*0.0092+4.2493,K128*0.0069+6.7345))) -> 16.8085 | M128: =+L128/1000 -> 0.0168085 | N128: 0.1238758158 | O128: 4.877000622 | P128: 6 | Q128: =IF(O128>0,VLOOKUP(P128,'$ alcantarillado'!$I$5:$L$22,4,FALSE),"0") -> 0.145 | R128: 0.02557876416 | S128: 0.6571271347 | T128: =+IF(S128>$B$13,VLOOKUP(P128,'$ alcantarillado'!$I$6:$N$22,5),P128) -> 6 | U128: =IF(O128>0,VLOOKUP(T128,'$ alcantarillado'!$I$5:$L$22,4),"0") -> 0.145 | V128: 0.02557876416 | W128: 0.6571271347 | X128: =IF(T128>0,4*V128/(PI()*(U128)^2),"") -> 1.549008039 | Y128: =IF(T128>0,(VLOOKUP($W128,Relaciones!$A$4:$D$108,2)),"") -> 0.922 | Z128: =IF(T128>0,Y128*X128,"") -> 1.428185412 | AA128: =IF(T128>0,250*U128*J128,"") -> 0.725 | AB128: =IF(T128>0,IF(W128<=$B$13,"OK","No Cumple"),"") -> OK | AC128: =IF(T128>0,IF(Z128>=$B$12,"OK","No Cumple"),"") -> OK | AD128: =IF(T128>0,IF(AA128>$B$14,"OK","No Cumple"),"") -> OK | AE128: =+IF(AB128="OK",1,0) -> 1 | AF128: =+IF(AC128="OK",1,0) -> 1 | AG128: =+IF(AD128="OK",1,0) -> 1 | AH128: =SUM(AE128:AG128) -> 3 | AI128: =IF(AH128=3,2*$B$7+U128,0) -> 0.645 | AJ128: =IF(AI128>0,I128*VLOOKUP(T128,'$ alcantarillado'!$I$6:$K$22,3),0) -> 1792662.5 | AK128: 2627488.125 | AL128: 1287774.945 | AM128: =IF(AJ128>0,AJ128+AK128+AL128,0) -> 5707925.57 | AN128: =IF(AP98>0,+AP98,0) -> 0 | AO128: =IF((AM128)>0,IF(AN128>0,AM128+AN128,""),"") ->  | AP128: =+MIN(AO128:AO132) -> 0
E129: 2 | F129: =+H103 -> 46.89 | G129: 2 | H129: =+H128 -> 45.89 | I129: =+I128 -> 75 | J129: 0.01333333333 | K129: =+K128 -> 1460 | L129: 16.8085 | M129: =+L129/1000 -> 0.0168085 | N129: 0.1336606715 | O129: 5.262231161 | P129: 6 | Q129: =IF(O129>0,VLOOKUP(P129,'$ alcantarillado'!$I$5:$L$22,4,FALSE),"0") -> 0.145 | R129: 0.02088497348 | S129: 0.8048130881 | T129: =+IF(S129>$B$13,VLOOKUP(P129,'$ alcantarillado'!$I$6:$N$22,5),P129) -> 6 | U129: =IF(O129>0,VLOOKUP(T129,'$ alcantarillado'!$I$5:$L$22,4),"0") -> 0.145 | V129: 0.02088497348 | W129: 0.8048130881 | X129: =IF(T129>0,4*V129/(PI()*(U129)^2),"") -> 1.264759768 | Y129: =IF(T129>0,(VLOOKUP($W129,Relaciones!$A$4:$D$108,2)),"") -> 0.984 | Z129: =IF(T129>0,Y129*X129,"") -> 1.244523612 | AA129: =IF(T129>0,250*U129*J129,"") -> 0.4833333333 | AB129: =IF(T129>0,IF(W129<=$B$13,"OK","No Cumple"),"") -> OK | AC129: =IF(T129>0,IF(Z129>=$B$12,"OK","No Cumple"),"") -> OK | AD129: =IF(T129>0,IF(AA129>$B$14,"OK","No Cumple"),"") -> OK | AE129: =+IF(AB129="OK",1,0) -> 1 | AF129: =+IF(AC129="OK",1,0) -> 1 | AG129: =+IF(AD129="OK",1,0) -> 1 | AH129: =SUM(AE129:AG129) -> 3 | AI129: =IF(AH129=3,2*$B$7+U129,0) -> 0.645 | AJ129: =IF(AI129>0,I129*VLOOKUP(T129,'$ alcantarillado'!$I$6:$K$22,3),0) -> 1792662.5 | AK129: 3062863.125 | AL129: 1636765.445 | AM129: 6492291.07 | AN129: =+AP103 -> 0 | AO129: =IF((AM129)>0,IF(AN129>0,AM129+AN129,""),"") -> 
E130: 3 | F130: =+H108 -> 46.39 | G130: 2 | H130: =+H129 -> 45.89 | I130: =+I129 -> 75 | J130: 0.006666666667 | K130: =+K129 -> 1460 | L130: 16.8085 | M130: 0.0168085 | N130: 0.1522112536 | O130: 5.99256904 | P130: 6 | Q130: =IF(O130>0,VLOOKUP(P130,'$ alcantarillado'!$I$5:$L$22,4,FALSE),"0") -> 0.145 | R130: 0.01476790637 | S130: 1.138177584 | T130: =+IF(S130>$B$13,VLOOKUP(P130,'$ alcantarillado'!$I$6:$N$22,5),P130) -> 8 | U130: =IF(O130>0,VLOOKUP(T130,'$ alcantarillado'!$I$5:$L$22,4),"0") -> 0.182 | V130: 0.02707247485 | W130: 0.6208704632 | X130: 1.040627507 | Y130: =IF(T130>0,(VLOOKUP($W130,Relaciones!$A$4:$D$108,2)),"") -> 0.908 | Z130: 0.9448897766 | AA130: 0.3033333333 | AB130: OK | AC130: OK | AD130: OK | AE130: 1 | AF130: 1 | AG130: 1 | AH130: 3 | AI130: 0.682 | AJ130: =IF(AI130>0,I130*VLOOKUP(T130,'$ alcantarillado'!$I$6:$K$22,3),0) -> 2488675 | AK130: 3750011.1 | AL130: 2011581.242 | AM130: 8250267.342 | AN130: =+AP108 -> 0
E131: 4 | F131: =+H113 -> 45.89 | G131: 2 | H131: 45.89 | I131: =+I130 -> 75 | J131: =+(F131-H131)/I131 -> 0 | K131: 1460 | L131: 16.8085 | M131: 0.0168085 | N131: 0 | O131: 0 | P131: 0 | Q131: =IF(O131>0,VLOOKUP(P131,'$ alcantarillado'!$I$5:$L$22,4,FALSE),"0") -> 0 | S131: 0 | T131: =+IF(S131>$B$13,VLOOKUP(P131,'$ alcantarillado'!$I$6:$N$22,5),P131) -> 0 | U131: =IF(O131>0,VLOOKUP(T131,'$ alcantarillado'!$I$5:$L$22,4),"0") -> 0 | W131: 0 | Y131: =IF(T131>0,(VLOOKUP($W131,Relaciones!$A$4:$D$108,2)),"") ->  | AE131: 0 | AF131: 0 | AG131: 0 | AH131: 0 | AI131: 0 | AJ131: =IF(AI131>0,I131*VLOOKUP(T131,'$ alcantarillado'!$I$6:$K$22,3),0) -> 0 | AK131: 0 | AL131: 0 | AM131: 0 | AN131: =+AP113 -> 41075190.05
E132: 5 | F132: =+H118 -> 45.39 | G132: 2 | H132: =+H131 -> 45.89 | I132: =+I131 -> 75 | J132: -0.006666666667 | K132: =+K131 -> 1460 | L132: 16.8085 | M132: 0.0168085 | N132: 0 | O132: 0 | P132: 0 | Q132: =IF(O132>0,VLOOKUP(P132,'$ alcantarillado'!$I$5:$L$22,4,FALSE),"0") -> 0 | S132: 0 | T132: =+IF(S132>$B$13,VLOOKUP(P132,'$ alcantarillado'!$I$6:$N$22,5),P132) -> 0 | U132: =IF(O132>0,VLOOKUP(T132,'$ alcantarillado'!$I$5:$L$22,4),"0") -> 0 | W132: 0 | Y132: =IF(T132>0,(VLOOKUP($W132,Relaciones!$A$4:$D$108,2)),"") ->  | AE132: 0 | AF132: 0 | AG132: 0 | AH132: 0 | AI132: 0 | AJ132: =IF(AI132>0,I132*VLOOKUP(T132,'$ alcantarillado'!$I$6:$K$22,3),0) -> 0 | AK132: 0 | AL132: 0 | AM132: 0 | AN132: =+AP118 -> 40243953.58
E133: 1 | F133: =+H98 -> 47.39 | G133: 3 | H133: =+H128-$B$4 -> 45.39 | I133: =+I132 -> 75 | J133: =+(F133-H133)/I133 -> 0.02666666667 | K133: =+K132 -> 1460 | L133: =IF(K133<38,K133^0.3686*0.7401,IF(K133<235,K133^0.4193*0.6215,IF(K133<932,K133*0.0092+4.2493,K133*0.0069+6.7345))) -> 16.8085 | M133: =+L133/1000 -> 0.0168085 | N133: 0.1173709215 | O133: 4.620902423 | P133: 6 | Q133: =IF(O133>0,VLOOKUP(P133,'$ alcantarillado'!$I$5:$L$22,4,FALSE),"0") -> 0.145 | R133: 0.02953581274 | S133: 0.5690887922 | T133: =+IF(S133>$B$13,VLOOKUP(P133,'$ alcantarillado'!$I$6:$N$22,5),P133) -> 6 | U133: =IF(O133>0,VLOOKUP(T133,'$ alcantarillado'!$I$5:$L$22,4),"0") -> 0.145 | V133: 0.02953581274 | W133: 0.5690887922 | X133: =IF(T133>0,4*V133/(PI()*(U133)^2),"") -> 1.788640417 | Y133: =IF(T133>0,(VLOOKUP($W133,Relaciones!$A$4:$D$108,2)),"") -> 0.88 | Z133: =IF(T133>0,Y133*X133,"") -> 1.574003567 | AA133: =IF(T133>0,250*U133*J133,"") -> 0.9666666667 | AB133: =IF(T133>0,IF(W133<=$B$13,"OK","No Cumple"),"") -> OK | AC133: =IF(T133>0,IF(Z133>=$B$12,"OK","No Cumple"),"") -> OK | AD133: =IF(T133>0,IF(AA133>$B$14,"OK","No Cumple"),"") -> OK | AE133: =+IF(AB133="OK",1,0) -> 1 | AF133: =+IF(AC133="OK",1,0) -> 1 | AG133: =+IF(AD133="OK",1,0) -> 1 | AH133: =SUM(AE133:AG133) -> 3 | AI133: =IF(AH133=3,2*$B$7+U133,0) -> 0.645 | AJ133: =IF(AI133>0,I133*VLOOKUP(T133,'$ alcantarillado'!$I$6:$K$22,3),0) -> 1792662.5 | AK133: 2845175.625 | AL133: 1287774.945 | AM133: =IF(AJ133>0,AJ133+AK133+AL133,0) -> 5925613.07 | AN133: =IF(AP98>0,+AP98,0) -> 0 | AO133: =IF((AM133)>0,IF(AN133>0,AM133+AN133,""),"") ->  | AP133: =+MIN(AO133:AO137) -> 50364972.89
E134: 2 | F134: =+H103 -> 46.89 | G134: 3 | H134: =+H133 -> 45.39 | I134: =+I133 -> 75 | J134: 0.02 | K134: =+K133 -> 1460 | L134: 16.8085 | M134: =+L134/1000 -> 0.0168085 | N134: 0.1238758158 | O134: 4.877000622 | P134: 6 | Q134: =IF(O134>0,VLOOKUP(P134,'$ alcantarillado'!$I$5:$L$22,4,FALSE),"0") -> 0.145 | R134: 0.02557876416 | S134: 0.6571271347 | T134: =+IF(S134>$B$13,VLOOKUP(P134,'$ alcantarillado'!$I$6:$N$22,5),P134) -> 6 | U134: =IF(O134>0,VLOOKUP(T134,'$ alcantarillado'!$I$5:$L$22,4),"0") -> 0.145 | V134: 0.02557876416 | W134: 0.6571271347 | X134: =IF(T134>0,4*V134/(PI()*(U134)^2),"") -> 1.549008039 | Y134: =IF(T134>0,(VLOOKUP($W134,Relaciones!$A$4:$D$108,2)),"") -> 0.922 | Z134: =IF(T134>0,Y134*X134,"") -> 1.428185412 | AA134: =IF(T134>0,250*U134*J134,"") -> 0.725 | AB134: =IF(T134>0,IF(W134<=$B$13,"OK","No Cumple"),"") -> OK | AC134: =IF(T134>0,IF(Z134>=$B$12,"OK","No Cumple"),"") -> OK | AD134: =IF(T134>0,IF(AA134>$B$14,"OK","No Cumple"),"") -> OK | AE134: =+IF(AB134="OK",1,0) -> 1 | AF134: =+IF(AC134="OK",1,0) -> 1 | AG134: =+IF(AD134="OK",1,0) -> 1 | AH134: =SUM(AE134:AG134) -> 3 | AI134: =IF(AH134=3,2*$B$7+U134,0) -> 0.645 | AJ134: =IF(AI134>0,I134*VLOOKUP(T134,'$ alcantarillado'!$I$6:$K$22,3),0) -> 1792662.5 | AK134: 3280550.625 | AL134: 1636765.445 | AM134: 6709978.57 | AN134: =+AP103 -> 0 | AO134: =IF((AM134)>0,IF(AN134>0,AM134+AN134,""),"") -> 
E135: 3 | F135: =+H108 -> 46.39 | G135: 3 | H135: =+H134 -> 45.39 | I135: =+I134 -> 75 | J135: 0.01333333333 | K135: =+K134 -> 1460 | L135: 16.8085 | M135: 0.0168085 | N135: 0.1336606715 | O135: 5.262231161 | P135: 6 | Q135: =IF(O135>0,VLOOKUP(P135,'$ alcantarillado'!$I$5:$L$22,4,FALSE),"0") -> 0.145 | R135: 0.02088497348 | S135: 0.8048130881 | T135: =+IF(S135>$B$13,VLOOKUP(P135,'$ alcantarillado'!$I$6:$N$22,5),P135) -> 6 | U135: =IF(O135>0,VLOOKUP(T135,'$ alcantarillado'!$I$5:$L$22,4),"0") -> 0.145 | V135: 0.02088497348 | W135: 0.8048130881 | X135: 1.264759768 | Y135: =IF(T135>0,(VLOOKUP($W135,Relaciones!$A$4:$D$108,2)),"") -> 0.984 | Z135: 1.244523612 | AA135: 0.4833333333 | AB135: OK | AC135: OK | AD135: OK | AE135: 1 | AF135: 1 | AG135: 1 | AH135: 3 | AI135: 0.645 | AJ135: =IF(AI135>0,I135*VLOOKUP(T135,'$ alcantarillado'!$I$6:$K$22,3),0) -> 1792662.5 | AK135: 3715925.625 | AL135: 1985755.945 | AM135: 7494344.07 | AN135: =+AP108 -> 0 | AQ135: 4 | AR135: 3
E136: 4 | F136: =+H113 -> 45.89 | G136: 3 | H136: 45.39 | I136: =+I135 -> 75 | J136: =+(F136-H136)/I136 -> 0.006666666667 | K136: 1460 | L136: 16.8085 | M136: 0.0168085 | N136: 0.1522112536 | O136: 5.99256904 | P136: 6 | Q136: =IF(O136>0,VLOOKUP(P136,'$ alcantarillado'!$I$5:$L$22,4,FALSE),"0") -> 0.145 | R136: 0.01476790637 | S136: 1.138177584 | T136: =+IF(S136>$B$13,VLOOKUP(P136,'$ alcantarillado'!$I$6:$N$22,5),P136) -> 8 | U136: =IF(O136>0,VLOOKUP(T136,'$ alcantarillado'!$I$5:$L$22,4),"0") -> 0.182 | V136: 0.02707247485 | W136: 0.6208704632 | X136: 1.040627507 | Y136: =IF(T136>0,(VLOOKUP($W136,Relaciones!$A$4:$D$108,2)),"") -> 0.908 | Z136: 0.9448897766 | AA136: 0.3033333333 | AB136: OK | AC136: OK | AD136: OK | AE136: 1 | AF136: 1 | AG136: 1 | AH136: 3 | AI136: 0.682 | AJ136: =IF(AI136>0,I136*VLOOKUP(T136,'$ alcantarillado'!$I$6:$K$22,3),0) -> 2488675 | AK136: 4440536.1 | AL136: 2360571.742 | AM136: 9289782.842 | AN136: =+AP113 -> 41075190.05 | AO136: 50364972.89
E137: 5 | F137: =+H118 -> 45.39 | G137: 3 | H137: =+H136 -> 45.39 | I137: =+I136 -> 75 | J137: 0 | K137: =+K136 -> 1460 | L137: 16.8085 | M137: 0.0168085 | N137: 0 | O137: 0 | P137: 0 | Q137: =IF(O137>0,VLOOKUP(P137,'$ alcantarillado'!$I$5:$L$22,4,FALSE),"0") -> 0 | S137: 0 | T137: =+IF(S137>$B$13,VLOOKUP(P137,'$ alcantarillado'!$I$6:$N$22,5),P137) -> 0 | U137: =IF(O137>0,VLOOKUP(T137,'$ alcantarillado'!$I$5:$L$22,4),"0") -> 0 | W137: 0 | Y137: =IF(T137>0,(VLOOKUP($W137,Relaciones!$A$4:$D$108,2)),"") ->  | AE137: 0 | AF137: 0 | AG137: 0 | AH137: 0 | AI137: 0 | AJ137: =IF(AI137>0,I137*VLOOKUP(T137,'$ alcantarillado'!$I$6:$K$22,3),0) -> 0 | AK137: 0 | AL137: 0 | AM137: 0 | AN137: =+AP118 -> 40243953.58
E138: 1 | F138: =+H98 -> 47.39 | G138: 4 | H138: =+H133-$B$4 -> 44.89 | I138: =+I133 -> 75 | J138: =+(F138-H138)/I138 -> 0.03333333333 | K138: =+K133 -> 1460 | L138: =IF(K138<38,K138^0.3686*0.7401,IF(K138<235,K138^0.4193*0.6215,IF(K138<932,K138*0.0092+4.2493,K138*0.0069+6.7345))) -> 16.8085 | M138: =+L138/1000 -> 0.0168085 | N138: 0.1125615039 | O138: 4.431555272 | P138: 6 | Q138: =IF(O138>0,VLOOKUP(P138,'$ alcantarillado'!$I$5:$L$22,4,FALSE),"0") -> 0.145 | R138: 0.03302204253 | S138: 0.5090084898 | T138: =+IF(S138>$B$13,VLOOKUP(P138,'$ alcantarillado'!$I$6:$N$22,5),P138) -> 6 | U138: =IF(O138>0,VLOOKUP(T138,'$ alcantarillado'!$I$5:$L$22,4),"0") -> 0.145 | V138: 0.03302204253 | W138: 0.5090084898 | X138: =IF(T138>0,4*V138/(PI()*(U138)^2),"") -> 1.99976078 | Y138: =IF(T138>0,(VLOOKUP($W138,Relaciones!$A$4:$D$108,2)),"") -> 0.85 | Z138: =IF(T138>0,Y138*X138,"") -> 1.699796663 | AA138: =IF(T138>0,250*U138*J138,"") -> 1.208333333 | AB138: =IF(T138>0,IF(W138<=$B$13,"OK","No Cumple"),"") -> OK | AC138: =IF(T138>0,IF(Z138>=$B$12,"OK","No Cumple"),"") -> OK | AD138: =IF(T138>0,IF(AA138>$B$14,"OK","No Cumple"),"") -> OK | AE138: =+IF(AB138="OK",1,0) -> 1 | AF138: =+IF(AC138="OK",1,0) -> 1 | AG138: =+IF(AD138="OK",1,0) -> 1 | AH138: =SUM(AE138:AG138) -> 3 | AI138: =IF(AH138=3,2*$B$7+U138,0) -> 0.645 | AJ138: =IF(AI138>0,I138*VLOOKUP(T138,'$ alcantarillado'!$I$6:$K$22,3),0) -> 1792662.5 | AK138: 3062863.125 | AL138: 1287774.945 | AM138: =IF(AJ138>0,AJ138+AK138+AL138,0) -> 6143300.57 | AN138: =IF(AP98>0,+AP98,0) -> 0 | AO138: =IF((AM138)>0,IF(AN138>0,AM138+AN138,""),"") ->  | AP138: =+MIN(AO138:AO142) -> 49571587.12
E139: 2 | F139: =+H103 -> 46.89 | G139: 4 | H139: =+H138 -> 44.89 | I139: =+I138 -> 75 | J139: 0.02666666667 | K139: =+K138 -> 1460 | L139: 16.8085 | M139: =+L139/1000 -> 0.0168085 | N139: 0.1173709215 | O139: 4.620902423 | P139: 6 | Q139: =IF(O139>0,VLOOKUP(P139,'$ alcantarillado'!$I$5:$L$22,4,FALSE),"0") -> 0.145 | R139: 0.02953581274 | S139: 0.5690887922 | T139: =+IF(S139>$B$13,VLOOKUP(P139,'$ alcantarillado'!$I$6:$N$22,5),P139) -> 6 | U139: =IF(O139>0,VLOOKUP(T139,'$ alcantarillado'!$I$5:$L$22,4),"0") -> 0.145 | V139: 0.02953581274 | W139: 0.5690887922 | X139: =IF(T139>0,4*V139/(PI()*(U139)^2),"") -> 1.788640417 | Y139: =IF(T139>0,(VLOOKUP($W139,Relaciones!$A$4:$D$108,2)),"") -> 0.88 | Z139: =IF(T139>0,Y139*X139,"") -> 1.574003567 | AA139: =IF(T139>0,250*U139*J139,"") -> 0.9666666667 | AB139: =IF(T139>0,IF(W139<=$B$13,"OK","No Cumple"),"") -> OK | AC139: =IF(T139>0,IF(Z139>=$B$12,"OK","No Cumple"),"") -> OK | AD139: =IF(T139>0,IF(AA139>$B$14,"OK","No Cumple"),"") -> OK | AE139: =+IF(AB139="OK",1,0) -> 1 | AF139: =+IF(AC139="OK",1,0) -> 1 | AG139: =+IF(AD139="OK",1,0) -> 1 | AH139: =SUM(AE139:AG139) -> 3 | AI139: =IF(AH139=3,2*$B$7+U139,0) -> 0.645 | AJ139: =IF(AI139>0,I139*VLOOKUP(T139,'$ alcantarillado'!$I$6:$K$22,3),0) -> 1792662.5 | AK139: 3498238.125 | AL139: 1636765.445 | AM139: 6927666.07 | AN139: =+AP103 -> 0 | AO139: =IF((AM139)>0,IF(AN139>0,AM139+AN139,""),"") -> 
E140: 3 | F140: =+H108 -> 46.39 | G140: 4 | H140: =+H139 -> 44.89 | I140: =+I139 -> 75 | J140: 0.02 | K140: =+K139 -> 1460 | L140: 16.8085 | M140: 0.0168085 | N140: 0.1238758158 | O140: 4.877000622 | P140: 6 | Q140: =IF(O140>0,VLOOKUP(P140,'$ alcantarillado'!$I$5:$L$22,4,FALSE),"0") -> 0.145 | R140: 0.02557876416 | S140: 0.6571271347 | T140: =+IF(S140>$B$13,VLOOKUP(P140,'$ alcantarillado'!$I$6:$N$22,5),P140) -> 6 | U140: =IF(O140>0,VLOOKUP(T140,'$ alcantarillado'!$I$5:$L$22,4),"0") -> 0.145 | V140: 0.02557876416 | W140: 0.6571271347 | X140: 1.549008039 | Y140: =IF(T140>0,(VLOOKUP($W140,Relaciones!$A$4:$D$108,2)),"") -> 0.922 | Z140: 1.428185412 | AA140: 0.725 | AB140: OK | AC140: OK | AD140: OK | AE140: 1 | AF140: 1 | AG140: 1 | AH140: 3 | AI140: 0.645 | AJ140: =IF(AI140>0,I140*VLOOKUP(T140,'$ alcantarillado'!$I$6:$K$22,3),0) -> 1792662.5 | AK140: 3933613.125 | AL140: 1985755.945 | AM140: 7712031.57 | AN140: =+AP108 -> 0 | AQ140: 4 | AR140: 4
E141: 4 | F141: =+H113 -> 45.89 | G141: 4 | H141: 44.89 | I141: =+I140 -> 75 | J141: =+(F141-H141)/I141 -> 0.01333333333 | K141: 1460 | L141: 16.8085 | M141: 0.0168085 | N141: 0.1336606715 | O141: 5.262231161 | P141: 6 | Q141: =IF(O141>0,VLOOKUP(P141,'$ alcantarillado'!$I$5:$L$22,4,FALSE),"0") -> 0.145 | R141: 0.02088497348 | S141: 0.8048130881 | T141: =+IF(S141>$B$13,VLOOKUP(P141,'$ alcantarillado'!$I$6:$N$22,5),P141) -> 6 | U141: =IF(O141>0,VLOOKUP(T141,'$ alcantarillado'!$I$5:$L$22,4),"0") -> 0.145 | V141: 0.02088497348 | W141: 0.8048130881 | X141: 1.264759768 | Y141: =IF(T141>0,(VLOOKUP($W141,Relaciones!$A$4:$D$108,2)),"") -> 0.984 | Z141: 1.244523612 | AA141: 0.4833333333 | AB141: OK | AC141: OK | AD141: OK | AE141: 1 | AF141: 1 | AG141: 1 | AH141: 3 | AI141: 0.645 | AJ141: =IF(AI141>0,I141*VLOOKUP(T141,'$ alcantarillado'!$I$6:$K$22,3),0) -> 1792662.5 | AK141: 4368988.125 | AL141: 2334746.445 | AM141: 8496397.07 | AN141: =+AP113 -> 41075190.05 | AO141: 49571587.12
E142: 5 | F142: =+H118 -> 45.39 | G142: 4 | H142: =+H141 -> 44.89 | I142: =+I141 -> 75 | J142: 0.006666666667 | K142: =+K141 -> 1460 | L142: 16.8085 | M142: 0.0168085 | N142: 0.1522112536 | O142: 5.99256904 | P142: 6 | Q142: =IF(O142>0,VLOOKUP(P142,'$ alcantarillado'!$I$5:$L$22,4,FALSE),"0") -> 0.145 | R142: 0.01476790637 | S142: 1.138177584 | T142: =+IF(S142>$B$13,VLOOKUP(P142,'$ alcantarillado'!$I$6:$N$22,5),P142) -> 8 | U142: =IF(O142>0,VLOOKUP(T142,'$ alcantarillado'!$I$5:$L$22,4),"0") -> 0.182 | V142: 0.02707247485 | W142: 0.6208704632 | X142: 1.040627507 | Y142: =IF(T142>0,(VLOOKUP($W142,Relaciones!$A$4:$D$108,2)),"") -> 0.908 | Z142: 0.9448897766 | AA142: 0.3033333333 | AB142: OK | AC142: OK | AD142: OK | AE142: 1 | AF142: 1 | AG142: 1 | AH142: 3 | AI142: 0.682 | AJ142: =IF(AI142>0,I142*VLOOKUP(T142,'$ alcantarillado'!$I$6:$K$22,3),0) -> 2488675 | AK142: 5131061.1 | AL142: 2709562.242 | AM142: 10329298.34 | AN142: =+AP118 -> 40243953.58 | AO142: 50573251.92
E143: 1 | F143: =+H98 -> 47.39 | G143: 5 | H143: =+H138-$B$4 -> 44.39 | I143: =+I138 -> 75 | J143: =+(F143-H143)/I143 -> 0.04 | K143: =+K138 -> 1460 | L143: =IF(K143<38,K143^0.3686*0.7401,IF(K143<235,K143^0.4193*0.6215,IF(K143<932,K143*0.0092+4.2493,K143*0.0069+6.7345))) -> 16.8085 | M143: =+L143/1000 -> 0.0168085 | N143: 0.1087785845 | O143: 4.282621439 | P143: 6 | Q143: =IF(O143>0,VLOOKUP(P143,'$ alcantarillado'!$I$5:$L$22,4,FALSE),"0") -> 0.145 | R143: 0.03617383518 | S143: 0.4646590531 | T143: =+IF(S143>$B$13,VLOOKUP(P143,'$ alcantarillado'!$I$6:$N$22,5),P143) -> 6 | U143: =IF(O143>0,VLOOKUP(T143,'$ alcantarillado'!$I$5:$L$22,4),"0") -> 0.145 | V143: 0.03617383518 | W143: 0.4646590531 | X143: =IF(T143>0,4*V143/(PI()*(U143)^2),"") -> 2.190628178 | Y143: =IF(T143>0,(VLOOKUP($W143,Relaciones!$A$4:$D$108,2)),"") -> 0.83 | Z143: =IF(T143>0,Y143*X143,"") -> 1.818221387 | AA143: =IF(T143>0,250*U143*J143,"") -> 1.45 | AB143: =IF(T143>0,IF(W143<=$B$13,"OK","No Cumple"),"") -> OK | AC143: =IF(T143>0,IF(Z143>=$B$12,"OK","No Cumple"),"") -> OK | AD143: =IF(T143>0,IF(AA143>$B$14,"OK","No Cumple"),"") -> OK | AE143: =+IF(AB143="OK",1,0) -> 1 | AF143: =+IF(AC143="OK",1,0) -> 1 | AG143: =+IF(AD143="OK",1,0) -> 1 | AH143: =SUM(AE143:AG143) -> 3 | AI143: =IF(AH143=3,2*$B$7+U143,0) -> 0.645 | AJ143: =IF(AI143>0,I143*VLOOKUP(T143,'$ alcantarillado'!$I$6:$K$22,3),0) -> 1792662.5 | AK143: 3280550.625 | AL143: 1287774.945 | AM143: =IF(AJ143>0,AJ143+AK143+AL143,0) -> 6360988.07 | AN143: =IF(AP98>0,+AP98,0) -> 0 | AO143: =IF((AM143)>0,IF(AN143>0,AM143+AN143,""),"") ->  | AP143: =+MIN(AO143:AO147) -> 49742403.65
E144: 2 | F144: =+H103 -> 46.89 | G144: 5 | H144: =+H143 -> 44.39 | I144: =+I143 -> 75 | J144: 0.03333333333 | K144: =+K143 -> 1460 | L144: 16.8085 | M144: =+L144/1000 -> 0.0168085 | N144: 0.1125615039 | O144: 4.431555272 | P144: 6 | Q144: =IF(O144>0,VLOOKUP(P144,'$ alcantarillado'!$I$5:$L$22,4,FALSE),"0") -> 0.145 | R144: 0.03302204253 | S144: 0.5090084898 | T144: =+IF(S144>$B$13,VLOOKUP(P144,'$ alcantarillado'!$I$6:$N$22,5),P144) -> 6 | U144: =IF(O144>0,VLOOKUP(T144,'$ alcantarillado'!$I$5:$L$22,4),"0") -> 0.145 | V144: 0.03302204253 | W144: 0.5090084898 | X144: =IF(T144>0,4*V144/(PI()*(U144)^2),"") -> 1.99976078 | Y144: =IF(T144>0,(VLOOKUP($W144,Relaciones!$A$4:$D$108,2)),"") -> 0.85 | Z144: =IF(T144>0,Y144*X144,"") -> 1.699796663 | AA144: =IF(T144>0,250*U144*J144,"") -> 1.208333333 | AB144: =IF(T144>0,IF(W144<=$B$13,"OK","No Cumple"),"") -> OK | AC144: =IF(T144>0,IF(Z144>=$B$12,"OK","No Cumple"),"") -> OK | AD144: =IF(T144>0,IF(AA144>$B$14,"OK","No Cumple"),"") -> OK | AE144: =+IF(AB144="OK",1,0) -> 1 | AF144: =+IF(AC144="OK",1,0) -> 1 | AG144: =+IF(AD144="OK",1,0) -> 1 | AH144: =SUM(AE144:AG144) -> 3 | AI144: =IF(AH144=3,2*$B$7+U144,0) -> 0.645 | AJ144: =IF(AI144>0,I144*VLOOKUP(T144,'$ alcantarillado'!$I$6:$K$22,3),0) -> 1792662.5 | AK144: 3715925.625 | AL144: 1636765.445 | AM144: 7145353.57 | AN144: =+AP103 -> 0 | AO144: =IF((AM144)>0,IF(AN144>0,AM144+AN144,""),"") -> 
E145: 3 | F145: =+H108 -> 46.39 | G145: 5 | H145: =+H144 -> 44.39 | I145: =+I144 -> 75 | J145: 0.02666666667 | K145: =+K144 -> 1460 | L145: 16.8085 | M145: 0.0168085 | N145: 0.1173709215 | O145: 4.620902423 | P145: 6 | Q145: =IF(O145>0,VLOOKUP(P145,'$ alcantarillado'!$I$5:$L$22,4,FALSE),"0") -> 0.145 | R145: 0.02953581274 | S145: 0.5690887922 | T145: =+IF(S145>$B$13,VLOOKUP(P145,'$ alcantarillado'!$I$6:$N$22,5),P145) -> 6 | U145: =IF(O145>0,VLOOKUP(T145,'$ alcantarillado'!$I$5:$L$22,4),"0") -> 0.145 | V145: 0.02953581274 | W145: 0.5690887922 | X145: 1.788640417 | Y145: =IF(T145>0,(VLOOKUP($W145,Relaciones!$A$4:$D$108,2)),"") -> 0.88 | Z145: 1.574003567 | AA145: 0.9666666667 | AB145: OK | AC145: OK | AD145: OK | AE145: 1 | AF145: 1 | AG145: 1 | AH145: 3 | AI145: 0.645 | AJ145: =IF(AI145>0,I145*VLOOKUP(T145,'$ alcantarillado'!$I$6:$K$22,3),0) -> 1792662.5 | AK145: 4151300.625 | AL145: 1985755.945 | AM145: 7929719.07 | AN145: =+AP108 -> 0 | AQ145: 5 | AR145: 5
E146: 4 | F146: =+H113 -> 45.89 | G146: 5 | H146: 44.39 | I146: =+I145 -> 75 | J146: =+(F146-H146)/I146 -> 0.02 | K146: 1460 | L146: 16.8085 | M146: 0.0168085 | N146: 0.1238758158 | O146: 4.877000622 | P146: 6 | Q146: =IF(O146>0,VLOOKUP(P146,'$ alcantarillado'!$I$5:$L$22,4,FALSE),"0") -> 0.145 | R146: 0.02557876416 | S146: 0.6571271347 | T146: =+IF(S146>$B$13,VLOOKUP(P146,'$ alcantarillado'!$I$6:$N$22,5),P146) -> 6 | U146: =IF(O146>0,VLOOKUP(T146,'$ alcantarillado'!$I$5:$L$22,4),"0") -> 0.145 | V146: 0.02557876416 | W146: 0.6571271347 | X146: 1.549008039 | Y146: =IF(T146>0,(VLOOKUP($W146,Relaciones!$A$4:$D$108,2)),"") -> 0.922 | Z146: 1.428185412 | AA146: 0.725 | AB146: OK | AC146: OK | AD146: OK | AE146: 1 | AF146: 1 | AG146: 1 | AH146: 3 | AI146: 0.645 | AJ146: =IF(AI146>0,I146*VLOOKUP(T146,'$ alcantarillado'!$I$6:$K$22,3),0) -> 1792662.5 | AK146: 4586675.625 | AL146: 2334746.445 | AM146: 8714084.57 | AN146: =+AP113 -> 41075190.05 | AO146: 49789274.62
E147: 5 | F147: =+H118 -> 45.39 | G147: 5 | H147: =+H146 -> 44.39 | I147: =+I146 -> 75 | J147: 0.01333333333 | K147: =+K146 -> 1460 | L147: 16.8085 | M147: 0.0168085 | N147: 0.1336606715 | O147: 5.262231161 | P147: 6 | Q147: =IF(O147>0,VLOOKUP(P147,'$ alcantarillado'!$I$5:$L$22,4,FALSE),"0") -> 0.145 | R147: 0.02088497348 | S147: 0.8048130881 | T147: =+IF(S147>$B$13,VLOOKUP(P147,'$ alcantarillado'!$I$6:$N$22,5),P147) -> 6 | U147: =IF(O147>0,VLOOKUP(T147,'$ alcantarillado'!$I$5:$L$22,4),"0") -> 0.145 | V147: 0.02088497348 | W147: 0.8048130881 | X147: 1.264759768 | Y147: =IF(T147>0,(VLOOKUP($W147,Relaciones!$A$4:$D$108,2)),"") -> 0.984 | Z147: 1.244523612 | AA147: 0.4833333333 | AB147: OK | AC147: OK | AD147: OK | AE147: 1 | AF147: 1 | AG147: 1 | AH147: 3 | AI147: 0.645 | AJ147: =IF(AI147>0,I147*VLOOKUP(T147,'$ alcantarillado'!$I$6:$K$22,3),0) -> 1792662.5 | AK147: 5022050.625 | AL147: 2683736.945 | AM147: 9498450.07 | AN147: =+AP118 -> 40243953.58 | AO147: 49742403.65
D148: 48.09
A151: 6 | B151: 3 | C151: 4 | D151: 48.83 | E151: 1 | F151: =+$D$151-$B$5 -> 47.63 | G151: 1 | H151: =+$D$176-$B$5-$B$4 -> 47.32 | I151: 80 | J151: =+(F151-H151)/I151 -> 0.003875 | K151: =6*H4 -> 948 | L151: =IF(K151<38,K151^0.3686*0.7401,IF(K151<235,K151^0.4193*0.6215,IF(K151<932,K151*0.0092+4.2493,K151*0.0069+6.7345))) -> 13.2757 | M151: =+L151/1000 -> 0.0132757 | N151: =+IF(J151>0,((M151*$B$2*(4^(5/3))/((J151^0.5)*PI()*$B$6))^(3/8)),0) -> 0.1542417285 | O151: =+N151*(100/2.54) -> 6.072508996 | P151: =IF(O151<0.1,0,IF(O151<4,6,EVEN(O151))) -> 8 | Q151: =IF(O151>0,VLOOKUP(P151,'$ alcantarillado'!$I$5:$L$22,4,FALSE),"0") -> 0.182 | R151: =IF(P151>0,PI()*((Q151)^(8/3))*((J151)^0.5)/($B$2*4^(5/3)),"") -> 0.02063998807 | S151: =IF(P151>0,+M151/R151,0) -> 0.6432028913 | T151: =+IF(S151>$B$13,VLOOKUP(P151,'$ alcantarillado'!$I$6:$N$22,5),P151) -> 8 | U151: =IF(O151>0,VLOOKUP(T151,'$ alcantarillado'!$I$5:$L$22,4),"0") -> 0.182 | V151: =IF(T151>0,PI()*((U151)^(8/3))*((J151)^0.5)/($B$2*4^(5/3)),"") -> 0.02063998807 | W151: =IF(T151>0,M151/V151,0) -> 0.6432028913 | X151: =IF(T151>0,4*V151/(PI()*(U151)^2),"") -> 0.7933718455 | Y151: =IF(T151>0,(VLOOKUP($W151,Relaciones!$A$4:$D$108,2)),"") -> 0.918 | Z151: =IF(T151>0,Y151*X151,"") -> 0.7283153541 | AA151: =IF(T151>0,250*U151*J151,"") -> 0.1763125 | AB151: =IF(T151>0,IF(W151<=$B$13,"OK","No Cumple"),"") -> OK | AC151: =IF(T151>0,IF(Z151>=$B$12,"OK","No Cumple"),"") -> OK | AD151: =IF(T151>0,IF(AA151>$B$14,"OK","No Cumple"),"") -> OK | AE151: =+IF(AB151="OK",1,0) -> 1 | AF151: =+IF(AC151="OK",1,0) -> 1 | AG151: =+IF(AD151="OK",1,0) -> 1 | AH151: =SUM(AE151:AG151) -> 3 | AI151: =IF(AH151=3,2*$B$7+U151,0) -> 0.682 | AJ151: =IF(AI151>0,I151*VLOOKUP(T151,'$ alcantarillado'!$I$6:$K$22,3),0) -> 2654586.667 | AK151: =IF(N151>0,((($D$151-F151)+(U151))+(($D$176-H151)+(U151))/2)*AI151*I151*$C$9,0) -> 2281371.84 | AL151: =IF(AI151>0,(($D$151-F151)+U151)*$C$10,0) -> 964609.742 | AM151: =IF(AJ151>0,AJ151+AK151+AL151,0) -> 5900568.249 | AN151: 0 | AO151: =IF((AM151+AN151)>0,(AM151+AN151),"") -> 5900568.249 | AP151: =+MIN(AO151:AO155) -> 5900568.249
E152: 2 | F152: =+F151-$B$4 -> 47.13 | G152: 1 | H152: =+H151 -> 47.32 | I152: =+I151 -> 80 | J152: =+(F152-H152)/I152 -> -0.002375 | K152: =+K151 -> 948 | L152: =IF(K152<38,K152^0.3686*0.7401,IF(K152<235,K152^0.4193*0.6215,IF(K152<932,K152*0.0092+4.2493,K152*0.0069+6.7345))) -> 13.2757 | M152: =+L152/1000 -> 0.0132757 | N152: 0 | O152: 0 | P152: 0 | Q152: =IF(O152>0,VLOOKUP(P152,'$ alcantarillado'!$I$5:$L$22,4,FALSE),"0") -> 0 | S152: 0 | T152: =+IF(S152>$B$13,VLOOKUP(P152,'$ alcantarillado'!$I$6:$N$22,5),P152) -> 0 | U152: =IF(O152>0,VLOOKUP(T152,'$ alcantarillado'!$I$5:$L$22,4),"0") -> 0 | W152: 0 | X152: =IF(T152>0,4*V152/(PI()*(U152)^2),"") ->  | Y152: =IF(T152>0,(VLOOKUP($W152,Relaciones!$A$4:$D$108,2)),"") ->  | Z152: =IF(T152>0,Y152*X152,"") ->  | AA152: =IF(T152>0,250*U152*J152,"") ->  | AB152: =IF(T152>0,IF(W152<=$B$13,"OK","No Cumple"),"") ->  | AC152: =IF(T152>0,IF(Z152>=$B$12,"OK","No Cumple"),"") ->  | AD152: =IF(T152>0,IF(AA152>$B$14,"OK","No Cumple"),"") ->  | AE152: =+IF(AB152="OK",1,0) -> 0 | AF152: =+IF(AC152="OK",1,0) -> 0 | AG152: =+IF(AD152="OK",1,0) -> 0 | AH152: =SUM(AE152:AG152) -> 0 | AI152: =IF(AH152=3,2*$B$7+U152,0) -> 0 | AJ152: =IF(AI152>0,I152*VLOOKUP(T152,'$ alcantarillado'!$I$6:$K$22,3),0) -> 0 | AK152: 0 | AL152: 0 | AM152: =IF(AJ152>0,AJ152+AK152+AL152,0) -> 0 | AN152: 0
E153: 3 | F153: =+F152-$B$4 -> 46.63 | G153: 1 | H153: =+H152 -> 47.32 | I153: =+I152 -> 80 | J153: -0.008625 | K153: =+K152 -> 948 | L153: 13.2757 | M153: 0.0132757 | N153: 0 | O153: 0 | P153: 0 | Q153: =IF(O153>0,VLOOKUP(P153,'$ alcantarillado'!$I$5:$L$22,4,FALSE),"0") -> 0 | S153: 0 | T153: =+IF(S153>$B$13,VLOOKUP(P153,'$ alcantarillado'!$I$6:$N$22,5),P153) -> 0 | U153: =IF(O153>0,VLOOKUP(T153,'$ alcantarillado'!$I$5:$L$22,4),"0") -> 0 | W153: 0 | Y153: =IF(T153>0,(VLOOKUP($W153,Relaciones!$A$4:$D$108,2)),"") ->  | AE153: 0 | AF153: 0 | AG153: 0 | AH153: 0 | AI153: 0 | AJ153: =IF(AI153>0,I153*VLOOKUP(T153,'$ alcantarillado'!$I$6:$K$22,3),0) -> 0 | AK153: 0 | AL153: 0 | AM153: 0 | AN153: 0 | AQ153: 1 | AR153: 1
E154: 4 | F154: =+F153-$B$4 -> 46.13 | G154: 1 | H154: 47.32 | I154: =+I153 -> 80 | J154: =+(F154-H154)/I154 -> -0.014875 | K154: =+K153 -> 948 | L154: 13.2757 | M154: 0.0132757 | N154: 0 | O154: 0 | P154: 0 | Q154: =IF(O154>0,VLOOKUP(P154,'$ alcantarillado'!$I$5:$L$22,4,FALSE),"0") -> 0 | S154: 0 | T154: =+IF(S154>$B$13,VLOOKUP(P154,'$ alcantarillado'!$I$6:$N$22,5),P154) -> 0 | U154: =IF(O154>0,VLOOKUP(T154,'$ alcantarillado'!$I$5:$L$22,4),"0") -> 0 | W154: 0 | Y154: =IF(T154>0,(VLOOKUP($W154,Relaciones!$A$4:$D$108,2)),"") ->  | AE154: 0 | AF154: 0 | AG154: 0 | AH154: 0 | AI154: 0 | AJ154: =IF(AI154>0,I154*VLOOKUP(T154,'$ alcantarillado'!$I$6:$K$22,3),0) -> 0 | AK154: 0 | AL154: 0 | AM154: 0 | AN154: 0
E155: 5 | F155: =+F154-$B$4 -> 45.63 | G155: 1 | H155: =+H154 -> 47.32 | I155: =+I154 -> 80 | J155: -0.021125 | K155: =+K154 -> 948 | L155: 13.2757 | M155: 0.0132757 | N155: 0 | O155: 0 | P155: 0 | Q155: =IF(O155>0,VLOOKUP(P155,'$ alcantarillado'!$I$5:$L$22,4,FALSE),"0") -> 0 | S155: 0 | T155: =+IF(S155>$B$13,VLOOKUP(P155,'$ alcantarillado'!$I$6:$N$22,5),P155) -> 0 | U155: =IF(O155>0,VLOOKUP(T155,'$ alcantarillado'!$I$5:$L$22,4),"0") -> 0 | W155: 0 | Y155: =IF(T155>0,(VLOOKUP($W155,Relaciones!$A$4:$D$108,2)),"") ->  | AE155: 0 | AF155: 0 | AG155: 0 | AH155: 0 | AI155: 0 | AJ155: =IF(AI155>0,I155*VLOOKUP(T155,'$ alcantarillado'!$I$6:$K$22,3),0) -> 0 | AK155: 0 | AL155: 0 | AM155: 0 | AN155: 0
E156: 1 | F156: =+$D$151-$B$5 -> 47.63 | G156: 2 | H156: =+H151-$B$4 -> 46.82 | I156: =+I155 -> 80 | J156: =+(F156-H156)/I156 -> 0.010125 | K156: =+K155 -> 948 | L156: =IF(K156<38,K156^0.3686*0.7401,IF(K156<235,K156^0.4193*0.6215,IF(K156<932,K156*0.0092+4.2493,K156*0.0069+6.7345))) -> 13.2757 | M156: =+L156/1000 -> 0.0132757 | N156: 0.1288223627 | O156: 5.071746561 | P156: 6 | Q156: =IF(O156>0,VLOOKUP(P156,'$ alcantarillado'!$I$5:$L$22,4,FALSE),"0") -> 0.145 | R156: 0.01819960975 | S156: 0.7294497068 | T156: =+IF(S156>$B$13,VLOOKUP(P156,'$ alcantarillado'!$I$6:$N$22,5),P156) -> 6 | U156: =IF(O156>0,VLOOKUP(T156,'$ alcantarillado'!$I$5:$L$22,4),"0") -> 0.145 | V156: 0.01819960975 | W156: 0.7294497068 | X156: =IF(T156>0,4*V156/(PI()*(U156)^2),"") -> 1.102138542 | Y156: =IF(T156>0,(VLOOKUP($W156,Relaciones!$A$4:$D$108,2)),"") -> 0.955 | Z156: =IF(T156>0,Y156*X156,"") -> 1.052542307 | AA156: =IF(T156>0,250*U156*J156,"") -> 0.36703125 | AB156: =IF(T156>0,IF(W156<=$B$13,"OK","No Cumple"),"") -> OK | AC156: =IF(T156>0,IF(Z156>=$B$12,"OK","No Cumple"),"") -> OK | AD156: =IF(T156>0,IF(AA156>$B$14,"OK","No Cumple"),"") -> OK | AE156: =+IF(AB156="OK",1,0) -> 1 | AF156: =+IF(AC156="OK",1,0) -> 1 | AG156: =+IF(AD156="OK",1,0) -> 1 | AH156: =SUM(AE156:AG156) -> 3 | AI156: =IF(AH156=3,2*$B$7+U156,0) -> 0.645 | AJ156: =IF(AI156>0,I156*VLOOKUP(T156,'$ alcantarillado'!$I$6:$K$22,3),0) -> 1912173.333 | AK156: 2338254 | AL156: 938784.445 | AM156: =IF(AJ156>0,AJ156+AK156+AL156,0) -> 5189211.778 | AN156: 0 | AO156: 5189211.778 | AP156: =+MIN(AO156:AO160) -> 5189211.778
E157: 2 | F157: =+F156-$B$4 -> 47.13 | G157: 2 | H157: =+H156 -> 46.82 | I157: =+I156 -> 80 | J157: 0.003875 | K157: =+K156 -> 948 | L157: 13.2757 | M157: =+L157/1000 -> 0.0132757 | N157: 0.1542417285 | O157: 6.072508996 | P157: 8 | Q157: =IF(O157>0,VLOOKUP(P157,'$ alcantarillado'!$I$5:$L$22,4,FALSE),"0") -> 0.182 | R157: 0.02063998807 | S157: 0.6432028913 | T157: =+IF(S157>$B$13,VLOOKUP(P157,'$ alcantarillado'!$I$6:$N$22,5),P157) -> 8 | U157: =IF(O157>0,VLOOKUP(T157,'$ alcantarillado'!$I$5:$L$22,4),"0") -> 0.182 | V157: 0.02063998807 | W157: 0.6432028913 | X157: =IF(T157>0,4*V157/(PI()*(U157)^2),"") -> 0.7933718455 | Y157: =IF(T157>0,(VLOOKUP($W157,Relaciones!$A$4:$D$108,2)),"") -> 0.918 | Z157: =IF(T157>0,Y157*X157,"") -> 0.7283153541 | AA157: =IF(T157>0,250*U157*J157,"") -> 0.1763125 | AB157: =IF(T157>0,IF(W157<=$B$13,"OK","No Cumple"),"") -> OK | AC157: =IF(T157>0,IF(Z157>=$B$12,"OK","No Cumple"),"") -> OK | AD157: =IF(T157>0,IF(AA157>$B$14,"OK","No Cumple"),"") -> OK | AE157: =+IF(AB157="OK",1,0) -> 1 | AF157: =+IF(AC157="OK",1,0) -> 1 | AG157: =+IF(AD157="OK",1,0) -> 1 | AH157: =SUM(AE157:AG157) -> 3 | AI157: =IF(AH157=3,2*$B$7+U157,0) -> 0.682 | AJ157: =IF(AI157>0,I157*VLOOKUP(T157,'$ alcantarillado'!$I$6:$K$22,3),0) -> 2654586.667 | AK157: 3017931.84 | AL157: 1313600.242 | AM157: 6986118.749 | AN157: 0 | AO157: 6986118.749
E158: 3 | F158: =+F157-$B$4 -> 46.63 | G158: 2 | H158: =+H157 -> 46.82 | I158: =+I157 -> 80 | J158: -0.002375 | K158: =+K157 -> 948 | L158: 13.2757 | M158: 0.0132757 | N158: 0 | O158: 0 | P158: 0 | Q158: =IF(O158>0,VLOOKUP(P158,'$ alcantarillado'!$I$5:$L$22,4,FALSE),"0") -> 0 | S158: 0 | T158: =+IF(S158>$B$13,VLOOKUP(P158,'$ alcantarillado'!$I$6:$N$22,5),P158) -> 0 | U158: =IF(O158>0,VLOOKUP(T158,'$ alcantarillado'!$I$5:$L$22,4),"0") -> 0 | W158: 0 | Y158: =IF(T158>0,(VLOOKUP($W158,Relaciones!$A$4:$D$108,2)),"") ->  | AE158: 0 | AF158: 0 | AG158: 0 | AH158: 0 | AI158: 0 | AJ158: =IF(AI158>0,I158*VLOOKUP(T158,'$ alcantarillado'!$I$6:$K$22,3),0) -> 0 | AK158: 0 | AL158: 0 | AM158: 0 | AN158: 0 | AQ158: 3 | AR158: 2
E159: 4 | F159: 46.13 | G159: 2 | H159: =+H158 -> 46.82 | I159: =+I158 -> 80 | J159: =+(F159-H159)/I159 -> -0.008625 | K159: 948 | L159: 13.2757 | M159: 0.0132757 | N159: 0 | O159: 0 | P159: 0 | Q159: =IF(O159>0,VLOOKUP(P159,'$ alcantarillado'!$I$5:$L$22,4,FALSE),"0") -> 0 | S159: 0 | T159: =+IF(S159>$B$13,VLOOKUP(P159,'$ alcantarillado'!$I$6:$N$22,5),P159) -> 0 | U159: =IF(O159>0,VLOOKUP(T159,'$ alcantarillado'!$I$5:$L$22,4),"0") -> 0 | W159: 0 | Y159: =IF(T159>0,(VLOOKUP($W159,Relaciones!$A$4:$D$108,2)),"") ->  | AE159: 0 | AF159: 0 | AG159: 0 | AH159: 0 | AI159: 0 | AJ159: =IF(AI159>0,I159*VLOOKUP(T159,'$ alcantarillado'!$I$6:$K$22,3),0) -> 0 | AK159: 0 | AL159: 0 | AM159: 0 | AN159: 0
E160: 5 | F160: 45.63 | G160: 2 | H160: =+H159 -> 46.82 | I160: =+I159 -> 80 | J160: -0.014875 | K160: =+K159 -> 948 | L160: 13.2757 | M160: 0.0132757 | N160: 0 | O160: 0 | P160: 0 | Q160: =IF(O160>0,VLOOKUP(P160,'$ alcantarillado'!$I$5:$L$22,4,FALSE),"0") -> 0 | S160: 0 | T160: =+IF(S160>$B$13,VLOOKUP(P160,'$ alcantarillado'!$I$6:$N$22,5),P160) -> 0 | U160: =IF(O160>0,VLOOKUP(T160,'$ alcantarillado'!$I$5:$L$22,4),"0") -> 0 | W160: 0 | Y160: =IF(T160>0,(VLOOKUP($W160,Relaciones!$A$4:$D$108,2)),"") ->  | AE160: 0 | AF160: 0 | AG160: 0 | AH160: 0 | AI160: 0 | AJ160: =IF(AI160>0,I160*VLOOKUP(T160,'$ alcantarillado'!$I$6:$K$22,3),0) -> 0 | AK160: 0 | AL160: 0 | AM160: 0 | AN160: 0
E161: 1 | F161: =+$D$151-$B$5 -> 47.63 | G161: 3 | H161: =+H156-$B$4 -> 46.32 | I161: =+I160 -> 80 | J161: =+(F161-H161)/I161 -> 0.016375 | K161: =+K160 -> 948 | L161: =IF(K161<38,K161^0.3686*0.7401,IF(K161<235,K161^0.4193*0.6215,IF(K161<932,K161*0.0092+4.2493,K161*0.0069+6.7345))) -> 13.2757 | M161: =+L161/1000 -> 0.0132757 | N161: 0.1177182597 | O161: 4.634577154 | P161: 6 | Q161: =IF(O161>0,VLOOKUP(P161,'$ alcantarillado'!$I$5:$L$22,4,FALSE),"0") -> 0.145 | R161: 0.02314489496 | S161: 0.5735908512 | T161: =+IF(S161>$B$13,VLOOKUP(P161,'$ alcantarillado'!$I$6:$N$22,5),P161) -> 6 | U161: =IF(O161>0,VLOOKUP(T161,'$ alcantarillado'!$I$5:$L$22,4),"0") -> 0.145 | V161: 0.02314489496 | W161: 0.5735908512 | X161: =IF(T161>0,4*V161/(PI()*(U161)^2),"") -> 1.401616909 | Y161: =IF(T161>0,(VLOOKUP($W161,Relaciones!$A$4:$D$108,2)),"") -> 0.885 | Z161: =IF(T161>0,Y161*X161,"") -> 1.240430965 | AA161: =IF(T161>0,250*U161*J161,"") -> 0.59359375 | AB161: =IF(T161>0,IF(W161<=$B$13,"OK","No Cumple"),"") -> OK | AC161: =IF(T161>0,IF(Z161>=$B$12,"OK","No Cumple"),"") -> OK | AD161: =IF(T161>0,IF(AA161>$B$14,"OK","No Cumple"),"") -> OK | AE161: =+IF(AB161="OK",1,0) -> 1 | AF161: =+IF(AC161="OK",1,0) -> 1 | AG161: =+IF(AD161="OK",1,0) -> 1 | AH161: =SUM(AE161:AG161) -> 3 | AI161: =IF(AH161=3,2*$B$7+U161,0) -> 0.645 | AJ161: =IF(AI161>0,I161*VLOOKUP(T161,'$ alcantarillado'!$I$6:$K$22,3),0) -> 1912173.333 | AK161: 2570454 | AL161: 938784.445 | AM161: =IF(AJ161>0,AJ161+AK161+AL161,0) -> 5421411.778 | AN161: 0 | AO161: 5421411.778 | AP161: =+MIN(AO161:AO165) -> 5421411.778
E162: 2 | F162: =+F161-$B$4 -> 47.13 | G162: 3 | H162: =+H161 -> 46.32 | I162: =+I161 -> 80 | J162: 0.010125 | K162: =+K161 -> 948 | L162: 13.2757 | M162: =+L162/1000 -> 0.0132757 | N162: 0.1288223627 | O162: 5.071746561 | P162: 6 | Q162: =IF(O162>0,VLOOKUP(P162,'$ alcantarillado'!$I$5:$L$22,4,FALSE),"0") -> 0.145 | R162: 0.01819960975 | S162: 0.7294497068 | T162: =+IF(S162>$B$13,VLOOKUP(P162,'$ alcantarillado'!$I$6:$N$22,5),P162) -> 6 | U162: =IF(O162>0,VLOOKUP(T162,'$ alcantarillado'!$I$5:$L$22,4),"0") -> 0.145 | V162: 0.01819960975 | W162: 0.7294497068 | X162: =IF(T162>0,4*V162/(PI()*(U162)^2),"") -> 1.102138542 | Y162: =IF(T162>0,(VLOOKUP($W162,Relaciones!$A$4:$D$108,2)),"") -> 0.955 | Z162: =IF(T162>0,Y162*X162,"") -> 1.052542307 | AA162: =IF(T162>0,250*U162*J162,"") -> 0.36703125 | AB162: =IF(T162>0,IF(W162<=$B$13,"OK","No Cumple"),"") -> OK | AC162: =IF(T162>0,IF(Z162>=$B$12,"OK","No Cumple"),"") -> OK | AD162: =IF(T162>0,IF(AA162>$B$14,"OK","No Cumple"),"") -> OK | AE162: =+IF(AB162="OK",1,0) -> 1 | AF162: =+IF(AC162="OK",1,0) -> 1 | AG162: =+IF(AD162="OK",1,0) -> 1 | AH162: =SUM(AE162:AG162) -> 3 | AI162: =IF(AH162=3,2*$B$7+U162,0) -> 0.645 | AJ162: =IF(AI162>0,I162*VLOOKUP(T162,'$ alcantarillado'!$I$6:$K$22,3),0) -> 1912173.333 | AK162: 3034854 | AL162: 1287774.945 | AM162: 6234802.278 | AN162: 0 | AO162: 6234802.278
E163: 3 | F163: =+F162-$B$4 -> 46.63 | G163: 3 | H163: =+H162 -> 46.32 | I163: =+I162 -> 80 | J163: 0.003875 | K163: =+K162 -> 948 | L163: 13.2757 | M163: 0.0132757 | N163: 0.1542417285 | O163: 6.072508996 | P163: 8 | Q163: =IF(O163>0,VLOOKUP(P163,'$ alcantarillado'!$I$5:$L$22,4,FALSE),"0") -> 0.182 | R163: 0.02063998807 | S163: 0.6432028913 | T163: =+IF(S163>$B$13,VLOOKUP(P163,'$ alcantarillado'!$I$6:$N$22,5),P163) -> 8 | U163: =IF(O163>0,VLOOKUP(T163,'$ alcantarillado'!$I$5:$L$22,4),"0") -> 0.182 | V163: 0.02063998807 | W163: 0.6432028913 | X163: 0.7933718455 | Y163: =IF(T163>0,(VLOOKUP($W163,Relaciones!$A$4:$D$108,2)),"") -> 0.918 | Z163: 0.7283153541 | AA163: 0.1763125 | AB163: OK | AC163: OK | AD163: OK | AE163: 1 | AF163: 1 | AG163: 1 | AH163: 3 | AI163: 0.682 | AJ163: =IF(AI163>0,I163*VLOOKUP(T163,'$ alcantarillado'!$I$6:$K$22,3),0) -> 2654586.667 | AK163: 3754491.84 | AL163: 1662590.742 | AM163: 8071669.249 | AN163: 0 | AO163: 8071669.249 | AQ163: 1 | AR163: 3
E164: 4 | F164: 46.13 | G164: 3 | H164: =+H163 -> 46.32 | I164: =+I163 -> 80 | J164: =+(F164-H164)/I164 -> -0.002375 | K164: 948 | L164: 13.2757 | M164: 0.0132757 | N164: 0 | O164: 0 | P164: 0 | Q164: =IF(O164>0,VLOOKUP(P164,'$ alcantarillado'!$I$5:$L$22,4,FALSE),"0") -> 0 | S164: 0 | T164: =+IF(S164>$B$13,VLOOKUP(P164,'$ alcantarillado'!$I$6:$N$22,5),P164) -> 0 | U164: =IF(O164>0,VLOOKUP(T164,'$ alcantarillado'!$I$5:$L$22,4),"0") -> 0 | W164: 0 | Y164: =IF(T164>0,(VLOOKUP($W164,Relaciones!$A$4:$D$108,2)),"") ->  | AE164: 0 | AF164: 0 | AG164: 0 | AH164: 0 | AI164: 0 | AJ164: =IF(AI164>0,I164*VLOOKUP(T164,'$ alcantarillado'!$I$6:$K$22,3),0) -> 0 | AK164: 0 | AL164: 0 | AM164: 0 | AN164: 0
E165: 5 | F165: 45.63 | G165: 3 | H165: =+H164 -> 46.32 | I165: =+I164 -> 80 | J165: -0.008625 | K165: =+K164 -> 948 | L165: 13.2757 | M165: 0.0132757 | N165: 0 | O165: 0 | P165: 0 | Q165: =IF(O165>0,VLOOKUP(P165,'$ alcantarillado'!$I$5:$L$22,4,FALSE),"0") -> 0 | S165: 0 | T165: =+IF(S165>$B$13,VLOOKUP(P165,'$ alcantarillado'!$I$6:$N$22,5),P165) -> 0 | U165: =IF(O165>0,VLOOKUP(T165,'$ alcantarillado'!$I$5:$L$22,4),"0") -> 0 | W165: 0 | Y165: =IF(T165>0,(VLOOKUP($W165,Relaciones!$A$4:$D$108,2)),"") ->  | AE165: 0 | AF165: 0 | AG165: 0 | AH165: 0 | AI165: 0 | AJ165: =IF(AI165>0,I165*VLOOKUP(T165,'$ alcantarillado'!$I$6:$K$22,3),0) -> 0 | AK165: 0 | AL165: 0 | AM165: 0 | AN165: 0
E166: 1 | F166: =+$D$151-$B$5 -> 47.63 | G166: 4 | H166: =+H161-$B$4 -> 45.82 | I166: =+I161 -> 80 | J166: =+(F166-H166)/I166 -> 0.022625 | K166: =+K161 -> 948 | L166: =IF(K166<38,K166^0.3686*0.7401,IF(K166<235,K166^0.4193*0.6215,IF(K166<932,K166*0.0092+4.2493,K166*0.0069+6.7345))) -> 13.2757 | M166: =+L166/1000 -> 0.0132757 | N166: 0.1107943128 | O166: 4.36198082 | P166: 6 | Q166: =IF(O166>0,VLOOKUP(P166,'$ alcantarillado'!$I$5:$L$22,4,FALSE),"0") -> 0.145 | R166: 0.02720563416 | S166: 0.4879761274 | T166: =+IF(S166>$B$13,VLOOKUP(P166,'$ alcantarillado'!$I$6:$N$22,5),P166) -> 6 | U166: =IF(O166>0,VLOOKUP(T166,'$ alcantarillado'!$I$5:$L$22,4),"0") -> 0.145 | V166: 0.02720563416 | W166: 0.4879761274 | X166: =IF(T166>0,4*V166/(PI()*(U166)^2),"") -> 1.647528621 | Y166: =IF(T166>0,(VLOOKUP($W166,Relaciones!$A$4:$D$108,2)),"") -> 0.84 | Z166: =IF(T166>0,Y166*X166,"") -> 1.383924041 | AA166: =IF(T166>0,250*U166*J166,"") -> 0.82015625 | AB166: =IF(T166>0,IF(W166<=$B$13,"OK","No Cumple"),"") -> OK | AC166: =IF(T166>0,IF(Z166>=$B$12,"OK","No Cumple"),"") -> OK | AD166: =IF(T166>0,IF(AA166>$B$14,"OK","No Cumple"),"") -> OK | AE166: =+IF(AB166="OK",1,0) -> 1 | AF166: =+IF(AC166="OK",1,0) -> 1 | AG166: =+IF(AD166="OK",1,0) -> 1 | AH166: =SUM(AE166:AG166) -> 3 | AI166: =IF(AH166=3,2*$B$7+U166,0) -> 0.645 | AJ166: =IF(AI166>0,I166*VLOOKUP(T166,'$ alcantarillado'!$I$6:$K$22,3),0) -> 1912173.333 | AK166: 2802654 | AL166: 938784.445 | AM166: =IF(AJ166>0,AJ166+AK166+AL166,0) -> 5653611.778 | AN166: 0 | AO166: 5653611.778 | AP166: =+MIN(AO166:AO170) -> 5653611.778
E167: 2 | F167: =+F166-$B$4 -> 47.13 | G167: 4 | H167: =+H166 -> 45.82 | I167: =+I166 -> 80 | J167: 0.016375 | K167: =+K166 -> 948 | L167: 13.2757 | M167: =+L167/1000 -> 0.0132757 | N167: 0.1177182597 | O167: 4.634577154 | P167: 6 | Q167: =IF(O167>0,VLOOKUP(P167,'$ alcantarillado'!$I$5:$L$22,4,FALSE),"0") -> 0.145 | R167: 0.02314489496 | S167: 0.5735908512 | T167: =+IF(S167>$B$13,VLOOKUP(P167,'$ alcantarillado'!$I$6:$N$22,5),P167) -> 6 | U167: =IF(O167>0,VLOOKUP(T167,'$ alcantarillado'!$I$5:$L$22,4),"0") -> 0.145 | V167: 0.02314489496 | W167: 0.5735908512 | X167: =IF(T167>0,4*V167/(PI()*(U167)^2),"") -> 1.401616909 | Y167: =IF(T167>0,(VLOOKUP($W167,Relaciones!$A$4:$D$108,2)),"") -> 0.885 | Z167: =IF(T167>0,Y167*X167,"") -> 1.240430965 | AA167: =IF(T167>0,250*U167*J167,"") -> 0.59359375 | AB167: =IF(T167>0,IF(W167<=$B$13,"OK","No Cumple"),"") -> OK | AC167: =IF(T167>0,IF(Z167>=$B$12,"OK","No Cumple"),"") -> OK | AD167: =IF(T167>0,IF(AA167>$B$14,"OK","No Cumple"),"") -> OK | AE167: =+IF(AB167="OK",1,0) -> 1 | AF167: =+IF(AC167="OK",1,0) -> 1 | AG167: =+IF(AD167="OK",1,0) -> 1 | AH167: =SUM(AE167:AG167) -> 3 | AI167: =IF(AH167=3,2*$B$7+U167,0) -> 0.645 | AJ167: =IF(AI167>0,I167*VLOOKUP(T167,'$ alcantarillado'!$I$6:$K$22,3),0) -> 1912173.333 | AK167: 3267054 | AL167: 1287774.945 | AM167: 6467002.278 | AN167: 0 | AO167: 6467002.278
E168: 3 | F168: =+F167-$B$4 -> 46.63 | G168: 4 | H168: =+H167 -> 45.82 | I168: =+I167 -> 80 | J168: 0.010125 | K168: =+K167 -> 948 | L168: 13.2757 | M168: 0.0132757 | N168: 0.1288223627 | O168: 5.071746561 | P168: 6 | Q168: =IF(O168>0,VLOOKUP(P168,'$ alcantarillado'!$I$5:$L$22,4,FALSE),"0") -> 0.145 | R168: 0.01819960975 | S168: 0.7294497068 | T168: =+IF(S168>$B$13,VLOOKUP(P168,'$ alcantarillado'!$I$6:$N$22,5),P168) -> 6 | U168: =IF(O168>0,VLOOKUP(T168,'$ alcantarillado'!$I$5:$L$22,4),"0") -> 0.145 | V168: 0.01819960975 | W168: 0.7294497068 | X168: 1.102138542 | Y168: =IF(T168>0,(VLOOKUP($W168,Relaciones!$A$4:$D$108,2)),"") -> 0.955 | Z168: 1.052542307 | AA168: 0.36703125 | AB168: OK | AC168: OK | AD168: OK | AE168: 1 | AF168: 1 | AG168: 1 | AH168: 3 | AI168: 0.645 | AJ168: =IF(AI168>0,I168*VLOOKUP(T168,'$ alcantarillado'!$I$6:$K$22,3),0) -> 1912173.333 | AK168: 3731454 | AL168: 1636765.445 | AM168: 7280392.778 | AN168: 0 | AO168: 7280392.778 | AQ168: 1 | AR168: 4
E169: 4 | F169: 46.13 | G169: 4 | H169: =+H168 -> 45.82 | I169: =+I168 -> 80 | J169: =+(F169-H169)/I169 -> 0.003875 | K169: 948 | L169: 13.2757 | M169: 0.0132757 | N169: 0.1542417285 | O169: 6.072508996 | P169: 8 | Q169: =IF(O169>0,VLOOKUP(P169,'$ alcantarillado'!$I$5:$L$22,4,FALSE),"0") -> 0.182 | R169: 0.02063998807 | S169: 0.6432028913 | T169: =+IF(S169>$B$13,VLOOKUP(P169,'$ alcantarillado'!$I$6:$N$22,5),P169) -> 8 | U169: =IF(O169>0,VLOOKUP(T169,'$ alcantarillado'!$I$5:$L$22,4),"0") -> 0.182 | V169: 0.02063998807 | W169: 0.6432028913 | X169: 0.7933718455 | Y169: =IF(T169>0,(VLOOKUP($W169,Relaciones!$A$4:$D$108,2)),"") -> 0.918 | Z169: 0.7283153541 | AA169: 0.1763125 | AB169: OK | AC169: OK | AD169: OK | AE169: 1 | AF169: 1 | AG169: 1 | AH169: 3 | AI169: 0.682 | AJ169: =IF(AI169>0,I169*VLOOKUP(T169,'$ alcantarillado'!$I$6:$K$22,3),0) -> 2654586.667 | AK169: 4491051.84 | AL169: 2011581.242 | AM169: 9157219.749 | AN169: 0 | AO169: 9157219.749
E170: 5 | F170: 45.63 | G170: 4 | H170: =+H169 -> 45.82 | I170: =+I169 -> 80 | J170: -0.002375 | K170: =+K169 -> 948 | L170: 13.2757 | M170: 0.0132757 | N170: 0 | O170: 0 | P170: 0 | Q170: =IF(O170>0,VLOOKUP(P170,'$ alcantarillado'!$I$5:$L$22,4,FALSE),"0") -> 0 | S170: 0 | T170: =+IF(S170>$B$13,VLOOKUP(P170,'$ alcantarillado'!$I$6:$N$22,5),P170) -> 0 | U170: =IF(O170>0,VLOOKUP(T170,'$ alcantarillado'!$I$5:$L$22,4),"0") -> 0 | W170: 0 | Y170: =IF(T170>0,(VLOOKUP($W170,Relaciones!$A$4:$D$108,2)),"") ->  | AE170: 0 | AF170: 0 | AG170: 0 | AH170: 0 | AI170: 0 | AJ170: =IF(AI170>0,I170*VLOOKUP(T170,'$ alcantarillado'!$I$6:$K$22,3),0) -> 0 | AK170: 0 | AL170: 0 | AM170: 0 | AN170: 0
E171: 1 | F171: =+$D$151-$B$5 -> 47.63 | G171: 5 | H171: =+H166-$B$4 -> 45.32 | I171: =+I166 -> 80 | J171: =+(F171-H171)/I171 -> 0.028875 | K171: =+K166 -> 948 | L171: =IF(K171<38,K171^0.3686*0.7401,IF(K171<235,K171^0.4193*0.6215,IF(K171<932,K171*0.0092+4.2493,K171*0.0069+6.7345))) -> 13.2757 | M171: =+L171/1000 -> 0.0132757 | N171: 0.1058412487 | O171: 4.166978294 | P171: 6 | Q171: =IF(O171>0,VLOOKUP(P171,'$ alcantarillado'!$I$5:$L$22,4,FALSE),"0") -> 0.145 | R171: 0.03073445782 | S171: 0.4319484039 | T171: =+IF(S171>$B$13,VLOOKUP(P171,'$ alcantarillado'!$I$6:$N$22,5),P171) -> 6 | U171: =IF(O171>0,VLOOKUP(T171,'$ alcantarillado'!$I$5:$L$22,4),"0") -> 0.145 | V171: 0.03073445782 | W171: 0.4319484039 | X171: =IF(T171>0,4*V171/(PI()*(U171)^2),"") -> 1.861228399 | Y171: =IF(T171>0,(VLOOKUP($W171,Relaciones!$A$4:$D$108,2)),"") -> 0.81 | Z171: =IF(T171>0,Y171*X171,"") -> 1.507595003 | AA171: =IF(T171>0,250*U171*J171,"") -> 1.04671875 | AB171: =IF(T171>0,IF(W171<=$B$13,"OK","No Cumple"),"") -> OK | AC171: =IF(T171>0,IF(Z171>=$B$12,"OK","No Cumple"),"") -> OK | AD171: =IF(T171>0,IF(AA171>$B$14,"OK","No Cumple"),"") -> OK | AE171: =+IF(AB171="OK",1,0) -> 1 | AF171: =+IF(AC171="OK",1,0) -> 1 | AG171: =+IF(AD171="OK",1,0) -> 1 | AH171: =SUM(AE171:AG171) -> 3 | AI171: =IF(AH171=3,2*$B$7+U171,0) -> 0.645 | AJ171: =IF(AI171>0,I171*VLOOKUP(T171,'$ alcantarillado'!$I$6:$K$22,3),0) -> 1912173.333 | AK171: 3034854 | AL171: 938784.445 | AM171: =IF(AJ171>0,AJ171+AK171+AL171,0) -> 5885811.778 | AN171: 0 | AO171: 5885811.778 | AP171: =+MIN(AO171:AO175) -> 5885811.778
E172: 2 | F172: =+F171-$B$4 -> 47.13 | G172: 5 | H172: =+H171 -> 45.32 | I172: =+I171 -> 80 | J172: 0.022625 | K172: =+K171 -> 948 | L172: 13.2757 | M172: =+L172/1000 -> 0.0132757 | N172: 0.1107943128 | O172: 4.36198082 | P172: 6 | Q172: =IF(O172>0,VLOOKUP(P172,'$ alcantarillado'!$I$5:$L$22,4,FALSE),"0") -> 0.145 | R172: 0.02720563416 | S172: 0.4879761274 | T172: =+IF(S172>$B$13,VLOOKUP(P172,'$ alcantarillado'!$I$6:$N$22,5),P172) -> 6 | U172: =IF(O172>0,VLOOKUP(T172,'$ alcantarillado'!$I$5:$L$22,4),"0") -> 0.145 | V172: 0.02720563416 | W172: 0.4879761274 | X172: =IF(T172>0,4*V172/(PI()*(U172)^2),"") -> 1.647528621 | Y172: =IF(T172>0,(VLOOKUP($W172,Relaciones!$A$4:$D$108,2)),"") -> 0.84 | Z172: =IF(T172>0,Y172*X172,"") -> 1.383924041 | AA172: =IF(T172>0,250*U172*J172,"") -> 0.82015625 | AB172: =IF(T172>0,IF(W172<=$B$13,"OK","No Cumple"),"") -> OK | AC172: =IF(T172>0,IF(Z172>=$B$12,"OK","No Cumple"),"") -> OK | AD172: =IF(T172>0,IF(AA172>$B$14,"OK","No Cumple"),"") -> OK | AE172: =+IF(AB172="OK",1,0) -> 1 | AF172: =+IF(AC172="OK",1,0) -> 1 | AG172: =+IF(AD172="OK",1,0) -> 1 | AH172: =SUM(AE172:AG172) -> 3 | AI172: =IF(AH172=3,2*$B$7+U172,0) -> 0.645 | AJ172: =IF(AI172>0,I172*VLOOKUP(T172,'$ alcantarillado'!$I$6:$K$22,3),0) -> 1912173.333 | AK172: 3499254 | AL172: 1287774.945 | AM172: 6699202.278 | AN172: 0 | AO172: 6699202.278
E173: 3 | F173: =+F172-$B$4 -> 46.63 | G173: 5 | H173: =+H172 -> 45.32 | I173: =+I172 -> 80 | J173: 0.016375 | K173: =+K172 -> 948 | L173: 13.2757 | M173: 0.0132757 | N173: 0.1177182597 | O173: 4.634577154 | P173: 6 | Q173: =IF(O173>0,VLOOKUP(P173,'$ alcantarillado'!$I$5:$L$22,4,FALSE),"0") -> 0.145 | R173: 0.02314489496 | S173: 0.5735908512 | T173: =+IF(S173>$B$13,VLOOKUP(P173,'$ alcantarillado'!$I$6:$N$22,5),P173) -> 6 | U173: =IF(O173>0,VLOOKUP(T173,'$ alcantarillado'!$I$5:$L$22,4),"0") -> 0.145 | V173: 0.02314489496 | W173: 0.5735908512 | X173: 1.401616909 | Y173: =IF(T173>0,(VLOOKUP($W173,Relaciones!$A$4:$D$108,2)),"") -> 0.885 | Z173: 1.240430965 | AA173: 0.59359375 | AB173: OK | AC173: OK | AD173: OK | AE173: 1 | AF173: 1 | AG173: 1 | AH173: 3 | AI173: 0.645 | AJ173: =IF(AI173>0,I173*VLOOKUP(T173,'$ alcantarillado'!$I$6:$K$22,3),0) -> 1912173.333 | AK173: 3963654 | AL173: 1636765.445 | AM173: 7512592.778 | AN173: 0 | AO173: 7512592.778 | AQ173: 1 | AR173: 5
E174: 4 | F174: 46.13 | G174: 5 | H174: =+H173 -> 45.32 | I174: =+I173 -> 80 | J174: =+(F174-H174)/I174 -> 0.010125 | K174: 948 | L174: 13.2757 | M174: 0.0132757 | N174: 0.1288223627 | O174: 5.071746561 | P174: 6 | Q174: =IF(O174>0,VLOOKUP(P174,'$ alcantarillado'!$I$5:$L$22,4,FALSE),"0") -> 0.145 | R174: 0.01819960975 | S174: 0.7294497068 | T174: =+IF(S174>$B$13,VLOOKUP(P174,'$ alcantarillado'!$I$6:$N$22,5),P174) -> 6 | U174: =IF(O174>0,VLOOKUP(T174,'$ alcantarillado'!$I$5:$L$22,4),"0") -> 0.145 | V174: 0.01819960975 | W174: 0.7294497068 | X174: 1.102138542 | Y174: =IF(T174>0,(VLOOKUP($W174,Relaciones!$A$4:$D$108,2)),"") -> 0.955 | Z174: 1.052542307 | AA174: 0.36703125 | AB174: OK | AC174: OK | AD174: OK | AE174: 1 | AF174: 1 | AG174: 1 | AH174: 3 | AI174: 0.645 | AJ174: =IF(AI174>0,I174*VLOOKUP(T174,'$ alcantarillado'!$I$6:$K$22,3),0) -> 1912173.333 | AK174: 4428054 | AL174: 1985755.945 | AM174: 8325983.278 | AN174: 0 | AO174: 8325983.278
E175: 5 | F175: 45.63 | G175: 5 | H175: =+H174 -> 45.32 | I175: =+I174 -> 80 | J175: 0.003875 | K175: =+K174 -> 948 | L175: 13.2757 | M175: 0.0132757 | N175: 0.1542417285 | O175: 6.072508996 | P175: 8 | Q175: =IF(O175>0,VLOOKUP(P175,'$ alcantarillado'!$I$5:$L$22,4,FALSE),"0") -> 0.182 | R175: 0.02063998807 | S175: 0.6432028913 | T175: =+IF(S175>$B$13,VLOOKUP(P175,'$ alcantarillado'!$I$6:$N$22,5),P175) -> 8 | U175: =IF(O175>0,VLOOKUP(T175,'$ alcantarillado'!$I$5:$L$22,4),"0") -> 0.182 | V175: 0.02063998807 | W175: 0.6432028913 | X175: 0.7933718455 | Y175: =IF(T175>0,(VLOOKUP($W175,Relaciones!$A$4:$D$108,2)),"") -> 0.918 | Z175: 0.7283153541 | AA175: 0.1763125 | AB175: OK | AC175: OK | AD175: OK | AE175: 1 | AF175: 1 | AG175: 1 | AH175: 3 | AI175: 0.682 | AJ175: =IF(AI175>0,I175*VLOOKUP(T175,'$ alcantarillado'!$I$6:$K$22,3),0) -> 2654586.667 | AK175: 5227611.84 | AL175: 2360571.742 | AM175: 10242770.25 | AN175: 0 | AO175: 10242770.25
A176: 7 | B176: 4 | C176: 5 | D176: 49.02 | E176: 1 | F176: =+H151 -> 47.32 | G176: 1 | H176: =+$D$201-$B$5-$B$4 -> 47.39 | I176: 80 | J176: =+(F176-H176)/I176 -> -0.000875 | K176: =+K151 -> 948 | L176: =IF(K176<38,K176^0.3686*0.7401,IF(K176<235,K176^0.4193*0.6215,IF(K176<932,K176*0.0092+4.2493,K176*0.0069+6.7345))) -> 13.2757 | M176: =+L176/1000 -> 0.0132757 | N176: 0 | O176: 0 | P176: 0 | Q176: =IF(O176>0,VLOOKUP(P176,'$ alcantarillado'!$I$5:$L$22,4,FALSE),"0") -> 0 | S176: 0 | T176: =+IF(S176>$B$13,VLOOKUP(P176,'$ alcantarillado'!$I$6:$N$22,5),P176) -> 0 | U176: =IF(O176>0,VLOOKUP(T176,'$ alcantarillado'!$I$5:$L$22,4),"0") -> 0 | W176: 0 | X176: =IF(T176>0,4*V176/(PI()*(U176)^2),"") ->  | Y176: =IF(T176>0,(VLOOKUP($W176,Relaciones!$A$4:$D$108,2)),"") ->  | Z176: =IF(T176>0,Y176*X176,"") ->  | AA176: =IF(T176>0,250*U176*J176,"") ->  | AB176: =IF(T176>0,IF(W176<=$B$13,"OK","No Cumple"),"") ->  | AC176: =IF(T176>0,IF(Z176>=$B$12,"OK","No Cumple"),"") ->  | AD176: =IF(T176>0,IF(AA176>$B$14,"OK","No Cumple"),"") ->  | AE176: =+IF(AB176="OK",1,0) -> 0 | AF176: =+IF(AC176="OK",1,0) -> 0 | AG176: =+IF(AD176="OK",1,0) -> 0 | AH176: =SUM(AE176:AG176) -> 0 | AI176: =IF(AH176=3,2*$B$7+U176,0) -> 0 | AJ176: =IF(AI176>0,I176*VLOOKUP(T176,'$ alcantarillado'!$I$6:$K$22,3),0) -> 0 | AK176: =IF(N176>0,((($D$176-F176)+(U176))+(($D$201-H176)+(U176))/2)*AI176*I176*$C$9,0) -> 0 | AL176: =IF(AI176>0,(($D$176-F176)+U176)*$C$10,0) -> 0 | AM176: =IF(AJ176>0,AJ176+AK176+AL176,0) -> 0 | AN176: =IF(AP151>0,+AP151,0) -> 5900568.249 | AO176: =IF((AM176)>0,IF(AN176>0,AM176+AN176,""),"") ->  | AP176: =+MIN(AO176:AO180) -> 0
E177: 2 | F177: =+H156 -> 46.82 | G177: 1 | H177: =+H176 -> 47.39 | I177: =+I176 -> 80 | J177: =+(F177-H177)/I177 -> -0.007125 | K177: =+K176 -> 948 | L177: =IF(K177<38,K177^0.3686*0.7401,IF(K177<235,K177^0.4193*0.6215,IF(K177<932,K177*0.0092+4.2493,K177*0.0069+6.7345))) -> 13.2757 | M177: =+L177/1000 -> 0.0132757 | N177: 0 | O177: 0 | P177: 0 | Q177: =IF(O177>0,VLOOKUP(P177,'$ alcantarillado'!$I$5:$L$22,4,FALSE),"0") -> 0 | S177: 0 | T177: =+IF(S177>$B$13,VLOOKUP(P177,'$ alcantarillado'!$I$6:$N$22,5),P177) -> 0 | U177: =IF(O177>0,VLOOKUP(T177,'$ alcantarillado'!$I$5:$L$22,4),"0") -> 0 | W177: 0 | X177: =IF(T177>0,4*V177/(PI()*(U177)^2),"") ->  | Y177: =IF(T177>0,(VLOOKUP($W177,Relaciones!$A$4:$D$108,2)),"") ->  | Z177: =IF(T177>0,Y177*X177,"") ->  | AA177: =IF(T177>0,250*U177*J177,"") ->  | AB177: =IF(T177>0,IF(W177<=$B$13,"OK","No Cumple"),"") ->  | AC177: =IF(T177>0,IF(Z177>=$B$12,"OK","No Cumple"),"") ->  | AD177: =IF(T177>0,IF(AA177>$B$14,"OK","No Cumple"),"") ->  | AE177: =+IF(AB177="OK",1,0) -> 0 | AF177: =+IF(AC177="OK",1,0) -> 0 | AG177: =+IF(AD177="OK",1,0) -> 0 | AH177: =SUM(AE177:AG177) -> 0 | AI177: =IF(AH177=3,2*$B$7+U177,0) -> 0 | AJ177: =IF(AI177>0,I177*VLOOKUP(T177,'$ alcantarillado'!$I$6:$K$22,3),0) -> 0 | AK177: 0 | AL177: 0 | AM177: =IF(AJ177>0,AJ177+AK177+AL177,0) -> 0 | AN177: =+AP156 -> 5189211.778 | AO177: =IF((AM177)>0,IF(AN177>0,AM177+AN177,""),"") -> 
E178: 3 | F178: =+H161 -> 46.32 | G178: 1 | H178: =+H177 -> 47.39 | I178: =+I177 -> 80 | J178: -0.013375 | K178: =+K177 -> 948 | L178: 13.2757 | M178: 0.0132757 | N178: 0 | O178: 0 | P178: 0 | Q178: =IF(O178>0,VLOOKUP(P178,'$ alcantarillado'!$I$5:$L$22,4,FALSE),"0") -> 0 | S178: 0 | T178: =+IF(S178>$B$13,VLOOKUP(P178,'$ alcantarillado'!$I$6:$N$22,5),P178) -> 0 | U178: =IF(O178>0,VLOOKUP(T178,'$ alcantarillado'!$I$5:$L$22,4),"0") -> 0 | W178: 0 | Y178: =IF(T178>0,(VLOOKUP($W178,Relaciones!$A$4:$D$108,2)),"") ->  | AE178: 0 | AF178: 0 | AG178: 0 | AH178: 0 | AI178: 0 | AJ178: =IF(AI178>0,I178*VLOOKUP(T178,'$ alcantarillado'!$I$6:$K$22,3),0) -> 0 | AK178: 0 | AL178: 0 | AM178: 0 | AN178: =+AP161 -> 5421411.778
E179: 4 | F179: =+H166 -> 45.82 | G179: 1 | H179: 47.39 | I179: =+I178 -> 80 | J179: =+(F179-H179)/I179 -> -0.019625 | K179: =+K178 -> 948 | L179: 13.2757 | M179: 0.0132757 | N179: 0 | O179: 0 | P179: 0 | Q179: =IF(O179>0,VLOOKUP(P179,'$ alcantarillado'!$I$5:$L$22,4,FALSE),"0") -> 0 | S179: 0 | T179: =+IF(S179>$B$13,VLOOKUP(P179,'$ alcantarillado'!$I$6:$N$22,5),P179) -> 0 | U179: =IF(O179>0,VLOOKUP(T179,'$ alcantarillado'!$I$5:$L$22,4),"0") -> 0 | W179: 0 | Y179: =IF(T179>0,(VLOOKUP($W179,Relaciones!$A$4:$D$108,2)),"") ->  | AE179: 0 | AF179: 0 | AG179: 0 | AH179: 0 | AI179: 0 | AJ179: =IF(AI179>0,I179*VLOOKUP(T179,'$ alcantarillado'!$I$6:$K$22,3),0) -> 0 | AK179: 0 | AL179: 0 | AM179: 0 | AN179: =+AP166 -> 5653611.778
E180: 5 | F180: =+H171 -> 45.32 | G180: 1 | H180: =+H179 -> 47.39 | I180: =+I179 -> 80 | J180: -0.025875 | K180: =+K179 -> 948 | L180: 13.2757 | M180: 0.0132757 | N180: 0 | O180: 0 | P180: 0 | Q180: =IF(O180>0,VLOOKUP(P180,'$ alcantarillado'!$I$5:$L$22,4,FALSE),"0") -> 0 | S180: 0 | T180: =+IF(S180>$B$13,VLOOKUP(P180,'$ alcantarillado'!$I$6:$N$22,5),P180) -> 0 | U180: =IF(O180>0,VLOOKUP(T180,'$ alcantarillado'!$I$5:$L$22,4),"0") -> 0 | W180: 0 | Y180: =IF(T180>0,(VLOOKUP($W180,Relaciones!$A$4:$D$108,2)),"") ->  | AE180: 0 | AF180: 0 | AG180: 0 | AH180: 0 | AI180: 0 | AJ180: =IF(AI180>0,I180*VLOOKUP(T180,'$ alcantarillado'!$I$6:$K$22,3),0) -> 0 | AK180: 0 | AL180: 0 | AM180: 0 | AN180: =+AP171 -> 5885811.778
E181: 1 | F181: =+H151 -> 47.32 | G181: 2 | H181: =+H176-$B$4 -> 46.89 | I181: =+I180 -> 80 | J181: =+(F181-H181)/I181 -> 0.005375 | K181: =+K180 -> 948 | L181: =IF(K181<38,K181^0.3686*0.7401,IF(K181<235,K181^0.4193*0.6215,IF(K181<932,K181*0.0092+4.2493,K181*0.0069+6.7345))) -> 13.2757 | M181: =+L181/1000 -> 0.0132757 | N181: 0.1450630704 | O181: 5.711144506 | P181: 6 | Q181: =IF(O181>0,VLOOKUP(P181,'$ alcantarillado'!$I$5:$L$22,4,FALSE),"0") -> 0.145 | R181: 0.01326031357 | S181: 1.001160337 | T181: =+IF(S181>$B$13,VLOOKUP(P181,'$ alcantarillado'!$I$6:$N$22,5),P181) -> 8 | U181: =IF(O181>0,VLOOKUP(T181,'$ alcantarillado'!$I$5:$L$22,4),"0") -> 0.182 | V181: 0.02430876094 | W181: 0.5461282058 | X181: =IF(T181>0,4*V181/(PI()*(U181)^2),"") -> 0.9343942675 | Y181: =IF(T181>0,(VLOOKUP($W181,Relaciones!$A$4:$D$108,2)),"") -> 0.87 | Z181: =IF(T181>0,Y181*X181,"") -> 0.8129230128 | AA181: =IF(T181>0,250*U181*J181,"") -> 0.2445625 | AB181: =IF(T181>0,IF(W181<=$B$13,"OK","No Cumple"),"") -> OK | AC181: =IF(T181>0,IF(Z181>=$B$12,"OK","No Cumple"),"") -> OK | AD181: =IF(T181>0,IF(AA181>$B$14,"OK","No Cumple"),"") -> OK | AE181: =+IF(AB181="OK",1,0) -> 1 | AF181: =+IF(AC181="OK",1,0) -> 1 | AG181: =+IF(AD181="OK",1,0) -> 1 | AH181: =SUM(AE181:AG181) -> 3 | AI181: =IF(AH181=3,2*$B$7+U181,0) -> 0.682 | AJ181: =IF(AI181>0,I181*VLOOKUP(T181,'$ alcantarillado'!$I$6:$K$22,3),0) -> 2654586.667 | AK181: 3017931.84 | AL181: 1313600.242 | AM181: =IF(AJ181>0,AJ181+AK181+AL181,0) -> 6986118.749 | AN181: =IF(AP151>0,+AP151,0) -> 5900568.249 | AO181: =IF((AM181)>0,IF(AN181>0,AM181+AN181,""),"") -> 12886687 | AP181: =+MIN(AO181:AO185) -> 12886687
E182: 2 | F182: =+H156 -> 46.82 | G182: 2 | H182: =+H181 -> 46.89 | I182: =+I181 -> 80 | J182: -0.000875 | K182: =+K181 -> 948 | L182: 13.2757 | M182: =+L182/1000 -> 0.0132757 | N182: 0 | O182: 0 | P182: 0 | Q182: =IF(O182>0,VLOOKUP(P182,'$ alcantarillado'!$I$5:$L$22,4,FALSE),"0") -> 0 | S182: 0 | T182: =+IF(S182>$B$13,VLOOKUP(P182,'$ alcantarillado'!$I$6:$N$22,5),P182) -> 0 | U182: =IF(O182>0,VLOOKUP(T182,'$ alcantarillado'!$I$5:$L$22,4),"0") -> 0 | W182: 0 | X182: =IF(T182>0,4*V182/(PI()*(U182)^2),"") ->  | Y182: =IF(T182>0,(VLOOKUP($W182,Relaciones!$A$4:$D$108,2)),"") ->  | Z182: =IF(T182>0,Y182*X182,"") ->  | AA182: =IF(T182>0,250*U182*J182,"") ->  | AB182: =IF(T182>0,IF(W182<=$B$13,"OK","No Cumple"),"") ->  | AC182: =IF(T182>0,IF(Z182>=$B$12,"OK","No Cumple"),"") ->  | AD182: =IF(T182>0,IF(AA182>$B$14,"OK","No Cumple"),"") ->  | AE182: =+IF(AB182="OK",1,0) -> 0 | AF182: =+IF(AC182="OK",1,0) -> 0 | AG182: =+IF(AD182="OK",1,0) -> 0 | AH182: =SUM(AE182:AG182) -> 0 | AI182: =IF(AH182=3,2*$B$7+U182,0) -> 0 | AJ182: =IF(AI182>0,I182*VLOOKUP(T182,'$ alcantarillado'!$I$6:$K$22,3),0) -> 0 | AK182: 0 | AL182: 0 | AM182: 0 | AN182: =+AP156 -> 5189211.778 | AO182: =IF((AM182)>0,IF(AN182>0,AM182+AN182,""),"") -> 
E183: 3 | F183: =+H161 -> 46.32 | G183: 2 | H183: =+H182 -> 46.89 | I183: =+I182 -> 80 | J183: -0.007125 | K183: =+K182 -> 948 | L183: 13.2757 | M183: 0.0132757 | N183: 0 | O183: =+N183*(100/2.54) -> 0 | P183: 0 | Q183: =IF(O183>0,VLOOKUP(P183,'$ alcantarillado'!$I$5:$L$22,4,FALSE),"0") -> 0 | R183: =IF(P183>0,PI()*((Q183)^(8/3))*((J183)^0.5)/($B$2*4^(5/3)),"") ->  | S183: =IF(P183>0,+M183/R183,0) -> 0 | T183: =+IF(S183>$B$13,VLOOKUP(P183,'$ alcantarillado'!$I$6:$N$22,5),P183) -> 0 | U183: =IF(O183>0,VLOOKUP(T183,'$ alcantarillado'!$I$5:$L$22,4),"0") -> 0 | W183: =IF(T183>0,M183/V183,0) -> 0 | Y183: =IF(T183>0,(VLOOKUP($W183,Relaciones!$A$4:$D$108,2)),"") ->  | AE183: 0 | AF183: 0 | AG183: 0 | AH183: 0 | AI183: 0 | AJ183: =IF(AI183>0,I183*VLOOKUP(T183,'$ alcantarillado'!$I$6:$K$22,3),0) -> 0 | AK183: 0 | AL183: 0 | AM183: 0 | AN183: =+AP161 -> 5421411.778 | AQ183: 1 | AR183: 2
E184: 4 | F184: =+H166 -> 45.82 | G184: 2 | H184: 46.89 | I184: =+I183 -> 80 | J184: =+(F184-H184)/I184 -> -0.013375 | K184: 948 | L184: 13.2757 | M184: 0.0132757 | N184: 0 | O184: 0 | P184: 0 | Q184: =IF(O184>0,VLOOKUP(P184,'$ alcantarillado'!$I$5:$L$22,4,FALSE),"0") -> 0 | S184: 0 | T184: =+IF(S184>$B$13,VLOOKUP(P184,'$ alcantarillado'!$I$6:$N$22,5),P184) -> 0 | U184: =IF(O184>0,VLOOKUP(T184,'$ alcantarillado'!$I$5:$L$22,4),"0") -> 0 | W184: 0 | Y184: =IF(T184>0,(VLOOKUP($W184,Relaciones!$A$4:$D$108,2)),"") ->  | AE184: 0 | AF184: 0 | AG184: 0 | AH184: 0 | AI184: 0 | AJ184: =IF(AI184>0,I184*VLOOKUP(T184,'$ alcantarillado'!$I$6:$K$22,3),0) -> 0 | AK184: 0 | AL184: 0 | AM184: 0 | AN184: =+AP166 -> 5653611.778
E185: 5 | F185: =+H171 -> 45.32 | G185: 2 | H185: =+H184 -> 46.89 | I185: =+I184 -> 80 | J185: -0.019625 | K185: =+K184 -> 948 | L185: 13.2757 | M185: 0.0132757 | N185: 0 | O185: 0 | P185: 0 | Q185: =IF(O185>0,VLOOKUP(P185,'$ alcantarillado'!$I$5:$L$22,4,FALSE),"0") -> 0 | S185: 0 | T185: =+IF(S185>$B$13,VLOOKUP(P185,'$ alcantarillado'!$I$6:$N$22,5),P185) -> 0 | U185: =IF(O185>0,VLOOKUP(T185,'$ alcantarillado'!$I$5:$L$22,4),"0") -> 0 | W185: 0 | Y185: =IF(T185>0,(VLOOKUP($W185,Relaciones!$A$4:$D$108,2)),"") ->  | AE185: 0 | AF185: 0 | AG185: 0 | AH185: 0 | AI185: 0 | AJ185: =IF(AI185>0,I185*VLOOKUP(T185,'$ alcantarillado'!$I$6:$K$22,3),0) -> 0 | AK185: 0 | AL185: 0 | AM185: 0 | AN185: =+AP171 -> 5885811.778
E186: 1 | F186: =+H151 -> 47.32 | G186: 3 | H186: =+H181-$B$4 -> 46.39 | I186: =+I185 -> 80 | J186: =+(F186-H186)/I186 -> 0.011625 | K186: =+K185 -> 948 | L186: =IF(K186<38,K186^0.3686*0.7401,IF(K186<235,K186^0.4193*0.6215,IF(K186<932,K186*0.0092+4.2493,K186*0.0069+6.7345))) -> 13.2757 | M186: =+L186/1000 -> 0.0132757 | N186: 0.1255283003 | O186: 4.942059065 | P186: 6 | Q186: =IF(O186>0,VLOOKUP(P186,'$ alcantarillado'!$I$5:$L$22,4,FALSE),"0") -> 0.145 | R186: 0.01950118672 | S186: 0.6807636988 | T186: =+IF(S186>$B$13,VLOOKUP(P186,'$ alcantarillado'!$I$6:$N$22,5),P186) -> 6 | U186: =IF(O186>0,VLOOKUP(T186,'$ alcantarillado'!$I$5:$L$22,4),"0") -> 0.145 | V186: 0.01950118672 | W186: 0.6807636988 | X186: =IF(T186>0,4*V186/(PI()*(U186)^2),"") -> 1.18095991 | Y186: =IF(T186>0,(VLOOKUP($W186,Relaciones!$A$4:$D$108,2)),"") -> 0.936 | Z186: =IF(T186>0,Y186*X186,"") -> 1.105378475 | AA186: =IF(T186>0,250*U186*J186,"") -> 0.42140625 | AB186: =IF(T186>0,IF(W186<=$B$13,"OK","No Cumple"),"") -> OK | AC186: =IF(T186>0,IF(Z186>=$B$12,"OK","No Cumple"),"") -> OK | AD186: =IF(T186>0,IF(AA186>$B$14,"OK","No Cumple"),"") -> OK | AE186: =+IF(AB186="OK",1,0) -> 1 | AF186: =+IF(AC186="OK",1,0) -> 1 | AG186: =+IF(AD186="OK",1,0) -> 1 | AH186: =SUM(AE186:AG186) -> 3 | AI186: =IF(AH186=3,2*$B$7+U186,0) -> 0.645 | AJ186: =IF(AI186>0,I186*VLOOKUP(T186,'$ alcantarillado'!$I$6:$K$22,3),0) -> 1912173.333 | AK186: 3034854 | AL186: 1287774.945 | AM186: =IF(AJ186>0,AJ186+AK186+AL186,0) -> 6234802.278 | AN186: =IF(AP151>0,+AP151,0) -> 5900568.249 | AO186: =IF((AM186)>0,IF(AN186>0,AM186+AN186,""),"") -> 12135370.53 | AP186: =+MIN(AO186:AO190) -> 12135370.53
E187: 2 | F187: =+H156 -> 46.82 | G187: 3 | H187: =+H186 -> 46.39 | I187: =+I186 -> 80 | J187: 0.005375 | K187: =+K186 -> 948 | L187: 13.2757 | M187: =+L187/1000 -> 0.0132757 | N187: 0.1450630704 | O187: 5.711144506 | P187: 6 | Q187: =IF(O187>0,VLOOKUP(P187,'$ alcantarillado'!$I$5:$L$22,4,FALSE),"0") -> 0.145 | R187: 0.01326031357 | S187: 1.001160337 | T187: =+IF(S187>$B$13,VLOOKUP(P187,'$ alcantarillado'!$I$6:$N$22,5),P187) -> 8 | U187: =IF(O187>0,VLOOKUP(T187,'$ alcantarillado'!$I$5:$L$22,4),"0") -> 0.182 | V187: 0.02430876094 | W187: 0.5461282058 | X187: =IF(T187>0,4*V187/(PI()*(U187)^2),"") -> 0.9343942675 | Y187: =IF(T187>0,(VLOOKUP($W187,Relaciones!$A$4:$D$108,2)),"") -> 0.87 | Z187: =IF(T187>0,Y187*X187,"") -> 0.8129230128 | AA187: =IF(T187>0,250*U187*J187,"") -> 0.2445625 | AB187: =IF(T187>0,IF(W187<=$B$13,"OK","No Cumple"),"") -> OK | AC187: =IF(T187>0,IF(Z187>=$B$12,"OK","No Cumple"),"") -> OK | AD187: =IF(T187>0,IF(AA187>$B$14,"OK","No Cumple"),"") -> OK | AE187: =+IF(AB187="OK",1,0) -> 1 | AF187: =+IF(AC187="OK",1,0) -> 1 | AG187: =+IF(AD187="OK",1,0) -> 1 | AH187: =SUM(AE187:AG187) -> 3 | AI187: =IF(AH187=3,2*$B$7+U187,0) -> 0.682 | AJ187: =IF(AI187>0,I187*VLOOKUP(T187,'$ alcantarillado'!$I$6:$K$22,3),0) -> 2654586.667 | AK187: 3754491.84 | AL187: 1662590.742 | AM187: 8071669.249 | AN187: =+AP156 -> 5189211.778 | AO187: =IF((AM187)>0,IF(AN187>0,AM187+AN187,""),"") -> 13260881.03
E188: 3 | F188: =+H161 -> 46.32 | G188: 3 | H188: =+H187 -> 46.39 | I188: =+I187 -> 80 | J188: -0.000875 | K188: =+K187 -> 948 | L188: 13.2757 | M188: 0.0132757 | N188: 0 | O188: 0 | P188: 0 | Q188: =IF(O188>0,VLOOKUP(P188,'$ alcantarillado'!$I$5:$L$22,4,FALSE),"0") -> 0 | S188: 0 | T188: =+IF(S188>$B$13,VLOOKUP(P188,'$ alcantarillado'!$I$6:$N$22,5),P188) -> 0 | U188: =IF(O188>0,VLOOKUP(T188,'$ alcantarillado'!$I$5:$L$22,4),"0") -> 0 | W188: 0 | Y188: =IF(T188>0,(VLOOKUP($W188,Relaciones!$A$4:$D$108,2)),"") ->  | AE188: 0 | AF188: 0 | AG188: 0 | AH188: 0 | AI188: 0 | AJ188: =IF(AI188>0,I188*VLOOKUP(T188,'$ alcantarillado'!$I$6:$K$22,3),0) -> 0 | AK188: 0 | AL188: 0 | AM188: 0 | AN188: =+AP161 -> 5421411.778 | AQ188: 1 | AR188: 3
E189: 4 | F189: =+H166 -> 45.82 | G189: 3 | H189: 46.39 | I189: =+I188 -> 80 | J189: =+(F189-H189)/I189 -> -0.007125 | K189: 948 | L189: 13.2757 | M189: 0.0132757 | N189: 0 | O189: 0 | P189: 0 | Q189: =IF(O189>0,VLOOKUP(P189,'$ alcantarillado'!$I$5:$L$22,4,FALSE),"0") -> 0 | S189: 0 | T189: =+IF(S189>$B$13,VLOOKUP(P189,'$ alcantarillado'!$I$6:$N$22,5),P189) -> 0 | U189: =IF(O189>0,VLOOKUP(T189,'$ alcantarillado'!$I$5:$L$22,4),"0") -> 0 | W189: 0 | Y189: =IF(T189>0,(VLOOKUP($W189,Relaciones!$A$4:$D$108,2)),"") ->  | AE189: 0 | AF189: 0 | AG189: 0 | AH189: 0 | AI189: 0 | AJ189: =IF(AI189>0,I189*VLOOKUP(T189,'$ alcantarillado'!$I$6:$K$22,3),0) -> 0 | AK189: 0 | AL189: 0 | AM189: 0 | AN189: =+AP166 -> 5653611.778
E190: 5 | F190: =+H171 -> 45.32 | G190: 3 | H190: =+H189 -> 46.39 | I190: =+I189 -> 80 | J190: -0.013375 | K190: =+K189 -> 948 | L190: 13.2757 | M190: 0.0132757 | N190: 0 | O190: 0 | P190: 0 | Q190: =IF(O190>0,VLOOKUP(P190,'$ alcantarillado'!$I$5:$L$22,4,FALSE),"0") -> 0 | S190: 0 | T190: =+IF(S190>$B$13,VLOOKUP(P190,'$ alcantarillado'!$I$6:$N$22,5),P190) -> 0 | U190: =IF(O190>0,VLOOKUP(T190,'$ alcantarillado'!$I$5:$L$22,4),"0") -> 0 | W190: 0 | Y190: =IF(T190>0,(VLOOKUP($W190,Relaciones!$A$4:$D$108,2)),"") ->  | AE190: 0 | AF190: 0 | AG190: 0 | AH190: 0 | AI190: 0 | AJ190: =IF(AI190>0,I190*VLOOKUP(T190,'$ alcantarillado'!$I$6:$K$22,3),0) -> 0 | AK190: 0 | AL190: 0 | AM190: 0 | AN190: =+AP171 -> 5885811.778
E191: 1 | F191: =+H151 -> 47.32 | G191: 4 | H191: =+H186-$B$4 -> 45.89 | I191: =+I186 -> 80 | J191: =+(F191-H191)/I191 -> 0.017875 | K191: =+K186 -> 948 | L191: =IF(K191<38,K191^0.3686*0.7401,IF(K191<235,K191^0.4193*0.6215,IF(K191<932,K191*0.0092+4.2493,K191*0.0069+6.7345))) -> 13.2757 | M191: =+L191/1000 -> 0.0132757 | N191: 0.1157995026 | O191: 4.559035536 | P191: 6 | Q191: =IF(O191>0,VLOOKUP(P191,'$ alcantarillado'!$I$5:$L$22,4,FALSE),"0") -> 0.145 | R191: 0.0241817421 | S191: 0.5489968401 | T191: =+IF(S191>$B$13,VLOOKUP(P191,'$ alcantarillado'!$I$6:$N$22,5),P191) -> 6 | U191: =IF(O191>0,VLOOKUP(T191,'$ alcantarillado'!$I$5:$L$22,4),"0") -> 0.145 | V191: 0.0241817421 | W191: 0.5489968401 | X191: =IF(T191>0,4*V191/(PI()*(U191)^2),"") -> 1.464406673 | Y191: =IF(T191>0,(VLOOKUP($W191,Relaciones!$A$4:$D$108,2)),"") -> 0.87 | Z191: =IF(T191>0,Y191*X191,"") -> 1.274033805 | AA191: =IF(T191>0,250*U191*J191,"") -> 0.64796875 | AB191: =IF(T191>0,IF(W191<=$B$13,"OK","No Cumple"),"") -> OK | AC191: =IF(T191>0,IF(Z191>=$B$12,"OK","No Cumple"),"") -> OK | AD191: =IF(T191>0,IF(AA191>$B$14,"OK","No Cumple"),"") -> OK | AE191: =+IF(AB191="OK",1,0) -> 1 | AF191: =+IF(AC191="OK",1,0) -> 1 | AG191: =+IF(AD191="OK",1,0) -> 1 | AH191: =SUM(AE191:AG191) -> 3 | AI191: =IF(AH191=3,2*$B$7+U191,0) -> 0.645 | AJ191: =IF(AI191>0,I191*VLOOKUP(T191,'$ alcantarillado'!$I$6:$K$22,3),0) -> 1912173.333 | AK191: 3267054 | AL191: 1287774.945 | AM191: =IF(AJ191>0,AJ191+AK191+AL191,0) -> 6467002.278 | AN191: =IF(AP151>0,+AP151,0) -> 5900568.249 | AO191: =IF((AM191)>0,IF(AN191>0,AM191+AN191,""),"") -> 12367570.53 | AP191: =+MIN(AO191:AO195) -> 12367570.53
E192: 2 | F192: =+H156 -> 46.82 | G192: 4 | H192: =+H191 -> 45.89 | I192: =+I191 -> 80 | J192: 0.011625 | K192: =+K191 -> 948 | L192: 13.2757 | M192: =+L192/1000 -> 0.0132757 | N192: 0.1255283003 | O192: 4.942059065 | P192: 6 | Q192: =IF(O192>0,VLOOKUP(P192,'$ alcantarillado'!$I$5:$L$22,4,FALSE),"0") -> 0.145 | R192: 0.01950118672 | S192: 0.6807636988 | T192: =+IF(S192>$B$13,VLOOKUP(P192,'$ alcantarillado'!$I$6:$N$22,5),P192) -> 6 | U192: =IF(O192>0,VLOOKUP(T192,'$ alcantarillado'!$I$5:$L$22,4),"0") -> 0.145 | V192: 0.01950118672 | W192: 0.6807636988 | X192: =IF(T192>0,4*V192/(PI()*(U192)^2),"") -> 1.18095991 | Y192: =IF(T192>0,(VLOOKUP($W192,Relaciones!$A$4:$D$108,2)),"") -> 0.936 | Z192: =IF(T192>0,Y192*X192,"") -> 1.105378475 | AA192: =IF(T192>0,250*U192*J192,"") -> 0.42140625 | AB192: =IF(T192>0,IF(W192<=$B$13,"OK","No Cumple"),"") -> OK | AC192: =IF(T192>0,IF(Z192>=$B$12,"OK","No Cumple"),"") -> OK | AD192: =IF(T192>0,IF(AA192>$B$14,"OK","No Cumple"),"") -> OK | AE192: =+IF(AB192="OK",1,0) -> 1 | AF192: =+IF(AC192="OK",1,0) -> 1 | AG192: =+IF(AD192="OK",1,0) -> 1 | AH192: =SUM(AE192:AG192) -> 3 | AI192: =IF(AH192=3,2*$B$7+U192,0) -> 0.645 | AJ192: =IF(AI192>0,I192*VLOOKUP(T192,'$ alcantarillado'!$I$6:$K$22,3),0) -> 1912173.333 | AK192: 3731454 | AL192: 1636765.445 | AM192: 7280392.778 | AN192: =+AP156 -> 5189211.778 | AO192: =IF((AM192)>0,IF(AN192>0,AM192+AN192,""),"") -> 12469604.56
E193: 3 | F193: =+H161 -> 46.32 | G193: 4 | H193: =+H192 -> 45.89 | I193: =+I192 -> 80 | J193: 0.005375 | K193: =+K192 -> 948 | L193: 13.2757 | M193: 0.0132757 | N193: 0.1450630704 | O193: 5.711144506 | P193: 6 | Q193: =IF(O193>0,VLOOKUP(P193,'$ alcantarillado'!$I$5:$L$22,4,FALSE),"0") -> 0.145 | R193: 0.01326031357 | S193: 1.001160337 | T193: =+IF(S193>$B$13,VLOOKUP(P193,'$ alcantarillado'!$I$6:$N$22,5),P193) -> 8 | U193: =IF(O193>0,VLOOKUP(T193,'$ alcantarillado'!$I$5:$L$22,4),"0") -> 0.182 | V193: 0.02430876094 | W193: 0.5461282058 | X193: 0.9343942675 | Y193: =IF(T193>0,(VLOOKUP($W193,Relaciones!$A$4:$D$108,2)),"") -> 0.87 | Z193: 0.8129230128 | AA193: 0.2445625 | AB193: OK | AC193: OK | AD193: OK | AE193: 1 | AF193: 1 | AG193: 1 | AH193: 3 | AI193: 0.682 | AJ193: =IF(AI193>0,I193*VLOOKUP(T193,'$ alcantarillado'!$I$6:$K$22,3),0) -> 2654586.667 | AK193: 4491051.84 | AL193: 2011581.242 | AM193: 9157219.749 | AN193: =+AP161 -> 5421411.778 | AO193: 14578631.53 | AQ193: 1 | AR193: 4
E194: 4 | F194: =+H166 -> 45.82 | G194: 4 | H194: 45.89 | I194: =+I193 -> 80 | J194: =+(F194-H194)/I194 -> -0.000875 | K194: 948 | L194: 13.2757 | M194: 0.0132757 | N194: 0 | O194: 0 | P194: 0 | Q194: =IF(O194>0,VLOOKUP(P194,'$ alcantarillado'!$I$5:$L$22,4,FALSE),"0") -> 0 | S194: 0 | T194: =+IF(S194>$B$13,VLOOKUP(P194,'$ alcantarillado'!$I$6:$N$22,5),P194) -> 0 | U194: =IF(O194>0,VLOOKUP(T194,'$ alcantarillado'!$I$5:$L$22,4),"0") -> 0 | W194: 0 | Y194: =IF(T194>0,(VLOOKUP($W194,Relaciones!$A$4:$D$108,2)),"") ->  | AE194: 0 | AF194: 0 | AG194: 0 | AH194: 0 | AI194: 0 | AJ194: =IF(AI194>0,I194*VLOOKUP(T194,'$ alcantarillado'!$I$6:$K$22,3),0) -> 0 | AK194: 0 | AL194: 0 | AM194: 0 | AN194: =+AP166 -> 5653611.778
E195: 5 | F195: =+H171 -> 45.32 | G195: 4 | H195: =+H194 -> 45.89 | I195: =+I194 -> 80 | J195: -0.007125 | K195: =+K194 -> 948 | L195: 13.2757 | M195: 0.0132757 | N195: 0 | O195: 0 | P195: 0 | Q195: =IF(O195>0,VLOOKUP(P195,'$ alcantarillado'!$I$5:$L$22,4,FALSE),"0") -> 0 | S195: 0 | T195: =+IF(S195>$B$13,VLOOKUP(P195,'$ alcantarillado'!$I$6:$N$22,5),P195) -> 0 | U195: =IF(O195>0,VLOOKUP(T195,'$ alcantarillado'!$I$5:$L$22,4),"0") -> 0 | W195: 0 | Y195: =IF(T195>0,(VLOOKUP($W195,Relaciones!$A$4:$D$108,2)),"") ->  | AE195: 0 | AF195: 0 | AG195: 0 | AH195: 0 | AI195: 0 | AJ195: =IF(AI195>0,I195*VLOOKUP(T195,'$ alcantarillado'!$I$6:$K$22,3),0) -> 0 | AK195: 0 | AL195: 0 | AM195: 0 | AN195: =+AP171 -> 5885811.778
E196: 1 | F196: =+H151 -> 47.32 | G196: 5 | H196: =+H191-$B$4 -> 45.39 | I196: =+I191 -> 80 | J196: =+(F196-H196)/I196 -> 0.024125 | K196: =+K191 -> 948 | L196: =IF(K196<38,K196^0.3686*0.7401,IF(K196<235,K196^0.4193*0.6215,IF(K196<932,K196*0.0092+4.2493,K196*0.0069+6.7345))) -> 13.2757 | M196: =+L196/1000 -> 0.0132757 | N196: 0.1094687618 | O196: 4.30979377 | P196: 6 | Q196: =IF(O196>0,VLOOKUP(P196,'$ alcantarillado'!$I$5:$L$22,4,FALSE),"0") -> 0.145 | R196: 0.02809300657 | S196: 0.4725624495 | T196: =+IF(S196>$B$13,VLOOKUP(P196,'$ alcantarillado'!$I$6:$N$22,5),P196) -> 6 | U196: =IF(O196>0,VLOOKUP(T196,'$ alcantarillado'!$I$5:$L$22,4),"0") -> 0.145 | V196: 0.02809300657 | W196: 0.4725624495 | X196: =IF(T196>0,4*V196/(PI()*(U196)^2),"") -> 1.70126644 | Y196: =IF(T196>0,(VLOOKUP($W196,Relaciones!$A$4:$D$108,2)),"") -> 0.834 | Z196: =IF(T196>0,Y196*X196,"") -> 1.418856211 | AA196: =IF(T196>0,250*U196*J196,"") -> 0.87453125 | AB196: =IF(T196>0,IF(W196<=$B$13,"OK","No Cumple"),"") -> OK | AC196: =IF(T196>0,IF(Z196>=$B$12,"OK","No Cumple"),"") -> OK | AD196: =IF(T196>0,IF(AA196>$B$14,"OK","No Cumple"),"") -> OK | AE196: =+IF(AB196="OK",1,0) -> 1 | AF196: =+IF(AC196="OK",1,0) -> 1 | AG196: =+IF(AD196="OK",1,0) -> 1 | AH196: =SUM(AE196:AG196) -> 3 | AI196: =IF(AH196=3,2*$B$7+U196,0) -> 0.645 | AJ196: =IF(AI196>0,I196*VLOOKUP(T196,'$ alcantarillado'!$I$6:$K$22,3),0) -> 1912173.333 | AK196: 3499254 | AL196: 1287774.945 | AM196: =IF(AJ196>0,AJ196+AK196+AL196,0) -> 6699202.278 | AN196: =IF(AP151>0,+AP151,0) -> 5900568.249 | AO196: =IF((AM196)>0,IF(AN196>0,AM196+AN196,""),"") -> 12599770.53 | AP196: =+MIN(AO196:AO200) -> 12599770.53
E197: 2 | F197: =+H156 -> 46.82 | G197: 5 | H197: =+H196 -> 45.39 | I197: =+I196 -> 80 | J197: 0.017875 | K197: =+K196 -> 948 | L197: 13.2757 | M197: =+L197/1000 -> 0.0132757 | N197: 0.1157995026 | O197: 4.559035536 | P197: 6 | Q197: =IF(O197>0,VLOOKUP(P197,'$ alcantarillado'!$I$5:$L$22,4,FALSE),"0") -> 0.145 | R197: 0.0241817421 | S197: 0.5489968401 | T197: =+IF(S197>$B$13,VLOOKUP(P197,'$ alcantarillado'!$I$6:$N$22,5),P197) -> 6 | U197: =IF(O197>0,VLOOKUP(T197,'$ alcantarillado'!$I$5:$L$22,4),"0") -> 0.145 | V197: 0.0241817421 | W197: 0.5489968401 | X197: =IF(T197>0,4*V197/(PI()*(U197)^2),"") -> 1.464406673 | Y197: =IF(T197>0,(VLOOKUP($W197,Relaciones!$A$4:$D$108,2)),"") -> 0.87 | Z197: =IF(T197>0,Y197*X197,"") -> 1.274033805 | AA197: =IF(T197>0,250*U197*J197,"") -> 0.64796875 | AB197: =IF(T197>0,IF(W197<=$B$13,"OK","No Cumple"),"") -> OK | AC197: =IF(T197>0,IF(Z197>=$B$12,"OK","No Cumple"),"") -> OK | AD197: =IF(T197>0,IF(AA197>$B$14,"OK","No Cumple"),"") -> OK | AE197: =+IF(AB197="OK",1,0) -> 1 | AF197: =+IF(AC197="OK",1,0) -> 1 | AG197: =+IF(AD197="OK",1,0) -> 1 | AH197: =SUM(AE197:AG197) -> 3 | AI197: =IF(AH197=3,2*$B$7+U197,0) -> 0.645 | AJ197: =IF(AI197>0,I197*VLOOKUP(T197,'$ alcantarillado'!$I$6:$K$22,3),0) -> 1912173.333 | AK197: 3963654 | AL197: 1636765.445 | AM197: 7512592.778 | AN197: =+AP156 -> 5189211.778 | AO197: =IF((AM197)>0,IF(AN197>0,AM197+AN197,""),"") -> 12701804.56
E198: 3 | F198: =+H161 -> 46.32 | G198: 5 | H198: =+H197 -> 45.39 | I198: =+I197 -> 80 | J198: 0.011625 | K198: =+K197 -> 948 | L198: 13.2757 | M198: 0.0132757 | N198: 0.1255283003 | O198: 4.942059065 | P198: 6 | Q198: =IF(O198>0,VLOOKUP(P198,'$ alcantarillado'!$I$5:$L$22,4,FALSE),"0") -> 0.145 | R198: 0.01950118672 | S198: 0.6807636988 | T198: =+IF(S198>$B$13,VLOOKUP(P198,'$ alcantarillado'!$I$6:$N$22,5),P198) -> 6 | U198: =IF(O198>0,VLOOKUP(T198,'$ alcantarillado'!$I$5:$L$22,4),"0") -> 0.145 | V198: 0.01950118672 | W198: 0.6807636988 | X198: 1.18095991 | Y198: =IF(T198>0,(VLOOKUP($W198,Relaciones!$A$4:$D$108,2)),"") -> 0.936 | Z198: 1.105378475 | AA198: 0.42140625 | AB198: OK | AC198: OK | AD198: OK | AE198: 1 | AF198: 1 | AG198: 1 | AH198: 3 | AI198: 0.645 | AJ198: =IF(AI198>0,I198*VLOOKUP(T198,'$ alcantarillado'!$I$6:$K$22,3),0) -> 1912173.333 | AK198: 4428054 | AL198: 1985755.945 | AM198: 8325983.278 | AN198: =+AP161 -> 5421411.778 | AO198: 13747395.06 | AQ198: 1 | AR198: 5
E199: 4 | F199: =+H166 -> 45.82 | G199: 5 | H199: 45.39 | I199: =+I198 -> 80 | J199: =+(F199-H199)/I199 -> 0.005375 | K199: 948 | L199: 13.2757 | M199: 0.0132757 | N199: 0.1450630704 | O199: 5.711144506 | P199: 6 | Q199: =IF(O199>0,VLOOKUP(P199,'$ alcantarillado'!$I$5:$L$22,4,FALSE),"0") -> 0.145 | R199: 0.01326031357 | S199: 1.001160337 | T199: =+IF(S199>$B$13,VLOOKUP(P199,'$ alcantarillado'!$I$6:$N$22,5),P199) -> 8 | U199: =IF(O199>0,VLOOKUP(T199,'$ alcantarillado'!$I$5:$L$22,4),"0") -> 0.182 | V199: 0.02430876094 | W199: 0.5461282058 | X199: 0.9343942675 | Y199: =IF(T199>0,(VLOOKUP($W199,Relaciones!$A$4:$D$108,2)),"") -> 0.87 | Z199: 0.8129230128 | AA199: 0.2445625 | AB199: OK | AC199: OK | AD199: OK | AE199: 1 | AF199: 1 | AG199: 1 | AH199: 3 | AI199: 0.682 | AJ199: =IF(AI199>0,I199*VLOOKUP(T199,'$ alcantarillado'!$I$6:$K$22,3),0) -> 2654586.667 | AK199: 5227611.84 | AL199: 2360571.742 | AM199: 10242770.25 | AN199: =+AP166 -> 5653611.778 | AO199: 15896382.03
E200: 5 | F200: =+H171 -> 45.32 | G200: 5 | H200: =+H199 -> 45.39 | I200: =+I199 -> 80 | J200: -0.000875 | K200: =+K199 -> 948 | L200: 13.2757 | M200: 0.0132757 | N200: 0 | O200: 0 | P200: 0 | Q200: =IF(O200>0,VLOOKUP(P200,'$ alcantarillado'!$I$5:$L$22,4,FALSE),"0") -> 0 | S200: 0 | T200: =+IF(S200>$B$13,VLOOKUP(P200,'$ alcantarillado'!$I$6:$N$22,5),P200) -> 0 | U200: =IF(O200>0,VLOOKUP(T200,'$ alcantarillado'!$I$5:$L$22,4),"0") -> 0 | W200: 0 | Y200: =IF(T200>0,(VLOOKUP($W200,Relaciones!$A$4:$D$108,2)),"") ->  | AE200: 0 | AF200: 0 | AG200: 0 | AH200: 0 | AI200: 0 | AJ200: =IF(AI200>0,I200*VLOOKUP(T200,'$ alcantarillado'!$I$6:$K$22,3),0) -> 0 | AK200: 0 | AL200: 0 | AM200: 0 | AN200: =+AP171 -> 5885811.778
D201: 49.09
AO203: =+COUNTBLANK(AO23:AO200) -> 114

Sheet LOGIKA AN-2
A2: N | B2: 0.01
A3: ANCHO EXC | B3: =0.5+N23 -> 0.6060290024 | C3: m
A4: DS | B4: 0.5 | C4: m | G4: BODEGA TIPO | H4: 158
A5: RECUBRIMIENTO | B5: 1.2 | C5: m | G5: SERV. ELECTRICOS | H5: =10+4+2+1 -> 17 | AO5: =0.5/5 -> 0.1
A6: C0 | B6: 1 | G6: PORTERIA 2 INLCUYE OF ADMON | H6: =10+3*4+4*1 -> 26 | AL6: 0.5
A7: ANCHO COMPACTADOR | B7: 0.25 | C7: m | G7: SERVICIOS BOMBAS | H7: =1+30+3+(145) -> 179 | AK7: 80 | AL7: =+AL6/100 -> 0.005 | AM7: =+AK7*AL7 -> 0.4 | AN7: =+AK7-AM7 -> 79.6
G8: PORTERIA 1 | H8: =1+10 -> 11
A9: EXCAVACIÓN $/m3 | C9: 18000
A10: POZO $/m | C10: 697981 | G10: BASURAS Y CONDUCTORES | H10: =5+70+7+20 -> 102
G11: MANTENIMIENTO | H11: 3
A12: VEL MIN | B12: 0.4 | G12: BLOQUE 1 CROS DOCKING | H12: =150+16+3+80 -> 249
A13: Q/Qo MIN | B13: 0.85 | G13: BLOQUE 2 CROS DOCKING | H13: =40+4+1+20 -> 65
A14: T | B14: 0.15
A15: DS | B15: =0.5/4 -> 0.125
A16: CUADRO 5. PROGRAMACIÓN DINAMICA PARA EL CÁLCULO LA RED DE ALCANTARILLADO AGUAS RESIDUALES - ITERACIÓN 2
A18: 1 | B18: 2 | C18: 3 | D18: 4 | E18: 5 | F18: 6 | G18: 7 | H18: 8 | I18: 9 | J18: 10 | K18: 11 | L18: 12 | M18: 13 | N18: 14 | O18: 15 | P18: 16 | Q18: 17 | R18: 18 | S18: 19 | T18: 16 | U18: 17 | V18: 18 | W18: 19 | X18: 20 | Y18: 21 | Z18: 22 | AA18: 23 | AB18: 24 | AC18: 25 | AD18: 26 | AE18: 27 | AF18: 28 | AG18: 29 | AH18: 30 | AI18: 31 | AJ18: 32 | AK18: 33 | AL18: 34 | AM18: 35 | AN18: 36 | AO18: 37 | AP18: 38 | AQ18: 39 | AR18: 40
R19: Capacidad tubo lleno | S19: Relaciones Hidraulicas | Z19: Valores reales
A20: Etapa | B20: Pozo Aguas Arriba | C20: Pozo Aguas Abajo | D20: Cota del terreno | E20: Sub - etapa Aguas arriba | F20: clave | G20: Sub - etapa Aguas abajo | H20: clave | I20: Longitud receptor | J20: Pendiente | K20: Unidades de Hunter | L20: Q Diseño | M20: Q Diseño | N20: Diámetro | O20: Diámetro | P20: Diámetro Comercial | Q20: Diámetro Comercial | R20: Qo | S20: Q/Qo | T20: Diámetro Comercial | U20: Diámetro Comercial | V20: Qo | W20: Q/Qo | X20: Vo | Y20: V/Vo | Z20: V | AA20: T | AB20: Rev. | AC20: Rev. | AD20: Rev. | AE20: ANALISIS CUMPLIMIENTO PARAMETROS ALCANTARILLADO | AI20: Ancho excavación | AJ20: COSTOS | AM20: Total 1 | AN20: Aguas Arriba | AO20: Total 2 | AP20: Mínimo | AQ20: Etapas optimas
R21: Lt/sg | V21: Lt/sg | X21: mt/sg | Z21: mt/sg | AA21: kg/m2 | AJ21: Tubería | AK21: Excavación | AL21: Aguas Arriba | AM21: r() | AN21: f() | AO21: f() | AP21: f() | AQ21: Aguas | AR21: Aguas
E22: K | F22: (m) | G22: K | H22: (m) | I22: (m) | J22: (m/m) | L22: (L/s) | M22: (m3/s) | N22: (m) | O22: (in) | P22: (in) | Q22: (m) | R22: (m3/s) | T22: (in) | U22: (m) | V22: (m3/s) | X22: m/s | Z22: m/s | AA22: kg/m2 | AB22: q/Q | AC22: V | AD22: T | AE22: q/Q | AF22: V | AG22: T | AH22: TOTAL | AI22: (m) | AJ22: ($) | AK22: ($) | AL22: ($) | AM22: ($) | AN22: ($) | AO22: ($) | AQ22: arriba | AR22: abajo
A23: 1 | B23: 1 | C23: 2 | D23: 49.3 | E23: 1 | F23: =+'LOGIKA AN-1'!F23 -> 48.1 | G23: 1 | H23: =+H33+2*$B$15 -> 47.75 | I23: 80 | J23: =+(F23-H23)/I23 -> 0.004375 | K23: =+H4 -> 158 | L23: =IF(K23<38,K23^0.3686*0.7401,IF(K23<235,K23^0.4193*0.6215,IF(K23<932,K23*0.0092+4.2493,K23*0.0069+6.7345))) -> 5.192040238 | M23: =+L23/1000 -> 0.005192040238 | N23: =+IF(J23>0,((M23*$B$2*(4^(5/3))/((J23^0.5)*PI()*$B$6))^(3/8)),0) -> 0.1060290024 | O23: =+N23*(100/2.54) -> 4.174370172 | P23: =IF(O23<0.1,0,IF(O23<4,6,EVEN(O23))) -> 6 | Q23: =IF(O23>0,VLOOKUP(P23,'$ alcantarillado'!$I$5:$L$22,4,FALSE),"0") -> 0.145 | R23: =IF(P23>0,PI()*((Q23)^(8/3))*((J23)^0.5)/($B$2*4^(5/3)),"") -> 0.01196337148 | S23: =IF(P23>0,+M23/R23,0) -> 0.4339947352 | T23: =+IF(S23>$B$13,VLOOKUP(P23,'$ alcantarillado'!$I$6:$N$22,5),P23) -> 6 | U23: =IF(O23>0,VLOOKUP(T23,'$ alcantarillado'!$I$5:$L$22,4),"0") -> 0.145 | V23: =IF(T23>0,PI()*((U23)^(8/3))*((J23)^0.5)/($B$2*4^(5/3)),"") -> 0.01196337148 | W23: =IF(T23>0,M23/V23,0) -> 0.4339947352 | X23: =IF(T23>0,4*V23/(PI()*(U23)^2),"") -> 0.7244821716 | Y23: =IF(T23>0,(VLOOKUP($W23,Relaciones!$A$4:$D$108,2)),"") -> 0.81 | Z23: =IF(T23>0,Y23*X23,"") -> 0.586830559 | AA23: =IF(T23>0,250*U23*J23,"") -> 0.15859375 | AB23: =IF(T23>0,IF(W23<=$B$13,"OK","No Cumple"),"") -> OK | AC23: =IF(T23>0,IF(Z23>=$B$12,"OK","No Cumple"),"") -> OK | AD23: =IF(T23>0,IF(AA23>$B$14,"OK","No Cumple"),"") -> OK | AE23: =+IF(AB23="OK",1,0) -> 1 | AF23: =+IF(AC23="OK",1,0) -> 1 | AG23: =+IF(AD23="OK",1,0) -> 1 | AH23: =SUM(AE23:AG23) -> 3 | AI23: =IF(AH23=3,2*$B$7+U23,0) -> 0.645 | AJ23: =IF(AI23>0,I23*VLOOKUP(T23,'$ alcantarillado'!$I$6:$K$22,3),0) -> 1912173.333 | AK23: =IF(N23>0,((($D$23-F23)+(U23))+(($D$48-H23)+(U23))/2)*AI23*I23*$C$9,0) -> 1989954 | AL23: =IF(AI23>0,(($D$23-F23)+U23)*$C$10,0) -> 938784.445 | AM23: =IF(AJ23>0,AJ23+AK23+AL23,0) -> 4840911.778 | AN23: 0 | AO23: =IF((AM23+AN23)>0,(AM23+AN23),"") -> 4840911.778 | AP23: =+MIN(AO23:AO27) -> 4840911.778
E24: 2 | F24: =+F23-$B$15 -> 47.975 | G24: 1 | H24: =+H23 -> 47.75 | I24: =+I23 -> 80 | J24: =+(F24-H24)/I24 -> 0.0028125 | K24: =+K23 -> 158 | L24: =IF(K24<38,K24^0.3686*0.7401,IF(K24<235,K24^0.4193*0.6215,IF(K24<932,K24*0.0092+4.2493,K24*0.0069+6.7345))) -> 5.192040238 | M24: =+L24/1000 -> 0.005192040238 | N24: 0.1151869321 | O24: 4.534918586 | P24: =IF(O24<0.1,0,IF(O24<4,6,EVEN(O24))) -> 6 | Q24: =IF(O24>0,VLOOKUP(P24,'$ alcantarillado'!$I$5:$L$22,4,FALSE),"0") -> 0.145 | R24: 0.009592036558 | S24: 0.5412865356 | T24: =+IF(S24>$B$13,VLOOKUP(P24,'$ alcantarillado'!$I$6:$N$22,5),P24) -> 6 | U24: =IF(O24>0,VLOOKUP(T24,'$ alcantarillado'!$I$5:$L$22,4),"0") -> 0.145 | V24: 0.009592036558 | W24: 0.5412865356 | X24: =IF(T24>0,4*V24/(PI()*(U24)^2),"") -> 0.5808780148 | Y24: =IF(T24>0,(VLOOKUP($W24,Relaciones!$A$4:$D$108,2)),"") -> 0.87 | Z24: =IF(T24>0,Y24*X24,"") -> 0.5053638729 | AA24: =IF(T24>0,250*U24*J24,"") -> 0.101953125 | AB24: =IF(T24>0,IF(W24<=$B$13,"OK","No Cumple"),"") -> OK | AC24: =IF(T24>0,IF(Z24>=$B$12,"OK","No Cumple"),"") -> OK | AD24: =IF(T24>0,IF(AA24>$B$14,"OK","No Cumple"),"") -> No Cumple | AE24: =+IF(AB24="OK",1,0) -> 1 | AF24: 1 | AG24: 0 | AH24: =SUM(AE24:AG24) -> 2 | AI24: =IF(AH24=3,2*$B$7+U24,0) -> 0 | AJ24: =IF(AI24>0,I24*VLOOKUP(T24,'$ alcantarillado'!$I$6:$K$22,3),0) -> 0 | AK24: 0 | AL24: 0 | AM24: =IF(AJ24>0,AJ24+AK24+AL24,0) -> 0 | AN24: 0 | AQ24: 1 | AR24: 1
E25: 3 | F25: =+F24-$B$15 -> 47.85 | G25: 1 | H25: =+H24 -> 47.75 | I25: =+I24 -> 80 | J25: 0.00125 | K25: 158 | L25: 5.192040238 | M25: 0.005192040238 | N25: 0.1341026727 | O25: 5.279632783 | P25: 6 | Q25: =IF(O25>0,VLOOKUP(P25,'$ alcantarillado'!$I$5:$L$22,4,FALSE),"0") -> 0.145 | R25: 0.006394691039 | S25: 0.8119298033 | T25: =+IF(S25>$B$13,VLOOKUP(P25,'$ alcantarillado'!$I$6:$N$22,5),P25) -> 6 | U25: =IF(O25>0,VLOOKUP(T25,'$ alcantarillado'!$I$5:$L$22,4),"0") -> 0.145 | V25: 0.006394691039 | W25: 0.8119298033 | X25: 0.3872520099 | Y25: =IF(T25>0,(VLOOKUP($W25,Relaciones!$A$4:$D$108,2)),"") -> 0.987 | Z25: 0.3822177337 | AA25: 0.0453125 | AB25: OK | AC25: No Cumple | AD25: No Cumple | AE25: 1 | AF25: 0 | AG25: 0 | AH25: 1 | AI25: 0 | AJ25: =IF(AI25>0,I25*VLOOKUP(T25,'$ alcantarillado'!$I$6:$K$22,3),0) -> 0 | AK25: 0 | AL25: 0 | AM25: 0 | AN25: 0
E26: 4 | F26: =+F25-$B$15 -> 47.725 | G26: 1 | H26: 47.75 | I26: 80 | J26: =+(F26-H26)/I26 -> -0.0003125 | K26: 158 | L26: 5.192040238 | M26: 0.005192040238 | N26: 0 | O26: 0 | P26: 0 | Q26: =IF(O26>0,VLOOKUP(P26,'$ alcantarillado'!$I$5:$L$22,4,FALSE),"0") -> 0 | S26: 0 | T26: =+IF(S26>$B$13,VLOOKUP(P26,'$ alcantarillado'!$I$6:$N$22,5),P26) -> 0 | U26: =IF(O26>0,VLOOKUP(T26,'$ alcantarillado'!$I$5:$L$22,4),"0") -> 0 | W26: 0 | Y26: =IF(T26>0,(VLOOKUP($W26,Relaciones!$A$4:$D$108,2)),"") ->  | AE26: 0 | AF26: 0 | AG26: 0 | AH26: 0 | AI26: 0 | AJ26: =IF(AI26>0,I26*VLOOKUP(T26,'$ alcantarillado'!$I$6:$K$22,3),0) -> 0 | AK26: 0 | AL26: 0 | AM26: 0 | AN26: 0
E27: 5 | F27: =+F26-$B$15 -> 47.6 | G27: 1 | H27: =+H26 -> 47.75 | I27: =+I26 -> 80 | J27: -0.001875 | K27: =+K26 -> 158 | L27: 5.192040238 | M27: 0.005192040238 | N27: 0 | O27: 0 | P27: 0 | Q27: =IF(O27>0,VLOOKUP(P27,'$ alcantarillado'!$I$5:$L$22,4,FALSE),"0") -> 0 | S27: 0 | T27: =+IF(S27>$B$13,VLOOKUP(P27,'$ alcantarillado'!$I$6:$N$22,5),P27) -> 0 | U27: =IF(O27>0,VLOOKUP(T27,'$ alcantarillado'!$I$5:$L$22,4),"0") -> 0 | W27: 0 | Y27: =IF(T27>0,(VLOOKUP($W27,Relaciones!$A$4:$D$108,2)),"") ->  | AE27: 0 | AF27: 0 | AG27: 0 | AH27: 0 | AI27: 0 | AJ27: =IF(AI27>0,I27*VLOOKUP(T27,'$ alcantarillado'!$I$6:$K$22,3),0) -> 0 | AK27: 0 | AL27: 0 | AM27: 0 | AN27: 0
E28: 1 | F28: =+F23 -> 48.1 | G28: 2 | H28: =+H33+$B$15 -> 47.625 | I28: =+I27 -> 80 | J28: =+(F28-H28)/I28 -> 0.0059375 | K28: =+K27 -> 158 | L28: =IF(K28<38,K28^0.3686*0.7401,IF(K28<235,K28^0.4193*0.6215,IF(K28<932,K28*0.0092+4.2493,K28*0.0069+6.7345))) -> 5.192040238 | M28: =+L28/1000 -> 0.005192040238 | N28: 0.1001284243 | O28: 3.942063947 | P28: 6 | Q28: =IF(O28>0,VLOOKUP(P28,'$ alcantarillado'!$I$5:$L$22,4,FALSE),"0") -> 0.145 | R28: 0.01393690601 | S28: 0.3725389434 | T28: =+IF(S28>$B$13,VLOOKUP(P28,'$ alcantarillado'!$I$6:$N$22,5),P28) -> 6 | U28: =IF(O28>0,VLOOKUP(T28,'$ alcantarillado'!$I$5:$L$22,4),"0") -> 0.145 | V28: 0.01393690601 | W28: 0.3725389434 | X28: =IF(T28>0,4*V28/(PI()*(U28)^2),"") -> 0.8439961883 | Y28: =IF(T28>0,(VLOOKUP($W28,Relaciones!$A$4:$D$108,2)),"") -> 0.776 | Z28: =IF(T28>0,Y28*X28,"") -> 0.6549410421 | AA28: =IF(T28>0,250*U28*J28,"") -> 0.215234375 | AB28: =IF(T28>0,IF(W28<=$B$13,"OK","No Cumple"),"") -> OK | AC28: =IF(T28>0,IF(Z28>=$B$12,"OK","No Cumple"),"") -> OK | AD28: =IF(T28>0,IF(AA28>$B$14,"OK","No Cumple"),"") -> OK | AE28: =+IF(AB28="OK",1,0) -> 1 | AF28: =+IF(AC28="OK",1,0) -> 1 | AG28: =+IF(AD28="OK",1,0) -> 1 | AH28: =SUM(AE28:AG28) -> 3 | AI28: =IF(AH28=3,2*$B$7+U28,0) -> 0.645 | AJ28: =IF(AI28>0,I28*VLOOKUP(T28,'$ alcantarillado'!$I$6:$K$22,3),0) -> 1912173.333 | AK28: 2048004 | AL28: 938784.445 | AM28: =IF(AJ28>0,AJ28+AK28+AL28,0) -> 4898961.778 | AN28: 0 | AO28: 4898961.778 | AP28: =+MIN(AO28:AO32) -> 4898961.778
E29: 2 | F29: 47.975 | G29: 2 | H29: =+H28 -> 47.625 | I29: =+I28 -> 80 | J29: 0.004375 | K29: =+K28 -> 158 | L29: 5.192040238 | M29: 0.005192040238 | N29: 0.1060290024 | O29: 4.174370172 | P29: 6 | Q29: =IF(O29>0,VLOOKUP(P29,'$ alcantarillado'!$I$5:$L$22,4,FALSE),"0") -> 0.145 | R29: 0.01196337148 | S29: 0.4339947352 | T29: =+IF(S29>$B$13,VLOOKUP(P29,'$ alcantarillado'!$I$6:$N$22,5),P29) -> 6 | U29: =IF(O29>0,VLOOKUP(T29,'$ alcantarillado'!$I$5:$L$22,4),"0") -> 0.145 | V29: 0.01196337148 | W29: 0.4339947352 | X29: =IF(T29>0,4*V29/(PI()*(U29)^2),"") -> 0.7244821716 | Y29: =IF(T29>0,(VLOOKUP($W29,Relaciones!$A$4:$D$108,2)),"") -> 0.81 | Z29: =IF(T29>0,Y29*X29,"") -> 0.586830559 | AA29: =IF(T29>0,250*U29*J29,"") -> 0.15859375 | AB29: =IF(T29>0,IF(W29<=$B$13,"OK","No Cumple"),"") -> OK | AC29: =IF(T29>0,IF(Z29>=$B$12,"OK","No Cumple"),"") -> OK | AD29: =IF(T29>0,IF(AA29>$B$14,"OK","No Cumple"),"") -> OK | AE29: =+IF(AB29="OK",1,0) -> 1 | AF29: 1 | AG29: 1 | AH29: =SUM(AE29:AG29) -> 3 | AI29: =IF(AH29=3,2*$B$7+U29,0) -> 0.645 | AJ29: =IF(AI29>0,I29*VLOOKUP(T29,'$ alcantarillado'!$I$6:$K$22,3),0) -> 1912173.333 | AK29: 2164104 | AL29: 1026032.07 | AM29: 5102309.403 | AN29: 0 | AO29: 5102309.403 | AQ29: 1 | AR29: 2
E30: 3 | F30: 47.85 | G30: 2 | H30: =+H29 -> 47.625 | I30: =+I29 -> 80 | J30: 0.0028125 | K30: =+K29 -> 158 | L30: 5.192040238 | M30: 0.005192040238 | N30: 0.1151869321 | O30: 4.534918586 | P30: 6 | Q30: =IF(O30>0,VLOOKUP(P30,'$ alcantarillado'!$I$5:$L$22,4,FALSE),"0") -> 0.145 | R30: 0.009592036558 | S30: 0.5412865356 | T30: =+IF(S30>$B$13,VLOOKUP(P30,'$ alcantarillado'!$I$6:$N$22,5),P30) -> 6 | U30: =IF(O30>0,VLOOKUP(T30,'$ alcantarillado'!$I$5:$L$22,4),"0") -> 0.145 | V30: 0.009592036558 | W30: 0.5412865356 | X30: 0.5808780148 | Y30: =IF(T30>0,(VLOOKUP($W30,Relaciones!$A$4:$D$108,2)),"") -> 0.87 | Z30: 0.5053638729 | AA30: 0.101953125 | AB30: OK | AC30: OK | AD30: No Cumple | AE30: 1 | AF30: 1 | AG30: 0 | AH30: 2 | AI30: 0 | AJ30: =IF(AI30>0,I30*VLOOKUP(T30,'$ alcantarillado'!$I$6:$K$22,3),0) -> 0 | AK30: 0 | AL30: 0 | AM30: 0 | AN30: 0
E31: 4 | F31: 47.725 | G31: 2 | H31: 47.625 | I31: 80 | J31: =+(F31-H31)/I31 -> 0.00125 | K31: 158 | L31: 5.192040238 | M31: 0.005192040238 | N31: 0.1341026727 | O31: 5.279632783 | P31: 6 | Q31: =IF(O31>0,VLOOKUP(P31,'$ alcantarillado'!$I$5:$L$22,4,FALSE),"0") -> 0.145 | R31: 0.006394691039 | S31: 0.8119298033 | T31: =+IF(S31>$B$13,VLOOKUP(P31,'$ alcantarillado'!$I$6:$N$22,5),P31) -> 6 | U31: =IF(O31>0,VLOOKUP(T31,'$ alcantarillado'!$I$5:$L$22,4),"0") -> 0.145 | V31: 0.006394691039 | W31: 0.8119298033 | X31: 0.3872520099 | Y31: =IF(T31>0,(VLOOKUP($W31,Relaciones!$A$4:$D$108,2)),"") -> 0.987 | Z31: 0.3822177337 | AA31: 0.0453125 | AB31: OK | AC31: No Cumple | AD31: No Cumple | AE31: 1 | AF31: 0 | AG31: 0 | AH31: 1 | AI31: 0 | AJ31: =IF(AI31>0,I31*VLOOKUP(T31,'$ alcantarillado'!$I$6:$K$22,3),0) -> 0 | AK31: 0 | AL31: 0 | AM31: 0 | AN31: 0
E32: 5 | F32: 47.6 | G32: 2 | H32: =+H31 -> 47.625 | I32: =+I31 -> 80 | J32: -0.0003125 | K32: =+K31 -> 158 | L32: 5.192040238 | M32: 0.005192040238 | N32: 0 | O32: 0 | P32: 0 | Q32: =IF(O32>0,VLOOKUP(P32,'$ alcantarillado'!$I$5:$L$22,4,FALSE),"0") -> 0 | S32: 0 | T32: =+IF(S32>$B$13,VLOOKUP(P32,'$ alcantarillado'!$I$6:$N$22,5),P32) -> 0 | U32: =IF(O32>0,VLOOKUP(T32,'$ alcantarillado'!$I$5:$L$22,4),"0") -> 0 | W32: 0 | Y32: =IF(T32>0,(VLOOKUP($W32,Relaciones!$A$4:$D$108,2)),"") ->  | AE32: 0 | AF32: 0 | AG32: 0 | AH32: 0 | AI32: 0 | AJ32: =IF(AI32>0,I32*VLOOKUP(T32,'$ alcantarillado'!$I$6:$K$22,3),0) -> 0 | AK32: 0 | AL32: 0 | AM32: 0 | AN32: 0
E33: 1 | F33: 48.1 | G33: 3 | H33: =+'LOGIKA AN-1'!H23 -> 47.5 | I33: =+I32 -> 80 | J33: =+(F33-H33)/I33 -> 0.0075 | K33: 158 | L33: =IF(K33<38,K33^0.3686*0.7401,IF(K33<235,K33^0.4193*0.6215,IF(K33<932,K33*0.0092+4.2493,K33*0.0069+6.7345))) -> 5.192040238 | M33: =+L33/1000 -> 0.005192040238 | N33: 0.09583719056 | O33: 3.773117739 | P33: 6 | Q33: =IF(O33>0,VLOOKUP(P33,'$ alcantarillado'!$I$5:$L$22,4,FALSE),"0") -> 0.145 | R33: 0.01566373011 | S33: 0.3314689542 | T33: =+IF(S33>$B$13,VLOOKUP(P33,'$ alcantarillado'!$I$6:$N$22,5),P33) -> 6 | U33: =IF(O33>0,VLOOKUP(T33,'$ alcantarillado'!$I$5:$L$22,4),"0") -> 0.145 | V33: 0.01566373011 | W33: 0.3314689542 | X33: =IF(T33>0,4*V33/(PI()*(U33)^2),"") -> 0.948569826 | Y33: =IF(T33>0,(VLOOKUP($W33,Relaciones!$A$4:$D$108,2)),"") -> 0.75 | Z33: =IF(T33>0,Y33*X33,"") -> 0.7114273695 | AA33: =IF(T33>0,250*U33*J33,"") -> 0.271875 | AB33: =IF(T33>0,IF(W33<=$B$13,"OK","No Cumple"),"") -> OK | AC33: =IF(T33>0,IF(Z33>=$B$12,"OK","No Cumple"),"") -> OK | AD33: =IF(T33>0,IF(AA33>$B$14,"OK","No Cumple"),"") -> OK | AE33: =+IF(AB33="OK",1,0) -> 1 | AF33: =+IF(AC33="OK",1,0) -> 1 | AG33: =+IF(AD33="OK",1,0) -> 1 | AH33: =SUM(AE33:AG33) -> 3 | AI33: =IF(AH33=3,2*$B$7+U33,0) -> 0.645 | AJ33: =IF(AI33>0,I33*VLOOKUP(T33,'$ alcantarillado'!$I$6:$K$22,3),0) -> 1912173.333 | AK33: 2106054 | AL33: 938784.445 | AM33: =IF(AJ33>0,AJ33+AK33+AL33,0) -> 4957011.778 | AN33: 0 | AO33: 4957011.778 | AP33: =+MIN(AO33:AO37) -> 4957011.778
E34: 2 | F34: 47.975 | G34: 3 | H34: =+H33 -> 47.5 | I34: =+I33 -> 80 | J34: 0.0059375 | K34: =+K33 -> 158 | L34: 5.192040238 | M34: 0.005192040238 | N34: 0.1001284243 | O34: 3.942063947 | P34: 6 | Q34: =IF(O34>0,VLOOKUP(P34,'$ alcantarillado'!$I$5:$L$22,4,FALSE),"0") -> 0.145 | R34: 0.01393690601 | S34: 0.3725389434 | T34: =+IF(S34>$B$13,VLOOKUP(P34,'$ alcantarillado'!$I$6:$N$22,5),P34) -> 6 | U34: =IF(O34>0,VLOOKUP(T34,'$ alcantarillado'!$I$5:$L$22,4),"0") -> 0.145 | V34: 0.01393690601 | W34: 0.3725389434 | X34: =IF(T34>0,4*V34/(PI()*(U34)^2),"") -> 0.8439961883 | Y34: =IF(T34>0,(VLOOKUP($W34,Relaciones!$A$4:$D$108,2)),"") -> 0.776 | Z34: =IF(T34>0,Y34*X34,"") -> 0.6549410421 | AA34: =IF(T34>0,250*U34*J34,"") -> 0.215234375 | AB34: =IF(T34>0,IF(W34<=$B$13,"OK","No Cumple"),"") -> OK | AC34: =IF(T34>0,IF(Z34>=$B$12,"OK","No Cumple"),"") -> OK | AD34: =IF(T34>0,IF(AA34>$B$14,"OK","No Cumple"),"") -> OK | AE34: =+IF(AB34="OK",1,0) -> 1 | AF34: 1 | AG34: 1 | AH34: =SUM(AE34:AG34) -> 3 | AI34: =IF(AH34=3,2*$B$7+U34,0) -> 0.645 | AJ34: =IF(AI34>0,I34*VLOOKUP(T34,'$ alcantarillado'!$I$6:$K$22,3),0) -> 1912173.333 | AK34: 2222154 | AL34: 1026032.07 | AM34: 5160359.403 | AN34: 0 | AO34: 5160359.403
E35: 3 | F35: 47.85 | G35: 3 | H35: =+H34 -> 47.5 | I35: =+I34 -> 80 | J35: 0.004375 | K35: =+K34 -> 158 | L35: 5.192040238 | M35: 0.005192040238 | N35: 0.1060290024 | O35: 4.174370172 | P35: 6 | Q35: =IF(O35>0,VLOOKUP(P35,'$ alcantarillado'!$I$5:$L$22,4,FALSE),"0") -> 0.145 | R35: 0.01196337148 | S35: 0.4339947352 | T35: =+IF(S35>$B$13,VLOOKUP(P35,'$ alcantarillado'!$I$6:$N$22,5),P35) -> 6 | U35: =IF(O35>0,VLOOKUP(T35,'$ alcantarillado'!$I$5:$L$22,4),"0") -> 0.145 | V35: 0.01196337148 | W35: 0.4339947352 | X35: 0.7244821716 | Y35: =IF(T35>0,(VLOOKUP($W35,Relaciones!$A$4:$D$108,2)),"") -> 0.81 | Z35: 0.586830559 | AA35: 0.15859375 | AB35: OK | AC35: OK | AD35: OK | AE35: 1 | AF35: 1 | AG35: 1 | AH35: 3 | AI35: 0.645 | AJ35: =IF(AI35>0,I35*VLOOKUP(T35,'$ alcantarillado'!$I$6:$K$22,3),0) -> 1912173.333 | AK35: 2338254 | AL35: 1113279.695 | AM35: 5363707.028 | AN35: 0 | AO35: 5363707.028
E36: 4 | F36: 47.725 | G36: 3 | H36: 47.5 | I36: 80 | J36: =+(F36-H36)/I36 -> 0.0028125 | K36: 158 | L36: 5.192040238 | M36: 0.005192040238 | N36: 0.1151869321 | O36: 4.534918586 | P36: 6 | Q36: =IF(O36>0,VLOOKUP(P36,'$ alcantarillado'!$I$5:$L$22,4,FALSE),"0") -> 0.145 | R36: 0.009592036558 | S36: 0.5412865356 | T36: =+IF(S36>$B$13,VLOOKUP(P36,'$ alcantarillado'!$I$6:$N$22,5),P36) -> 6 | U36: =IF(O36>0,VLOOKUP(T36,'$ alcantarillado'!$I$5:$L$22,4),"0") -> 0.145 | V36: 0.009592036558 | W36: 0.5412865356 | X36: 0.5808780148 | Y36: =IF(T36>0,(VLOOKUP($W36,Relaciones!$A$4:$D$108,2)),"") -> 0.87 | Z36: 0.5053638729 | AA36: 0.101953125 | AB36: OK | AC36: OK | AD36: No Cumple | AE36: 1 | AF36: 1 | AG36: 0 | AH36: 2 | AI36: 0 | AJ36: =IF(AI36>0,I36*VLOOKUP(T36,'$ alcantarillado'!$I$6:$K$22,3),0) -> 0 | AK36: 0 | AL36: 0 | AM36: 0 | AN36: 0 | AQ36: 1 | AR36: 3
E37: 5 | F37: 47.6 | G37: 3 | H37: =+H36 -> 47.5 | I37: =+I36 -> 80 | J37: 0.00125 | K37: =+K36 -> 158 | L37: 5.192040238 | M37: 0.005192040238 | N37: 0.1341026727 | O37: 5.279632783 | P37: 6 | Q37: =IF(O37>0,VLOOKUP(P37,'$ alcantarillado'!$I$5:$L$22,4,FALSE),"0") -> 0.145 | R37: 0.006394691039 | S37: 0.8119298033 | T37: =+IF(S37>$B$13,VLOOKUP(P37,'$ alcantarillado'!$I$6:$N$22,5),P37) -> 6 | U37: =IF(O37>0,VLOOKUP(T37,'$ alcantarillado'!$I$5:$L$22,4),"0") -> 0.145 | V37: 0.006394691039 | W37: 0.8119298033 | X37: 0.3872520099 | Y37: =IF(T37>0,(VLOOKUP($W37,Relaciones!$A$4:$D$108,2)),"") -> 0.987 | Z37: 0.3822177337 | AA37: 0.0453125 | AB37: OK | AC37: No Cumple | AD37: No Cumple | AE37: 1 | AF37: 0 | AG37: 0 | AH37: 1 | AI37: 0 | AJ37: =IF(AI37>0,I37*VLOOKUP(T37,'$ alcantarillado'!$I$6:$K$22,3),0) -> 0 | AK37: 0 | AL37: 0 | AM37: 0 | AN37: 0
E38: 1 | F38: 48.1 | G38: 4 | H38: =+H33-$B$15 -> 47.375 | I38: =+I33 -> 80 | J38: =+(F38-H38)/I38 -> 0.0090625 | K38: =+K33 -> 158 | L38: =IF(K38<38,K38^0.3686*0.7401,IF(K38<235,K38^0.4193*0.6215,IF(K38<932,K38*0.0092+4.2493,K38*0.0069+6.7345))) -> 5.192040238 | M38: =+L38/1000 -> 0.005192040238 | N38: 0.09249623538 | O38: 3.64158407 | P38: 6 | Q38: =IF(O38>0,VLOOKUP(P38,'$ alcantarillado'!$I$5:$L$22,4,FALSE),"0") -> 0.145 | R38: 0.01721823257 | S38: 0.3015431588 | T38: =+IF(S38>$B$13,VLOOKUP(P38,'$ alcantarillado'!$I$6:$N$22,5),P38) -> 6 | U38: =IF(O38>0,VLOOKUP(T38,'$ alcantarillado'!$I$5:$L$22,4),"0") -> 0.145 | V38: 0.01721823257 | W38: 0.3015431588 | X38: =IF(T38>0,4*V38/(PI()*(U38)^2),"") -> 1.042707947 | Y38: =IF(T38>0,(VLOOKUP($W38,Relaciones!$A$4:$D$108,2)),"") -> 0.727 | Z38: =IF(T38>0,Y38*X38,"") -> 0.7580486778 | AA38: =IF(T38>0,250*U38*J38,"") -> 0.328515625 | AB38: =IF(T38>0,IF(W38<=$B$13,"OK","No Cumple"),"") -> OK | AC38: =IF(T38>0,IF(Z38>=$B$12,"OK","No Cumple"),"") -> OK | AD38: =IF(T38>0,IF(AA38>$B$14,"OK","No Cumple"),"") -> OK | AE38: =+IF(AB38="OK",1,0) -> 1 | AF38: =+IF(AC38="OK",1,0) -> 1 | AG38: =+IF(AD38="OK",1,0) -> 1 | AH38: =SUM(AE38:AG38) -> 3 | AI38: =IF(AH38=3,2*$B$7+U38,0) -> 0.645 | AJ38: =IF(AI38>0,I38*VLOOKUP(T38,'$ alcantarillado'!$I$6:$K$22,3),0) -> 1912173.333 | AK38: 2164104 | AL38: 938784.445 | AM38: =IF(AJ38>0,AJ38+AK38+AL38,0) -> 5015061.778 | AN38: 0 | AO38: 5015061.778 | AP38: =+MIN(AO38:AO42) -> 5015061.778
E39: 2 | F39: 47.975 | G39: 4 | H39: =+H38 -> 47.375 | I39: =+I38 -> 80 | J39: 0.0075 | K39: =+K38 -> 158 | L39: 5.192040238 | M39: 0.005192040238 | N39: 0.09583719056 | O39: 3.773117739 | P39: 6 | Q39: =IF(O39>0,VLOOKUP(P39,'$ alcantarillado'!$I$5:$L$22,4,FALSE),"0") -> 0.145 | R39: 0.01566373011 | S39: 0.3314689542 | T39: =+IF(S39>$B$13,VLOOKUP(P39,'$ alcantarillado'!$I$6:$N$22,5),P39) -> 6 | U39: =IF(O39>0,VLOOKUP(T39,'$ alcantarillado'!$I$5:$L$22,4),"0") -> 0.145 | V39: 0.01566373011 | W39: 0.3314689542 | X39: =IF(T39>0,4*V39/(PI()*(U39)^2),"") -> 0.948569826 | Y39: =IF(T39>0,(VLOOKUP($W39,Relaciones!$A$4:$D$108,2)),"") -> 0.75 | Z39: =IF(T39>0,Y39*X39,"") -> 0.7114273695 | AA39: =IF(T39>0,250*U39*J39,"") -> 0.271875 | AB39: =IF(T39>0,IF(W39<=$B$13,"OK","No Cumple"),"") -> OK | AC39: =IF(T39>0,IF(Z39>=$B$12,"OK","No Cumple"),"") -> OK | AD39: =IF(T39>0,IF(AA39>$B$14,"OK","No Cumple"),"") -> OK | AE39: =+IF(AB39="OK",1,0) -> 1 | AF39: 1 | AG39: 1 | AH39: =SUM(AE39:AG39) -> 3 | AI39: =IF(AH39=3,2*$B$7+U39,0) -> 0.645 | AJ39: =IF(AI39>0,I39*VLOOKUP(T39,'$ alcantarillado'!$I$6:$K$22,3),0) -> 1912173.333 | AK39: 2280204 | AL39: 1026032.07 | AM39: 5218409.403 | AN39: 0 | AO39: 5218409.403
E40: 3 | F40: 47.85 | G40: 4 | H40: =+H39 -> 47.375 | I40: =+I39 -> 80 | J40: 0.0059375 | K40: =+K39 -> 158 | L40: 5.192040238 | M40: 0.005192040238 | N40: 0.1001284243 | O40: 3.942063947 | P40: 6 | Q40: =IF(O40>0,VLOOKUP(P40,'$ alcantarillado'!$I$5:$L$22,4,FALSE),"0") -> 0.145 | R40: 0.01393690601 | S40: 0.3725389434 | T40: =+IF(S40>$B$13,VLOOKUP(P40,'$ alcantarillado'!$I$6:$N$22,5),P40) -> 6 | U40: =IF(O40>0,VLOOKUP(T40,'$ alcantarillado'!$I$5:$L$22,4),"0") -> 0.145 | V40: 0.01393690601 | W40: 0.3725389434 | X40: 0.8439961883 | Y40: =IF(T40>0,(VLOOKUP($W40,Relaciones!$A$4:$D$108,2)),"") -> 0.776 | Z40: 0.6549410421 | AA40: 0.215234375 | AB40: OK | AC40: OK | AD40: OK | AE40: 1 | AF40: 1 | AG40: 1 | AH40: 3 | AI40: 0.645 | AJ40: =IF(AI40>0,I40*VLOOKUP(T40,'$ alcantarillado'!$I$6:$K$22,3),0) -> 1912173.333 | AK40: 2396304 | AL40: 1113279.695 | AM40: 5421757.028 | AN40: 0 | AO40: 5421757.028 | AQ40: 1 | AR40: 4
E41: 4 | F41: 47.725 | G41: 4 | H41: 47.375 | I41: 80 | J41: =+(F41-H41)/I41 -> 0.004375 | K41: 158 | L41: 5.192040238 | M41: 0.005192040238 | N41: 0.1060290024 | O41: 4.174370172 | P41: 6 | Q41: =IF(O41>0,VLOOKUP(P41,'$ alcantarillado'!$I$5:$L$22,4,FALSE),"0") -> 0.145 | R41: 0.01196337148 | S41: 0.4339947352 | T41: =+IF(S41>$B$13,VLOOKUP(P41,'$ alcantarillado'!$I$6:$N$22,5),P41) -> 6 | U41: =IF(O41>0,VLOOKUP(T41,'$ alcantarillado'!$I$5:$L$22,4),"0") -> 0.145 | V41: 0.01196337148 | W41: 0.4339947352 | X41: 0.7244821716 | Y41: =IF(T41>0,(VLOOKUP($W41,Relaciones!$A$4:$D$108,2)),"") -> 0.81 | Z41: 0.586830559 | AA41: 0.15859375 | AB41: OK | AC41: OK | AD41: OK | AE41: 1 | AF41: 1 | AG41: 1 | AH41: 3 | AI41: 0.645 | AJ41: =IF(AI41>0,I41*VLOOKUP(T41,'$ alcantarillado'!$I$6:$K$22,3),0) -> 1912173.333 | AK41: 2512404 | AL41: 1200527.32 | AM41: 5625104.653 | AN41: 0 | AO41: 5625104.653
E42: 5 | F42: 47.6 | G42: 4 | H42: =+H41 -> 47.375 | I42: =+I41 -> 80 | J42: 0.0028125 | K42: =+K41 -> 158 | L42: 5.192040238 | M42: 0.005192040238 | N42: 0.1151869321 | O42: 4.534918586 | P42: 6 | Q42: =IF(O42>0,VLOOKUP(P42,'$ alcantarillado'!$I$5:$L$22,4,FALSE),"0") -> 0.145 | R42: 0.009592036558 | S42: 0.5412865356 | T42: =+IF(S42>$B$13,VLOOKUP(P42,'$ alcantarillado'!$I$6:$N$22,5),P42) -> 6 | U42: =IF(O42>0,VLOOKUP(T42,'$ alcantarillado'!$I$5:$L$22,4),"0") -> 0.145 | V42: 0.009592036558 | W42: 0.5412865356 | X42: 0.5808780148 | Y42: =IF(T42>0,(VLOOKUP($W42,Relaciones!$A$4:$D$108,2)),"") -> 0.87 | Z42: 0.5053638729 | AA42: 0.101953125 | AB42: OK | AC42: OK | AD42: No Cumple | AE42: 1 | AF42: 1 | AG42: 0 | AH42: 2 | AI42: 0 | AJ42: =IF(AI42>0,I42*VLOOKUP(T42,'$ alcantarillado'!$I$6:$K$22,3),0) -> 0 | AK42: 0 | AL42: 0 | AM42: 0 | AN42: 0
E43: 1 | F43: 48.1 | G43: 5 | H43: =+H33-2*$B$15 -> 47.25 | I43: =+I38 -> 80 | J43: =+(F43-H43)/I43 -> 0.010625 | K43: =+K38 -> 158 | L43: =IF(K43<38,K43^0.3686*0.7401,IF(K43<235,K43^0.4193*0.6215,IF(K43<932,K43*0.0092+4.2493,K43*0.0069+6.7345))) -> 5.192040238 | M43: =+L43/1000 -> 0.005192040238 | N43: 0.08977830152 | O43: 3.5345788 | P43: 6 | Q43: =IF(O43>0,VLOOKUP(P43,'$ alcantarillado'!$I$5:$L$22,4,FALSE),"0") -> 0.145 | R43: 0.01864356792 | S43: 0.278489625 | T43: =+IF(S43>$B$13,VLOOKUP(P43,'$ alcantarillado'!$I$6:$N$22,5),P43) -> 6 | U43: =IF(O43>0,VLOOKUP(T43,'$ alcantarillado'!$I$5:$L$22,4),"0") -> 0.145 | V43: 0.01864356792 | W43: 0.278489625 | X43: =IF(T43>0,4*V43/(PI()*(U43)^2),"") -> 1.12902392 | Y43: =IF(T43>0,(VLOOKUP($W43,Relaciones!$A$4:$D$108,2)),"") -> 0.706 | Z43: =IF(T43>0,Y43*X43,"") -> 0.7970908877 | AA43: =IF(T43>0,250*U43*J43,"") -> 0.38515625 | AB43: =IF(T43>0,IF(W43<=$B$13,"OK","No Cumple"),"") -> OK | AC43: =IF(T43>0,IF(Z43>=$B$12,"OK","No Cumple"),"") -> OK | AD43: =IF(T43>0,IF(AA43>$B$14,"OK","No Cumple"),"") -> OK | AE43: =+IF(AB43="OK",1,0) -> 1 | AF43: =+IF(AC43="OK",1,0) -> 1 | AG43: =+IF(AD43="OK",1,0) -> 1 | AH43: =SUM(AE43:AG43) -> 3 | AI43: =IF(AH43=3,2*$B$7+U43,0) -> 0.645 | AJ43: =IF(AI43>0,I43*VLOOKUP(T43,'$ alcantarillado'!$I$6:$K$22,3),0) -> 1912173.333 | AK43: 2222154 | AL43: 938784.445 | AM43: =IF(AJ43>0,AJ43+AK43+AL43,0) -> 5073111.778 | AN43: 0 | AO43: 5073111.778 | AP43: =+MIN(AO43:AO47) -> 5073111.778
E44: 2 | F44: 47.975 | G44: 5 | H44: =+H43 -> 47.25 | I44: =+I43 -> 80 | J44: 0.0090625 | K44: =+K43 -> 158 | L44: 5.192040238 | M44: 0.005192040238 | N44: 0.09249623538 | O44: 3.64158407 | P44: 6 | Q44: =IF(O44>0,VLOOKUP(P44,'$ alcantarillado'!$I$5:$L$22,4,FALSE),"0") -> 0.145 | R44: 0.01721823257 | S44: 0.3015431588 | T44: =+IF(S44>$B$13,VLOOKUP(P44,'$ alcantarillado'!$I$6:$N$22,5),P44) -> 6 | U44: =IF(O44>0,VLOOKUP(T44,'$ alcantarillado'!$I$5:$L$22,4),"0") -> 0.145 | V44: 0.01721823257 | W44: 0.3015431588 | X44: =IF(T44>0,4*V44/(PI()*(U44)^2),"") -> 1.042707947 | Y44: =IF(T44>0,(VLOOKUP($W44,Relaciones!$A$4:$D$108,2)),"") -> 0.727 | Z44: =IF(T44>0,Y44*X44,"") -> 0.7580486778 | AA44: =IF(T44>0,250*U44*J44,"") -> 0.328515625 | AB44: =IF(T44>0,IF(W44<=$B$13,"OK","No Cumple"),"") -> OK | AC44: =IF(T44>0,IF(Z44>=$B$12,"OK","No Cumple"),"") -> OK | AD44: =IF(T44>0,IF(AA44>$B$14,"OK","No Cumple"),"") -> OK | AE44: =+IF(AB44="OK",1,0) -> 1 | AF44: 1 | AG44: 1 | AH44: =SUM(AE44:AG44) -> 3 | AI44: =IF(AH44=3,2*$B$7+U44,0) -> 0.645 | AJ44: =IF(AI44>0,I44*VLOOKUP(T44,'$ alcantarillado'!$I$6:$K$22,3),0) -> 1912173.333 | AK44: 2338254 | AL44: 1026032.07 | AM44: 5276459.403 | AN44: 0 | AO44: 5276459.403
E45: 3 | F45: 47.85 | G45: 5 | H45: =+H44 -> 47.25 | I45: =+I44 -> 80 | J45: 0.0075 | K45: =+K44 -> 158 | L45: 5.192040238 | M45: 0.005192040238 | N45: 0.09583719056 | O45: 3.773117739 | P45: 6 | Q45: =IF(O45>0,VLOOKUP(P45,'$ alcantarillado'!$I$5:$L$22,4,FALSE),"0") -> 0.145 | R45: 0.01566373011 | S45: 0.3314689542 | T45: =+IF(S45>$B$13,VLOOKUP(P45,'$ alcantarillado'!$I$6:$N$22,5),P45) -> 6 | U45: =IF(O45>0,VLOOKUP(T45,'$ alcantarillado'!$I$5:$L$22,4),"0") -> 0.145 | V45: 0.01566373011 | W45: 0.3314689542 | X45: 0.948569826 | Y45: =IF(T45>0,(VLOOKUP($W45,Relaciones!$A$4:$D$108,2)),"") -> 0.75 | Z45: 0.7114273695 | AA45: 0.271875 | AB45: OK | AC45: OK | AD45: OK | AE45: 1 | AF45: 1 | AG45: 1 | AH45: 3 | AI45: 0.645 | AJ45: =IF(AI45>0,I45*VLOOKUP(T45,'$ alcantarillado'!$I$6:$K$22,3),0) -> 1912173.333 | AK45: 2454354 | AL45: 1113279.695 | AM45: 5479807.028 | AN45: 0 | AO45: 5479807.028 | AQ45: 1 | AR45: 5
E46: 4 | F46: 47.725 | G46: 5 | H46: 47.25 | I46: 80 | J46: =+(F46-H46)/I46 -> 0.0059375 | K46: 158 | L46: 5.192040238 | M46: 0.005192040238 | N46: 0.1001284243 | O46: 3.942063947 | P46: 6 | Q46: =IF(O46>0,VLOOKUP(P46,'$ alcantarillado'!$I$5:$L$22,4,FALSE),"0") -> 0.145 | R46: 0.01393690601 | S46: 0.3725389434 | T46: =+IF(S46>$B$13,VLOOKUP(P46,'$ alcantarillado'!$I$6:$N$22,5),P46) -> 6 | U46: =IF(O46>0,VLOOKUP(T46,'$ alcantarillado'!$I$5:$L$22,4),"0") -> 0.145 | V46: 0.01393690601 | W46: 0.3725389434 | X46: 0.8439961883 | Y46: =IF(T46>0,(VLOOKUP($W46,Relaciones!$A$4:$D$108,2)),"") -> 0.776 | Z46: 0.6549410421 | AA46: 0.215234375 | AB46: OK | AC46: OK | AD46: OK | AE46: 1 | AF46: 1 | AG46: 1 | AH46: 3 | AI46: 0.645 | AJ46: =IF(AI46>0,I46*VLOOKUP(T46,'$ alcantarillado'!$I$6:$K$22,3),0) -> 1912173.333 | AK46: 2570454 | AL46: 1200527.32 | AM46: 5683154.653 | AN46: 0 | AO46: 5683154.653
E47: 5 | F47: 47.6 | G47: 5 | H47: =+H46 -> 47.25 | I47: =+I46 -> 80 | J47: 0.004375 | K47: =+K46 -> 158 | L47: 5.192040238 | M47: 0.005192040238 | N47: 0.1060290024 | O47: 4.174370172 | P47: 6 | Q47: =IF(O47>0,VLOOKUP(P47,'$ alcantarillado'!$I$5:$L$22,4,FALSE),"0") -> 0.145 | R47: 0.01196337148 | S47: 0.4339947352 | T47: =+IF(S47>$B$13,VLOOKUP(P47,'$ alcantarillado'!$I$6:$N$22,5),P47) -> 6 | U47: =IF(O47>0,VLOOKUP(T47,'$ alcantarillado'!$I$5:$L$22,4),"0") -> 0.145 | V47: 0.01196337148 | W47: 0.4339947352 | X47: 0.7244821716 | Y47: =IF(T47>0,(VLOOKUP($W47,Relaciones!$A$4:$D$108,2)),"") -> 0.81 | Z47: 0.586830559 | AA47: 0.15859375 | AB47: OK | AC47: OK | AD47: OK | AE47: 1 | AF47: 1 | AG47: 1 | AH47: 3 | AI47: 0.645 | AJ47: =IF(AI47>0,I47*VLOOKUP(T47,'$ alcantarillado'!$I$6:$K$22,3),0) -> 1912173.333 | AK47: 2686554 | AL47: 1287774.945 | AM47: 5886502.278 | AN47: 0 | AO47: 5886502.278
A48: 2 | B48: 2 | C48: 5 | D48: 49.2 | E48: 1 | F48: =+H23 -> 47.75 | G48: 1 | H48: =+H58+2*$B$15 -> 47.14 | I48: 80 | J48: =+(F48-H48)/I48 -> 0.007625 | K48: =+K23 -> 158 | L48: =IF(K48<38,K48^0.3686*0.7401,IF(K48<235,K48^0.4193*0.6215,IF(K48<932,K48*0.0092+4.2493,K48*0.0069+6.7345))) -> 5.192040238 | M48: =+L48/1000 -> 0.005192040238 | N48: 0.09554062751 | O48: 3.761442028 | P48: 6 | Q48: =IF(O48>0,VLOOKUP(P48,'$ alcantarillado'!$I$5:$L$22,4,FALSE),"0") -> 0.145 | R48: 0.0157937218 | S48: 0.3287407683 | T48: =+IF(S48>$B$13,VLOOKUP(P48,'$ alcantarillado'!$I$6:$N$22,5),P48) -> 6 | U48: =IF(O48>0,VLOOKUP(T48,'$ alcantarillado'!$I$5:$L$22,4),"0") -> 0.145 | V48: 0.0157937218 | W48: 0.3287407683 | X48: =IF(T48>0,4*V48/(PI()*(U48)^2),"") -> 0.9564419097 | Y48: =IF(T48>0,(VLOOKUP($W48,Relaciones!$A$4:$D$108,2)),"") -> 0.74 | Z48: =IF(T48>0,Y48*X48,"") -> 0.7077670132 | AA48: =IF(T48>0,250*U48*J48,"") -> 0.27640625 | AB48: =IF(T48>0,IF(W48<=$B$13,"OK","No Cumple"),"") -> OK | AC48: =IF(T48>0,IF(Z48>=$B$12,"OK","No Cumple"),"") -> OK | AD48: =IF(T48>0,IF(AA48>$B$14,"OK","No Cumple"),"") -> OK | AE48: =+IF(AB48="OK",1,0) -> 1 | AF48: =+IF(AC48="OK",1,0) -> 1 | AG48: =+IF(AD48="OK",1,0) -> 1 | AH48: =SUM(AE48:AG48) -> 3 | AI48: =IF(AH48=3,2*$B$7+U48,0) -> 0.645 | AJ48: =IF(AI48>0,I48*VLOOKUP(T48,'$ alcantarillado'!$I$6:$K$22,3),0) -> 1912173.333 | AK48: =IF(N48>0,((($D$48-F48)+(U48))+(($D$73-H48)+(U48))/2)*AI48*I48*$C$9,0) -> 2454354 | AL48: =IF(AI48>0,(($D$48-F48)+U48)*$C$10,0) -> 1113279.695 | AM48: =IF(AJ48>0,AJ48+AK48+AL48,0) -> 5479807.028 | AN48: =+AP23 -> 4840911.778 | AO48: =IF((AM48)>0,IF(AN48>0,AM48+AN48,""),"") -> 10320718.81 | AP48: =+MIN(AO48:AO52) -> 10320718.81
E49: 2 | F49: =+H28 -> 47.625 | G49: 1 | H49: =+H48 -> 47.14 | I49: =+I48 -> 80 | J49: 0.0060625 | K49: =+K48 -> 158 | L49: 5.192040238 | M49: =+L49/1000 -> 0.005192040238 | N49: 0.09973804644 | O49: 3.926694742 | P49: 6 | Q49: =IF(O49>0,VLOOKUP(P49,'$ alcantarillado'!$I$5:$L$22,4,FALSE),"0") -> 0.145 | R49: 0.01408284618 | S49: 0.368678332 | T49: =+IF(S49>$B$13,VLOOKUP(P49,'$ alcantarillado'!$I$6:$N$22,5),P49) -> 6 | U49: =IF(O49>0,VLOOKUP(T49,'$ alcantarillado'!$I$5:$L$22,4),"0") -> 0.145 | V49: 0.01408284618 | W49: 0.368678332 | X49: =IF(T49>0,4*V49/(PI()*(U49)^2),"") -> 0.8528340857 | Y49: =IF(T49>0,(VLOOKUP($W49,Relaciones!$A$4:$D$108,2)),"") -> 0.768 | Z49: =IF(T49>0,Y49*X49,"") -> 0.6549765779 | AA49: =IF(T49>0,250*U49*J49,"") -> 0.219765625 | AB49: =IF(T49>0,IF(W49<=$B$13,"OK","No Cumple"),"") -> OK | AC49: =IF(T49>0,IF(Z49>=$B$12,"OK","No Cumple"),"") -> OK | AD49: =IF(T49>0,IF(AA49>$B$14,"OK","No Cumple"),"") -> OK | AE49: =+IF(AB49="OK",1,0) -> 1 | AF49: 1 | AG49: 1 | AH49: =SUM(AE49:AG49) -> 3 | AI49: =IF(AH49=3,2*$B$7+U49,0) -> 0.645 | AJ49: =IF(AI49>0,I49*VLOOKUP(T49,'$ alcantarillado'!$I$6:$K$22,3),0) -> 1912173.333 | AK49: 2570454 | AL49: 1200527.32 | AM49: 5683154.653 | AN49: =+AP28 -> 4898961.778 | AO49: =IF((AM49)>0,IF(AN49>0,AM49+AN49,""),"") -> 10582116.43 | AQ49: 1 | AR49: 1
E50: 3 | F50: =+H33 -> 47.5 | G50: 1 | H50: =+H49 -> 47.14 | I50: =+I49 -> 80 | J50: 0.0045 | K50: =+K49 -> 158 | L50: 5.192040238 | M50: 0.005192040238 | N50: 0.1054704295 | O50: 4.152379114 | P50: 6 | Q50: =IF(O50>0,VLOOKUP(P50,'$ alcantarillado'!$I$5:$L$22,4,FALSE),"0") -> 0.145 | R50: 0.01213307317 | S50: 0.4279245798 | T50: =+IF(S50>$B$13,VLOOKUP(P50,'$ alcantarillado'!$I$6:$N$22,5),P50) -> 6 | U50: =IF(O50>0,VLOOKUP(T50,'$ alcantarillado'!$I$5:$L$22,4),"0") -> 0.145 | V50: 0.01213307317 | W50: 0.4279245798 | X50: 0.7347590278 | Y50: =IF(T50>0,(VLOOKUP($W50,Relaciones!$A$4:$D$108,2)),"") -> 0.806 | Z50: 0.5922157764 | AA50: 0.163125 | AB50: OK | AC50: OK | AD50: OK | AE50: 1 | AF50: 1 | AG50: 1 | AH50: 3 | AI50: 0.645 | AJ50: =IF(AI50>0,I50*VLOOKUP(T50,'$ alcantarillado'!$I$6:$K$22,3),0) -> 1912173.333 | AK50: 2686554 | AL50: 1287774.945 | AM50: 5886502.278 | AN50: =+AP33 -> 4957011.778 | AO50: 10843514.06
E51: 4 | F51: =+H38 -> 47.375 | G51: 1 | H51: 47.14 | I51: 80 | J51: =+(F51-H51)/I51 -> 0.0029375 | K51: 158 | L51: 5.192040238 | M51: 0.005192040238 | N51: 0.1142515786 | O51: 4.498093645 | P51: 6 | Q51: =IF(O51>0,VLOOKUP(P51,'$ alcantarillado'!$I$5:$L$22,4,FALSE),"0") -> 0.145 | R51: 0.009802875736 | S51: 0.5296446041 | T51: =+IF(S51>$B$13,VLOOKUP(P51,'$ alcantarillado'!$I$6:$N$22,5),P51) -> 6 | U51: =IF(O51>0,VLOOKUP(T51,'$ alcantarillado'!$I$5:$L$22,4),"0") -> 0.145 | V51: 0.009802875736 | W51: 0.5296446041 | X51: 0.5936460898 | Y51: =IF(T51>0,(VLOOKUP($W51,Relaciones!$A$4:$D$108,2)),"") -> 0.86 | Z51: 0.5105356373 | AA51: 0.106484375 | AB51: OK | AC51: OK | AD51: No Cumple | AE51: 1 | AF51: 1 | AG51: 0 | AH51: 2 | AI51: 0 | AJ51: =IF(AI51>0,I51*VLOOKUP(T51,'$ alcantarillado'!$I$6:$K$22,3),0) -> 0 | AK51: 0 | AL51: 0 | AM51: 0 | AN51: =+AP38 -> 5015061.778
E52: 5 | F52: =+H43 -> 47.25 | G52: 1 | H52: =+H51 -> 47.14 | I52: =+I51 -> 80 | J52: 0.001375 | K52: =+K51 -> 158 | L52: 5.192040238 | M52: 0.005192040238 | N52: 0.1317274561 | O52: 5.18612032 | P52: 6 | Q52: =IF(O52>0,VLOOKUP(P52,'$ alcantarillado'!$I$5:$L$22,4,FALSE),"0") -> 0.145 | R52: 0.006706808543 | S52: 0.7741446926 | T52: =+IF(S52>$B$13,VLOOKUP(P52,'$ alcantarillado'!$I$6:$N$22,5),P52) -> 6 | U52: =IF(O52>0,VLOOKUP(T52,'$ alcantarillado'!$I$5:$L$22,4),"0") -> 0.145 | V52: 0.006706808543 | W52: 0.7741446926 | X52: 0.4061533344 | Y52: =IF(T52>0,(VLOOKUP($W52,Relaciones!$A$4:$D$108,2)),"") -> 0.972 | Z52: 0.394781041 | AA52: 0.04984375 | AB52: OK | AC52: No Cumple | AD52: No Cumple | AE52: 1 | AF52: 0 | AG52: 0 | AH52: 1 | AI52: 0 | AJ52: =IF(AI52>0,I52*VLOOKUP(T52,'$ alcantarillado'!$I$6:$K$22,3),0) -> 0 | AK52: 0 | AL52: 0 | AM52: 0 | AN52: =+AP43 -> 5073111.778
E53: 1 | F53: =+H23 -> 47.75 | G53: 2 | H53: =+H58+$B$15 -> 47.015 | I53: =+I52 -> 80 | J53: =+(F53-H53)/I53 -> 0.0091875 | K53: =+K52 -> 158 | L53: =IF(K53<38,K53^0.3686*0.7401,IF(K53<235,K53^0.4193*0.6215,IF(K53<932,K53*0.0092+4.2493,K53*0.0069+6.7345))) -> 5.192040238 | M53: =+L53/1000 -> 0.005192040238 | N53: 0.09225896058 | O53: 3.632242542 | P53: 6 | Q53: =IF(O53>0,VLOOKUP(P53,'$ alcantarillado'!$I$5:$L$22,4,FALSE),"0") -> 0.145 | R53: 0.01733657233 | S53: 0.2994848197 | T53: =+IF(S53>$B$13,VLOOKUP(P53,'$ alcantarillado'!$I$6:$N$22,5),P53) -> 6 | U53: =IF(O53>0,VLOOKUP(T53,'$ alcantarillado'!$I$5:$L$22,4),"0") -> 0.145 | V53: 0.01733657233 | W53: 0.2994848197 | X53: =IF(T53>0,4*V53/(PI()*(U53)^2),"") -> 1.049874409 | Y53: =IF(T53>0,(VLOOKUP($W53,Relaciones!$A$4:$D$108,2)),"") -> 0.72 | Z53: =IF(T53>0,Y53*X53,"") -> 0.7559095748 | AA53: =IF(T53>0,250*U53*J53,"") -> 0.333046875 | AB53: =IF(T53>0,IF(W53<=$B$13,"OK","No Cumple"),"") -> OK | AC53: =IF(T53>0,IF(Z53>=$B$12,"OK","No Cumple"),"") -> OK | AD53: =IF(T53>0,IF(AA53>$B$14,"OK","No Cumple"),"") -> OK | AE53: =+IF(AB53="OK",1,0) -> 1 | AF53: =+IF(AC53="OK",1,0) -> 1 | AG53: =+IF(AD53="OK",1,0) -> 1 | AH53: =SUM(AE53:AG53) -> 3 | AI53: =IF(AH53=3,2*$B$7+U53,0) -> 0.645 | AJ53: =IF(AI53>0,I53*VLOOKUP(T53,'$ alcantarillado'!$I$6:$K$22,3),0) -> 1912173.333 | AK53: 2512404 | AL53: 1113279.695 | AM53: =IF(AJ53>0,AJ53+AK53+AL53,0) -> 5537857.028 | AN53: =IF(AP23>0,+AP23,0) -> 4840911.778 | AO53: =IF((AM53)>0,IF(AN53>0,AM53+AN53,""),"") -> 10378768.81 | AP53: =+MIN(AO53:AO57) -> 10378768.81
E54: 2 | F54: =+H28 -> 47.625 | G54: 2 | H54: =+H53 -> 47.015 | I54: =+I53 -> 80 | J54: 0.007625 | K54: =+K53 -> 158 | L54: 5.192040238 | M54: =+L54/1000 -> 0.005192040238 | N54: 0.09554062751 | O54: 3.761442028 | P54: 6 | Q54: =IF(O54>0,VLOOKUP(P54,'$ alcantarillado'!$I$5:$L$22,4,FALSE),"0") -> 0.145 | R54: 0.0157937218 | S54: 0.3287407683 | T54: =+IF(S54>$B$13,VLOOKUP(P54,'$ alcantarillado'!$I$6:$N$22,5),P54) -> 6 | U54: =IF(O54>0,VLOOKUP(T54,'$ alcantarillado'!$I$5:$L$22,4),"0") -> 0.145 | V54: 0.0157937218 | W54: 0.3287407683 | X54: =IF(T54>0,4*V54/(PI()*(U54)^2),"") -> 0.9564419097 | Y54: =IF(T54>0,(VLOOKUP($W54,Relaciones!$A$4:$D$108,2)),"") -> 0.74 | Z54: =IF(T54>0,Y54*X54,"") -> 0.7077670132 | AA54: =IF(T54>0,250*U54*J54,"") -> 0.27640625 | AB54: =IF(T54>0,IF(W54<=$B$13,"OK","No Cumple"),"") -> OK | AC54: =IF(T54>0,IF(Z54>=$B$12,"OK","No Cumple"),"") -> OK | AD54: =IF(T54>0,IF(AA54>$B$14,"OK","No Cumple"),"") -> OK | AE54: =+IF(AB54="OK",1,0) -> 1 | AF54: 1 | AG54: 1 | AH54: =SUM(AE54:AG54) -> 3 | AI54: =IF(AH54=3,2*$B$7+U54,0) -> 0.645 | AJ54: =IF(AI54>0,I54*VLOOKUP(T54,'$ alcantarillado'!$I$6:$K$22,3),0) -> 1912173.333 | AK54: 2628504 | AL54: 1200527.32 | AM54: 5741204.653 | AN54: =+AP28 -> 4898961.778 | AO54: 10640166.43 | AQ54: 1 | AR54: 2
E55: 3 | F55: =+H33 -> 47.5 | G55: 2 | H55: =+H54 -> 47.015 | I55: =+I54 -> 80 | J55: 0.0060625 | K55: =+K54 -> 158 | L55: 5.192040238 | M55: 0.005192040238 | N55: 0.09973804644 | O55: 3.926694742 | P55: 6 | Q55: =IF(O55>0,VLOOKUP(P55,'$ alcantarillado'!$I$5:$L$22,4,FALSE),"0") -> 0.145 | R55: 0.01408284618 | S55: 0.368678332 | T55: =+IF(S55>$B$13,VLOOKUP(P55,'$ alcantarillado'!$I$6:$N$22,5),P55) -> 6 | U55: =IF(O55>0,VLOOKUP(T55,'$ alcantarillado'!$I$5:$L$22,4),"0") -> 0.145 | V55: 0.01408284618 | W55: =IF(T55>0,M55/V55,0) -> 0.368678332 | X55: 0.8528340857 | Y55: =IF(T55>0,(VLOOKUP($W55,Relaciones!$A$4:$D$108,2)),"") -> 0.768 | Z55: 0.6549765779 | AA55: 0.219765625 | AB55: OK | AC55: OK | AD55: OK | AE55: 1 | AF55: 1 | AG55: 1 | AH55: 3 | AI55: 0.645 | AJ55: =IF(AI55>0,I55*VLOOKUP(T55,'$ alcantarillado'!$I$6:$K$22,3),0) -> 1912173.333 | AK55: 2744604 | AL55: 1287774.945 | AM55: 5944552.278 | AN55: =+AP33 -> 4957011.778 | AO55: 10901564.06
E56: 4 | F56: =+H38 -> 47.375 | G56: 2 | H56: 47.015 | I56: 80 | J56: =+(F56-H56)/I56 -> 0.0045 | K56: 158 | L56: 5.192040238 | M56: 0.005192040238 | N56: 0.1054704295 | O56: 4.152379114 | P56: 6 | Q56: =IF(O56>0,VLOOKUP(P56,'$ alcantarillado'!$I$5:$L$22,4,FALSE),"0") -> 0.145 | R56: 0.01213307317 | S56: 0.4279245798 | T56: =+IF(S56>$B$13,VLOOKUP(P56,'$ alcantarillado'!$I$6:$N$22,5),P56) -> 6 | U56: =IF(O56>0,VLOOKUP(T56,'$ alcantarillado'!$I$5:$L$22,4),"0") -> 0.145 | V56: 0.01213307317 | W56: 0.4279245798 | X56: 0.7347590278 | Y56: =IF(T56>0,(VLOOKUP($W56,Relaciones!$A$4:$D$108,2)),"") -> 0.806 | Z56: 0.5922157764 | AA56: 0.163125 | AB56: OK | AC56: OK | AD56: OK | AE56: 1 | AF56: 1 | AG56: 1 | AH56: 3 | AI56: 0.645 | AJ56: =IF(AI56>0,I56*VLOOKUP(T56,'$ alcantarillado'!$I$6:$K$22,3),0) -> 1912173.333 | AK56: 2860704 | AL56: 1375022.57 | AM56: 6147899.903 | AN56: =+AP38 -> 5015061.778 | AO56: 11162961.68
E57: 5 | F57: =+H43 -> 47.25 | G57: 2 | H57: =+H56 -> 47.015 | I57: =+I56 -> 80 | J57: 0.0029375 | K57: =+K56 -> 158 | L57: 5.192040238 | M57: 0.005192040238 | N57: 0.1142515786 | O57: 4.498093645 | P57: 6 | Q57: =IF(O57>0,VLOOKUP(P57,'$ alcantarillado'!$I$5:$L$22,4,FALSE),"0") -> 0.145 | R57: 0.009802875736 | S57: 0.5296446041 | T57: =+IF(S57>$B$13,VLOOKUP(P57,'$ alcantarillado'!$I$6:$N$22,5),P57) -> 6 | U57: =IF(O57>0,VLOOKUP(T57,'$ alcantarillado'!$I$5:$L$22,4),"0") -> 0.145 | V57: 0.009802875736 | W57: 0.5296446041 | X57: 0.5936460898 | Y57: =IF(T57>0,(VLOOKUP($W57,Relaciones!$A$4:$D$108,2)),"") -> 0.86 | Z57: 0.5105356373 | AA57: 0.106484375 | AB57: OK | AC57: OK | AD57: No Cumple | AE57: 1 | AF57: 1 | AG57: 0 | AH57: 2 | AI57: 0 | AJ57: =IF(AI57>0,I57*VLOOKUP(T57,'$ alcantarillado'!$I$6:$K$22,3),0) -> 0 | AK57: 0 | AL57: 0 | AM57: 0 | AN57: =+AP43 -> 5073111.778
E58: 1 | F58: =+H23 -> 47.75 | G58: 3 | H58: =+'LOGIKA AN-1'!H53 -> 46.89 | I58: =+I57 -> 80 | J58: =+(F58-H58)/I58 -> 0.01075 | K58: =+K57 -> 158 | L58: =IF(K58<38,K58^0.3686*0.7401,IF(K58<235,K58^0.4193*0.6215,IF(K58<932,K58*0.0092+4.2493,K58*0.0069+6.7345))) -> 5.192040238 | M58: =+L58/1000 -> 0.005192040238 | N58: 0.08958163276 | O58: 3.526835935 | P58: 6 | Q58: =IF(O58>0,VLOOKUP(P58,'$ alcantarillado'!$I$5:$L$22,4,FALSE),"0") -> 0.145 | R58: 0.01875291529 | S58: 0.276865765 | T58: =+IF(S58>$B$13,VLOOKUP(P58,'$ alcantarillado'!$I$6:$N$22,5),P58) -> 6 | U58: =IF(O58>0,VLOOKUP(T58,'$ alcantarillado'!$I$5:$L$22,4),"0") -> 0.145 | V58: 0.01875291529 | W58: 0.276865765 | X58: =IF(T58>0,4*V58/(PI()*(U58)^2),"") -> 1.135645818 | Y58: =IF(T58>0,(VLOOKUP($W58,Relaciones!$A$4:$D$108,2)),"") -> 0.706 | Z58: =IF(T58>0,Y58*X58,"") -> 0.8017659477 | AA58: =IF(T58>0,250*U58*J58,"") -> 0.3896875 | AB58: =IF(T58>0,IF(W58<=$B$13,"OK","No Cumple"),"") -> OK | AC58: =IF(T58>0,IF(Z58>=$B$12,"OK","No Cumple"),"") -> OK | AD58: =IF(T58>0,IF(AA58>$B$14,"OK","No Cumple"),"") -> OK | AE58: =+IF(AB58="OK",1,0) -> 1 | AF58: =+IF(AC58="OK",1,0) -> 1 | AG58: =+IF(AD58="OK",1,0) -> 1 | AH58: =SUM(AE58:AG58) -> 3 | AI58: =IF(AH58=3,2*$B$7+U58,0) -> 0.645 | AJ58: =IF(AI58>0,I58*VLOOKUP(T58,'$ alcantarillado'!$I$6:$K$22,3),0) -> 1912173.333 | AK58: 2570454 | AL58: 1113279.695 | AM58: =IF(AJ58>0,AJ58+AK58+AL58,0) -> 5595907.028 | AN58: =IF(AP23>0,+AP23,0) -> 4840911.778 | AO58: =IF((AM58)>0,IF(AN58>0,AM58+AN58,""),"") -> 10436818.81 | AP58: =+MIN(AO58:AO62) -> 10436818.81
E59: 2 | F59: =+H28 -> 47.625 | G59: 3 | H59: =+H58 -> 46.89 | I59: =+I58 -> 80 | J59: 0.0091875 | K59: =+K58 -> 158 | L59: 5.192040238 | M59: =+L59/1000 -> 0.005192040238 | N59: 0.09225896058 | O59: 3.632242542 | P59: 6 | Q59: =IF(O59>0,VLOOKUP(P59,'$ alcantarillado'!$I$5:$L$22,4,FALSE),"0") -> 0.145 | R59: 0.01733657233 | S59: 0.2994848197 | T59: =+IF(S59>$B$13,VLOOKUP(P59,'$ alcantarillado'!$I$6:$N$22,5),P59) -> 6 | U59: =IF(O59>0,VLOOKUP(T59,'$ alcantarillado'!$I$5:$L$22,4),"0") -> 0.145 | V59: 0.01733657233 | W59: 0.2994848197 | X59: =IF(T59>0,4*V59/(PI()*(U59)^2),"") -> 1.049874409 | Y59: =IF(T59>0,(VLOOKUP($W59,Relaciones!$A$4:$D$108,2)),"") -> 0.72 | Z59: =IF(T59>0,Y59*X59,"") -> 0.7559095748 | AA59: =IF(T59>0,250*U59*J59,"") -> 0.333046875 | AB59: =IF(T59>0,IF(W59<=$B$13,"OK","No Cumple"),"") -> OK | AC59: =IF(T59>0,IF(Z59>=$B$12,"OK","No Cumple"),"") -> OK | AD59: =IF(T59>0,IF(AA59>$B$14,"OK","No Cumple"),"") -> OK | AE59: =+IF(AB59="OK",1,0) -> 1 | AF59: 1 | AG59: 1 | AH59: =SUM(AE59:AG59) -> 3 | AI59: =IF(AH59=3,2*$B$7+U59,0) -> 0.645 | AJ59: =IF(AI59>0,I59*VLOOKUP(T59,'$ alcantarillado'!$I$6:$K$22,3),0) -> 1912173.333 | AK59: 2686554 | AL59: 1200527.32 | AM59: 5799254.653 | AN59: =+AP28 -> 4898961.778 | AO59: 10698216.43
E60: 3 | F60: =+H33 -> 47.5 | G60: 3 | H60: =+H59 -> 46.89 | I60: =+I59 -> 80 | J60: 0.007625 | K60: =+K59 -> 158 | L60: 5.192040238 | M60: 0.005192040238 | N60: 0.09554062751 | O60: 3.761442028 | P60: 6 | Q60: =IF(O60>0,VLOOKUP(P60,'$ alcantarillado'!$I$5:$L$22,4,FALSE),"0") -> 0.145 | R60: 0.0157937218 | S60: 0.3287407683 | T60: =+IF(S60>$B$13,VLOOKUP(P60,'$ alcantarillado'!$I$6:$N$22,5),P60) -> 6 | U60: =IF(O60>0,VLOOKUP(T60,'$ alcantarillado'!$I$5:$L$22,4),"0") -> 0.145 | V60: 0.0157937218 | W60: 0.3287407683 | X60: 0.9564419097 | Y60: =IF(T60>0,(VLOOKUP($W60,Relaciones!$A$4:$D$108,2)),"") -> 0.74 | Z60: 0.7077670132 | AA60: 0.27640625 | AB60: OK | AC60: OK | AD60: OK | AE60: 1 | AF60: 1 | AG60: 1 | AH60: 3 | AI60: 0.645 | AJ60: =IF(AI60>0,I60*VLOOKUP(T60,'$ alcantarillado'!$I$6:$K$22,3),0) -> 1912173.333 | AK60: 2802654 | AL60: 1287774.945 | AM60: 6002602.278 | AN60: =+AP33 -> 4957011.778 | AO60: 10959614.06
E61: 4 | F61: =+H38 -> 47.375 | G61: 3 | H61: 46.89 | I61: 80 | J61: =+(F61-H61)/I61 -> 0.0060625 | K61: 158 | L61: 5.192040238 | M61: 0.005192040238 | N61: 0.09973804644 | O61: 3.926694742 | P61: 6 | Q61: =IF(O61>0,VLOOKUP(P61,'$ alcantarillado'!$I$5:$L$22,4,FALSE),"0") -> 0.145 | R61: 0.01408284618 | S61: 0.368678332 | T61: =+IF(S61>$B$13,VLOOKUP(P61,'$ alcantarillado'!$I$6:$N$22,5),P61) -> 6 | U61: =IF(O61>0,VLOOKUP(T61,'$ alcantarillado'!$I$5:$L$22,4),"0") -> 0.145 | V61: 0.01408284618 | W61: 0.368678332 | X61: 0.8528340857 | Y61: =IF(T61>0,(VLOOKUP($W61,Relaciones!$A$4:$D$108,2)),"") -> 0.768 | Z61: 0.6549765779 | AA61: 0.219765625 | AB61: OK | AC61: OK | AD61: OK | AE61: 1 | AF61: 1 | AG61: 1 | AH61: 3 | AI61: 0.645 | AJ61: =IF(AI61>0,I61*VLOOKUP(T61,'$ alcantarillado'!$I$6:$K$22,3),0) -> 1912173.333 | AK61: 2918754 | AL61: 1375022.57 | AM61: 6205949.903 | AN61: =+AP38 -> 5015061.778 | AO61: 11221011.68 | AQ61: 1 | AR61: 3
E62: 5 | F62: =+H43 -> 47.25 | G62: 3 | H62: =+H61 -> 46.89 | I62: =+I61 -> 80 | J62: 0.0045 | K62: =+K61 -> 158 | L62: 5.192040238 | M62: 0.005192040238 | N62: 0.1054704295 | O62: 4.152379114 | P62: 6 | Q62: =IF(O62>0,VLOOKUP(P62,'$ alcantarillado'!$I$5:$L$22,4,FALSE),"0") -> 0.145 | R62: 0.01213307317 | S62: 0.4279245798 | T62: =+IF(S62>$B$13,VLOOKUP(P62,'$ alcantarillado'!$I$6:$N$22,5),P62) -> 6 | U62: =IF(O62>0,VLOOKUP(T62,'$ alcantarillado'!$I$5:$L$22,4),"0") -> 0.145 | V62: 0.01213307317 | W62: 0.4279245798 | X62: 0.7347590278 | Y62: =IF(T62>0,(VLOOKUP($W62,Relaciones!$A$4:$D$108,2)),"") -> 0.806 | Z62: 0.5922157764 | AA62: 0.163125 | AB62: OK | AC62: OK | AD62: OK | AE62: 1 | AF62: 1 | AG62: 1 | AH62: 3 | AI62: 0.645 | AJ62: =IF(AI62>0,I62*VLOOKUP(T62,'$ alcantarillado'!$I$6:$K$22,3),0) -> 1912173.333 | AK62: 3034854 | AL62: 1462270.195 | AM62: 6409297.528 | AN62: =+AP43 -> 5073111.778 | AO62: 11482409.31
E63: 1 | F63: =+H23 -> 47.75 | G63: 4 | H63: =+H58-$B$15 -> 46.765 | I63: =+I58 -> 80 | J63: =+(F63-H63)/I63 -> 0.0123125 | K63: =+K58 -> 158 | L63: =IF(K63<38,K63^0.3686*0.7401,IF(K63<235,K63^0.4193*0.6215,IF(K63<932,K63*0.0092+4.2493,K63*0.0069+6.7345))) -> 5.192040238 | M63: =+L63/1000 -> 0.005192040238 | N63: 0.0873309411 | O63: 3.438226027 | P63: 6 | Q63: =IF(O63>0,VLOOKUP(P63,'$ alcantarillado'!$I$5:$L$22,4,FALSE),"0") -> 0.145 | R63: 0.02006955216 | S63: 0.2587023466 | T63: =+IF(S63>$B$13,VLOOKUP(P63,'$ alcantarillado'!$I$6:$N$22,5),P63) -> 6 | U63: =IF(O63>0,VLOOKUP(T63,'$ alcantarillado'!$I$5:$L$22,4),"0") -> 0.145 | V63: 0.02006955216 | W63: 0.2587023466 | X63: =IF(T63>0,4*V63/(PI()*(U63)^2),"") -> 1.215379189 | Y63: =IF(T63>0,(VLOOKUP($W63,Relaciones!$A$4:$D$108,2)),"") -> 0.695 | Z63: =IF(T63>0,Y63*X63,"") -> 0.8446885365 | AA63: =IF(T63>0,250*U63*J63,"") -> 0.446328125 | AB63: =IF(T63>0,IF(W63<=$B$13,"OK","No Cumple"),"") -> OK | AC63: =IF(T63>0,IF(Z63>=$B$12,"OK","No Cumple"),"") -> OK | AD63: =IF(T63>0,IF(AA63>$B$14,"OK","No Cumple"),"") -> OK | AE63: =+IF(AB63="OK",1,0) -> 1 | AF63: =+IF(AC63="OK",1,0) -> 1 | AG63: =+IF(AD63="OK",1,0) -> 1 | AH63: =SUM(AE63:AG63) -> 3 | AI63: =IF(AH63=3,2*$B$7+U63,0) -> 0.645 | AJ63: =IF(AI63>0,I63*VLOOKUP(T63,'$ alcantarillado'!$I$6:$K$22,3),0) -> 1912173.333 | AK63: 2628504 | AL63: 1113279.695 | AM63: =IF(AJ63>0,AJ63+AK63+AL63,0) -> 5653957.028 | AN63: =IF(AP23>0,+AP23,0) -> 4840911.778 | AO63: =IF((AM63)>0,IF(AN63>0,AM63+AN63,""),"") -> 10494868.81 | AP63: =+MIN(AO63:AO67) -> 10494868.81
E64: 2 | F64: =+H28 -> 47.625 | G64: 4 | H64: =+H63 -> 46.765 | I64: =+I63 -> 80 | J64: 0.01075 | K64: =+K63 -> 158 | L64: 5.192040238 | M64: =+L64/1000 -> 0.005192040238 | N64: 0.08958163276 | O64: 3.526835935 | P64: 6 | Q64: =IF(O64>0,VLOOKUP(P64,'$ alcantarillado'!$I$5:$L$22,4,FALSE),"0") -> 0.145 | R64: 0.01875291529 | S64: 0.276865765 | T64: =+IF(S64>$B$13,VLOOKUP(P64,'$ alcantarillado'!$I$6:$N$22,5),P64) -> 6 | U64: =IF(O64>0,VLOOKUP(T64,'$ alcantarillado'!$I$5:$L$22,4),"0") -> 0.145 | V64: 0.01875291529 | W64: 0.276865765 | X64: =IF(T64>0,4*V64/(PI()*(U64)^2),"") -> 1.135645818 | Y64: =IF(T64>0,(VLOOKUP($W64,Relaciones!$A$4:$D$108,2)),"") -> 0.706 | Z64: =IF(T64>0,Y64*X64,"") -> 0.8017659477 | AA64: =IF(T64>0,250*U64*J64,"") -> 0.3896875 | AB64: =IF(T64>0,IF(W64<=$B$13,"OK","No Cumple"),"") -> OK | AC64: =IF(T64>0,IF(Z64>=$B$12,"OK","No Cumple"),"") -> OK | AD64: =IF(T64>0,IF(AA64>$B$14,"OK","No Cumple"),"") -> OK | AE64: =+IF(AB64="OK",1,0) -> 1 | AF64: 1 | AG64: 1 | AH64: =SUM(AE64:AG64) -> 3 | AI64: =IF(AH64=3,2*$B$7+U64,0) -> 0.645 | AJ64: =IF(AI64>0,I64*VLOOKUP(T64,'$ alcantarillado'!$I$6:$K$22,3),0) -> 1912173.333 | AK64: 2744604 | AL64: 1200527.32 | AM64: 5857304.653 | AN64: =+AP28 -> 4898961.778 | AO64: 10756266.43
E65: 3 | F65: =+H33 -> 47.5 | G65: 4 | H65: =+H64 -> 46.765 | I65: =+I64 -> 80 | J65: 0.0091875 | K65: =+K64 -> 158 | L65: 5.192040238 | M65: 0.005192040238 | N65: 0.09225896058 | O65: 3.632242542 | P65: 6 | Q65: =IF(O65>0,VLOOKUP(P65,'$ alcantarillado'!$I$5:$L$22,4,FALSE),"0") -> 0.145 | R65: 0.01733657233 | S65: 0.2994848197 | T65: =+IF(S65>$B$13,VLOOKUP(P65,'$ alcantarillado'!$I$6:$N$22,5),P65) -> 6 | U65: =IF(O65>0,VLOOKUP(T65,'$ alcantarillado'!$I$5:$L$22,4),"0") -> 0.145 | V65: 0.01733657233 | W65: 0.2994848197 | X65: 1.049874409 | Y65: =IF(T65>0,(VLOOKUP($W65,Relaciones!$A$4:$D$108,2)),"") -> 0.72 | Z65: 0.7559095748 | AA65: 0.333046875 | AB65: OK | AC65: OK | AD65: OK | AE65: 1 | AF65: 1 | AG65: 1 | AH65: 3 | AI65: 0.645 | AJ65: =IF(AI65>0,I65*VLOOKUP(T65,'$ alcantarillado'!$I$6:$K$22,3),0) -> 1912173.333 | AK65: 2860704 | AL65: 1287774.945 | AM65: 6060652.278 | AN65: =+AP33 -> 4957011.778 | AO65: 11017664.06 | AQ65: 1 | AR65: 4
E66: 4 | F66: =+H38 -> 47.375 | G66: 4 | H66: 46.765 | I66: 80 | J66: =+(F66-H66)/I66 -> 0.007625 | K66: 158 | L66: 5.192040238 | M66: 0.005192040238 | N66: 0.09554062751 | O66: 3.761442028 | P66: 6 | Q66: =IF(O66>0,VLOOKUP(P66,'$ alcantarillado'!$I$5:$L$22,4,FALSE),"0") -> 0.145 | R66: 0.0157937218 | S66: 0.3287407683 | T66: =+IF(S66>$B$13,VLOOKUP(P66,'$ alcantarillado'!$I$6:$N$22,5),P66) -> 6 | U66: =IF(O66>0,VLOOKUP(T66,'$ alcantarillado'!$I$5:$L$22,4),"0") -> 0.145 | V66: 0.0157937218 | W66: 0.3287407683 | X66: 0.9564419097 | Y66: =IF(T66>0,(VLOOKUP($W66,Relaciones!$A$4:$D$108,2)),"") -> 0.74 | Z66: 0.7077670132 | AA66: 0.27640625 | AB66: OK | AC66: OK | AD66: OK | AE66: 1 | AF66: 1 | AG66: 1 | AH66: 3 | AI66: 0.645 | AJ66: =IF(AI66>0,I66*VLOOKUP(T66,'$ alcantarillado'!$I$6:$K$22,3),0) -> 1912173.333 | AK66: 2976804 | AL66: 1375022.57 | AM66: 6263999.903 | AN66: =+AP38 -> 5015061.778 | AO66: 11279061.68
E67: 5 | F67: =+H43 -> 47.25 | G67: 4 | H67: =+H66 -> 46.765 | I67: =+I66 -> 80 | J67: 0.0060625 | K67: =+K66 -> 158 | L67: 5.192040238 | M67: 0.005192040238 | N67: 0.09973804644 | O67: 3.926694742 | P67: 6 | Q67: =IF(O67>0,VLOOKUP(P67,'$ alcantarillado'!$I$5:$L$22,4,FALSE),"0") -> 0.145 | R67: 0.01408284618 | S67: 0.368678332 | T67: =+IF(S67>$B$13,VLOOKUP(P67,'$ alcantarillado'!$I$6:$N$22,5),P67) -> 6 | U67: =IF(O67>0,VLOOKUP(T67,'$ alcantarillado'!$I$5:$L$22,4),"0") -> 0.145 | V67: 0.01408284618 | W67: 0.368678332 | X67: 0.8528340857 | Y67: =IF(T67>0,(VLOOKUP($W67,Relaciones!$A$4:$D$108,2)),"") -> 0.768 | Z67: 0.6549765779 | AA67: 0.219765625 | AB67: OK | AC67: OK | AD67: OK | AE67: 1 | AF67: 1 | AG67: 1 | AH67: 3 | AI67: 0.645 | AJ67: =IF(AI67>0,I67*VLOOKUP(T67,'$ alcantarillado'!$I$6:$K$22,3),0) -> 1912173.333 | AK67: 3092904 | AL67: 1462270.195 | AM67: 6467347.528 | AN67: =+AP43 -> 5073111.778 | AO67: 11540459.31
E68: 1 | F68: =+H23 -> 47.75 | G68: 5 | H68: =+H58-2*$B$15 -> 46.64 | I68: =+I63 -> 80 | J68: =+(F68-H68)/I68 -> 0.013875 | K68: =+K63 -> 158 | L68: =IF(K68<38,K68^0.3686*0.7401,IF(K68<235,K68^0.4193*0.6215,IF(K68<932,K68*0.0092+4.2493,K68*0.0069+6.7345))) -> 5.192040238 | M68: =+L68/1000 -> 0.005192040238 | N68: 0.08539636306 | O68: 3.362061538 | P68: 6 | Q68: =IF(O68>0,VLOOKUP(P68,'$ alcantarillado'!$I$5:$L$22,4,FALSE),"0") -> 0.145 | R68: 0.02130497631 | S68: 0.2437008219 | T68: =+IF(S68>$B$13,VLOOKUP(P68,'$ alcantarillado'!$I$6:$N$22,5),P68) -> 6 | U68: =IF(O68>0,VLOOKUP(T68,'$ alcantarillado'!$I$5:$L$22,4),"0") -> 0.145 | V68: 0.02130497631 | W68: 0.2437008219 | X68: =IF(T68>0,4*V68/(PI()*(U68)^2),"") -> 1.290194451 | Y68: =IF(T68>0,(VLOOKUP($W68,Relaciones!$A$4:$D$108,2)),"") -> 0.687 | Z68: =IF(T68>0,Y68*X68,"") -> 0.8863635881 | AA68: =IF(T68>0,250*U68*J68,"") -> 0.50296875 | AB68: =IF(T68>0,IF(W68<=$B$13,"OK","No Cumple"),"") -> OK | AC68: =IF(T68>0,IF(Z68>=$B$12,"OK","No Cumple"),"") -> OK | AD68: =IF(T68>0,IF(AA68>$B$14,"OK","No Cumple"),"") -> OK | AE68: =+IF(AB68="OK",1,0) -> 1 | AF68: =+IF(AC68="OK",1,0) -> 1 | AG68: =+IF(AD68="OK",1,0) -> 1 | AH68: =SUM(AE68:AG68) -> 3 | AI68: =IF(AH68=3,2*$B$7+U68,0) -> 0.645 | AJ68: =IF(AI68>0,I68*VLOOKUP(T68,'$ alcantarillado'!$I$6:$K$22,3),0) -> 1912173.333 | AK68: 2686554 | AL68: 1113279.695 | AM68: =IF(AJ68>0,AJ68+AK68+AL68,0) -> 5712007.028 | AN68: =IF(AP23>0,+AP23,0) -> 4840911.778 | AO68: =IF((AM68)>0,IF(AN68>0,AM68+AN68,""),"") -> 10552918.81 | AP68: =+MIN(AO68:AO72) -> 10552918.81
E69: 2 | F69: =+H28 -> 47.625 | G69: 5 | H69: =+H68 -> 46.64 | I69: =+I68 -> 80 | J69: 0.0123125 | K69: =+K68 -> 158 | L69: 5.192040238 | M69: =+L69/1000 -> 0.005192040238 | N69: 0.0873309411 | O69: 3.438226027 | P69: 6 | Q69: =IF(O69>0,VLOOKUP(P69,'$ alcantarillado'!$I$5:$L$22,4,FALSE),"0") -> 0.145 | R69: 0.02006955216 | S69: 0.2587023466 | T69: =+IF(S69>$B$13,VLOOKUP(P69,'$ alcantarillado'!$I$6:$N$22,5),P69) -> 6 | U69: =IF(O69>0,VLOOKUP(T69,'$ alcantarillado'!$I$5:$L$22,4),"0") -> 0.145 | V69: 0.02006955216 | W69: 0.2587023466 | X69: =IF(T69>0,4*V69/(PI()*(U69)^2),"") -> 1.215379189 | Y69: =IF(T69>0,(VLOOKUP($W69,Relaciones!$A$4:$D$108,2)),"") -> 0.695 | Z69: =IF(T69>0,Y69*X69,"") -> 0.8446885365 | AA69: =IF(T69>0,250*U69*J69,"") -> 0.446328125 | AB69: =IF(T69>0,IF(W69<=$B$13,"OK","No Cumple"),"") -> OK | AC69: =IF(T69>0,IF(Z69>=$B$12,"OK","No Cumple"),"") -> OK | AD69: =IF(T69>0,IF(AA69>$B$14,"OK","No Cumple"),"") -> OK | AE69: =+IF(AB69="OK",1,0) -> 1 | AF69: 1 | AG69: 1 | AH69: =SUM(AE69:AG69) -> 3 | AI69: =IF(AH69=3,2*$B$7+U69,0) -> 0.645 | AJ69: =IF(AI69>0,I69*VLOOKUP(T69,'$ alcantarillado'!$I$6:$K$22,3),0) -> 1912173.333 | AK69: 2802654 | AL69: 1200527.32 | AM69: 5915354.653 | AN69: =+AP28 -> 4898961.778 | AO69: 10814316.43
E70: 3 | F70: =+H33 -> 47.5 | G70: 5 | H70: =+H69 -> 46.64 | I70: =+I69 -> 80 | J70: 0.01075 | K70: =+K69 -> 158 | L70: 5.192040238 | M70: 0.005192040238 | N70: 0.08958163276 | O70: 3.526835935 | P70: 6 | Q70: =IF(O70>0,VLOOKUP(P70,'$ alcantarillado'!$I$5:$L$22,4,FALSE),"0") -> 0.145 | R70: 0.01875291529 | S70: 0.276865765 | T70: =+IF(S70>$B$13,VLOOKUP(P70,'$ alcantarillado'!$I$6:$N$22,5),P70) -> 6 | U70: =IF(O70>0,VLOOKUP(T70,'$ alcantarillado'!$I$5:$L$22,4),"0") -> 0.145 | V70: 0.01875291529 | W70: 0.276865765 | X70: 1.135645818 | Y70: =IF(T70>0,(VLOOKUP($W70,Relaciones!$A$4:$D$108,2)),"") -> 0.706 | Z70: 0.8017659477 | AA70: 0.3896875 | AB70: OK | AC70: OK | AD70: OK | AE70: 1 | AF70: 1 | AG70: 1 | AH70: 3 | AI70: 0.645 | AJ70: =IF(AI70>0,I70*VLOOKUP(T70,'$ alcantarillado'!$I$6:$K$22,3),0) -> 1912173.333 | AK70: 2918754 | AL70: 1287774.945 | AM70: 6118702.278 | AN70: =+AP33 -> 4957011.778 | AO70: 11075714.06 | AQ70: 1 | AR70: 5
E71: 4 | F71: =+H38 -> 47.375 | G71: 5 | H71: 46.64 | I71: 80 | J71: =+(F71-H71)/I71 -> 0.0091875 | K71: 158 | L71: 5.192040238 | M71: 0.005192040238 | N71: 0.09225896058 | O71: 3.632242542 | P71: 6 | Q71: =IF(O71>0,VLOOKUP(P71,'$ alcantarillado'!$I$5:$L$22,4,FALSE),"0") -> 0.145 | R71: 0.01733657233 | S71: 0.2994848197 | T71: =+IF(S71>$B$13,VLOOKUP(P71,'$ alcantarillado'!$I$6:$N$22,5),P71) -> 6 | U71: =IF(O71>0,VLOOKUP(T71,'$ alcantarillado'!$I$5:$L$22,4),"0") -> 0.145 | V71: 0.01733657233 | W71: 0.2994848197 | X71: 1.049874409 | Y71: =IF(T71>0,(VLOOKUP($W71,Relaciones!$A$4:$D$108,2)),"") -> 0.72 | Z71: 0.7559095748 | AA71: 0.333046875 | AB71: OK | AC71: OK | AD71: OK | AE71: 1 | AF71: 1 | AG71: 1 | AH71: 3 | AI71: 0.645 | AJ71: =IF(AI71>0,I71*VLOOKUP(T71,'$ alcantarillado'!$I$6:$K$22,3),0) -> 1912173.333 | AK71: 3034854 | AL71: 1375022.57 | AM71: 6322049.903 | AN71: =+AP38 -> 5015061.778 | AO71: 11337111.68
E72: 5 | F72: =+H43 -> 47.25 | G72: 5 | H72: =+H71 -> 46.64 | I72: =+I71 -> 80 | J72: 0.007625 | K72: =+K71 -> 158 | L72: 5.192040238 | M72: 0.005192040238 | N72: 0.09554062751 | O72: 3.761442028 | P72: 6 | Q72: =IF(O72>0,VLOOKUP(P72,'$ alcantarillado'!$I$5:$L$22,4,FALSE),"0") -> 0.145 | R72: 0.0157937218 | S72: 0.3287407683 | T72: =+IF(S72>$B$13,VLOOKUP(P72,'$ alcantarillado'!$I$6:$N$22,5),P72) -> 6 | U72: =IF(O72>0,VLOOKUP(T72,'$ alcantarillado'!$I$5:$L$22,4),"0") -> 0.145 | V72: 0.0157937218 | W72: 0.3287407683 | X72: 0.9564419097 | Y72: =IF(T72>0,(VLOOKUP($W72,Relaciones!$A$4:$D$108,2)),"") -> 0.74 | Z72: 0.7077670132 | AA72: 0.27640625 | AB72: OK | AC72: OK | AD72: OK | AE72: 1 | AF72: 1 | AG72: 1 | AH72: 3 | AI72: 0.645 | AJ72: =IF(AI72>0,I72*VLOOKUP(T72,'$ alcantarillado'!$I$6:$K$22,3),0) -> 1912173.333 | AK72: 3150954 | AL72: 1462270.195 | AM72: 6525397.528 | AN72: =+AP43 -> 5073111.778 | AO72: 11598509.31
A73: 3 | B73: 5 | C73: 6 | D73: 49.09 | E73: 1 | F73: =IF(H48<H176,H48,H176) -> 47.14 | G73: 1 | H73: =+H83+2*$B$15 -> 46.64 | I73: 80 | J73: =+(F73-H73)/I73 -> 0.00625 | K73: =+K48+(K176)+H4 -> 1264 | L73: =IF(K73<38,K73^0.3686*0.7401,IF(K73<235,K73^0.4193*0.6215,IF(K73<932,K73*0.0092+4.2493,K73*0.0069+6.7345))) -> 15.4561 | M73: =+L73/1000 -> 0.0154561 | N73: 0.1492936234 | O73: 5.877701709 | P73: 6 | Q73: =IF(O73>0,VLOOKUP(P73,'$ alcantarillado'!$I$5:$L$22,4,FALSE),"0") -> 0.145 | R73: 0.01429896386 | S73: 1.080924475 | T73: =+IF(S73>$B$13,VLOOKUP(P73,'$ alcantarillado'!$I$6:$N$22,5),P73) -> 8 | U73: =IF(O73>0,VLOOKUP(T73,'$ alcantarillado'!$I$5:$L$22,4),"0") -> 0.182 | V73: 0.02621281106 | W73: 0.5896391641 | X73: =IF(T73>0,4*V73/(PI()*(U73)^2),"") -> 1.007583251 | Y73: =IF(T73>0,(VLOOKUP($W73,Relaciones!$A$4:$D$108,2)),"") -> 0.89 | Z73: =IF(T73>0,Y73*X73,"") -> 0.8967490937 | AA73: =IF(T73>0,250*U73*J73,"") -> 0.284375 | AB73: =IF(T73>0,IF(W73<=$B$13,"OK","No Cumple"),"") -> OK | AC73: =IF(T73>0,IF(Z73>=$B$12,"OK","No Cumple"),"") -> OK | AD73: =IF(T73>0,IF(AA73>$B$14,"OK","No Cumple"),"") -> OK | AE73: =+IF(AB73="OK",1,0) -> 1 | AF73: =+IF(AC73="OK",1,0) -> 1 | AG73: =+IF(AD73="OK",1,0) -> 1 | AH73: =SUM(AE73:AG73) -> 3 | AI73: =IF(AH73=3,2*$B$7+U73,0) -> 0.682 | AJ73: =IF(AI73>0,I73*VLOOKUP(T73,'$ alcantarillado'!$I$6:$K$22,3),0) -> 2654586.667 | AK73: =IF(N73>0,((($D$73-F73)+(U73))+(($D$98-H73)+(U73))/2)*AI73*I73*$C$9,0) -> 3386211.84 | AL73: =IF(AI73>0,(($D$73-F73)+U73)*$C$10,0) -> 1488095.492 | AM73: =IF(AJ73>0,AJ73+AK73+AL73,0) -> 7528893.999 | AN73: =IF(AP48>0,IF(AP176>0,AP48+AP176,0),0) -> 0 | AO73: =IF((AM73)>0,IF(AN73>0,AM73+AN73,""),"") ->  | AP73: =+MIN(AO73:AO77) -> 30942977.43
E74: 2 | F74: =IF(H53<H181,H53,H181) -> 47.015 | G74: 1 | H74: =+H73 -> 46.64 | I74: =+I73 -> 80 | J74: 0.0046875 | K74: =+K73 -> 1264 | L74: 15.4561 | M74: =+L74/1000 -> 0.0154561 | N74: 0.1575677276 | O74: 6.203453843 | P74: 8 | Q74: =IF(O74>0,VLOOKUP(P74,'$ alcantarillado'!$I$5:$L$22,4,FALSE),"0") -> 0.182 | R74: 0.02270096028 | S74: 0.6808566602 | T74: =+IF(S74>$B$13,VLOOKUP(P74,'$ alcantarillado'!$I$6:$N$22,5),P74) -> 8 | U74: =IF(O74>0,VLOOKUP(T74,'$ alcantarillado'!$I$5:$L$22,4),"0") -> 0.182 | V74: 0.02270096028 | W74: 0.6808566602 | X74: =IF(T74>0,4*V74/(PI()*(U74)^2),"") -> 0.8725926921 | Y74: =IF(T74>0,(VLOOKUP($W74,Relaciones!$A$4:$D$108,2)),"") -> 0.936 | Z74: =IF(T74>0,Y74*X74,"") -> 0.8167467598 | AA74: =IF(T74>0,250*U74*J74,"") -> 0.21328125 | AB74: =IF(T74>0,IF(W74<=$B$13,"OK","No Cumple"),"") -> OK | AC74: =IF(T74>0,IF(Z74>=$B$12,"OK","No Cumple"),"") -> OK | AD74: =IF(T74>0,IF(AA74>$B$14,"OK","No Cumple"),"") -> OK | AE74: =+IF(AB74="OK",1,0) -> 1 | AF74: 1 | AG74: 1 | AH74: =SUM(AE74:AG74) -> 3 | AI74: =IF(AH74=3,2*$B$7+U74,0) -> 0.682 | AJ74: =IF(AI74>0,I74*VLOOKUP(T74,'$ alcantarillado'!$I$6:$K$22,3),0) -> 2654586.667 | AK74: 3508971.84 | AL74: 1575343.117 | AM74: 7738901.624 | AN74: =IF(AP53>0,IF(AP181>0,AP53+AP181,0),0) -> 23204075.8 | AO74: 30942977.43 | AQ74: 2 | AR74: 1
E75: 3 | F75: =IF(H58<H186,H58,H186) -> 46.89 | G75: 1 | H75: =+H74 -> 46.64 | I75: =+I74 -> 80 | J75: 0.003125 | K75: =+K74 -> 1264 | L75: 15.4561 | M75: 0.0154561 | N75: 0.1700138816 | O75: 6.693459905 | P75: 8 | Q75: =IF(O75>0,VLOOKUP(P75,'$ alcantarillado'!$I$5:$L$22,4,FALSE),"0") -> 0.182 | R75: 0.01853525645 | S75: 0.8338757027 | T75: =+IF(S75>$B$13,VLOOKUP(P75,'$ alcantarillado'!$I$6:$N$22,5),P75) -> 8 | U75: =IF(O75>0,VLOOKUP(T75,'$ alcantarillado'!$I$5:$L$22,4),"0") -> 0.182 | V75: 0.01853525645 | W75: 0.8338757027 | X75: 0.7124689496 | Y75: =IF(T75>0,(VLOOKUP($W75,Relaciones!$A$4:$D$108,2)),"") -> 0.993 | Z75: 0.707481667 | AA75: 0.1421875 | AB75: OK | AC75: OK | AD75: No Cumple | AE75: 1 | AF75: 1 | AG75: 0 | AH75: 2 | AI75: 0 | AJ75: =IF(AI75>0,I75*VLOOKUP(T75,'$ alcantarillado'!$I$6:$K$22,3),0) -> 0 | AK75: 0 | AL75: 0 | AM75: 0 | AN75: =IF(AP58>0,IF(AP186>0,AP58+AP186,0),0) -> 23323505.8
E76: 4 | F76: =IF(H63<H191,H63,H191) -> 46.765 | G76: 1 | H76: 46.64 | I76: 80 | J76: =+(F76-H76)/I76 -> 0.0015625 | K76: 1264 | L76: 15.4561 | M76: 0.0154561 | N76: 0.1936098761 | O76: 7.622436067 | P76: 8 | Q76: =IF(O76>0,VLOOKUP(P76,'$ alcantarillado'!$I$5:$L$22,4,FALSE),"0") -> 0.182 | R76: 0.01310640553 | S76: 1.179278328 | T76: =+IF(S76>$B$13,VLOOKUP(P76,'$ alcantarillado'!$I$6:$N$22,5),P76) -> 10 | U76: =IF(O76>0,VLOOKUP(T76,'$ alcantarillado'!$I$5:$L$22,4),"0") -> 0.227 | V76: 0.02362447608 | W76: 0.6542409637 | X76: 0.5837415276 | Y76: =IF(T76>0,(VLOOKUP($W76,Relaciones!$A$4:$D$108,2)),"") -> 0.922 | Z76: 0.5382096884 | AA76: 0.088671875 | AB76: OK | AC76: OK | AD76: No Cumple | AE76: 1 | AF76: 1 | AG76: 0 | AH76: 2 | AI76: 0 | AJ76: =IF(AI76>0,I76*VLOOKUP(T76,'$ alcantarillado'!$I$6:$K$22,3),0) -> 0 | AK76: 0 | AL76: 0 | AM76: 0 | AN76: =IF(AP63>0,IF(AP191>0,AP63+AP191,0),0) -> 23442935.8
E77: 5 | F77: =IF(H68<H196,H68,H196) -> 46.64 | G77: 1 | H77: =+H76 -> 46.64 | I77: =+I76 -> 80 | J77: 0 | K77: =+K76 -> 1264 | L77: 15.4561 | M77: 0.0154561 | N77: 0 | O77: 0 | P77: 0 | Q77: =IF(O77>0,VLOOKUP(P77,'$ alcantarillado'!$I$5:$L$22,4,FALSE),"0") -> 0 | S77: 0 | T77: =+IF(S77>$B$13,VLOOKUP(P77,'$ alcantarillado'!$I$6:$N$22,5),P77) -> 0 | U77: =IF(O77>0,VLOOKUP(T77,'$ alcantarillado'!$I$5:$L$22,4),"0") -> 0 | W77: 0 | Y77: =IF(T77>0,(VLOOKUP($W77,Relaciones!$A$4:$D$108,2)),"") ->  | AE77: 0 | AF77: 0 | AG77: 0 | AH77: 0 | AI77: 0 | AJ77: =IF(AI77>0,I77*VLOOKUP(T77,'$ alcantarillado'!$I$6:$K$22,3),0) -> 0 | AK77: 0 | AL77: 0 | AM77: 0 | AN77: =IF(AP68>0,IF(AP196>0,AP68+AP196,0),0) -> 22572189.33
E78: 1 | F78: =IF(H49<H177,H49,H177) -> 47.14 | G78: 2 | H78: =+H83+$B$15 -> 46.515 | I78: =+I77 -> 80 | J78: =+(F78-H78)/I78 -> 0.0078125 | K78: =+K77 -> 1264 | L78: =IF(K78<38,K78^0.3686*0.7401,IF(K78<235,K78^0.4193*0.6215,IF(K78<932,K78*0.0092+4.2493,K78*0.0069+6.7345))) -> 15.4561 | M78: =+L78/1000 -> 0.0154561 | N78: 0.1431761339 | O78: 5.636855665 | P78: 6 | Q78: =IF(O78>0,VLOOKUP(P78,'$ alcantarillado'!$I$5:$L$22,4,FALSE),"0") -> 0.145 | R78: 0.0159867276 | S78: 0.9668082418 | T78: =+IF(S78>$B$13,VLOOKUP(P78,'$ alcantarillado'!$I$6:$N$22,5),P78) -> 8 | U78: =IF(O78>0,VLOOKUP(T78,'$ alcantarillado'!$I$5:$L$22,4),"0") -> 0.182 | V78: 0.0293068137 | W78: 0.5273893012 | X78: =IF(T78>0,4*V78/(PI()*(U78)^2),"") -> 1.126512321 | Y78: =IF(T78>0,(VLOOKUP($W78,Relaciones!$A$4:$D$108,2)),"") -> 0.86 | Z78: =IF(T78>0,Y78*X78,"") -> 0.9688005965 | AA78: =IF(T78>0,250*U78*J78,"") -> 0.35546875 | AB78: =IF(T78>0,IF(W78<=$B$13,"OK","No Cumple"),"") -> OK | AC78: =IF(T78>0,IF(Z78>=$B$12,"OK","No Cumple"),"") -> OK | AD78: =IF(T78>0,IF(AA78>$B$14,"OK","No Cumple"),"") -> OK | AE78: =+IF(AB78="OK",1,0) -> 1 | AF78: =+IF(AC78="OK",1,0) -> 1 | AG78: =+IF(AD78="OK",1,0) -> 1 | AH78: =SUM(AE78:AG78) -> 3 | AI78: =IF(AH78=3,2*$B$7+U78,0) -> 0.682 | AJ78: =IF(AI78>0,I78*VLOOKUP(T78,'$ alcantarillado'!$I$6:$K$22,3),0) -> 2654586.667 | AK78: 3447591.84 | AL78: 1488095.492 | AM78: =IF(AJ78>0,AJ78+AK78+AL78,0) -> 7590273.999 | AN78: =IF(AP48>0,IF(AP176>0,AP48+AP176,0),0) -> 0 | AO78: =IF((AM78)>0,IF(AN78>0,AM78+AN78,""),"") ->  | AP78: =+MIN(AO78:AO82) -> 31004357.43
E79: 2 | F79: =IF(H54<H182,H54,H182) -> 47.015 | G79: 2 | H79: =+H78 -> 46.515 | I79: =+I78 -> 80 | J79: 0.00625 | K79: =+K78 -> 1264 | L79: 15.4561 | M79: =+L79/1000 -> 0.0154561 | N79: 0.1492936234 | O79: 5.877701709 | P79: 6 | Q79: =IF(O79>0,VLOOKUP(P79,'$ alcantarillado'!$I$5:$L$22,4,FALSE),"0") -> 0.145 | R79: 0.01429896386 | S79: 1.080924475 | T79: =+IF(S79>$B$13,VLOOKUP(P79,'$ alcantarillado'!$I$6:$N$22,5),P79) -> 8 | U79: =IF(O79>0,VLOOKUP(T79,'$ alcantarillado'!$I$5:$L$22,4),"0") -> 0.182 | V79: 0.02621281106 | W79: 0.5896391641 | X79: =IF(T79>0,4*V79/(PI()*(U79)^2),"") -> 1.007583251 | Y79: =IF(T79>0,(VLOOKUP($W79,Relaciones!$A$4:$D$108,2)),"") -> 0.89 | Z79: =IF(T79>0,Y79*X79,"") -> 0.8967490937 | AA79: =IF(T79>0,250*U79*J79,"") -> 0.284375 | AB79: =IF(T79>0,IF(W79<=$B$13,"OK","No Cumple"),"") -> OK | AC79: =IF(T79>0,IF(Z79>=$B$12,"OK","No Cumple"),"") -> OK | AD79: =IF(T79>0,IF(AA79>$B$14,"OK","No Cumple"),"") -> OK | AE79: =+IF(AB79="OK",1,0) -> 1 | AF79: 1 | AG79: 1 | AH79: =SUM(AE79:AG79) -> 3 | AI79: =IF(AH79=3,2*$B$7+U79,0) -> 0.682 | AJ79: =IF(AI79>0,I79*VLOOKUP(T79,'$ alcantarillado'!$I$6:$K$22,3),0) -> 2654586.667 | AK79: 3570351.84 | AL79: 1575343.117 | AM79: 7800281.624 | AN79: =IF(AP53>0,IF(AP181>0,AP53+AP181,0),0) -> 23204075.8 | AO79: 31004357.43 | AQ79: 2 | AR79: 2
E80: 3 | F80: =IF(H59<H187,H59,H187) -> 46.89 | G80: 2 | H80: =+H79 -> 46.515 | I80: =+I79 -> 80 | J80: 0.0046875 | K80: =+K79 -> 1264 | L80: 15.4561 | M80: 0.0154561 | N80: 0.1575677276 | O80: 6.203453843 | P80: 8 | Q80: =IF(O80>0,VLOOKUP(P80,'$ alcantarillado'!$I$5:$L$22,4,FALSE),"0") -> 0.182 | R80: 0.02270096028 | S80: 0.6808566602 | T80: =+IF(S80>$B$13,VLOOKUP(P80,'$ alcantarillado'!$I$6:$N$22,5),P80) -> 8 | U80: =IF(O80>0,VLOOKUP(T80,'$ alcantarillado'!$I$5:$L$22,4),"0") -> 0.182 | V80: 0.02270096028 | W80: 0.6808566602 | X80: 0.8725926921 | Y80: =IF(T80>0,(VLOOKUP($W80,Relaciones!$A$4:$D$108,2)),"") -> 0.936 | Z80: 0.8167467598 | AA80: 0.21328125 | AB80: OK | AC80: OK | AD80: OK | AE80: 1 | AF80: 1 | AG80: 1 | AH80: 3 | AI80: 0.682 | AJ80: =IF(AI80>0,I80*VLOOKUP(T80,'$ alcantarillado'!$I$6:$K$22,3),0) -> 2654586.667 | AK80: 3693111.84 | AL80: 1662590.742 | AM80: 8010289.249 | AN80: =IF(AP58>0,IF(AP186>0,AP58+AP186,0),0) -> 23323505.8 | AO80: =IF((AM80)>0,IF(AN80>0,AM80+AN80,""),"") -> 31333795.05
E81: 4 | F81: =IF(H64<H192,H64,H192) -> 46.765 | G81: 2 | H81: 46.515 | I81: 80 | J81: =+(F81-H81)/I81 -> 0.003125 | K81: 1264 | L81: 15.4561 | M81: 0.0154561 | N81: 0.1700138816 | O81: 6.693459905 | P81: 8 | Q81: =IF(O81>0,VLOOKUP(P81,'$ alcantarillado'!$I$5:$L$22,4,FALSE),"0") -> 0.182 | R81: 0.01853525645 | S81: 0.8338757027 | T81: =+IF(S81>$B$13,VLOOKUP(P81,'$ alcantarillado'!$I$6:$N$22,5),P81) -> 8 | U81: =IF(O81>0,VLOOKUP(T81,'$ alcantarillado'!$I$5:$L$22,4),"0") -> 0.182 | V81: 0.01853525645 | W81: 0.8338757027 | X81: 0.7124689496 | Y81: =IF(T81>0,(VLOOKUP($W81,Relaciones!$A$4:$D$108,2)),"") -> 0.993 | Z81: 0.707481667 | AA81: 0.1421875 | AB81: OK | AC81: OK | AD81: No Cumple | AE81: 1 | AF81: 1 | AG81: 0 | AH81: 2 | AI81: 0 | AJ81: =IF(AI81>0,I81*VLOOKUP(T81,'$ alcantarillado'!$I$6:$K$22,3),0) -> 0 | AK81: 0 | AL81: 0 | AM81: 0 | AN81: =IF(AP63>0,IF(AP191>0,AP63+AP191,0),0) -> 23442935.8
E82: 5 | F82: =IF(H69<H197,H69,H197) -> 46.64 | G82: 2 | H82: =+H81 -> 46.515 | I82: =+I81 -> 80 | J82: 0.0015625 | K82: =+K81 -> 1264 | L82: 15.4561 | M82: 0.0154561 | N82: 0.1936098761 | O82: 7.622436067 | P82: 8 | Q82: =IF(O82>0,VLOOKUP(P82,'$ alcantarillado'!$I$5:$L$22,4,FALSE),"0") -> 0.182 | R82: 0.01310640553 | S82: 1.179278328 | T82: =+IF(S82>$B$13,VLOOKUP(P82,'$ alcantarillado'!$I$6:$N$22,5),P82) -> 10 | U82: =IF(O82>0,VLOOKUP(T82,'$ alcantarillado'!$I$5:$L$22,4),"0") -> 0.227 | V82: 0.02362447608 | W82: 0.6542409637 | X82: 0.5837415276 | Y82: =IF(T82>0,(VLOOKUP($W82,Relaciones!$A$4:$D$108,2)),"") -> 0.922 | Z82: 0.5382096884 | AA82: 0.088671875 | AB82: OK | AC82: OK | AD82: No Cumple | AE82: 1 | AF82: 1 | AG82: 0 | AH82: 2 | AI82: 0 | AJ82: =IF(AI82>0,I82*VLOOKUP(T82,'$ alcantarillado'!$I$6:$K$22,3),0) -> 0 | AK82: 0 | AL82: 0 | AM82: 0 | AN82: =IF(AP68>0,IF(AP196>0,AP68+AP196,0),0) -> 22572189.33
E83: 1 | F83: =IF(H50<H178,H50,H178) -> 47.14 | G83: 3 | H83: =+'LOGIKA AN-1'!H84 -> 46.39 | I83: =+I82 -> 80 | J83: =+(F83-H83)/I83 -> 0.009375 | K83: =+K82 -> 1264 | L83: =IF(K83<38,K83^0.3686*0.7401,IF(K83<235,K83^0.4193*0.6215,IF(K83<932,K83*0.0092+4.2493,K83*0.0069+6.7345))) -> 15.4561 | M83: =+L83/1000 -> 0.0154561 | N83: 0.138364331 | O83: 5.447414606 | P83: 6 | Q83: =IF(O83>0,VLOOKUP(P83,'$ alcantarillado'!$I$5:$L$22,4,FALSE),"0") -> 0.145 | R83: 0.01751258265 | S83: 0.882571138 | T83: =+IF(S83>$B$13,VLOOKUP(P83,'$ alcantarillado'!$I$6:$N$22,5),P83) -> 8 | U83: =IF(O83>0,VLOOKUP(T83,'$ alcantarillado'!$I$5:$L$22,4),"0") -> 0.182 | V83: 0.03210400591 | W83: 0.4814383614 | X83: =IF(T83>0,4*V83/(PI()*(U83)^2),"") -> 1.23403242 | Y83: =IF(T83>0,(VLOOKUP($W83,Relaciones!$A$4:$D$108,2)),"") -> 0.84 | Z83: =IF(T83>0,Y83*X83,"") -> 1.036587232 | AA83: =IF(T83>0,250*U83*J83,"") -> 0.4265625 | AB83: =IF(T83>0,IF(W83<=$B$13,"OK","No Cumple"),"") -> OK | AC83: =IF(T83>0,IF(Z83>=$B$12,"OK","No Cumple"),"") -> OK | AD83: =IF(T83>0,IF(AA83>$B$14,"OK","No Cumple"),"") -> OK | AE83: =+IF(AB83="OK",1,0) -> 1 | AF83: =+IF(AC83="OK",1,0) -> 1 | AG83: =+IF(AD83="OK",1,0) -> 1 | AH83: =SUM(AE83:AG83) -> 3 | AI83: =IF(AH83=3,2*$B$7+U83,0) -> 0.682 | AJ83: =IF(AI83>0,I83*VLOOKUP(T83,'$ alcantarillado'!$I$6:$K$22,3),0) -> 2654586.667 | AK83: 3508971.84 | AL83: 1488095.492 | AM83: =IF(AJ83>0,AJ83+AK83+AL83,0) -> 7651653.999 | AN83: =IF(AP48>0,IF(AP176>0,AP48+AP176,0),0) -> 0 | AO83: =IF((AM83)>0,IF(AN83>0,AM83+AN83,""),"") ->  | AP83: =+MIN(AO83:AO87) -> 31065737.43
E84: 2 | F84: =IF(H55<H183,H55,H183) -> 47.015 | G84: 3 | H84: =+H83 -> 46.39 | I84: =+I83 -> 80 | J84: 0.0078125 | K84: =+K83 -> 1264 | L84: 15.4561 | M84: =+L84/1000 -> 0.0154561 | N84: 0.1431761339 | O84: 5.636855665 | P84: 6 | Q84: =IF(O84>0,VLOOKUP(P84,'$ alcantarillado'!$I$5:$L$22,4,FALSE),"0") -> 0.145 | R84: 0.0159867276 | S84: 0.9668082418 | T84: =+IF(S84>$B$13,VLOOKUP(P84,'$ alcantarillado'!$I$6:$N$22,5),P84) -> 8 | U84: =IF(O84>0,VLOOKUP(T84,'$ alcantarillado'!$I$5:$L$22,4),"0") -> 0.182 | V84: 0.0293068137 | W84: 0.5273893012 | X84: =IF(T84>0,4*V84/(PI()*(U84)^2),"") -> 1.126512321 | Y84: =IF(T84>0,(VLOOKUP($W84,Relaciones!$A$4:$D$108,2)),"") -> 0.86 | Z84: =IF(T84>0,Y84*X84,"") -> 0.9688005965 | AA84: =IF(T84>0,250*U84*J84,"") -> 0.35546875 | AB84: =IF(T84>0,IF(W84<=$B$13,"OK","No Cumple"),"") -> OK | AC84: =IF(T84>0,IF(Z84>=$B$12,"OK","No Cumple"),"") -> OK | AD84: =IF(T84>0,IF(AA84>$B$14,"OK","No Cumple"),"") -> OK | AE84: =+IF(AB84="OK",1,0) -> 1 | AF84: 1 | AG84: 1 | AH84: =SUM(AE84:AG84) -> 3 | AI84: =IF(AH84=3,2*$B$7+U84,0) -> 0.682 | AJ84: =IF(AI84>0,I84*VLOOKUP(T84,'$ alcantarillado'!$I$6:$K$22,3),0) -> 2654586.667 | AK84: 3631731.84 | AL84: 1575343.117 | AM84: 7861661.624 | AN84: =IF(AP53>0,IF(AP181>0,AP53+AP181,0),0) -> 23204075.8 | AO84: 31065737.43
E85: 3 | F85: =IF(H60<H188,H60,H188) -> 46.89 | G85: 3 | H85: =+H84 -> 46.39 | I85: =+I84 -> 80 | J85: 0.00625 | K85: =+K84 -> 1264 | L85: 15.4561 | M85: 0.0154561 | N85: 0.1492936234 | O85: 5.877701709 | P85: 6 | Q85: =IF(O85>0,VLOOKUP(P85,'$ alcantarillado'!$I$5:$L$22,4,FALSE),"0") -> 0.145 | R85: 0.01429896386 | S85: 1.080924475 | T85: =+IF(S85>$B$13,VLOOKUP(P85,'$ alcantarillado'!$I$6:$N$22,5),P85) -> 8 | U85: =IF(O85>0,VLOOKUP(T85,'$ alcantarillado'!$I$5:$L$22,4),"0") -> 0.182 | V85: 0.02621281106 | W85: 0.5896391641 | X85: 1.007583251 | Y85: =IF(T85>0,(VLOOKUP($W85,Relaciones!$A$4:$D$108,2)),"") -> 0.89 | Z85: 0.8967490937 | AA85: 0.284375 | AB85: OK | AC85: OK | AD85: OK | AE85: 1 | AF85: 1 | AG85: 1 | AH85: 3 | AI85: 0.682 | AJ85: =IF(AI85>0,I85*VLOOKUP(T85,'$ alcantarillado'!$I$6:$K$22,3),0) -> 2654586.667 | AK85: 3754491.84 | AL85: 1662590.742 | AM85: 8071669.249 | AN85: =IF(AP58>0,IF(AP186>0,AP58+AP186,0),0) -> 23323505.8 | AO85: 31395175.05
E86: 4 | F86: =IF(H65<H193,H65,H193) -> 46.765 | G86: 3 | H86: 46.39 | I86: 80 | J86: =+(F86-H86)/I86 -> 0.0046875 | K86: 1264 | L86: 15.4561 | M86: 0.0154561 | N86: 0.1575677276 | O86: 6.203453843 | P86: 8 | Q86: =IF(O86>0,VLOOKUP(P86,'$ alcantarillado'!$I$5:$L$22,4,FALSE),"0") -> 0.182 | R86: 0.02270096028 | S86: 0.6808566602 | T86: =+IF(S86>$B$13,VLOOKUP(P86,'$ alcantarillado'!$I$6:$N$22,5),P86) -> 8 | U86: =IF(O86>0,VLOOKUP(T86,'$ alcantarillado'!$I$5:$L$22,4),"0") -> 0.182 | V86: 0.02270096028 | W86: 0.6808566602 | X86: 0.8725926921 | Y86: =IF(T86>0,(VLOOKUP($W86,Relaciones!$A$4:$D$108,2)),"") -> 0.936 | Z86: 0.8167467598 | AA86: 0.21328125 | AB86: OK | AC86: OK | AD86: OK | AE86: 1 | AF86: 1 | AG86: 1 | AH86: 3 | AI86: 0.682 | AJ86: =IF(AI86>0,I86*VLOOKUP(T86,'$ alcantarillado'!$I$6:$K$22,3),0) -> 2654586.667 | AK86: 3877251.84 | AL86: 1749838.367 | AM86: 8281676.874 | AN86: =IF(AP63>0,IF(AP191>0,AP63+AP191,0),0) -> 23442935.8 | AO86: 31724612.68 | AQ86: 2 | AR86: 3
E87: 5 | F87: =IF(H70<H193,H70,H193) -> 46.64 | G87: 3 | H87: =+H86 -> 46.39 | I87: =+I86 -> 80 | J87: 0.003125 | K87: =+K86 -> 1264 | L87: 15.4561 | M87: 0.0154561 | N87: =+IF(J87>0,((M87*$B$2*(4^(5/3))/((J87^0.5)*PI()*$B$6))^(3/8)),0) -> 0.1700138816 | O87: =+N87*(100/2.54) -> 6.693459905 | P87: 8 | Q87: =IF(O87>0,VLOOKUP(P87,'$ alcantarillado'!$I$5:$L$22,4,FALSE),"0") -> 0.182 | R87: =IF(P87>0,PI()*((Q87)^(8/3))*((J87)^0.5)/($B$2*4^(5/3)),"") -> 0.01853525645 | S87: =IF(P87>0,+M87/R87,0) -> 0.8338757027 | T87: =+IF(S87>$B$13,VLOOKUP(P87,'$ alcantarillado'!$I$6:$N$22,5),P87) -> 8 | U87: =IF(O87>0,VLOOKUP(T87,'$ alcantarillado'!$I$5:$L$22,4),"0") -> 0.182 | V87: =IF(T87>0,PI()*((U87)^(8/3))*((J87)^0.5)/($B$2*4^(5/3)),"") -> 0.01853525645 | W87: =IF(T87>0,M87/V87,0) -> 0.8338757027 | X87: 0.7124689496 | Y87: =IF(T87>0,(VLOOKUP($W87,Relaciones!$A$4:$D$108,2)),"") -> 0.993 | Z87: 0.707481667 | AA87: 0.1421875 | AB87: OK | AC87: OK | AD87: No Cumple | AE87: 1 | AF87: 1 | AG87: 0 | AH87: 2 | AI87: 0 | AJ87: =IF(AI87>0,I87*VLOOKUP(T87,'$ alcantarillado'!$I$6:$K$22,3),0) -> 0 | AK87: 0 | AL87: 0 | AM87: 0 | AN87: =IF(AP68>0,IF(AP196>0,AP68+AP196,0),0) -> 22572189.33
E88: 1 | F88: =IF(H52<H176,H52,H176) -> 47.14 | G88: 4 | H88: =+H83-$B$15 -> 46.265 | I88: =+I83 -> 80 | J88: =+(F88-H88)/I88 -> 0.0109375 | K88: =+K83 -> 1264 | L88: =IF(K88<38,K88^0.3686*0.7401,IF(K88<235,K88^0.4193*0.6215,IF(K88<932,K88*0.0092+4.2493,K88*0.0069+6.7345))) -> 15.4561 | M88: =+L88/1000 -> 0.0154561 | N88: 0.1344223936 | O88: 5.292220222 | P88: =IF(O88<0.1,0,IF(O88<4,6,EVEN(O88))) -> 6 | Q88: =IF(O88>0,VLOOKUP(P88,'$ alcantarillado'!$I$5:$L$22,4,FALSE),"0") -> 0.145 | R88: 0.01891575119 | S88: 0.817102099 | T88: =+IF(S88>$B$13,VLOOKUP(P88,'$ alcantarillado'!$I$6:$N$22,5),P88) -> 6 | U88: =IF(O88>0,VLOOKUP(T88,'$ alcantarillado'!$I$5:$L$22,4),"0") -> 0.145 | V88: 0.01891575119 | W88: 0.817102099 | X88: =IF(T88>0,4*V88/(PI()*(U88)^2),"") -> 1.145506893 | Y88: =IF(T88>0,(VLOOKUP($W88,Relaciones!$A$4:$D$108,2)),"") -> 0.987 | Z88: =IF(T88>0,Y88*X88,"") -> 1.130615304 | AA88: =IF(T88>0,250*U88*J88,"") -> 0.396484375 | AB88: =IF(T88>0,IF(W88<=$B$13,"OK","No Cumple"),"") -> OK | AC88: =IF(T88>0,IF(Z88>=$B$12,"OK","No Cumple"),"") -> OK | AD88: =IF(T88>0,IF(AA88>$B$14,"OK","No Cumple"),"") -> OK | AE88: =+IF(AB88="OK",1,0) -> 1 | AF88: =+IF(AC88="OK",1,0) -> 1 | AG88: =+IF(AD88="OK",1,0) -> 1 | AH88: =SUM(AE88:AG88) -> 3 | AI88: =IF(AH88=3,2*$B$7+U88,0) -> 0.645 | AJ88: =IF(AI88>0,I88*VLOOKUP(T88,'$ alcantarillado'!$I$6:$K$22,3),0) -> 1912173.333 | AK88: 3325104 | AL88: 1462270.195 | AM88: =IF(AJ88>0,AJ88+AK88+AL88,0) -> 6699547.528 | AN88: =IF(AP48>0,IF(AP176>0,AP48+AP176,0),0) -> 0 | AO88: =IF((AM88)>0,IF(AN88>0,AM88+AN88,""),"") ->  | AP88: =+MIN(AO88:AO92) -> 31125253.83
E89: 2 | F89: =IF(H55<H181,H55,H181) -> 47.015 | G89: 4 | H89: =+H88 -> 46.265 | I89: =+I88 -> 80 | J89: =+(F89-H89)/I89 -> 0.009375 | K89: =+K88 -> 1264 | L89: =IF(K89<38,K89^0.3686*0.7401,IF(K89<235,K89^0.4193*0.6215,IF(K89<932,K89*0.0092+4.2493,K89*0.0069+6.7345))) -> 15.4561 | M89: =+L89/1000 -> 0.0154561 | N89: 0.138364331 | O89: 5.447414606 | P89: 6 | Q89: =IF(O89>0,VLOOKUP(P89,'$ alcantarillado'!$I$5:$L$22,4,FALSE),"0") -> 0.145 | R89: 0.01751258265 | S89: 0.882571138 | T89: =+IF(S89>$B$13,VLOOKUP(P89,'$ alcantarillado'!$I$6:$N$22,5),P89) -> 8 | U89: =IF(O89>0,VLOOKUP(T89,'$ alcantarillado'!$I$5:$L$22,4),"0") -> 0.182 | V89: 0.03210400591 | W89: 0.4814383614 | X89: =IF(T89>0,4*V89/(PI()*(U89)^2),"") -> 1.23403242 | Y89: =IF(T89>0,(VLOOKUP($W89,Relaciones!$A$4:$D$108,2)),"") -> 0.84 | Z89: =IF(T89>0,Y89*X89,"") -> 1.036587232 | AA89: =IF(T89>0,250*U89*J89,"") -> 0.4265625 | AB89: =IF(T89>0,IF(W89<=$B$13,"OK","No Cumple"),"") -> OK | AC89: =IF(T89>0,IF(Z89>=$B$12,"OK","No Cumple"),"") -> OK | AD89: =IF(T89>0,IF(AA89>$B$14,"OK","No Cumple"),"") -> OK | AE89: =+IF(AB89="OK",1,0) -> 1 | AF89: 1 | AG89: 1 | AH89: =SUM(AE89:AG89) -> 3 | AI89: =IF(AH89=3,2*$B$7+U89,0) -> 0.682 | AJ89: =IF(AI89>0,I89*VLOOKUP(T89,'$ alcantarillado'!$I$6:$K$22,3),0) -> 2654586.667 | AK89: 3693111.84 | AL89: 1575343.117 | AM89: =IF(AJ89>0,AJ89+AK89+AL89,0) -> 7923041.624 | AN89: =IF(AP53>0,IF(AP181>0,AP53+AP181,0),0) -> 23204075.8 | AO89: 31127117.43
E90: 3 | F90: =IF(H60<H187,H60,H187) -> 46.89 | G90: 4 | H90: =+H89 -> 46.265 | I90: =+I89 -> 80 | J90: 0.0078125 | K90: =+K89 -> 1264 | L90: 15.4561 | M90: 0.0154561 | N90: 0.1431761339 | O90: 5.636855665 | P90: 6 | Q90: =IF(O90>0,VLOOKUP(P90,'$ alcantarillado'!$I$5:$L$22,4,FALSE),"0") -> 0.145 | R90: 0.0159867276 | S90: 0.9668082418 | T90: =+IF(S90>$B$13,VLOOKUP(P90,'$ alcantarillado'!$I$6:$N$22,5),P90) -> 8 | U90: =IF(O90>0,VLOOKUP(T90,'$ alcantarillado'!$I$5:$L$22,4),"0") -> 0.182 | V90: 0.0293068137 | W90: 0.5273893012 | X90: 1.126512321 | Y90: =IF(T90>0,(VLOOKUP($W90,Relaciones!$A$4:$D$108,2)),"") -> 0.86 | Z90: 0.9688005965 | AA90: 0.35546875 | AB90: OK | AC90: OK | AD90: OK | AE90: 1 | AF90: 1 | AG90: 1 | AH90: 3 | AI90: 0.682 | AJ90: =IF(AI90>0,I90*VLOOKUP(T90,'$ alcantarillado'!$I$6:$K$22,3),0) -> 2654586.667 | AK90: 3815871.84 | AL90: 1662590.742 | AM90: 8133049.249 | AN90: =IF(AP58>0,IF(AP186>0,AP58+AP186,0),0) -> 23323505.8 | AO90: 31456555.05 | AQ90: 5 | AR90: 4
E91: 4 | F91: =IF(H66<H192,H66,H192) -> 46.765 | G91: 4 | H91: 46.265 | I91: 80 | J91: =+(F91-H91)/I91 -> 0.00625 | K91: 1264 | L91: 15.4561 | M91: 0.0154561 | N91: 0.1492936234 | O91: 5.877701709 | P91: 6 | Q91: =IF(O91>0,VLOOKUP(P91,'$ alcantarillado'!$I$5:$L$22,4,FALSE),"0") -> 0.145 | R91: 0.01429896386 | S91: 1.080924475 | T91: =+IF(S91>$B$13,VLOOKUP(P91,'$ alcantarillado'!$I$6:$N$22,5),P91) -> 8 | U91: =IF(O91>0,VLOOKUP(T91,'$ alcantarillado'!$I$5:$L$22,4),"0") -> 0.182 | V91: 0.02621281106 | W91: 0.5896391641 | X91: 1.007583251 | Y91: =IF(T91>0,(VLOOKUP($W91,Relaciones!$A$4:$D$108,2)),"") -> 0.89 | Z91: 0.8967490937 | AA91: 0.284375 | AB91: OK | AC91: OK | AD91: OK | AE91: 1 | AF91: 1 | AG91: 1 | AH91: 3 | AI91: 0.682 | AJ91: =IF(AI91>0,I91*VLOOKUP(T91,'$ alcantarillado'!$I$6:$K$22,3),0) -> 2654586.667 | AK91: 3938631.84 | AL91: 1749838.367 | AM91: 8343056.874 | AN91: =IF(AP63>0,IF(AP191>0,AP63+AP191,0),0) -> 23442935.8 | AO91: 31785992.68
E92: 5 | F92: =IF(H69<H196,H69,H196) -> 46.64 | G92: 4 | H92: =+H91 -> 46.265 | I92: =+I91 -> 80 | J92: 0.0046875 | K92: =+K91 -> 1264 | L92: 15.4561 | M92: 0.0154561 | N92: 0.1575677276 | O92: 6.203453843 | P92: 8 | Q92: =IF(O92>0,VLOOKUP(P92,'$ alcantarillado'!$I$5:$L$22,4,FALSE),"0") -> 0.182 | R92: 0.02270096028 | S92: 0.6808566602 | T92: =+IF(S92>$B$13,VLOOKUP(P92,'$ alcantarillado'!$I$6:$N$22,5),P92) -> 8 | U92: =IF(O92>0,VLOOKUP(T92,'$ alcantarillado'!$I$5:$L$22,4),"0") -> 0.182 | V92: 0.02270096028 | W92: 0.6808566602 | X92: 0.8725926921 | Y92: =IF(T92>0,(VLOOKUP($W92,Relaciones!$A$4:$D$108,2)),"") -> 0.936 | Z92: 0.8167467598 | AA92: 0.21328125 | AB92: OK | AC92: OK | AD92: OK | AE92: 1 | AF92: 1 | AG92: 1 | AH92: 3 | AI92: 0.682 | AJ92: =IF(AI92>0,I92*VLOOKUP(T92,'$ alcantarillado'!$I$6:$K$22,3),0) -> 2654586.667 | AK92: 4061391.84 | AL92: 1837085.992 | AM92: 8553064.499 | AN92: =IF(AP68>0,IF(AP196>0,AP68+AP196,0),0) -> 22572189.33 | AO92: 31125253.83
E93: 1 | F93: =IF(H49<H176,H49,H176) -> 47.14 | G93: 5 | H93: =+H83-2*$B$15 -> 46.14 | I93: =+I88 -> 80 | J93: =+(F93-H93)/I93 -> 0.0125 | K93: =+K88 -> 1264 | L93: =IF(K93<38,K93^0.3686*0.7401,IF(K93<235,K93^0.4193*0.6215,IF(K93<932,K93*0.0092+4.2493,K93*0.0069+6.7345))) -> 15.4561 | M93: =+L93/1000 -> 0.0154561 | N93: 0.1310986243 | O93: 5.161363163 | P93: 6 | Q93: =IF(O93>0,VLOOKUP(P93,'$ alcantarillado'!$I$5:$L$22,4,FALSE),"0") -> 0.145 | R93: 0.02022178862 | S93: 0.7643290262 | T93: =+IF(S93>$B$13,VLOOKUP(P93,'$ alcantarillado'!$I$6:$N$22,5),P93) -> 6 | U93: =IF(O93>0,VLOOKUP(T93,'$ alcantarillado'!$I$5:$L$22,4),"0") -> 0.145 | V93: 0.02022178862 | W93: 0.7643290262 | X93: =IF(T93>0,4*V93/(PI()*(U93)^2),"") -> 1.22459838 | Y93: =IF(T93>0,(VLOOKUP($W93,Relaciones!$A$4:$D$108,2)),"") -> 0.969 | Z93: =IF(T93>0,Y93*X93,"") -> 1.18663583 | AA93: =IF(T93>0,250*U93*J93,"") -> 0.453125 | AB93: =IF(T93>0,IF(W93<=$B$13,"OK","No Cumple"),"") -> OK | AC93: =IF(T93>0,IF(Z93>=$B$12,"OK","No Cumple"),"") -> OK | AD93: =IF(T93>0,IF(AA93>$B$14,"OK","No Cumple"),"") -> OK | AE93: =+IF(AB93="OK",1,0) -> 1 | AF93: =+IF(AC93="OK",1,0) -> 1 | AG93: =+IF(AD93="OK",1,0) -> 1 | AH93: =SUM(AE93:AG93) -> 3 | AI93: =IF(AH93=3,2*$B$7+U93,0) -> 0.645 | AJ93: =IF(AI93>0,I93*VLOOKUP(T93,'$ alcantarillado'!$I$6:$K$22,3),0) -> 1912173.333 | AK93: 3383154 | AL93: 1462270.195 | AM93: =IF(AJ93>0,AJ93+AK93+AL93,0) -> 6757597.528 | AN93: =IF(AP48>0,IF(AP176>0,AP48+AP176,0),0) -> 0 | AO93: =IF((AM93)>0,IF(AN93>0,AM93+AN93,""),"") ->  | AP93: =+MIN(AO93:AO97) -> 30165020.96
E94: 2 | F94: =IF(H54<H182,H54,H182) -> 47.015 | G94: 5 | H94: =+H93 -> 46.14 | I94: =+I93 -> 80 | J94: 0.0109375 | K94: =+K93 -> 1264 | L94: 15.4561 | M94: =+L94/1000 -> 0.0154561 | N94: 0.1344223936 | O94: 5.292220222 | P94: 6 | Q94: =IF(O94>0,VLOOKUP(P94,'$ alcantarillado'!$I$5:$L$22,4,FALSE),"0") -> 0.145 | R94: 0.01891575119 | S94: 0.817102099 | T94: =+IF(S94>$B$13,VLOOKUP(P94,'$ alcantarillado'!$I$6:$N$22,5),P94) -> 6 | U94: =IF(O94>0,VLOOKUP(T94,'$ alcantarillado'!$I$5:$L$22,4),"0") -> 0.145 | V94: 0.01891575119 | W94: 0.817102099 | X94: =IF(T94>0,4*V94/(PI()*(U94)^2),"") -> 1.145506893 | Y94: =IF(T94>0,(VLOOKUP($W94,Relaciones!$A$4:$D$108,2)),"") -> 0.987 | Z94: =IF(T94>0,Y94*X94,"") -> 1.130615304 | AA94: =IF(T94>0,250*U94*J94,"") -> 0.396484375 | AB94: =IF(T94>0,IF(W94<=$B$13,"OK","No Cumple"),"") -> OK | AC94: =IF(T94>0,IF(Z94>=$B$12,"OK","No Cumple"),"") -> OK | AD94: =IF(T94>0,IF(AA94>$B$14,"OK","No Cumple"),"") -> OK | AE94: =+IF(AB94="OK",1,0) -> 1 | AF94: 1 | AG94: 1 | AH94: =SUM(AE94:AG94) -> 3 | AI94: =IF(AH94=3,2*$B$7+U94,0) -> 0.645 | AJ94: =IF(AI94>0,I94*VLOOKUP(T94,'$ alcantarillado'!$I$6:$K$22,3),0) -> 1912173.333 | AK94: 3499254 | AL94: 1549517.82 | AM94: 6960945.153 | AN94: =IF(AP53>0,IF(AP181>0,AP53+AP181,0),0) -> 23204075.8 | AO94: 30165020.96
E95: 3 | F95: =IF(H60<H187,H60,H187) -> 46.89 | G95: 5 | H95: =+H94 -> 46.14 | I95: =+I94 -> 80 | J95: 0.009375 | K95: =+K94 -> 1264 | L95: 15.4561 | M95: 0.0154561 | N95: 0.138364331 | O95: 5.447414606 | P95: 6 | Q95: =IF(O95>0,VLOOKUP(P95,'$ alcantarillado'!$I$5:$L$22,4,FALSE),"0") -> 0.145 | R95: 0.01751258265 | S95: 0.882571138 | T95: =+IF(S95>$B$13,VLOOKUP(P95,'$ alcantarillado'!$I$6:$N$22,5),P95) -> 8 | U95: =IF(O95>0,VLOOKUP(T95,'$ alcantarillado'!$I$5:$L$22,4),"0") -> 0.182 | V95: 0.03210400591 | W95: 0.4814383614 | X95: 1.23403242 | Y95: =IF(T95>0,(VLOOKUP($W95,Relaciones!$A$4:$D$108,2)),"") -> 0.84 | Z95: 1.036587232 | AA95: 0.4265625 | AB95: OK | AC95: OK | AD95: OK | AE95: 1 | AF95: 1 | AG95: 1 | AH95: 3 | AI95: 0.682 | AJ95: =IF(AI95>0,I95*VLOOKUP(T95,'$ alcantarillado'!$I$6:$K$22,3),0) -> 2654586.667 | AK95: 3877251.84 | AL95: 1662590.742 | AM95: 8194429.249 | AN95: =IF(AP58>0,IF(AP186>0,AP58+AP186,0),0) -> 23323505.8 | AO95: 31517935.05 | AQ95: 2 | AR95: 5
E96: 4 | F96: =IF(H64<H193,H64,H193) -> 46.765 | G96: 5 | H96: 46.14 | I96: 80 | J96: =+(F96-H96)/I96 -> 0.0078125 | K96: 1264 | L96: 15.4561 | M96: 0.0154561 | N96: 0.1431761339 | O96: 5.636855665 | P96: 6 | Q96: =IF(O96>0,VLOOKUP(P96,'$ alcantarillado'!$I$5:$L$22,4,FALSE),"0") -> 0.145 | R96: 0.0159867276 | S96: 0.9668082418 | T96: =+IF(S96>$B$13,VLOOKUP(P96,'$ alcantarillado'!$I$6:$N$22,5),P96) -> 8 | U96: =IF(O96>0,VLOOKUP(T96,'$ alcantarillado'!$I$5:$L$22,4),"0") -> 0.182 | V96: 0.0293068137 | W96: 0.5273893012 | X96: 1.126512321 | Y96: =IF(T96>0,(VLOOKUP($W96,Relaciones!$A$4:$D$108,2)),"") -> 0.86 | Z96: 0.9688005965 | AA96: 0.35546875 | AB96: OK | AC96: OK | AD96: OK | AE96: 1 | AF96: 1 | AG96: 1 | AH96: 3 | AI96: 0.682 | AJ96: =IF(AI96>0,I96*VLOOKUP(T96,'$ alcantarillado'!$I$6:$K$22,3),0) -> 2654586.667 | AK96: 4000011.84 | AL96: 1749838.367 | AM96: 8404436.874 | AN96: =IF(AP63>0,IF(AP191>0,AP63+AP191,0),0) -> 23442935.8 | AO96: 31847372.68
E97: 5 | F97: =IF(H71<H196,H71,H196) -> 46.64 | G97: 5 | H97: =+H96 -> 46.14 | I97: =+I96 -> 80 | J97: 0.00625 | K97: =+K96 -> 1264 | L97: 15.4561 | M97: 0.0154561 | N97: 0.1492936234 | O97: 5.877701709 | P97: 6 | Q97: =IF(O97>0,VLOOKUP(P97,'$ alcantarillado'!$I$5:$L$22,4,FALSE),"0") -> 0.145 | R97: 0.01429896386 | S97: 1.080924475 | T97: =+IF(S97>$B$13,VLOOKUP(P97,'$ alcantarillado'!$I$6:$N$22,5),P97) -> 8 | U97: =IF(O97>0,VLOOKUP(T97,'$ alcantarillado'!$I$5:$L$22,4),"0") -> 0.182 | V97: 0.02621281106 | W97: 0.5896391641 | X97: 1.007583251 | Y97: =IF(T97>0,(VLOOKUP($W97,Relaciones!$A$4:$D$108,2)),"") -> 0.89 | Z97: 0.8967490937 | AA97: 0.284375 | AB97: OK | AC97: OK | AD97: OK | AE97: 1 | AF97: 1 | AG97: 1 | AH97: 3 | AI97: 0.682 | AJ97: =IF(AI97>0,I97*VLOOKUP(T97,'$ alcantarillado'!$I$6:$K$22,3),0) -> 2654586.667 | AK97: 4122771.84 | AL97: 1837085.992 | AM97: 8614444.499 | AN97: =IF(AP68>0,IF(AP196>0,AP68+AP196,0),0) -> 22572189.33 | AO97: 31186633.83
A98: 4 | B98: =+C73 -> 6 | C98: 7 | D98: 49.09 | E98: 1 | F98: =+H73 -> 46.64 | G98: 1 | H98: =+H108+2*$B$15 -> 46.14 | I98: =+I87 -> 80 | J98: =+(F98-H98)/I98 -> 0.00625 | K98: =+K87+H5 -> 1281 | L98: =IF(K98<38,K98^0.3686*0.7401,IF(K98<235,K98^0.4193*0.6215,IF(K98<932,K98*0.0092+4.2493,K98*0.0069+6.7345))) -> 15.5734 | M98: =+L98/1000 -> 0.0155734 | N98: 0.1497175041 | O98: 5.894389925 | P98: 6 | Q98: =IF(O98>0,VLOOKUP(P98,'$ alcantarillado'!$I$5:$L$22,4,FALSE),"0") -> 0.145 | R98: 0.01429896386 | S98: 1.089127866 | T98: =+IF(S98>$B$13,VLOOKUP(P98,'$ alcantarillado'!$I$6:$N$22,5),P98) -> 8 | U98: =IF(O98>0,VLOOKUP(T98,'$ alcantarillado'!$I$5:$L$22,4),"0") -> 0.182 | V98: 0.02621281106 | W98: 0.5941140752 | X98: =IF(T98>0,4*V98/(PI()*(U98)^2),"") -> 1.007583251 | Y98: =IF(T98>0,(VLOOKUP($W98,Relaciones!$A$4:$D$108,2)),"") -> 0.895 | Z98: =IF(T98>0,Y98*X98,"") -> 0.9017870099 | AA98: =IF(T98>0,250*U98*J98,"") -> 0.284375 | AB98: =IF(T98>0,IF(W98<=$B$13,"OK","No Cumple"),"") -> OK | AC98: =IF(T98>0,IF(Z98>=$B$12,"OK","No Cumple"),"") -> OK | AD98: =IF(T98>0,IF(AA98>$B$14,"OK","No Cumple"),"") -> OK | AE98: =+IF(AB98="OK",1,0) -> 1 | AF98: =+IF(AC98="OK",1,0) -> 1 | AG98: =+IF(AD98="OK",1,0) -> 1 | AH98: =SUM(AE98:AG98) -> 3 | AI98: =IF(AH98=3,2*$B$7+U98,0) -> 0.682 | AJ98: =IF(AI98>0,I98*VLOOKUP(T98,'$ alcantarillado'!$I$6:$K$22,3),0) -> 2654586.667 | AK98: =IF(N98>0,((($D$98-F98)+(U98))+(($D$123-H98)+(U98))/2)*AI98*I98*$C$9,0) -> 4122771.84 | AL98: =IF(AI98>0,(($D$98-F98)+U98)*$C$10,0) -> 1837085.992 | AM98: =IF(AJ98>0,AJ98+AK98+AL98,0) -> 8614444.499 | AN98: =IF(AP73>0,+AP73,0) -> 30942977.43 | AO98: =IF((AM98)>0,IF(AN98>0,AM98+AN98,""),"") -> 39557421.93 | AP98: =+MIN(AO98:AO102) -> 39557421.93
E99: 2 | F99: =+H78 -> 46.515 | G99: 1 | H99: =+H98 -> 46.14 | I99: =+I98 -> 80 | J99: =+(F99-H99)/I99 -> 0.0046875 | K99: =+K98 -> 1281 | L99: =IF(K99<38,K99^0.3686*0.7401,IF(K99<235,K99^0.4193*0.6215,IF(K99<932,K99*0.0092+4.2493,K99*0.0069+6.7345))) -> 15.5734 | M99: =+L99/1000 -> 0.0155734 | N99: 0.1580151005 | O99: 6.221066948 | P99: 8 | Q99: =IF(O99>0,VLOOKUP(P99,'$ alcantarillado'!$I$5:$L$22,4,FALSE),"0") -> 0.182 | R99: 0.02270096028 | S99: 0.6860238425 | T99: =+IF(S99>$B$13,VLOOKUP(P99,'$ alcantarillado'!$I$6:$N$22,5),P99) -> 8 | U99: =IF(O99>0,VLOOKUP(T99,'$ alcantarillado'!$I$5:$L$22,4),"0") -> 0.182 | V99: 0.02270096028 | W99: 0.6860238425 | X99: =IF(T99>0,4*V99/(PI()*(U99)^2),"") -> 0.8725926921 | Y99: =IF(T99>0,(VLOOKUP($W99,Relaciones!$A$4:$D$108,2)),"") -> 0.936 | Z99: =IF(T99>0,Y99*X99,"") -> 0.8167467598 | AA99: =IF(T99>0,250*U99*J99,"") -> 0.21328125 | AB99: =IF(T99>0,IF(W99<=$B$13,"OK","No Cumple"),"") -> OK | AC99: =IF(T99>0,IF(Z99>=$B$12,"OK","No Cumple"),"") -> OK | AD99: =IF(T99>0,IF(AA99>$B$14,"OK","No Cumple"),"") -> OK | AE99: =+IF(AB99="OK",1,0) -> 1 | AF99: 1 | AG99: 1 | AH99: =SUM(AE99:AG99) -> 3 | AI99: =IF(AH99=3,2*$B$7+U99,0) -> 0.682 | AJ99: =IF(AI99>0,I99*VLOOKUP(T99,'$ alcantarillado'!$I$6:$K$22,3),0) -> 2654586.667 | AK99: 4245531.84 | AL99: 1924333.617 | AM99: =IF(AJ99>0,AJ99+AK99+AL99,0) -> 8824452.124 | AN99: =+AP78 -> 31004357.43 | AO99: 39828809.55 | AQ99: 1 | AR99: 1
E100: 3 | F100: =+H83 -> 46.39 | G100: 1 | H100: =+H99 -> 46.14 | I100: =+I99 -> 80 | J100: 0.003125 | K100: =+K99 -> 1281 | L100: 15.5734 | M100: 0.0155734 | N100: 0.1704965921 | O100: 6.712464256 | P100: 8 | Q100: =IF(O100>0,VLOOKUP(P100,'$ alcantarillado'!$I$5:$L$22,4,FALSE),"0") -> 0.182 | R100: 0.01853525645 | S100: 0.8402041828 | T100: =+IF(S100>$B$13,VLOOKUP(P100,'$ alcantarillado'!$I$6:$N$22,5),P100) -> 8 | U100: =IF(O100>0,VLOOKUP(T100,'$ alcantarillado'!$I$5:$L$22,4),"0") -> 0.182 | V100: 0.01853525645 | W100: 0.8402041828 | X100: 0.7124689496 | Y100: =IF(T100>0,(VLOOKUP($W100,Relaciones!$A$4:$D$108,2)),"") -> 0.997 | Z100: 0.7103315428 | AA100: 0.1421875 | AB100: OK | AC100: OK | AD100: No Cumple | AE100: 1 | AF100: 1 | AG100: 0 | AH100: 2 | AI100: 0 | AJ100: =IF(AI100>0,I100*VLOOKUP(T100,'$ alcantarillado'!$I$6:$K$22,3),0) -> 0 | AK100: 0 | AL100: 0 | AM100: 0 | AN100: =+AP83 -> 31065737.43
E101: 4 | F101: =+H88 -> 46.265 | G101: 1 | H101: 46.14 | I101: 80 | J101: =+(F101-H101)/I101 -> 0.0015625 | K101: 1281 | L101: 15.5734 | M101: 0.0155734 | N101: 0.1941595813 | O101: 7.644078006 | P101: 8 | Q101: =IF(O101>0,VLOOKUP(P101,'$ alcantarillado'!$I$5:$L$22,4,FALSE),"0") -> 0.182 | R101: 0.01310640553 | S101: 1.18822815 | T101: =+IF(S101>$B$13,VLOOKUP(P101,'$ alcantarillado'!$I$6:$N$22,5),P101) -> 10 | U101: =IF(O101>0,VLOOKUP(T101,'$ alcantarillado'!$I$5:$L$22,4),"0") -> 0.227 | V101: 0.02362447608 | W101: 0.6592061532 | X101: 0.5837415276 | Y101: =IF(T101>0,(VLOOKUP($W101,Relaciones!$A$4:$D$108,2)),"") -> 0.922 | Z101: 0.5382096884 | AA101: 0.088671875 | AB101: OK | AC101: OK | AD101: No Cumple | AE101: 1 | AF101: 1 | AG101: 0 | AH101: 2 | AI101: 0 | AJ101: =IF(AI101>0,I101*VLOOKUP(T101,'$ alcantarillado'!$I$6:$K$22,3),0) -> 0 | AK101: 0 | AL101: 0 | AM101: 0 | AN101: =+AP88 -> 31125253.83
E102: 5 | F102: =+H93 -> 46.14 | G102: 1 | H102: =+H101 -> 46.14 | I102: =+I101 -> 80 | J102: 0 | K102: =+K101 -> 1281 | L102: 15.5734 | M102: 0.0155734 | N102: 0 | O102: 0 | P102: 0 | Q102: =IF(O102>0,VLOOKUP(P102,'$ alcantarillado'!$I$5:$L$22,4,FALSE),"0") -> 0 | S102: 0 | T102: =+IF(S102>$B$13,VLOOKUP(P102,'$ alcantarillado'!$I$6:$N$22,5),P102) -> 0 | U102: =IF(O102>0,VLOOKUP(T102,'$ alcantarillado'!$I$5:$L$22,4),"0") -> 0 | W102: 0 | Y102: =IF(T102>0,(VLOOKUP($W102,Relaciones!$A$4:$D$108,2)),"") ->  | AE102: 0 | AF102: 0 | AG102: 0 | AH102: 0 | AI102: 0 | AJ102: =IF(AI102>0,I102*VLOOKUP(T102,'$ alcantarillado'!$I$6:$K$22,3),0) -> 0 | AK102: 0 | AL102: 0 | AM102: 0 | AN102: =+AP93 -> 30165020.96
E103: 1 | F103: =+H73 -> 46.64 | G103: 2 | H103: =+H108+$B$15 -> 46.015 | I103: =+I102 -> 80 | J103: =+(F103-H103)/I103 -> 0.0078125 | K103: =+K102 -> 1281 | L103: =IF(K103<38,K103^0.3686*0.7401,IF(K103<235,K103^0.4193*0.6215,IF(K103<932,K103*0.0092+4.2493,K103*0.0069+6.7345))) -> 15.5734 | M103: =+L103/1000 -> 0.0155734 | N103: 0.1435826456 | O103: 5.652860061 | P103: 6 | Q103: =IF(O103>0,VLOOKUP(P103,'$ alcantarillado'!$I$5:$L$22,4,FALSE),"0") -> 0.145 | R103: 0.0159867276 | S103: 0.9741455783 | T103: =+IF(S103>$B$13,VLOOKUP(P103,'$ alcantarillado'!$I$6:$N$22,5),P103) -> 8 | U103: =IF(O103>0,VLOOKUP(T103,'$ alcantarillado'!$I$5:$L$22,4),"0") -> 0.182 | V103: 0.0293068137 | W103: 0.5313917834 | X103: =IF(T103>0,4*V103/(PI()*(U103)^2),"") -> 1.126512321 | Y103: =IF(T103>0,(VLOOKUP($W103,Relaciones!$A$4:$D$108,2)),"") -> 0.865 | Z103: =IF(T103>0,Y103*X103,"") -> 0.9744331581 | AA103: =IF(T103>0,250*U103*J103,"") -> 0.35546875 | AB103: =IF(T103>0,IF(W103<=$B$13,"OK","No Cumple"),"") -> OK | AC103: =IF(T103>0,IF(Z103>=$B$12,"OK","No Cumple"),"") -> OK | AD103: =IF(T103>0,IF(AA103>$B$14,"OK","No Cumple"),"") -> OK | AE103: =+IF(AB103="OK",1,0) -> 1 | AF103: =+IF(AC103="OK",1,0) -> 1 | AG103: =+IF(AD103="OK",1,0) -> 1 | AH103: =SUM(AE103:AG103) -> 3 | AI103: =IF(AH103=3,2*$B$7+U103,0) -> 0.682 | AJ103: =IF(AI103>0,I103*VLOOKUP(T103,'$ alcantarillado'!$I$6:$K$22,3),0) -> 2654586.667 | AK103: 4184151.84 | AL103: 1837085.992 | AM103: =IF(AJ103>0,AJ103+AK103+AL103,0) -> 8675824.499 | AN103: =IF(AP73>0,+AP73,0) -> 30942977.43 | AO103: =IF((AM103)>0,IF(AN103>0,AM103+AN103,""),"") -> 39618801.93 | AP103: =+MIN(AO103:AO107) -> 39618801.93
E104: 2 | F104: =+H78 -> 46.515 | G104: 2 | H104: =+H103 -> 46.015 | I104: =+I103 -> 80 | J104: 0.00625 | K104: =+K103 -> 1281 | L104: 15.5734 | M104: =+L104/1000 -> 0.0155734 | N104: 0.1497175041 | O104: 5.894389925 | P104: 6 | Q104: =IF(O104>0,VLOOKUP(P104,'$ alcantarillado'!$I$5:$L$22,4,FALSE),"0") -> 0.145 | R104: 0.01429896386 | S104: 1.089127866 | T104: =+IF(S104>$B$13,VLOOKUP(P104,'$ alcantarillado'!$I$6:$N$22,5),P104) -> 8 | U104: =IF(O104>0,VLOOKUP(T104,'$ alcantarillado'!$I$5:$L$22,4),"0") -> 0.182 | V104: 0.02621281106 | W104: 0.5941140752 | X104: =IF(T104>0,4*V104/(PI()*(U104)^2),"") -> 1.007583251 | Y104: =IF(T104>0,(VLOOKUP($W104,Relaciones!$A$4:$D$108,2)),"") -> 0.895 | Z104: =IF(T104>0,Y104*X104,"") -> 0.9017870099 | AA104: =IF(T104>0,250*U104*J104,"") -> 0.284375 | AB104: =IF(T104>0,IF(W104<=$B$13,"OK","No Cumple"),"") -> OK | AC104: =IF(T104>0,IF(Z104>=$B$12,"OK","No Cumple"),"") -> OK | AD104: =IF(T104>0,IF(AA104>$B$14,"OK","No Cumple"),"") -> OK | AE104: =+IF(AB104="OK",1,0) -> 1 | AF104: 1 | AG104: 1 | AH104: =SUM(AE104:AG104) -> 3 | AI104: =IF(AH104=3,2*$B$7+U104,0) -> 0.682 | AJ104: =IF(AI104>0,I104*VLOOKUP(T104,'$ alcantarillado'!$I$6:$K$22,3),0) -> 2654586.667 | AK104: 4306911.84 | AL104: 1924333.617 | AM104: 8885832.124 | AN104: =+AP78 -> 31004357.43 | AO104: 39890189.55 | AQ104: 1 | AR104: 2
E105: 3 | F105: =+H83 -> 46.39 | G105: 2 | H105: =+H104 -> 46.015 | I105: =+I104 -> 80 | J105: 0.0046875 | K105: =+K104 -> 1281 | L105: 15.5734 | M105: 0.0155734 | N105: 0.1580151005 | O105: 6.221066948 | P105: 8 | Q105: =IF(O105>0,VLOOKUP(P105,'$ alcantarillado'!$I$5:$L$22,4,FALSE),"0") -> 0.182 | R105: 0.02270096028 | S105: 0.6860238425 | T105: =+IF(S105>$B$13,VLOOKUP(P105,'$ alcantarillado'!$I$6:$N$22,5),P105) -> 8 | U105: =IF(O105>0,VLOOKUP(T105,'$ alcantarillado'!$I$5:$L$22,4),"0") -> 0.182 | V105: 0.02270096028 | W105: 0.6860238425 | X105: 0.8725926921 | Y105: =IF(T105>0,(VLOOKUP($W105,Relaciones!$A$4:$D$108,2)),"") -> 0.936 | Z105: 0.8167467598 | AA105: 0.21328125 | AB105: OK | AC105: OK | AD105: OK | AE105: 1 | AF105: 1 | AG105: 1 | AH105: 3 | AI105: 0.682 | AJ105: =IF(AI105>0,I105*VLOOKUP(T105,'$ alcantarillado'!$I$6:$K$22,3),0) -> 2654586.667 | AK105: 4429671.84 | AL105: 2011581.242 | AM105: 9095839.749 | AN105: =+AP83 -> 31065737.43 | AO105: 40161577.18
E106: 4 | F106: =+H88 -> 46.265 | G106: 2 | H106: 46.015 | I106: 80 | J106: =+(F106-H106)/I106 -> 0.003125 | K106: 1281 | L106: 15.5734 | M106: 0.0155734 | N106: 0.1704965921 | O106: 6.712464256 | P106: 8 | Q106: =IF(O106>0,VLOOKUP(P106,'$ alcantarillado'!$I$5:$L$22,4,FALSE),"0") -> 0.182 | R106: 0.01853525645 | S106: 0.8402041828 | T106: =+IF(S106>$B$13,VLOOKUP(P106,'$ alcantarillado'!$I$6:$N$22,5),P106) -> 8 | U106: =IF(O106>0,VLOOKUP(T106,'$ alcantarillado'!$I$5:$L$22,4),"0") -> 0.182 | V106: 0.01853525645 | W106: 0.8402041828 | X106: 0.7124689496 | Y106: =IF(T106>0,(VLOOKUP($W106,Relaciones!$A$4:$D$108,2)),"") -> 0.997 | Z106: 0.7103315428 | AA106: 0.1421875 | AB106: OK | AC106: OK | AD106: No Cumple | AE106: 1 | AF106: 1 | AG106: 0 | AH106: 2 | AI106: 0 | AJ106: =IF(AI106>0,I106*VLOOKUP(T106,'$ alcantarillado'!$I$6:$K$22,3),0) -> 0 | AK106: 0 | AL106: 0 | AM106: 0 | AN106: =+AP88 -> 31125253.83
E107: 5 | F107: =+H93 -> 46.14 | G107: 2 | H107: =+H106 -> 46.015 | I107: =+I106 -> 80 | J107: 0.0015625 | K107: =+K106 -> 1281 | L107: 15.5734 | M107: 0.0155734 | N107: 0.1941595813 | O107: 7.644078006 | P107: 8 | Q107: =IF(O107>0,VLOOKUP(P107,'$ alcantarillado'!$I$5:$L$22,4,FALSE),"0") -> 0.182 | R107: 0.01310640553 | S107: 1.18822815 | T107: =+IF(S107>$B$13,VLOOKUP(P107,'$ alcantarillado'!$I$6:$N$22,5),P107) -> 10 | U107: =IF(O107>0,VLOOKUP(T107,'$ alcantarillado'!$I$5:$L$22,4),"0") -> 0.227 | V107: 0.02362447608 | W107: 0.6592061532 | X107: 0.5837415276 | Y107: =IF(T107>0,(VLOOKUP($W107,Relaciones!$A$4:$D$108,2)),"") -> 0.922 | Z107: 0.5382096884 | AA107: 0.088671875 | AB107: OK | AC107: OK | AD107: No Cumple | AE107: 1 | AF107: 1 | AG107: 0 | AH107: 2 | AI107: 0 | AJ107: =IF(AI107>0,I107*VLOOKUP(T107,'$ alcantarillado'!$I$6:$K$22,3),0) -> 0 | AK107: 0 | AL107: 0 | AM107: 0 | AN107: =+AP93 -> 30165020.96
E108: 1 | F108: =+H73 -> 46.64 | G108: 3 | H108: =+'LOGIKA AN-1'!H115 -> 45.89 | I108: =+I107 -> 80 | J108: =+(F108-H108)/I108 -> 0.009375 | K108: =+K107 -> 1281 | L108: =IF(K108<38,K108^0.3686*0.7401,IF(K108<235,K108^0.4193*0.6215,IF(K108<932,K108*0.0092+4.2493,K108*0.0069+6.7345))) -> 15.5734 | M108: =+L108/1000 -> 0.0155734 | N108: 0.1387571808 | O108: 5.462881133 | P108: 6 | Q108: =IF(O108>0,VLOOKUP(P108,'$ alcantarillado'!$I$5:$L$22,4,FALSE),"0") -> 0.145 | R108: 0.01751258265 | S108: 0.8892691792 | T108: =+IF(S108>$B$13,VLOOKUP(P108,'$ alcantarillado'!$I$6:$N$22,5),P108) -> 8 | U108: =IF(O108>0,VLOOKUP(T108,'$ alcantarillado'!$I$5:$L$22,4),"0") -> 0.182 | V108: 0.03210400591 | W108: 0.4850921111 | X108: =IF(T108>0,4*V108/(PI()*(U108)^2),"") -> 1.23403242 | Y108: =IF(T108>0,(VLOOKUP($W108,Relaciones!$A$4:$D$108,2)),"") -> 0.84 | Z108: =IF(T108>0,Y108*X108,"") -> 1.036587232 | AA108: =IF(T108>0,250*U108*J108,"") -> 0.4265625 | AB108: =IF(T108>0,IF(W108<=$B$13,"OK","No Cumple"),"") -> OK | AC108: =IF(T108>0,IF(Z108>=$B$12,"OK","No Cumple"),"") -> OK | AD108: =IF(T108>0,IF(AA108>$B$14,"OK","No Cumple"),"") -> OK | AE108: =+IF(AB108="OK",1,0) -> 1 | AF108: =+IF(AC108="OK",1,0) -> 1 | AG108: =+IF(AD108="OK",1,0) -> 1 | AH108: =SUM(AE108:AG108) -> 3 | AI108: =IF(AH108=3,2*$B$7+U108,0) -> 0.682 | AJ108: =IF(AI108>0,I108*VLOOKUP(T108,'$ alcantarillado'!$I$6:$K$22,3),0) -> 2654586.667 | AK108: 4245531.84 | AL108: 1837085.992 | AM108: =IF(AJ108>0,AJ108+AK108+AL108,0) -> 8737204.499 | AN108: =IF(AP73>0,+AP73,0) -> 30942977.43 | AO108: =IF((AM108)>0,IF(AN108>0,AM108+AN108,""),"") -> 39680181.93 | AP108: =+MIN(AO108:AO112) -> 39680181.93
E109: 2 | F109: =+H78 -> 46.515 | G109: 3 | H109: =+H108 -> 45.89 | I109: =+I108 -> 80 | J109: 0.0078125 | K109: =+K108 -> 1281 | L109: 15.5734 | M109: =+L109/1000 -> 0.0155734 | N109: 0.1435826456 | O109: 5.652860061 | P109: 6 | Q109: =IF(O109>0,VLOOKUP(P109,'$ alcantarillado'!$I$5:$L$22,4,FALSE),"0") -> 0.145 | R109: 0.0159867276 | S109: 0.9741455783 | T109: =+IF(S109>$B$13,VLOOKUP(P109,'$ alcantarillado'!$I$6:$N$22,5),P109) -> 8 | U109: =IF(O109>0,VLOOKUP(T109,'$ alcantarillado'!$I$5:$L$22,4),"0") -> 0.182 | V109: 0.0293068137 | W109: 0.5313917834 | X109: =IF(T109>0,4*V109/(PI()*(U109)^2),"") -> 1.126512321 | Y109: =IF(T109>0,(VLOOKUP($W109,Relaciones!$A$4:$D$108,2)),"") -> 0.865 | Z109: =IF(T109>0,Y109*X109,"") -> 0.9744331581 | AA109: =IF(T109>0,250*U109*J109,"") -> 0.35546875 | AB109: =IF(T109>0,IF(W109<=$B$13,"OK","No Cumple"),"") -> OK | AC109: =IF(T109>0,IF(Z109>=$B$12,"OK","No Cumple"),"") -> OK | AD109: =IF(T109>0,IF(AA109>$B$14,"OK","No Cumple"),"") -> OK | AE109: =+IF(AB109="OK",1,0) -> 1 | AF109: 1 | AG109: 1 | AH109: =SUM(AE109:AG109) -> 3 | AI109: =IF(AH109=3,2*$B$7+U109,0) -> 0.682 | AJ109: =IF(AI109>0,I109*VLOOKUP(T109,'$ alcantarillado'!$I$6:$K$22,3),0) -> 2654586.667 | AK109: 4368291.84 | AL109: 1924333.617 | AM109: 8947212.124 | AN109: =+AP78 -> 31004357.43 | AO109: 39951569.55
E110: 3 | F110: =+H83 -> 46.39 | G110: 3 | H110: =+H109 -> 45.89 | I110: =+I109 -> 80 | J110: 0.00625 | K110: =+K109 -> 1281 | L110: 15.5734 | M110: 0.0155734 | N110: 0.1497175041 | O110: 5.894389925 | P110: 6 | Q110: =IF(O110>0,VLOOKUP(P110,'$ alcantarillado'!$I$5:$L$22,4,FALSE),"0") -> 0.145 | R110: 0.01429896386 | S110: 1.089127866 | T110: =+IF(S110>$B$13,VLOOKUP(P110,'$ alcantarillado'!$I$6:$N$22,5),P110) -> 8 | U110: =IF(O110>0,VLOOKUP(T110,'$ alcantarillado'!$I$5:$L$22,4),"0") -> 0.182 | V110: 0.02621281106 | W110: 0.5941140752 | X110: 1.007583251 | Y110: =IF(T110>0,(VLOOKUP($W110,Relaciones!$A$4:$D$108,2)),"") -> 0.895 | Z110: 0.9017870099 | AA110: 0.284375 | AB110: OK | AC110: OK | AD110: OK | AE110: 1 | AF110: 1 | AG110: 1 | AH110: 3 | AI110: 0.682 | AJ110: =IF(AI110>0,I110*VLOOKUP(T110,'$ alcantarillado'!$I$6:$K$22,3),0) -> 2654586.667 | AK110: 4491051.84 | AL110: 2011581.242 | AM110: 9157219.749 | AN110: =+AP83 -> 31065737.43 | AO110: 40222957.18
E111: 4 | F111: =+H88 -> 46.265 | G111: 3 | H111: 45.89 | I111: 80 | J111: =+(F111-H111)/I111 -> 0.0046875 | K111: 1281 | L111: 15.5734 | M111: 0.0155734 | N111: 0.1580151005 | O111: 6.221066948 | P111: 8 | Q111: =IF(O111>0,VLOOKUP(P111,'$ alcantarillado'!$I$5:$L$22,4,FALSE),"0") -> 0.182 | R111: 0.02270096028 | S111: 0.6860238425 | T111: =+IF(S111>$B$13,VLOOKUP(P111,'$ alcantarillado'!$I$6:$N$22,5),P111) -> 8 | U111: =IF(O111>0,VLOOKUP(T111,'$ alcantarillado'!$I$5:$L$22,4),"0") -> 0.182 | V111: 0.02270096028 | W111: 0.6860238425 | X111: 0.8725926921 | Y111: =IF(T111>0,(VLOOKUP($W111,Relaciones!$A$4:$D$108,2)),"") -> 0.936 | Z111: 0.8167467598 | AA111: 0.21328125 | AB111: OK | AC111: OK | AD111: OK | AE111: 1 | AF111: 1 | AG111: 1 | AH111: 3 | AI111: 0.682 | AJ111: =IF(AI111>0,I111*VLOOKUP(T111,'$ alcantarillado'!$I$6:$K$22,3),0) -> 2654586.667 | AK111: 4613811.84 | AL111: 2098828.867 | AM111: 9367227.374 | AN111: =+AP88 -> 31125253.83 | AO111: 40492481.21 | AQ111: 1 | AR111: 3
E112: 5 | F112: =+H93 -> 46.14 | G112: 3 | H112: =+H111 -> 45.89 | I112: =+I111 -> 80 | J112: 0.003125 | K112: =+K111 -> 1281 | L112: 15.5734 | M112: 0.0155734 | N112: 0.1704965921 | O112: 6.712464256 | P112: 8 | Q112: =IF(O112>0,VLOOKUP(P112,'$ alcantarillado'!$I$5:$L$22,4,FALSE),"0") -> 0.182 | R112: 0.01853525645 | S112: 0.8402041828 | T112: =+IF(S112>$B$13,VLOOKUP(P112,'$ alcantarillado'!$I$6:$N$22,5),P112) -> 8 | U112: =IF(O112>0,VLOOKUP(T112,'$ alcantarillado'!$I$5:$L$22,4),"0") -> 0.182 | V112: 0.01853525645 | W112: 0.8402041828 | X112: 0.7124689496 | Y112: =IF(T112>0,(VLOOKUP($W112,Relaciones!$A$4:$D$108,2)),"") -> 0.997 | Z112: 0.7103315428 | AA112: 0.1421875 | AB112: OK | AC112: OK | AD112: No Cumple | AE112: 1 | AF112: 1 | AG112: 0 | AH112: 2 | AI112: 0 | AJ112: =IF(AI112>0,I112*VLOOKUP(T112,'$ alcantarillado'!$I$6:$K$22,3),0) -> 0 | AK112: 0 | AL112: 0 | AM112: 0 | AN112: =+AP93 -> 30165020.96
E113: 1 | F113: =+H73 -> 46.64 | G113: 4 | H113: =+H108-$B$15 -> 45.765 | I113: =+I108 -> 80 | J113: =+(F113-H113)/I113 -> 0.0109375 | K113: =+K108 -> 1281 | L113: =IF(K113<38,K113^0.3686*0.7401,IF(K113<235,K113^0.4193*0.6215,IF(K113<932,K113*0.0092+4.2493,K113*0.0069+6.7345))) -> 15.5734 | M113: =+L113/1000 -> 0.0155734 | N113: 0.1348040513 | O113: 5.307246114 | P113: 6 | Q113: =IF(O113>0,VLOOKUP(P113,'$ alcantarillado'!$I$5:$L$22,4,FALSE),"0") -> 0.145 | R113: 0.01891575119 | S113: 0.8233032802 | T113: =+IF(S113>$B$13,VLOOKUP(P113,'$ alcantarillado'!$I$6:$N$22,5),P113) -> 6 | U113: =IF(O113>0,VLOOKUP(T113,'$ alcantarillado'!$I$5:$L$22,4),"0") -> 0.145 | V113: 0.01891575119 | W113: 0.8233032802 | X113: =IF(T113>0,4*V113/(PI()*(U113)^2),"") -> 1.145506893 | Y113: =IF(T113>0,(VLOOKUP($W113,Relaciones!$A$4:$D$108,2)),"") -> 0.99 | Z113: =IF(T113>0,Y113*X113,"") -> 1.134051824 | AA113: =IF(T113>0,250*U113*J113,"") -> 0.396484375 | AB113: =IF(T113>0,IF(W113<=$B$13,"OK","No Cumple"),"") -> OK | AC113: =IF(T113>0,IF(Z113>=$B$12,"OK","No Cumple"),"") -> OK | AD113: =IF(T113>0,IF(AA113>$B$14,"OK","No Cumple"),"") -> OK | AE113: =+IF(AB113="OK",1,0) -> 1 | AF113: =+IF(AC113="OK",1,0) -> 1 | AG113: =+IF(AD113="OK",1,0) -> 1 | AH113: =SUM(AE113:AG113) -> 3 | AI113: =IF(AH113=3,2*$B$7+U113,0) -> 0.645 | AJ113: =IF(AI113>0,I113*VLOOKUP(T113,'$ alcantarillado'!$I$6:$K$22,3),0) -> 1912173.333 | AK113: 4021704 | AL113: 1811260.695 | AM113: =IF(AJ113>0,AJ113+AK113+AL113,0) -> 7745138.028 | AN113: =IF(AP73>0,+AP73,0) -> 30942977.43 | AO113: =IF((AM113)>0,IF(AN113>0,AM113+AN113,""),"") -> 38688115.46 | AP113: =+MIN(AO113:AO117) -> 38688115.46
E114: 2 | F114: =+H78 -> 46.515 | G114: 4 | H114: =+H113 -> 45.765 | I114: =+I113 -> 80 | J114: 0.009375 | K114: =+K113 -> 1281 | L114: 15.5734 | M114: =+L114/1000 -> 0.0155734 | N114: 0.1387571808 | O114: 5.462881133 | P114: 6 | Q114: =IF(O114>0,VLOOKUP(P114,'$ alcantarillado'!$I$5:$L$22,4,FALSE),"0") -> 0.145 | R114: 0.01751258265 | S114: 0.8892691792 | T114: =+IF(S114>$B$13,VLOOKUP(P114,'$ alcantarillado'!$I$6:$N$22,5),P114) -> 8 | U114: =IF(O114>0,VLOOKUP(T114,'$ alcantarillado'!$I$5:$L$22,4),"0") -> 0.182 | V114: 0.03210400591 | W114: 0.4850921111 | X114: =IF(T114>0,4*V114/(PI()*(U114)^2),"") -> 1.23403242 | Y114: =IF(T114>0,(VLOOKUP($W114,Relaciones!$A$4:$D$108,2)),"") -> 0.84 | Z114: =IF(T114>0,Y114*X114,"") -> 1.036587232 | AA114: =IF(T114>0,250*U114*J114,"") -> 0.4265625 | AB114: =IF(T114>0,IF(W114<=$B$13,"OK","No Cumple"),"") -> OK | AC114: =IF(T114>0,IF(Z114>=$B$12,"OK","No Cumple"),"") -> OK | AD114: =IF(T114>0,IF(AA114>$B$14,"OK","No Cumple"),"") -> OK | AE114: =+IF(AB114="OK",1,0) -> 1 | AF114: 1 | AG114: 1 | AH114: =SUM(AE114:AG114) -> 3 | AI114: =IF(AH114=3,2*$B$7+U114,0) -> 0.682 | AJ114: =IF(AI114>0,I114*VLOOKUP(T114,'$ alcantarillado'!$I$6:$K$22,3),0) -> 2654586.667 | AK114: 4429671.84 | AL114: 1924333.617 | AM114: 9008592.124 | AN114: =+AP78 -> 31004357.43 | AO114: 40012949.55
E115: 3 | F115: =+H83 -> 46.39 | G115: 4 | H115: =+H114 -> 45.765 | I115: =+I114 -> 80 | J115: 0.0078125 | K115: =+K114 -> 1281 | L115: 15.5734 | M115: 0.0155734 | N115: 0.1435826456 | O115: 5.652860061 | P115: 6 | Q115: =IF(O115>0,VLOOKUP(P115,'$ alcantarillado'!$I$5:$L$22,4,FALSE),"0") -> 0.145 | R115: 0.0159867276 | S115: 0.9741455783 | T115: =+IF(S115>$B$13,VLOOKUP(P115,'$ alcantarillado'!$I$6:$N$22,5),P115) -> 8 | U115: =IF(O115>0,VLOOKUP(T115,'$ alcantarillado'!$I$5:$L$22,4),"0") -> 0.182 | V115: 0.0293068137 | W115: 0.5313917834 | X115: 1.126512321 | Y115: =IF(T115>0,(VLOOKUP($W115,Relaciones!$A$4:$D$108,2)),"") -> 0.865 | Z115: 0.9744331581 | AA115: 0.35546875 | AB115: OK | AC115: OK | AD115: OK | AE115: 1 | AF115: 1 | AG115: 1 | AH115: 3 | AI115: 0.682 | AJ115: =IF(AI115>0,I115*VLOOKUP(T115,'$ alcantarillado'!$I$6:$K$22,3),0) -> 2654586.667 | AK115: 4552431.84 | AL115: 2011581.242 | AM115: 9218599.749 | AN115: =+AP83 -> 31065737.43 | AO115: =IF((AM115)>0,IF(AN115>0,AM115+AN115,""),"") -> 40284337.18 | AQ115: 1 | AR115: 4
E116: 4 | F116: =+H88 -> 46.265 | G116: 4 | H116: 45.765 | I116: 80 | J116: =+(F116-H116)/I116 -> 0.00625 | K116: 1281 | L116: 15.5734 | M116: 0.0155734 | N116: 0.1497175041 | O116: 5.894389925 | P116: 6 | Q116: =IF(O116>0,VLOOKUP(P116,'$ alcantarillado'!$I$5:$L$22,4,FALSE),"0") -> 0.145 | R116: 0.01429896386 | S116: 1.089127866 | T116: =+IF(S116>$B$13,VLOOKUP(P116,'$ alcantarillado'!$I$6:$N$22,5),P116) -> 8 | U116: =IF(O116>0,VLOOKUP(T116,'$ alcantarillado'!$I$5:$L$22,4),"0") -> 0.182 | V116: 0.02621281106 | W116: 0.5941140752 | X116: 1.007583251 | Y116: =IF(T116>0,(VLOOKUP($W116,Relaciones!$A$4:$D$108,2)),"") -> 0.895 | Z116: 0.9017870099 | AA116: 0.284375 | AB116: OK | AC116: OK | AD116: OK | AE116: 1 | AF116: 1 | AG116: 1 | AH116: 3 | AI116: 0.682 | AJ116: =IF(AI116>0,I116*VLOOKUP(T116,'$ alcantarillado'!$I$6:$K$22,3),0) -> 2654586.667 | AK116: 4675191.84 | AL116: 2098828.867 | AM116: 9428607.374 | AN116: =+AP88 -> 31125253.83 | AO116: 40553861.21
